Workbook

Sheet Introduction
C4: Joint Monitoring Programme for Water Supply, Sanitation and Hygiene
C6: Estimates on household water, sanitation and hygiene by wealth quintile and sub-national region in
C7: =+Water!B5 -> Ukraine
C9: Updated May 2021
C11: Follow the links below to find the following information:
C13: JMP Estimates
C14: WASH status and trends by wealth quintile (customized quintiles made without water and sanitation assets)
C15: Water
C16: Sanitation
C17: Hygiene
C19: Data inputs
C20: customized wealth quintiles and subnational data:
C21: =IF(INDIRECT(CONCATENATE("Water","!B105"))=0,"",INDIRECT(CONCATENATE("Water","!B105"))) -> WHS03
C22: =IF(INDIRECT(CONCATENATE("Water","!B106"))=0,"",INDIRECT(CONCATENATE("Water","!B106"))) -> MICS05
C23: =IF(INDIRECT(CONCATENATE("Water","!B107"))=0,"",INDIRECT(CONCATENATE("Water","!B107"))) -> DHS07
C24: =IF(INDIRECT(CONCATENATE("Water","!B108"))=0,"",INDIRECT(CONCATENATE("Water","!B108"))) -> MICS12
C25: =IF(INDIRECT(CONCATENATE("Water","!B109"))=0,"",INDIRECT(CONCATENATE("Water","!B109"))) -> 
C26: =IF(INDIRECT(CONCATENATE("Water","!B110"))=0,"",INDIRECT(CONCATENATE("Water","!B110"))) -> 
C27: =IF(INDIRECT(CONCATENATE("Water","!B111"))=0,"",INDIRECT(CONCATENATE("Water","!B111"))) -> 
C28: =IF(INDIRECT(CONCATENATE("Water","!B112"))=0,"",INDIRECT(CONCATENATE("Water","!B112"))) -> 
C29: =IF(INDIRECT(CONCATENATE("Water","!B113"))=0,"",INDIRECT(CONCATENATE("Water","!B113"))) -> 
C30: =IF(INDIRECT(CONCATENATE("Water","!B114"))=0,"",INDIRECT(CONCATENATE("Water","!B114"))) -> 
C31: =IF(INDIRECT(CONCATENATE("Water","!B115"))=0,"",INDIRECT(CONCATENATE("Water","!B115"))) -> 
C32: =IF(INDIRECT(CONCATENATE("Water","!B116"))=0,"",INDIRECT(CONCATENATE("Water","!B116"))) -> 
L55: =+IF(ISNUMBER(M48), "", "Insufficient data to estimate safely managed sanitation services at national level") -> Insufficient data to estimate safely managed sanitation services at national level

Sheet Water
A1: BGD
B4: Summary of trends in use of drinking water by wealth quintile (%)
B5: =IF(ISERROR(INDIRECT(CONCATENATE($B105,"!A2"))),"",INDIRECT(CONCATENATE($B105,"!A2"))) -> Ukraine
B7: =B118 -> National use of drinking water sources, 2000–2018 | J7: =B218 -> Urban use of drinking water sources, 2000–2018 | R7: =B318 -> Rural use of drinking water sources, 2000–2018
B31: =IF(ISERROR(INDIRECT(CONCATENATE($B105,"!A2"))),"",INDIRECT(CONCATENATE($B105,"!A2"))) -> Ukraine | F31: Poorest | J31: Poor | N31: Middle | R31: Rich | V31: Richest
F32: Basic | G32: Limited | H32: Unimproved | I32: Surface water | J32: Basic | K32: Limited | L32: Unimproved | M32: Surface water | N32: Basic | O32: Limited | P32: Unimproved | Q32: Surface water | R32: Basic | S32: Limited | T32: Unimproved | U32: Surface water | V32: Basic | W32: Limited | X32: Unimproved | Y32: Surface water
B33: NATIONAL | D33: Estimate | E33: =C99 -> 2000 | F33: =E99 -> 93.19802263 | G33: =F99 -> 0.5281101567 | H33: 6.102866273 | I33: 0.1710009434 | J33: =J99 -> 95.9243591 | K33: =K99 -> 0.3747203981 | L33: 3.700920507 | M33: 0 | N33: =O99 -> 95.48914446 | O33: =P99 -> 0.1465097383 | P33: 4.360486983 | Q33: 0.003858815172 | R33: =T99 -> 94.99334207 | S33: =U99 -> 0.9648830009 | T33: 4.04177493 | U33: 0 | V33: =Y99 -> 95.96011072 | W33: =Z99 -> 0.9804469426 | X33: 3.059442335 | Y33: 0
E34: =C100 -> 2018 | F34: =E100 -> 99.43653905 | G34: 0.5634609484 | H34: 0 | I34: 0 | J34: =J100 -> 99.61087853 | K34: 0.3891214746 | L34: 0 | M34: 0 | N34: =O100 -> 99.84166733 | O34: 0.1531878481 | P34: 0 | Q34: 0.005144822191 | R34: =T100 -> 98.99447598 | S34: 1.005524019 | T34: 0 | U34: 0 | V34: =Y100 -> 98.98861017 | W34: 1.011389831 | X34: 0 | Y34: 0
B36: URBAN | D36: Estimate | E36: =C199 -> 2000 | F36: =E199 -> 93.91592881 | G36: =F199 -> 0.5059816407 | H36: 5.578089552 | I36: 0 | J36: =J199 -> 97.37243344 | K36: =K199 -> 0.1685906639 | L36: 2.453327057 | M36: 0.005648834473 | N36: =O199 -> 98.0927469 | O36: =P199 -> 0.1572359782 | P36: 1.750017121 | Q36: 0 | R36: =T199 -> 94.93713516 | S36: =U199 -> 1.653936581 | T36: 3.408928257 | U36: 0 | V36: =Y199 -> 96.22098769 | W36: =Z199 -> 1.311174571 | X36: 2.467837738 | Y36: 0
E37: =C200 -> 2018 | F37: =E200 -> 99.44839717 | G37: 0.535788378 | H37: 0 | I37: 0.01581445274 | J37: =J200 -> 99.81964103 | K37: 0.1728277599 | L37: 0 | M37: 0.007531212063 | N37: =O200 -> 99.83996335 | O37: 0.1600366469 | P37: 0 | Q37: 0 | R37: =T200 -> 98.28769207 | S37: 1.71230793 | T37: 0 | U37: 0 | V37: =Y200 -> 98.65564903 | W37: 1.344350972 | X37: 0 | Y37: 0
B39: RURAL | D39: Estimate | E39: =C299 -> 2000 | F39: =E299 -> 85.30670004 | G39: =F299 -> 0.8961119169 | H39: 13.27850161 | I39: 0.5186864302 | J39: =J299 -> 91.2937409 | K39: =K299 -> 0.2454196642 | L39: 8.460839435 | M39: 0 | N39: =O299 -> 97.3224679 | O39: =P299 -> 0.131121985 | P39: 2.546410114 | Q39: 0 | R39: =T299 -> 87.65406893 | S39: =U299 -> 0.08677365496 | T39: 12.25915742 | U39: 0 | V39: =Y299 -> 92.0946296 | W39: =Z299 -> 0.1933412724 | X39: 7.712029129 | Y39: 0
E40: =C300 -> 2018 | F40: =E300 -> 98.96046092 | G40: 1.039539078 | H40: 0 | I40: 0 | J40: =J300 -> 99.53583994 | K40: 0.2675764207 | L40: 0 | M40: 0.1965836362 | N40: =O300 -> 99.21145579 | O40: 0.1336670072 | P40: 0.6548772009 | Q40: 0 | R40: =T300 -> 99.90110232 | S40: 0.09889767685 | T40: 0 | U40: 0 | V40: =Y300 -> 99.7905022 | W40: 0.2094978041 | X40: 0 | Y40: 0
A97: NATIONAL | D97: Poorest | I97: Poor | N97: Middle | S97: Rich | X97: Richest
D98: Improved | E98: Basic | F98: Limited | G98: Unimproved | H98: Surface water | I98: Improved | J98: Basic | K98: Limited | L98: Unimproved | M98: Surface water | N98: Improved | O98: Basic | P98: Limited | Q98: Unimproved | R98: Surface water | S98: Improved | T98: Basic | U98: Limited | V98: Unimproved | W98: Surface water | X98: Improved | Y98: Basic | Z98: Limited | AA98: Unimproved | AB98: Surface water
A99: Forecast period: | C99: 2000 | D99: =IF((D101+H101)>100,D101*100/(D101+H101),D101) -> 93.72613278 | E99: =D99*AVERAGEIF(E105:E116,">0")/100 -> 93.19802263 | F99: =D99*(100-AVERAGEIF(E105:E116,">0"))/100 -> 0.5281101567 | G99: =100-(E99+F99+H99) -> 6.102866273 | H99: =IF((D101+H101)>100,H101*100/(D101+H101),H101) -> 0.1710009434 | I99: =IF((I101+M101)>100,I101*100/(I101+M101),I101) -> 96.29907949 | J99: =I99*AVERAGEIF(J105:J116,">0")/100 -> 95.9243591 | K99: =I99*(100-AVERAGEIF(J105:J116,">0"))/100 -> 0.3747203981 | L99: =100-(J99+K99+M99) -> 3.700920507 | M99: =IF((I101+M101)>100,M101*100/(I101+M101),M101) -> 0 | N99: =IF((N101+R101)>100,N101*100/(N101+R101),N101) -> 95.6356542 | O99: =N99*AVERAGEIF(O105:O116,">0")/100 -> 95.48914446 | P99: =N99*(100-AVERAGEIF(O105:O116,">0"))/100 -> 0.1465097383 | Q99: =100-(O99+P99+R99) -> 4.360486983 | R99: =IF((N101+R101)>100,R101*100/(N101+R101),R101) -> 0.003858815172 | S99: =IF((S101+W101)>100,S101*100/(S101+W101),S101) -> 95.95822507 | T99: =S99*AVERAGEIF(T105:T116,">0")/100 -> 94.99334207 | U99: =S99*(100-AVERAGEIF(T105:T116,">0"))/100 -> 0.9648830009 | V99: =100-(T99+U99+W99) -> 4.04177493 | W99: =IF((S101+W101)>100,W101*100/(S101+W101),W101) -> 0 | X99: =IF((X101+AB101)>100,X101*100/(X101+AB101),X101) -> 96.94055767 | Y99: =X99*AVERAGEIF(Y105:Y116,">0")/100 -> 95.96011072 | Z99: =X99*(100-AVERAGEIF(Y105:Y116,">0"))/100 -> 0.9804469426 | AA99: =100-(Y99+Z99+AB99) -> 3.059442335 | AB99: =IF((X101+AB101)>100,AB101*100/(X101+AB101),AB101) -> 0
C100: 2018 | D100: =IF((D102+H102)>100,D102*100/(D102+H102),D102) -> 100 | E100: =D100*AVERAGEIF(E105:E116,">0")/100 -> 99.43653905 | F100: =D100*(100-AVERAGEIF(E105:E116,">0"))/100 -> 0.5634609484 | G100: =100-(E100+F100+H100) -> 0 | H100: =IF((D102+H102)>100,H102*100/(D102+H102),H102) -> 0 | I100: =IF((I102+M102)>100,I102*100/(I102+M102),I102) -> 100 | J100: =I100*AVERAGEIF(J105:J116,">0")/100 -> 99.61087853 | K100: =I100*(100-AVERAGEIF(J105:J116,">0"))/100 -> 0.3891214746 | L100: =100-(J100+K100+M100) -> 0 | M100: =IF((I102+M102)>100,M102*100/(I102+M102),M102) -> 0 | N100: =IF((N102+R102)>100,N102*100/(N102+R102),N102) -> 99.99485518 | O100: =N100*AVERAGEIF(O105:O116,">0")/100 -> 99.84166733 | P100: =N100*(100-AVERAGEIF(O105:O116,">0"))/100 -> 0.1531878481 | Q100: =100-(O100+P100+R100) -> 0 | R100: =IF((N102+R102)>100,R102*100/(N102+R102),R102) -> 0.005144822191 | S100: =IF((S102+W102)>100,S102*100/(S102+W102),S102) -> 100 | T100: =S100*AVERAGEIF(T105:T116,">0")/100 -> 98.99447598 | U100: =S100*(100-AVERAGEIF(T105:T116,">0"))/100 -> 1.005524019 | V100: =100-(T100+U100+W100) -> 0 | W100: =IF((S102+W102)>100,W102*100/(S102+W102),W102) -> 0 | X100: =IF((X102+AB102)>100,X102*100/(X102+AB102),X102) -> 100 | Y100: =X100*AVERAGEIF(Y105:Y116,">0")/100 -> 98.98861017 | Z100: =X100*(100-AVERAGEIF(Y105:Y116,">0"))/100 -> 1.011389831 | AA100: =100-(Y100+Z100+AB100) -> 0 | AB100: =IF((X102+AB102)>100,AB102*100/(X102+AB102),AB102) -> 0
A101: Regression period: | C101: =MinRegYear(C99,C105:C116) -> 2001 | D101: =IF(MAX(C105:C116)-MIN(C105:C116)<5,AVERAGEIF(C105:C116,">0",D105:D116), IF(FORECAST($C101,D$105:D$116,$C$105:$C$116)<0,0, IF(FORECAST($C101,D$105:D$116,$C$105:$C$116)>100,100, FORECAST($C101,D$105:D$116,$C$105:$C$116)))) -> 93.72613278 | H101: =IF(MAX(C105:C116)-MIN(C105:C116)<5,AVERAGEIF(C105:C116,">0",H105:H116), IF(FORECAST($C101,H$105:H$116,$C$105:$C$116)<0,0, IF(FORECAST($C101,H$105:H$116,$C$105:$C$116)>100,100, FORECAST($C101,H$105:H$116,$C$105:$C$116)))) -> 0.1710009434 | I101: =IF(MAX(C105:C116)-MIN(C105:C116)<5,AVERAGEIF(C105:C116,">0",I105:I116), IF(FORECAST($C101,I$105:I$116,$C$105:$C$116)<0,0, IF(FORECAST($C101,I$105:I$116,$C$105:$C$116)>100,100, FORECAST($C101,I$105:I$116,$C$105:$C$116)))) -> 96.29907949 | M101: =IF(MAX(C105:C116)-MIN(C105:C116)<5,AVERAGEIF(C105:C116,">0",M105:M116), IF(FORECAST($C101,M$105:M$116,$C$105:$C$116)<0,0, IF(FORECAST($C101,M$105:M$116,$C$105:$C$116)>100,100, FORECAST($C101,M$105:M$116,$C$105:$C$116)))) -> 0 | N101: =IF(MAX(C105:C116)-MIN(C105:C116)<5,AVERAGEIF(C105:C116,">0",N105:N116), IF(FORECAST($C101,N$105:N$116,$C$105:$C$116)<0,0, IF(FORECAST($C101,N$105:N$116,$C$105:$C$116)>100,100, FORECAST($C101,N$105:N$116,$C$105:$C$116)))) -> 95.6356542 | R101: =IF(MAX(C105:C116)-MIN(C105:C116)<5,AVERAGEIF(C105:C116,">0",R105:R116), IF(FORECAST($C101,R$105:R$116,$C$105:$C$116)<0,0, IF(FORECAST($C101,R$105:R$116,$C$105:$C$116)>100,100, FORECAST($C101,R$105:R$116,$C$105:$C$116)))) -> 0.003858815172 | S101: =IF(MAX(C105:C116)-MIN(C105:C116)<5,AVERAGEIF(C105:C116,">0",S105:S116), IF(FORECAST($C101,S$105:S$116,$C$105:$C$116)<0,0, IF(FORECAST($C101,S$105:S$116,$C$105:$C$116)>100,100, FORECAST($C101,S$105:S$116,$C$105:$C$116)))) -> 95.95822507 | W101: =IF(MAX(C105:C116)-MIN(C105:C116)<5,AVERAGEIF(C105:C116,">0",W105:W116), IF(FORECAST($C101,W$105:W$116,$C$105:$C$116)<0,0, IF(FORECAST($C101,W$105:W$116,$C$105:$C$116)>100,100, FORECAST($C101,W$105:W$116,$C$105:$C$116)))) -> 0 | X101: =IF(MAX(C105:C116)-MIN(C105:C116)<5,AVERAGEIF(C105:C116,">0",X105:X116), IF(FORECAST($C101,X$105:X$116,$C$105:$C$116)<0,0, IF(FORECAST($C101,X$105:X$116,$C$105:$C$116)>100,100, FORECAST($C101,X$105:X$116,$C$105:$C$116)))) -> 96.94055767 | AB101: =IF(MAX(C105:C116)-MIN(C105:C116)<5,AVERAGEIF(C105:C116,">0",AB105:AB116), IF(FORECAST($C101,AB$105:AB$116,$C$105:$C$116)<0,0, IF(FORECAST($C101,AB$105:AB$116,$C$105:$C$116)>100,100, FORECAST($C101,AB$105:AB$116,$C$105:$C$116)))) -> 0
C102: =MaxRegYear(C100,C105:C116) -> 2014 | D102: =IF(MAX(C105:C116)-MIN(C105:C116)<5,AVERAGEIF(C105:C116,">0",D105:D116), IF(FORECAST($C102,D$105:D$116,$C$105:$C$116)<0,0, IF(FORECAST($C102,D$105:D$116,$C$105:$C$116)>100,100, FORECAST($C102,D$105:D$116,$C$105:$C$116)))) -> 100 | H102: =IF(MAX(C105:C116)-MIN(C105:C116)<5,AVERAGEIF(C105:C116,">0",H105:H116), IF(FORECAST($C102,H$105:H$116,$C$105:$C$116)<0,0, IF(FORECAST($C102,H$105:H$116,$C$105:$C$116)>100,100, FORECAST($C102,H$105:H$116,$C$105:$C$116)))) -> 0 | I102: =IF(MAX(C105:C116)-MIN(C105:C116)<5,AVERAGEIF(C105:C116,">0",I105:I116), IF(FORECAST($C102,I$105:I$116,$C$105:$C$116)<0,0, IF(FORECAST($C102,I$105:I$116,$C$105:$C$116)>100,100, FORECAST($C102,I$105:I$116,$C$105:$C$116)))) -> 100 | M102: =IF(MAX(C105:C116)-MIN(C105:C116)<5,AVERAGEIF(C105:C116,">0",M105:M116), IF(FORECAST($C102,M$105:M$116,$C$105:$C$116)<0,0, IF(FORECAST($C102,M$105:M$116,$C$105:$C$116)>100,100, FORECAST($C102,M$105:M$116,$C$105:$C$116)))) -> 0 | N102: =IF(MAX(C105:C116)-MIN(C105:C116)<5,AVERAGEIF(C105:C116,">0",N105:N116), IF(FORECAST($C102,N$105:N$116,$C$105:$C$116)<0,0, IF(FORECAST($C102,N$105:N$116,$C$105:$C$116)>100,100, FORECAST($C102,N$105:N$116,$C$105:$C$116)))) -> 100 | R102: =IF(MAX(C105:C116)-MIN(C105:C116)<5,AVERAGEIF(C105:C116,">0",R105:R116), IF(FORECAST($C102,R$105:R$116,$C$105:$C$116)<0,0, IF(FORECAST($C102,R$105:R$116,$C$105:$C$116)>100,100, FORECAST($C102,R$105:R$116,$C$105:$C$116)))) -> 0.005145086896 | S102: =IF(MAX(C105:C116)-MIN(C105:C116)<5,AVERAGEIF(C105:C116,">0",S105:S116), IF(FORECAST($C102,S$105:S$116,$C$105:$C$116)<0,0, IF(FORECAST($C102,S$105:S$116,$C$105:$C$116)>100,100, FORECAST($C102,S$105:S$116,$C$105:$C$116)))) -> 100 | W102: =IF(MAX(C105:C116)-MIN(C105:C116)<5,AVERAGEIF(C105:C116,">0",W105:W116), IF(FORECAST($C102,W$105:W$116,$C$105:$C$116)<0,0, IF(FORECAST($C102,W$105:W$116,$C$105:$C$116)>100,100, FORECAST($C102,W$105:W$116,$C$105:$C$116)))) -> 0 | X102: =IF(MAX(C105:C116)-MIN(C105:C116)<5,AVERAGEIF(C105:C116,">0",X105:X116), IF(FORECAST($C102,X$105:X$116,$C$105:$C$116)<0,0, IF(FORECAST($C102,X$105:X$116,$C$105:$C$116)>100,100, FORECAST($C102,X$105:X$116,$C$105:$C$116)))) -> 100 | AB102: =IF(MAX(C105:C116)-MIN(C105:C116)<5,AVERAGEIF(C105:C116,">0",AB105:AB116), IF(FORECAST($C102,AB$105:AB$116,$C$105:$C$116)<0,0, IF(FORECAST($C102,AB$105:AB$116,$C$105:$C$116)>100,100, FORECAST($C102,AB$105:AB$116,$C$105:$C$116)))) -> 0
B104: Survey | C104: Year | D104: Improved | E104: % Improved < = 30min | H104: Surface water | I104: Improved | J104: % Improved < = 30min | M104: Surface water | N104: Improved | O104: % Improved < = 30min | R104: Surface water | S104: Improved | T104: % Improved < = 30min | W104: Surface water | X104: Improved | Y104: % Improved < = 30min | AB104: Surface water
B105: WHS03 | C105: 2003 | D105: =IF(ISERROR(INDIRECT(CONCATENATE($B105,"!C16"))),"",INDIRECT(CONCATENATE($B105,"!C16"))) -> 92.50338097 | E105: =IF(ISERROR(INDIRECT(CONCATENATE($B105,"!C23"))),"",INDIRECT(CONCATENATE($B105,"!C23"))) -> 99.05036022 | H105: =IF(ISERROR(INDIRECT(CONCATENATE($B105,"!C21"))),"",INDIRECT(CONCATENATE($B105,"!C21"))) -> 0.262952298 | I105: =IF(ISERROR(INDIRECT(CONCATENATE($B105,"!D16"))),"",INDIRECT(CONCATENATE($B105,"!D16"))) -> 95.67822578 | J105: =IF(ISERROR(INDIRECT(CONCATENATE($B105,"!D23"))),"",INDIRECT(CONCATENATE($B105,"!D23"))) -> 99.31982632 | M105: =IF(ISERROR(INDIRECT(CONCATENATE($B105,"!D21"))),"",INDIRECT(CONCATENATE($B105,"!D21"))) -> 0 | N105: =IF(ISERROR(INDIRECT(CONCATENATE($B105,"!E16"))),"",INDIRECT(CONCATENATE($B105,"!E16"))) -> 94.29278749 | O105: =IF(ISERROR(INDIRECT(CONCATENATE($B105,"!E23"))),"",INDIRECT(CONCATENATE($B105,"!E23"))) -> 100 | R105: =IF(ISERROR(INDIRECT(CONCATENATE($B105,"!E21"))),"",INDIRECT(CONCATENATE($B105,"!E21"))) -> 0 | S105: =IF(ISERROR(INDIRECT(CONCATENATE($B105,"!F16"))),"",INDIRECT(CONCATENATE($B105,"!F16"))) -> 94.88757891 | T105: =IF(ISERROR(INDIRECT(CONCATENATE($B105,"!F23"))),"",INDIRECT(CONCATENATE($B105,"!F23"))) -> 97.6613419 | W105: =IF(ISERROR(INDIRECT(CONCATENATE($B105,"!F21"))),"",INDIRECT(CONCATENATE($B105,"!F21"))) -> 0 | X105: =IF(ISERROR(INDIRECT(CONCATENATE($B105,"!G16"))),"",INDIRECT(CONCATENATE($B105,"!G16"))) -> 96.03590382 | Y105: =IF(ISERROR(INDIRECT(CONCATENATE($B105,"!G23"))),"",INDIRECT(CONCATENATE($B105,"!G23"))) -> 100 | AB105: =IF(ISERROR(INDIRECT(CONCATENATE($B105,"!G221"))),"",INDIRECT(CONCATENATE($B105,"!G21"))) -> 0
B106: MICS05 | C106: 2005 | D106: 97.94135574 | E106: 99.98363665 | H106: 0 | I106: 99.44805648 | J106: 100 | M106: 0 | N106: 99.74868697 | O106: 99.86232871 | R106: 0 | S106: 99.36026916 | T106: 99.75206184 | W106: 0 | X106: 99.56774904 | Y106: 98.19762369 | AB106: 0
B107: DHS07 | C107: 2007 | D107: 97.61981468 | E107: N/A | H107: 0.0193541219 | I107: 98.32605902 | J107: N/A | M107: 0 | N107: 98.83874548 | O107: N/A | R107: 0.0177109722 | S107: 99.34764025 | T107: N/A | W107: 0 | X107: 99.93013303 | Y107: N/A | AB107: 0
B108: MICS12 | C108: 2012 | D108: 98.3309625 | E108: 99.27562028 | H108: 0.0604262228 | I108: 99.79096646 | J108: 99.51280925 | M108: 0 | N108: 99.56477007 | O108: 99.6780841 | R108: 0 | S108: 99.65699208 | T108: 99.57002421 | W108: 0 | X108: 99.85365045 | Y108: 98.76820681 | AB108: 0
D111: =IF(ISERROR(INDIRECT(CONCATENATE($B111,"!C16"))),"",INDIRECT(CONCATENATE($B111,"!C16"))) ->  | E111: =IF(ISERROR(INDIRECT(CONCATENATE($B111,"!C23"))),"",INDIRECT(CONCATENATE($B111,"!C23"))) ->  | H111: =IF(ISERROR(INDIRECT(CONCATENATE($B111,"!C21"))),"",INDIRECT(CONCATENATE($B111,"!C21"))) ->  | I111: =IF(ISERROR(INDIRECT(CONCATENATE($B111,"!D16"))),"",INDIRECT(CONCATENATE($B111,"!D16"))) ->  | J111: =IF(ISERROR(INDIRECT(CONCATENATE($B111,"!D23"))),"",INDIRECT(CONCATENATE($B111,"!D23"))) ->  | M111: =IF(ISERROR(INDIRECT(CONCATENATE($B111,"!D21"))),"",INDIRECT(CONCATENATE($B111,"!D21"))) ->  | N111: =IF(ISERROR(INDIRECT(CONCATENATE($B111,"!E16"))),"",INDIRECT(CONCATENATE($B111,"!E16"))) ->  | O111: =IF(ISERROR(INDIRECT(CONCATENATE($B111,"!E23"))),"",INDIRECT(CONCATENATE($B111,"!E23"))) ->  | R111: =IF(ISERROR(INDIRECT(CONCATENATE($B111,"!E21"))),"",INDIRECT(CONCATENATE($B111,"!E21"))) ->  | S111: =IF(ISERROR(INDIRECT(CONCATENATE($B111,"!F16"))),"",INDIRECT(CONCATENATE($B111,"!F16"))) ->  | T111: =IF(ISERROR(INDIRECT(CONCATENATE($B111,"!F23"))),"",INDIRECT(CONCATENATE($B111,"!F23"))) ->  | W111: =IF(ISERROR(INDIRECT(CONCATENATE($B111,"!F21"))),"",INDIRECT(CONCATENATE($B111,"!F21"))) ->  | X111: =IF(ISERROR(INDIRECT(CONCATENATE($B111,"!G16"))),"",INDIRECT(CONCATENATE($B111,"!G16"))) ->  | Y111: =IF(ISERROR(INDIRECT(CONCATENATE($B111,"!G23"))),"",INDIRECT(CONCATENATE($B111,"!G23"))) ->  | AB111: =IF(ISERROR(INDIRECT(CONCATENATE($B111,"!G221"))),"",INDIRECT(CONCATENATE($B111,"!G21"))) -> 
D112: =IF(ISERROR(INDIRECT(CONCATENATE($B112,"!C16"))),"",INDIRECT(CONCATENATE($B112,"!C16"))) ->  | E112: =IF(ISERROR(INDIRECT(CONCATENATE($B112,"!C23"))),"",INDIRECT(CONCATENATE($B112,"!C23"))) ->  | H112: =IF(ISERROR(INDIRECT(CONCATENATE($B112,"!C21"))),"",INDIRECT(CONCATENATE($B112,"!C21"))) ->  | I112: =IF(ISERROR(INDIRECT(CONCATENATE($B112,"!D16"))),"",INDIRECT(CONCATENATE($B112,"!D16"))) ->  | J112: =IF(ISERROR(INDIRECT(CONCATENATE($B112,"!D23"))),"",INDIRECT(CONCATENATE($B112,"!D23"))) ->  | M112: =IF(ISERROR(INDIRECT(CONCATENATE($B112,"!D21"))),"",INDIRECT(CONCATENATE($B112,"!D21"))) ->  | N112: =IF(ISERROR(INDIRECT(CONCATENATE($B112,"!E16"))),"",INDIRECT(CONCATENATE($B112,"!E16"))) ->  | O112: =IF(ISERROR(INDIRECT(CONCATENATE($B112,"!E23"))),"",INDIRECT(CONCATENATE($B112,"!E23"))) ->  | R112: =IF(ISERROR(INDIRECT(CONCATENATE($B112,"!E21"))),"",INDIRECT(CONCATENATE($B112,"!E21"))) ->  | S112: =IF(ISERROR(INDIRECT(CONCATENATE($B112,"!F16"))),"",INDIRECT(CONCATENATE($B112,"!F16"))) ->  | T112: =IF(ISERROR(INDIRECT(CONCATENATE($B112,"!F23"))),"",INDIRECT(CONCATENATE($B112,"!F23"))) ->  | W112: =IF(ISERROR(INDIRECT(CONCATENATE($B112,"!F21"))),"",INDIRECT(CONCATENATE($B112,"!F21"))) ->  | X112: =IF(ISERROR(INDIRECT(CONCATENATE($B112,"!G16"))),"",INDIRECT(CONCATENATE($B112,"!G16"))) ->  | Y112: =IF(ISERROR(INDIRECT(CONCATENATE($B112,"!G23"))),"",INDIRECT(CONCATENATE($B112,"!G23"))) ->  | AB112: =IF(ISERROR(INDIRECT(CONCATENATE($B112,"!G221"))),"",INDIRECT(CONCATENATE($B112,"!G21"))) -> 
B118: =CONCATENATE("National use of drinking water sources, ",C99,"–",C100) -> National use of drinking water sources, 2000–2018 | S118: Data points used for regression
E153: =IF(ISERROR(INDIRECT(CONCATENATE($B153,"!M18"))),"",INDIRECT(CONCATENATE($B153,"!M18"))) ->  | F153: =IF(ISERROR(INDIRECT(CONCATENATE($B153,"!M19"))),"",INDIRECT(CONCATENATE($B153,"!M19"))) ->  | G153: =IF(ISERROR(INDIRECT(CONCATENATE($B153,"!M20"))),"",INDIRECT(CONCATENATE($B153,"!M20"))) ->  | H153: =IF(ISERROR(INDIRECT(CONCATENATE($B153,"!M21"))),"",INDIRECT(CONCATENATE($B153,"!M21"))) ->  | J153: =IF(ISERROR(INDIRECT(CONCATENATE($B153,"!N18"))),"",INDIRECT(CONCATENATE($B153,"!N18"))) ->  | K153: =IF(ISERROR(INDIRECT(CONCATENATE($B153,"!N19"))),"",INDIRECT(CONCATENATE($B153,"!N19"))) ->  | L153: =IF(ISERROR(INDIRECT(CONCATENATE($B153,"!N20"))),"",INDIRECT(CONCATENATE($B153,"!N20"))) ->  | M153: =IF(ISERROR(INDIRECT(CONCATENATE($B153,"!N21"))),"",INDIRECT(CONCATENATE($B153,"!N21"))) ->  | O153: =IF(ISERROR(INDIRECT(CONCATENATE($B153,"!O18"))),"",INDIRECT(CONCATENATE($B153,"!O18"))) ->  | P153: =IF(ISERROR(INDIRECT(CONCATENATE($B153,"!O19"))),"",INDIRECT(CONCATENATE($B153,"!O19"))) ->  | Q153: =IF(ISERROR(INDIRECT(CONCATENATE($B153,"!O20"))),"",INDIRECT(CONCATENATE($B153,"!O20"))) ->  | R153: =IF(ISERROR(INDIRECT(CONCATENATE($B153,"!O21"))),"",INDIRECT(CONCATENATE($B153,"!O21"))) ->  | T153: =IF(ISERROR(INDIRECT(CONCATENATE($B153,"!P18"))),"",INDIRECT(CONCATENATE($B153,"!P18"))) ->  | U153: =IF(ISERROR(INDIRECT(CONCATENATE($B153,"!P19"))),"",INDIRECT(CONCATENATE($B153,"!P19"))) ->  | V153: =IF(ISERROR(INDIRECT(CONCATENATE($B153,"!P20"))),"",INDIRECT(CONCATENATE($B153,"!P20"))) ->  | W153: =IF(ISERROR(INDIRECT(CONCATENATE($B153,"!P21"))),"",INDIRECT(CONCATENATE($B153,"!P21"))) ->  | Y153: =IF(ISERROR(INDIRECT(CONCATENATE($B153,"!Q18"))),"",INDIRECT(CONCATENATE($B153,"!Q18"))) ->  | Z153: =IF(ISERROR(INDIRECT(CONCATENATE($B153,"!Q19"))),"",INDIRECT(CONCATENATE($B153,"!Q19"))) ->  | AA153: =IF(ISERROR(INDIRECT(CONCATENATE($B153,"!Q20"))),"",INDIRECT(CONCATENATE($B153,"!Q20"))) ->  | AB153: =IF(ISERROR(INDIRECT(CONCATENATE($B153,"!Q21"))),"",INDIRECT(CONCATENATE($B153,"!Q1"))) -> 
A197: URBAN | D197: Poorest | I197: Poor | N197: Middle | S197: Rich | X197: Richest
D198: Improved | E198: Basic | F198: Limited | G198: Unimproved | H198: Surface water | I198: Improved | J198: Basic | K198: Limited | L198: Unimproved | M198: Surface water | N198: Improved | O198: Basic | P198: Limited | Q198: Unimproved | R198: Surface water | S198: Improved | T198: Basic | U198: Limited | V198: Unimproved | W198: Surface water | X198: Improved | Y198: Basic | Z198: Limited | AA198: Unimproved | AB198: Surface water
A199: Forecast period: | C199: 2000 | D199: =IF((D201+H201)>100,D201*100/(D201+H201),D201) -> 94.42191045 | E199: =D199*AVERAGEIF(E205:E216,">0")/100 -> 93.91592881 | F199: =D199*(100-AVERAGEIF(E205:E216,">0"))/100 -> 0.5059816407 | G199: =100-(E199+F199+H199) -> 5.578089552 | H199: =IF((D201+H201)>100,H201*100/(D201+H201),H201) -> 0 | I199: =IF((I201+M201)>100,I201*100/(I201+M201),I201) -> 97.54102411 | J199: =I199*AVERAGEIF(J205:J216,">0")/100 -> 97.37243344 | K199: =I199*(100-AVERAGEIF(J205:J216,">0"))/100 -> 0.1685906639 | L199: =100-(J199+K199+M199) -> 2.453327057 | M199: =IF((I201+M201)>100,M201*100/(I201+M201),M201) -> 0.005648834473 | N199: =IF((N201+R201)>100,N201*100/(N201+R201),N201) -> 98.24998288 | O199: =N199*AVERAGEIF(O205:O216,">0")/100 -> 98.0927469 | P199: =N199*(100-AVERAGEIF(O205:O216,">0"))/100 -> 0.1572359782 | Q199: =100-(O199+P199+R199) -> 1.750017121 | R199: =IF((N201+R201)>100,R201*100/(N201+R201),R201) -> 0 | S199: =IF((S201+W201)>100,S201*100/(S201+W201),S201) -> 96.59107174 | T199: =S199*AVERAGEIF(T205:T216,">0")/100 -> 94.93713516 | U199: =S199*(100-AVERAGEIF(T205:T216,">0"))/100 -> 1.653936581 | V199: =100-(T199+U199+W199) -> 3.408928257 | W199: =IF((S201+W201)>100,W201*100/(S201+W201),W201) -> 0 | X199: =IF((X201+AB201)>100,X201*100/(X201+AB201),X201) -> 97.53216226 | Y199: =X199*AVERAGEIF(Y205:Y216,">0")/100 -> 96.22098769 | Z199: =X199*(100-AVERAGEIF(Y205:Y216,">0"))/100 -> 1.311174571 | AA199: =100-(Y199+Z199+AB199) -> 2.467837738 | AB199: =IF((X201+AB201)>100,AB201*100/(X201+AB201),AB201) -> 0
C200: 2018 | D200: =IF((D202+H202)>100,D202*100/(D202+H202),D202) -> 99.98418555 | E200: =D200*AVERAGEIF(E205:E216,">0")/100 -> 99.44839717 | F200: =D200*(100-AVERAGEIF(E205:E216,">0"))/100 -> 0.535788378 | G200: =100-(E200+F200+H200) -> 0 | H200: =IF((D202+H202)>100,H202*100/(D202+H202),H202) -> 0.01581445274 | I200: =IF((I202+M202)>100,I202*100/(I202+M202),I202) -> 99.99246879 | J200: =I200*AVERAGEIF(J205:J216,">0")/100 -> 99.81964103 | K200: =I200*(100-AVERAGEIF(J205:J216,">0"))/100 -> 0.1728277599 | L200: =100-(J200+K200+M200) -> 0 | M200: =IF((I202+M202)>100,M202*100/(I202+M202),M202) -> 0.007531212063 | N200: =IF((N202+R202)>100,N202*100/(N202+R202),N202) -> 100 | O200: =N200*AVERAGEIF(O205:O216,">0")/100 -> 99.83996335 | P200: =N200*(100-AVERAGEIF(O205:O216,">0"))/100 -> 0.1600366469 | Q200: =100-(O200+P200+R200) -> 0 | R200: =IF((N202+R202)>100,R202*100/(N202+R202),R202) -> 0 | S200: =IF((S202+W202)>100,S202*100/(S202+W202),S202) -> 100 | T200: =S200*AVERAGEIF(T205:T216,">0")/100 -> 98.28769207 | U200: =S200*(100-AVERAGEIF(T205:T216,">0"))/100 -> 1.71230793 | V200: =100-(T200+U200+W200) -> 0 | W200: =IF((S202+W202)>100,W202*100/(S202+W202),W202) -> 0 | X200: =IF((X202+AB202)>100,X202*100/(X202+AB202),X202) -> 100 | Y200: =X200*AVERAGEIF(Y205:Y216,">0")/100 -> 98.65564903 | Z200: =X200*(100-AVERAGEIF(Y205:Y216,">0"))/100 -> 1.344350972 | AA200: =100-(Y200+Z200+AB200) -> 0 | AB200: =IF((X202+AB202)>100,AB202*100/(X202+AB202),AB202) -> 0
A201: Regression period: | C201: =MinRegYear(C199,C205:C216) -> 2001 | D201: =IF(MAX(C205:C216)-MIN(C205:C216)<5,AVERAGEIF(C205:C216,">0",D205:D216), IF(FORECAST($C201,D$205:D$216,$C$205:$C$216)<0,0, IF(FORECAST($C201,D$205:D$216,$C$205:$C$216)>100,100, FORECAST($C201,D$205:D$216,$C$205:$C$216)))) -> 94.42191045 | H201: =IF(MAX(C205:C216)-MIN(C205:C216)<5,AVERAGEIF(C205:C216,">0",H205:H216), IF(FORECAST($C201,H$205:H$216,$C$205:$C$216)<0,0, IF(FORECAST($C201,H$205:H$216,$C$205:$C$216)>100,100, FORECAST($C201,H$205:H$216,$C$205:$C$216)))) -> 0 | I201: =IF(MAX(C205:C216)-MIN(C205:C216)<5,AVERAGEIF(C205:C216,">0",I205:I216), IF(FORECAST($C201,I$205:I$216,$C$205:$C$216)<0,0, IF(FORECAST($C201,I$205:I$216,$C$205:$C$216)>100,100, FORECAST($C201,I$205:I$216,$C$205:$C$216)))) -> 97.54102411 | M201: =IF(MAX(C205:C216)-MIN(C205:C216)<5,AVERAGEIF(C205:C216,">0",M205:M216), IF(FORECAST($C201,M$205:M$216,$C$205:$C$216)<0,0, IF(FORECAST($C201,M$205:M$216,$C$205:$C$216)>100,100, FORECAST($C201,M$205:M$216,$C$205:$C$216)))) -> 0.005648834473 | N201: =IF(MAX(C205:C216)-MIN(C205:C216)<5,AVERAGEIF(C205:C216,">0",N205:N216), IF(FORECAST($C201,N$205:N$216,$C$205:$C$216)<0,0, IF(FORECAST($C201,N$205:N$216,$C$205:$C$216)>100,100, FORECAST($C201,N$205:N$216,$C$205:$C$216)))) -> 98.24998288 | R201: =IF(MAX(C205:C216)-MIN(C205:C216)<5,AVERAGEIF(C205:C216,">0",R205:R216), IF(FORECAST($C201,R$205:R$216,$C$205:$C$216)<0,0, IF(FORECAST($C201,R$205:R$216,$C$205:$C$216)>100,100, FORECAST($C201,R$205:R$216,$C$205:$C$216)))) -> 0 | S201: =IF(MAX(C205:C216)-MIN(C205:C216)<5,AVERAGEIF(C205:C216,">0",S205:S216), IF(FORECAST($C201,S$205:S$216,$C$205:$C$216)<0,0, IF(FORECAST($C201,S$205:S$216,$C$205:$C$216)>100,100, FORECAST($C201,S$205:S$216,$C$205:$C$216)))) -> 96.59107174 | W201: =IF(MAX(C205:C216)-MIN(C205:C216)<5,AVERAGEIF(C205:C216,">0",W205:W216), IF(FORECAST($C201,W$205:W$216,$C$205:$C$216)<0,0, IF(FORECAST($C201,W$205:W$216,$C$205:$C$216)>100,100, FORECAST($C201,W$205:W$216,$C$205:$C$216)))) -> 0 | X201: =IF(MAX(C205:C216)-MIN(C205:C216)<5,AVERAGEIF(C205:C216,">0",X205:X216), IF(FORECAST($C201,X$205:X$216,$C$205:$C$216)<0,0, IF(FORECAST($C201,X$205:X$216,$C$205:$C$216)>100,100, FORECAST($C201,X$205:X$216,$C$205:$C$216)))) -> 97.53216226 | AB201: =IF(MAX(C205:C216)-MIN(C205:C216)<5,AVERAGEIF(C205:C216,">0",AB205:AB216), IF(FORECAST($C201,AB$205:AB$216,$C$205:$C$216)<0,0, IF(FORECAST($C201,AB$205:AB$216,$C$205:$C$216)>100,100, FORECAST($C201,AB$205:AB$216,$C$205:$C$216)))) -> 0
C202: =MaxRegYear(C200,C205:C216) -> 2014 | D202: =IF(MAX(C205:C216)-MIN(C205:C216)<5,AVERAGEIF(C205:C216,">0",D205:D216), IF(FORECAST($C202,D$205:D$216,$C$205:$C$216)<0,0, IF(FORECAST($C202,D$205:D$216,$C$205:$C$216)>100,100, FORECAST($C202,D$205:D$216,$C$205:$C$216)))) -> 100 | H202: =IF(MAX(C205:C216)-MIN(C205:C216)<5,AVERAGEIF(C205:C216,">0",H205:H216), IF(FORECAST($C202,H$205:H$216,$C$205:$C$216)<0,0, IF(FORECAST($C202,H$205:H$216,$C$205:$C$216)>100,100, FORECAST($C202,H$205:H$216,$C$205:$C$216)))) -> 0.0158169541 | I202: =IF(MAX(C205:C216)-MIN(C205:C216)<5,AVERAGEIF(C205:C216,">0",I205:I216), IF(FORECAST($C202,I$205:I$216,$C$205:$C$216)<0,0, IF(FORECAST($C202,I$205:I$216,$C$205:$C$216)>100,100, FORECAST($C202,I$205:I$216,$C$205:$C$216)))) -> 100 | M202: =IF(MAX(C205:C216)-MIN(C205:C216)<5,AVERAGEIF(C205:C216,">0",M205:M216), IF(FORECAST($C202,M$205:M$216,$C$205:$C$216)<0,0, IF(FORECAST($C202,M$205:M$216,$C$205:$C$216)>100,100, FORECAST($C202,M$205:M$216,$C$205:$C$216)))) -> 0.007531779297 | N202: =IF(MAX(C205:C216)-MIN(C205:C216)<5,AVERAGEIF(C205:C216,">0",N205:N216), IF(FORECAST($C202,N$205:N$216,$C$205:$C$216)<0,0, IF(FORECAST($C202,N$205:N$216,$C$205:$C$216)>100,100, FORECAST($C202,N$205:N$216,$C$205:$C$216)))) -> 100 | R202: =IF(MAX(C205:C216)-MIN(C205:C216)<5,AVERAGEIF(C205:C216,">0",R205:R216), IF(FORECAST($C202,R$205:R$216,$C$205:$C$216)<0,0, IF(FORECAST($C202,R$205:R$216,$C$205:$C$216)>100,100, FORECAST($C202,R$205:R$216,$C$205:$C$216)))) -> 0 | S202: =IF(MAX(C205:C216)-MIN(C205:C216)<5,AVERAGEIF(C205:C216,">0",S205:S216), IF(FORECAST($C202,S$205:S$216,$C$205:$C$216)<0,0, IF(FORECAST($C202,S$205:S$216,$C$205:$C$216)>100,100, FORECAST($C202,S$205:S$216,$C$205:$C$216)))) -> 100 | W202: =IF(MAX(C205:C216)-MIN(C205:C216)<5,AVERAGEIF(C205:C216,">0",W205:W216), IF(FORECAST($C202,W$205:W$216,$C$205:$C$216)<0,0, IF(FORECAST($C202,W$205:W$216,$C$205:$C$216)>100,100, FORECAST($C202,W$205:W$216,$C$205:$C$216)))) -> 0 | X202: =IF(MAX(C205:C216)-MIN(C205:C216)<5,AVERAGEIF(C205:C216,">0",X205:X216), IF(FORECAST($C202,X$205:X$216,$C$205:$C$216)<0,0, IF(FORECAST($C202,X$205:X$216,$C$205:$C$216)>100,100, FORECAST($C202,X$205:X$216,$C$205:$C$216)))) -> 100 | AB202: =IF(MAX(C205:C216)-MIN(C205:C216)<5,AVERAGEIF(C205:C216,">0",AB205:AB216), IF(FORECAST($C202,AB$205:AB$216,$C$205:$C$216)<0,0, IF(FORECAST($C202,AB$205:AB$216,$C$205:$C$216)>100,100, FORECAST($C202,AB$205:AB$216,$C$205:$C$216)))) -> 0
B204: Survey | C204: Year | D204: Improved | E204: % Improved < = 30min | H204: Surface water | I204: Improved | J204: % Improved < = 30min | M204: Surface water | N204: Improved | O204: % Improved < = 30min | R204: Surface water | S204: Improved | T204: % Improved < = 30min | W204: Surface water | X204: Improved | Y204: % Improved < = 30min | AB204: Surface water
B205: WHS03 | C205: 2003 | D205: =IF(ISERROR(INDIRECT(CONCATENATE($B205,"!H16"))),"",INDIRECT(CONCATENATE($B205,"!H16"))) -> 93.12658166 | E205: =IF(ISERROR(INDIRECT(CONCATENATE($B205,"!H23"))),"",INDIRECT(CONCATENATE($B205,"!H23"))) -> 99.13138559 | H205: =IF(ISERROR(INDIRECT(CONCATENATE($B205,"!H21"))),"",INDIRECT(CONCATENATE($B205,"!H21"))) -> 0 | I205: =IF(ISERROR(INDIRECT(CONCATENATE($B205,"!I16"))),"",INDIRECT(CONCATENATE($B205,"!I16"))) -> 96.5856228 | J205: =IF(ISERROR(INDIRECT(CONCATENATE($B205,"!I23"))),"",INDIRECT(CONCATENATE($B205,"!I23"))) -> 100 | M205: =IF(ISERROR(INDIRECT(CONCATENATE($B205,"!I21"))),"",INDIRECT(CONCATENATE($B205,"!I21"))) -> 0 | N205: =IF(ISERROR(INDIRECT(CONCATENATE($B205,"!J16"))),"",INDIRECT(CONCATENATE($B205,"!J16"))) -> 98.40120348 | O205: =IF(ISERROR(INDIRECT(CONCATENATE($B205,"!J23"))),"",INDIRECT(CONCATENATE($B205,"!J23"))) -> 100 | R205: =IF(ISERROR(INDIRECT(CONCATENATE($B205,"!J21"))),"",INDIRECT(CONCATENATE($B205,"!J21"))) -> 0 | S205: =IF(ISERROR(INDIRECT(CONCATENATE($B205,"!K16"))),"",INDIRECT(CONCATENATE($B205,"!K16"))) -> 95.30955207 | T205: =IF(ISERROR(INDIRECT(CONCATENATE($B205,"!K23"))),"",INDIRECT(CONCATENATE($B205,"!K23"))) -> 95.76400055 | W205: =IF(ISERROR(INDIRECT(CONCATENATE($B205,"!K21"))),"",INDIRECT(CONCATENATE($B205,"!K21"))) -> 0 | X205: =IF(ISERROR(INDIRECT(CONCATENATE($B205,"!L16"))),"",INDIRECT(CONCATENATE($B205,"!L16"))) -> 96.90122383 | Y205: =IF(ISERROR(INDIRECT(CONCATENATE($B205,"!L23"))),"",INDIRECT(CONCATENATE($B205,"!L23"))) -> 100 | AB205: =IF(ISERROR(INDIRECT(CONCATENATE($B205,"!L221"))),"",INDIRECT(CONCATENATE($B205,"!L21"))) -> 0
B206: MICS05 | C206: 2005 | D206: 98.79158866 | E206: 99.79384697 | H206: 0 | I206: 100 | J206: 100 | M206: 0 | N206: 99.07719998 | O206: 100 | R206: 0 | S206: 99.92770612 | T206: 99.52078075 | W206: 0 | X206: 99.39733656 | Y206: 97.44094015 | AB206: 0
B207: DHS07 | C207: 2007 | D207: 99.37825584 | E207: N/A | H207: 0 | I207: 99.41319986 | J207: N/A | M207: 0.02592670181 | N207: 99.20008712 | O207: N/A | R207: 0 | S207: 99.92832098 | T207: N/A | W207: 0 | X207: 100 | Y207: N/A | AB207: 0
B208: MICS12 | C208: 2012 | D208: 99.61970054 | E208: 99.46714807 | H208: 0.01437175017 | I208: 99.60510613 | J208: 99.48147767 | M208: 0 | N208: 99.92336995 | O208: 99.51989006 | R208: 0 | S208: 99.82643444 | T208: 99.57829491 | W208: 0 | X208: 99.79706426 | Y208: 98.52600693 | AB208: 0
B218: =CONCATENATE("Urban use of drinking water sources, ",C199,"–",C200) -> Urban use of drinking water sources, 2000–2018 | S218: Data points used for regression
E253: =IF(ISERROR(INDIRECT(CONCATENATE($B253,"!M18"))),"",INDIRECT(CONCATENATE($B253,"!M18"))) ->  | F253: =IF(ISERROR(INDIRECT(CONCATENATE($B253,"!M19"))),"",INDIRECT(CONCATENATE($B253,"!M19"))) ->  | G253: =IF(ISERROR(INDIRECT(CONCATENATE($B253,"!M20"))),"",INDIRECT(CONCATENATE($B253,"!M20"))) ->  | H253: =IF(ISERROR(INDIRECT(CONCATENATE($B253,"!M21"))),"",INDIRECT(CONCATENATE($B253,"!M21"))) ->  | J253: =IF(ISERROR(INDIRECT(CONCATENATE($B253,"!N18"))),"",INDIRECT(CONCATENATE($B253,"!N18"))) ->  | K253: =IF(ISERROR(INDIRECT(CONCATENATE($B253,"!N19"))),"",INDIRECT(CONCATENATE($B253,"!N19"))) ->  | L253: =IF(ISERROR(INDIRECT(CONCATENATE($B253,"!N20"))),"",INDIRECT(CONCATENATE($B253,"!N20"))) ->  | M253: =IF(ISERROR(INDIRECT(CONCATENATE($B253,"!N21"))),"",INDIRECT(CONCATENATE($B253,"!N21"))) ->  | O253: =IF(ISERROR(INDIRECT(CONCATENATE($B253,"!O18"))),"",INDIRECT(CONCATENATE($B253,"!O18"))) ->  | P253: =IF(ISERROR(INDIRECT(CONCATENATE($B253,"!O19"))),"",INDIRECT(CONCATENATE($B253,"!O19"))) ->  | Q253: =IF(ISERROR(INDIRECT(CONCATENATE($B253,"!O20"))),"",INDIRECT(CONCATENATE($B253,"!O20"))) ->  | R253: =IF(ISERROR(INDIRECT(CONCATENATE($B253,"!O21"))),"",INDIRECT(CONCATENATE($B253,"!O21"))) ->  | T253: =IF(ISERROR(INDIRECT(CONCATENATE($B253,"!P18"))),"",INDIRECT(CONCATENATE($B253,"!P18"))) ->  | U253: =IF(ISERROR(INDIRECT(CONCATENATE($B253,"!P19"))),"",INDIRECT(CONCATENATE($B253,"!P19"))) ->  | V253: =IF(ISERROR(INDIRECT(CONCATENATE($B253,"!P20"))),"",INDIRECT(CONCATENATE($B253,"!P20"))) ->  | W253: =IF(ISERROR(INDIRECT(CONCATENATE($B253,"!P21"))),"",INDIRECT(CONCATENATE($B253,"!P21"))) ->  | Y253: =IF(ISERROR(INDIRECT(CONCATENATE($B253,"!Q18"))),"",INDIRECT(CONCATENATE($B253,"!Q18"))) ->  | Z253: =IF(ISERROR(INDIRECT(CONCATENATE($B253,"!Q19"))),"",INDIRECT(CONCATENATE($B253,"!Q19"))) ->  | AA253: =IF(ISERROR(INDIRECT(CONCATENATE($B253,"!Q20"))),"",INDIRECT(CONCATENATE($B253,"!Q20"))) ->  | AB253: =IF(ISERROR(INDIRECT(CONCATENATE($B253,"!Q21"))),"",INDIRECT(CONCATENATE($B253,"!Q1"))) -> 
E254: =IF(ISERROR(INDIRECT(CONCATENATE($B254,"!M18"))),"",INDIRECT(CONCATENATE($B254,"!M18"))) ->  | F254: =IF(ISERROR(INDIRECT(CONCATENATE($B254,"!M19"))),"",INDIRECT(CONCATENATE($B254,"!M19"))) ->  | G254: =IF(ISERROR(INDIRECT(CONCATENATE($B254,"!M20"))),"",INDIRECT(CONCATENATE($B254,"!M20"))) ->  | H254: =IF(ISERROR(INDIRECT(CONCATENATE($B254,"!M21"))),"",INDIRECT(CONCATENATE($B254,"!M21"))) ->  | J254: =IF(ISERROR(INDIRECT(CONCATENATE($B254,"!N18"))),"",INDIRECT(CONCATENATE($B254,"!N18"))) ->  | K254: =IF(ISERROR(INDIRECT(CONCATENATE($B254,"!N19"))),"",INDIRECT(CONCATENATE($B254,"!N19"))) ->  | L254: =IF(ISERROR(INDIRECT(CONCATENATE($B254,"!N20"))),"",INDIRECT(CONCATENATE($B254,"!N20"))) ->  | M254: =IF(ISERROR(INDIRECT(CONCATENATE($B254,"!N21"))),"",INDIRECT(CONCATENATE($B254,"!N21"))) ->  | O254: =IF(ISERROR(INDIRECT(CONCATENATE($B254,"!O18"))),"",INDIRECT(CONCATENATE($B254,"!O18"))) ->  | P254: =IF(ISERROR(INDIRECT(CONCATENATE($B254,"!O19"))),"",INDIRECT(CONCATENATE($B254,"!O19"))) ->  | Q254: =IF(ISERROR(INDIRECT(CONCATENATE($B254,"!O20"))),"",INDIRECT(CONCATENATE($B254,"!O20"))) ->  | R254: =IF(ISERROR(INDIRECT(CONCATENATE($B254,"!O21"))),"",INDIRECT(CONCATENATE($B254,"!O21"))) ->  | T254: =IF(ISERROR(INDIRECT(CONCATENATE($B254,"!P18"))),"",INDIRECT(CONCATENATE($B254,"!P18"))) ->  | U254: =IF(ISERROR(INDIRECT(CONCATENATE($B254,"!P19"))),"",INDIRECT(CONCATENATE($B254,"!P19"))) ->  | V254: =IF(ISERROR(INDIRECT(CONCATENATE($B254,"!P20"))),"",INDIRECT(CONCATENATE($B254,"!P20"))) ->  | W254: =IF(ISERROR(INDIRECT(CONCATENATE($B254,"!P21"))),"",INDIRECT(CONCATENATE($B254,"!P21"))) ->  | Y254: =IF(ISERROR(INDIRECT(CONCATENATE($B254,"!Q18"))),"",INDIRECT(CONCATENATE($B254,"!Q18"))) ->  | Z254: =IF(ISERROR(INDIRECT(CONCATENATE($B254,"!Q19"))),"",INDIRECT(CONCATENATE($B254,"!Q19"))) ->  | AA254: =IF(ISERROR(INDIRECT(CONCATENATE($B254,"!Q20"))),"",INDIRECT(CONCATENATE($B254,"!Q20"))) ->  | AB254: =IF(ISERROR(INDIRECT(CONCATENATE($B254,"!Q21"))),"",INDIRECT(CONCATENATE($B254,"!Q1"))) -> 
E255: =IF(ISERROR(INDIRECT(CONCATENATE($B255,"!M18"))),"",INDIRECT(CONCATENATE($B255,"!M18"))) ->  | F255: =IF(ISERROR(INDIRECT(CONCATENATE($B255,"!M19"))),"",INDIRECT(CONCATENATE($B255,"!M19"))) ->  | G255: =IF(ISERROR(INDIRECT(CONCATENATE($B255,"!M20"))),"",INDIRECT(CONCATENATE($B255,"!M20"))) ->  | H255: =IF(ISERROR(INDIRECT(CONCATENATE($B255,"!M21"))),"",INDIRECT(CONCATENATE($B255,"!M21"))) ->  | J255: =IF(ISERROR(INDIRECT(CONCATENATE($B255,"!N18"))),"",INDIRECT(CONCATENATE($B255,"!N18"))) ->  | K255: =IF(ISERROR(INDIRECT(CONCATENATE($B255,"!N19"))),"",INDIRECT(CONCATENATE($B255,"!N19"))) ->  | L255: =IF(ISERROR(INDIRECT(CONCATENATE($B255,"!N20"))),"",INDIRECT(CONCATENATE($B255,"!N20"))) ->  | M255: =IF(ISERROR(INDIRECT(CONCATENATE($B255,"!N21"))),"",INDIRECT(CONCATENATE($B255,"!N21"))) ->  | O255: =IF(ISERROR(INDIRECT(CONCATENATE($B255,"!O18"))),"",INDIRECT(CONCATENATE($B255,"!O18"))) ->  | P255: =IF(ISERROR(INDIRECT(CONCATENATE($B255,"!O19"))),"",INDIRECT(CONCATENATE($B255,"!O19"))) ->  | Q255: =IF(ISERROR(INDIRECT(CONCATENATE($B255,"!O20"))),"",INDIRECT(CONCATENATE($B255,"!O20"))) ->  | R255: =IF(ISERROR(INDIRECT(CONCATENATE($B255,"!O21"))),"",INDIRECT(CONCATENATE($B255,"!O21"))) ->  | T255: =IF(ISERROR(INDIRECT(CONCATENATE($B255,"!P18"))),"",INDIRECT(CONCATENATE($B255,"!P18"))) ->  | U255: =IF(ISERROR(INDIRECT(CONCATENATE($B255,"!P19"))),"",INDIRECT(CONCATENATE($B255,"!P19"))) ->  | V255: =IF(ISERROR(INDIRECT(CONCATENATE($B255,"!P20"))),"",INDIRECT(CONCATENATE($B255,"!P20"))) ->  | W255: =IF(ISERROR(INDIRECT(CONCATENATE($B255,"!P21"))),"",INDIRECT(CONCATENATE($B255,"!P21"))) ->  | Y255: =IF(ISERROR(INDIRECT(CONCATENATE($B255,"!Q18"))),"",INDIRECT(CONCATENATE($B255,"!Q18"))) ->  | Z255: =IF(ISERROR(INDIRECT(CONCATENATE($B255,"!Q19"))),"",INDIRECT(CONCATENATE($B255,"!Q19"))) ->  | AA255: =IF(ISERROR(INDIRECT(CONCATENATE($B255,"!Q20"))),"",INDIRECT(CONCATENATE($B255,"!Q20"))) ->  | AB255: =IF(ISERROR(INDIRECT(CONCATENATE($B255,"!Q21"))),"",INDIRECT(CONCATENATE($B255,"!Q1"))) -> 
E256: =IF(ISERROR(INDIRECT(CONCATENATE($B256,"!M18"))),"",INDIRECT(CONCATENATE($B256,"!M18"))) ->  | F256: =IF(ISERROR(INDIRECT(CONCATENATE($B256,"!M19"))),"",INDIRECT(CONCATENATE($B256,"!M19"))) ->  | G256: =IF(ISERROR(INDIRECT(CONCATENATE($B256,"!M20"))),"",INDIRECT(CONCATENATE($B256,"!M20"))) ->  | H256: =IF(ISERROR(INDIRECT(CONCATENATE($B256,"!M21"))),"",INDIRECT(CONCATENATE($B256,"!M21"))) ->  | J256: =IF(ISERROR(INDIRECT(CONCATENATE($B256,"!N18"))),"",INDIRECT(CONCATENATE($B256,"!N18"))) ->  | K256: =IF(ISERROR(INDIRECT(CONCATENATE($B256,"!N19"))),"",INDIRECT(CONCATENATE($B256,"!N19"))) ->  | L256: =IF(ISERROR(INDIRECT(CONCATENATE($B256,"!N20"))),"",INDIRECT(CONCATENATE($B256,"!N20"))) ->  | M256: =IF(ISERROR(INDIRECT(CONCATENATE($B256,"!N21"))),"",INDIRECT(CONCATENATE($B256,"!N21"))) ->  | O256: =IF(ISERROR(INDIRECT(CONCATENATE($B256,"!O18"))),"",INDIRECT(CONCATENATE($B256,"!O18"))) ->  | P256: =IF(ISERROR(INDIRECT(CONCATENATE($B256,"!O19"))),"",INDIRECT(CONCATENATE($B256,"!O19"))) ->  | Q256: =IF(ISERROR(INDIRECT(CONCATENATE($B256,"!O20"))),"",INDIRECT(CONCATENATE($B256,"!O20"))) ->  | R256: =IF(ISERROR(INDIRECT(CONCATENATE($B256,"!O21"))),"",INDIRECT(CONCATENATE($B256,"!O21"))) ->  | T256: =IF(ISERROR(INDIRECT(CONCATENATE($B256,"!P18"))),"",INDIRECT(CONCATENATE($B256,"!P18"))) ->  | U256: =IF(ISERROR(INDIRECT(CONCATENATE($B256,"!P19"))),"",INDIRECT(CONCATENATE($B256,"!P19"))) ->  | V256: =IF(ISERROR(INDIRECT(CONCATENATE($B256,"!P20"))),"",INDIRECT(CONCATENATE($B256,"!P20"))) ->  | W256: =IF(ISERROR(INDIRECT(CONCATENATE($B256,"!P21"))),"",INDIRECT(CONCATENATE($B256,"!P21"))) ->  | Y256: =IF(ISERROR(INDIRECT(CONCATENATE($B256,"!Q18"))),"",INDIRECT(CONCATENATE($B256,"!Q18"))) ->  | Z256: =IF(ISERROR(INDIRECT(CONCATENATE($B256,"!Q19"))),"",INDIRECT(CONCATENATE($B256,"!Q19"))) ->  | AA256: =IF(ISERROR(INDIRECT(CONCATENATE($B256,"!Q20"))),"",INDIRECT(CONCATENATE($B256,"!Q20"))) ->  | AB256: =IF(ISERROR(INDIRECT(CONCATENATE($B256,"!Q21"))),"",INDIRECT(CONCATENATE($B256,"!Q1"))) -> 
E257: =IF(ISERROR(INDIRECT(CONCATENATE($B257,"!M18"))),"",INDIRECT(CONCATENATE($B257,"!M18"))) ->  | F257: =IF(ISERROR(INDIRECT(CONCATENATE($B257,"!M19"))),"",INDIRECT(CONCATENATE($B257,"!M19"))) ->  | G257: =IF(ISERROR(INDIRECT(CONCATENATE($B257,"!M20"))),"",INDIRECT(CONCATENATE($B257,"!M20"))) ->  | H257: =IF(ISERROR(INDIRECT(CONCATENATE($B257,"!M21"))),"",INDIRECT(CONCATENATE($B257,"!M21"))) ->  | J257: =IF(ISERROR(INDIRECT(CONCATENATE($B257,"!N18"))),"",INDIRECT(CONCATENATE($B257,"!N18"))) ->  | K257: =IF(ISERROR(INDIRECT(CONCATENATE($B257,"!N19"))),"",INDIRECT(CONCATENATE($B257,"!N19"))) ->  | L257: =IF(ISERROR(INDIRECT(CONCATENATE($B257,"!N20"))),"",INDIRECT(CONCATENATE($B257,"!N20"))) ->  | M257: =IF(ISERROR(INDIRECT(CONCATENATE($B257,"!N21"))),"",INDIRECT(CONCATENATE($B257,"!N21"))) ->  | O257: =IF(ISERROR(INDIRECT(CONCATENATE($B257,"!O18"))),"",INDIRECT(CONCATENATE($B257,"!O18"))) ->  | P257: =IF(ISERROR(INDIRECT(CONCATENATE($B257,"!O19"))),"",INDIRECT(CONCATENATE($B257,"!O19"))) ->  | Q257: =IF(ISERROR(INDIRECT(CONCATENATE($B257,"!O20"))),"",INDIRECT(CONCATENATE($B257,"!O20"))) ->  | R257: =IF(ISERROR(INDIRECT(CONCATENATE($B257,"!O21"))),"",INDIRECT(CONCATENATE($B257,"!O21"))) ->  | T257: =IF(ISERROR(INDIRECT(CONCATENATE($B257,"!P18"))),"",INDIRECT(CONCATENATE($B257,"!P18"))) ->  | U257: =IF(ISERROR(INDIRECT(CONCATENATE($B257,"!P19"))),"",INDIRECT(CONCATENATE($B257,"!P19"))) ->  | V257: =IF(ISERROR(INDIRECT(CONCATENATE($B257,"!P20"))),"",INDIRECT(CONCATENATE($B257,"!P20"))) ->  | W257: =IF(ISERROR(INDIRECT(CONCATENATE($B257,"!P21"))),"",INDIRECT(CONCATENATE($B257,"!P21"))) ->  | Y257: =IF(ISERROR(INDIRECT(CONCATENATE($B257,"!Q18"))),"",INDIRECT(CONCATENATE($B257,"!Q18"))) ->  | Z257: =IF(ISERROR(INDIRECT(CONCATENATE($B257,"!Q19"))),"",INDIRECT(CONCATENATE($B257,"!Q19"))) ->  | AA257: =IF(ISERROR(INDIRECT(CONCATENATE($B257,"!Q20"))),"",INDIRECT(CONCATENATE($B257,"!Q20"))) ->  | AB257: =IF(ISERROR(INDIRECT(CONCATENATE($B257,"!Q21"))),"",INDIRECT(CONCATENATE($B257,"!Q1"))) -> 
A297: RURAL | D297: Poorest | I297: Poor | N297: Middle | S297: Rich | X297: Richest
D298: Improved | E298: Basic | F298: Limited | G298: Unimproved | H298: Surface water | I298: Improved | J298: Basic | K298: Limited | L298: Unimproved | M298: Surface water | N298: Improved | O298: Basic | P298: Limited | Q298: Unimproved | R298: Surface water | S298: Improved | T298: Basic | U298: Limited | V298: Unimproved | W298: Surface water | X298: Improved | Y298: Basic | Z298: Limited | AA298: Unimproved | AB298: Surface water
A299: Forecast period: | C299: 2000 | D299: =IF((D301+H301)>100,D301*100/(D301+H301),D301) -> 86.20281196 | E299: =D299*AVERAGEIF(E305:E316,">0")/100 -> 85.30670004 | F299: =D299*(100-AVERAGEIF(E305:E316,">0"))/100 -> 0.8961119169 | G299: =100-(E299+F299+H299) -> 13.27850161 | H299: =IF((D301+H301)>100,H301*100/(D301+H301),H301) -> 0.5186864302 | I299: =IF((I301+M301)>100,I301*100/(I301+M301),I301) -> 91.53916056 | J299: =I299*AVERAGEIF(J305:J316,">0")/100 -> 91.2937409 | K299: =I299*(100-AVERAGEIF(J305:J316,">0"))/100 -> 0.2454196642 | L299: =100-(J299+K299+M299) -> 8.460839435 | M299: =IF((I301+M301)>100,M301*100/(I301+M301),M301) -> 0 | N299: =IF((N301+R301)>100,N301*100/(N301+R301),N301) -> 97.45358989 | O299: =N299*AVERAGEIF(O305:O316,">0")/100 -> 97.3224679 | P299: =N299*(100-AVERAGEIF(O305:O316,">0"))/100 -> 0.131121985 | Q299: =100-(O299+P299+R299) -> 2.546410114 | R299: =IF((N301+R301)>100,R301*100/(N301+R301),R301) -> 0 | S299: =IF((S301+W301)>100,S301*100/(S301+W301),S301) -> 87.74084258 | T299: =S299*AVERAGEIF(T305:T316,">0")/100 -> 87.65406893 | U299: =S299*(100-AVERAGEIF(T305:T316,">0"))/100 -> 0.08677365496 | V299: =100-(T299+U299+W299) -> 12.25915742 | W299: =IF((S301+W301)>100,W301*100/(S301+W301),W301) -> 0 | X299: =IF((X301+AB301)>100,X301*100/(X301+AB301),X301) -> 92.28797087 | Y299: =X299*AVERAGEIF(Y305:Y316,">0")/100 -> 92.0946296 | Z299: =X299*(100-AVERAGEIF(Y305:Y316,">0"))/100 -> 0.1933412724 | AA299: =100-(Y299+Z299+AB299) -> 7.712029129 | AB299: =IF((X301+AB301)>100,AB301*100/(X301+AB301),AB301) -> 0
C300: 2018 | D300: =IF((D302+H302)>100,D302*100/(D302+H302),D302) -> 100 | E300: =D300*AVERAGEIF(E305:E316,">0")/100 -> 98.96046092 | F300: =D300*(100-AVERAGEIF(E305:E316,">0"))/100 -> 1.039539078 | G300: =100-(E300+F300+H300) -> 0 | H300: =IF((D302+H302)>100,H302*100/(D302+H302),H302) -> 0 | I300: =IF((I302+M302)>100,I302*100/(I302+M302),I302) -> 99.80341636 | J300: =I300*AVERAGEIF(J305:J316,">0")/100 -> 99.53583994 | K300: =I300*(100-AVERAGEIF(J305:J316,">0"))/100 -> 0.2675764207 | L300: =100-(J300+K300+M300) -> 0 | M300: =IF((I302+M302)>100,M302*100/(I302+M302),M302) -> 0.1965836362 | N300: =IF((N302+R302)>100,N302*100/(N302+R302),N302) -> 99.3451228 | O300: =N300*AVERAGEIF(O305:O316,">0")/100 -> 99.21145579 | P300: =N300*(100-AVERAGEIF(O305:O316,">0"))/100 -> 0.1336670072 | Q300: =100-(O300+P300+R300) -> 0.6548772009 | R300: =IF((N302+R302)>100,R302*100/(N302+R302),R302) -> 0 | S300: =IF((S302+W302)>100,S302*100/(S302+W302),S302) -> 100 | T300: =S300*AVERAGEIF(T305:T316,">0")/100 -> 99.90110232 | U300: =S300*(100-AVERAGEIF(T305:T316,">0"))/100 -> 0.09889767685 | V300: =100-(T300+U300+W300) -> 0 | W300: =IF((S302+W302)>100,W302*100/(S302+W302),W302) -> 0 | X300: =IF((X302+AB302)>100,X302*100/(X302+AB302),X302) -> 100 | Y300: =X300*AVERAGEIF(Y305:Y316,">0")/100 -> 99.7905022 | Z300: =X300*(100-AVERAGEIF(Y305:Y316,">0"))/100 -> 0.2094978041 | AA300: =100-(Y300+Z300+AB300) -> 0 | AB300: =IF((X302+AB302)>100,AB302*100/(X302+AB302),AB302) -> 0
A301: Regression period: | C301: =MinRegYear(C299,C305:C316) -> 2001 | D301: =IF(MAX(C305:C316)-MIN(C305:C316)<5,AVERAGEIF(C305:C316,">0",D305:D316), IF(FORECAST($C301,D$305:D$316,$C$305:$C$316)<0,0, IF(FORECAST($C301,D$305:D$316,$C$305:$C$316)>100,100, FORECAST($C301,D$305:D$316,$C$305:$C$316)))) -> 86.20281196 | H301: =IF(MAX(C305:C316)-MIN(C305:C316)<5,AVERAGEIF(C305:C316,">0",H305:H316), IF(FORECAST($C301,H$305:H$316,$C$305:$C$316)<0,0, IF(FORECAST($C301,H$305:H$316,$C$305:$C$316)>100,100, FORECAST($C301,H$305:H$316,$C$305:$C$316)))) -> 0.5186864302 | I301: =IF(MAX(C305:C316)-MIN(C305:C316)<5,AVERAGEIF(C305:C316,">0",I305:I316), IF(FORECAST($C301,I$305:I$316,$C$305:$C$316)<0,0, IF(FORECAST($C301,I$305:I$316,$C$305:$C$316)>100,100, FORECAST($C301,I$305:I$316,$C$305:$C$316)))) -> 91.53916056 | M301: =IF(MAX(C305:C316)-MIN(C305:C316)<5,AVERAGEIF(C305:C316,">0",M305:M316), IF(FORECAST($C301,M$305:M$316,$C$305:$C$316)<0,0, IF(FORECAST($C301,M$305:M$316,$C$305:$C$316)>100,100, FORECAST($C301,M$305:M$316,$C$305:$C$316)))) -> 0 | N301: =IF(MAX(C305:C316)-MIN(C305:C316)<5,AVERAGEIF(C305:C316,">0",N305:N316), IF(FORECAST($C301,N$305:N$316,$C$305:$C$316)<0,0, IF(FORECAST($C301,N$305:N$316,$C$305:$C$316)>100,100, FORECAST($C301,N$305:N$316,$C$305:$C$316)))) -> 97.45358989 | R301: =IF(MAX(C305:C316)-MIN(C305:C316)<5,AVERAGEIF(C305:C316,">0",R305:R316), IF(FORECAST($C301,R$305:R$316,$C$305:$C$316)<0,0, IF(FORECAST($C301,R$305:R$316,$C$305:$C$316)>100,100, FORECAST($C301,R$305:R$316,$C$305:$C$316)))) -> 0 | S301: =IF(MAX(C305:C316)-MIN(C305:C316)<5,AVERAGEIF(C305:C316,">0",S305:S316), IF(FORECAST($C301,S$305:S$316,$C$305:$C$316)<0,0, IF(FORECAST($C301,S$305:S$316,$C$305:$C$316)>100,100, FORECAST($C301,S$305:S$316,$C$305:$C$316)))) -> 87.74084258 | W301: =IF(MAX(C305:C316)-MIN(C305:C316)<5,AVERAGEIF(C305:C316,">0",W305:W316), IF(FORECAST($C301,W$305:W$316,$C$305:$C$316)<0,0, IF(FORECAST($C301,W$305:W$316,$C$305:$C$316)>100,100, FORECAST($C301,W$305:W$316,$C$305:$C$316)))) -> 0 | X301: =IF(MAX(C305:C316)-MIN(C305:C316)<5,AVERAGEIF(C305:C316,">0",X305:X316), IF(FORECAST($C301,X$305:X$316,$C$305:$C$316)<0,0, IF(FORECAST($C301,X$305:X$316,$C$305:$C$316)>100,100, FORECAST($C301,X$305:X$316,$C$305:$C$316)))) -> 92.28797087 | AB301: =IF(MAX(C305:C316)-MIN(C305:C316)<5,AVERAGEIF(C305:C316,">0",AB305:AB316), IF(FORECAST($C301,AB$305:AB$316,$C$305:$C$316)<0,0, IF(FORECAST($C301,AB$305:AB$316,$C$305:$C$316)>100,100, FORECAST($C301,AB$305:AB$316,$C$305:$C$316)))) -> 0
C302: =MaxRegYear(C300,C305:C316) -> 2014 | D302: =IF(MAX(C305:C316)-MIN(C305:C316)<5,AVERAGEIF(C305:C316,">0",D305:D316), IF(FORECAST($C302,D$305:D$316,$C$305:$C$316)<0,0, IF(FORECAST($C302,D$305:D$316,$C$305:$C$316)>100,100, FORECAST($C302,D$305:D$316,$C$305:$C$316)))) -> 100 | H302: =IF(MAX(C305:C316)-MIN(C305:C316)<5,AVERAGEIF(C305:C316,">0",H305:H316), IF(FORECAST($C302,H$305:H$316,$C$305:$C$316)<0,0, IF(FORECAST($C302,H$305:H$316,$C$305:$C$316)>100,100, FORECAST($C302,H$305:H$316,$C$305:$C$316)))) -> 0 | I302: =IF(MAX(C305:C316)-MIN(C305:C316)<5,AVERAGEIF(C305:C316,">0",I305:I316), IF(FORECAST($C302,I$305:I$316,$C$305:$C$316)<0,0, IF(FORECAST($C302,I$305:I$316,$C$305:$C$316)>100,100, FORECAST($C302,I$305:I$316,$C$305:$C$316)))) -> 100 | M302: =IF(MAX(C305:C316)-MIN(C305:C316)<5,AVERAGEIF(C305:C316,">0",M305:M316), IF(FORECAST($C302,M$305:M$316,$C$305:$C$316)<0,0, IF(FORECAST($C302,M$305:M$316,$C$305:$C$316)>100,100, FORECAST($C302,M$305:M$316,$C$305:$C$316)))) -> 0.1969708487 | N302: =IF(MAX(C305:C316)-MIN(C305:C316)<5,AVERAGEIF(C305:C316,">0",N305:N316), IF(FORECAST($C302,N$305:N$316,$C$305:$C$316)<0,0, IF(FORECAST($C302,N$305:N$316,$C$305:$C$316)>100,100, FORECAST($C302,N$305:N$316,$C$305:$C$316)))) -> 99.3451228 | R302: =IF(MAX(C305:C316)-MIN(C305:C316)<5,AVERAGEIF(C305:C316,">0",R305:R316), IF(FORECAST($C302,R$305:R$316,$C$305:$C$316)<0,0, IF(FORECAST($C302,R$305:R$316,$C$305:$C$316)>100,100, FORECAST($C302,R$305:R$316,$C$305:$C$316)))) -> 0 | S302: =IF(MAX(C305:C316)-MIN(C305:C316)<5,AVERAGEIF(C305:C316,">0",S305:S316), IF(FORECAST($C302,S$305:S$316,$C$305:$C$316)<0,0, IF(FORECAST($C302,S$305:S$316,$C$305:$C$316)>100,100, FORECAST($C302,S$305:S$316,$C$305:$C$316)))) -> 100 | W302: =IF(MAX(C305:C316)-MIN(C305:C316)<5,AVERAGEIF(C305:C316,">0",W305:W316), IF(FORECAST($C302,W$305:W$316,$C$305:$C$316)<0,0, IF(FORECAST($C302,W$305:W$316,$C$305:$C$316)>100,100, FORECAST($C302,W$305:W$316,$C$305:$C$316)))) -> 0 | X302: =IF(MAX(C305:C316)-MIN(C305:C316)<5,AVERAGEIF(C305:C316,">0",X305:X316), IF(FORECAST($C302,X$305:X$316,$C$305:$C$316)<0,0, IF(FORECAST($C302,X$305:X$316,$C$305:$C$316)>100,100, FORECAST($C302,X$305:X$316,$C$305:$C$316)))) -> 100 | AB302: =IF(MAX(C305:C316)-MIN(C305:C316)<5,AVERAGEIF(C305:C316,">0",AB305:AB316), IF(FORECAST($C302,AB$305:AB$316,$C$305:$C$316)<0,0, IF(FORECAST($C302,AB$305:AB$316,$C$305:$C$316)>100,100, FORECAST($C302,AB$305:AB$316,$C$305:$C$316)))) -> 0
B304: Survey | C304: Year | D304: Improved | E304: % Improved < = 30min | H304: Surface water | I304: Improved | J304: % Improved < = 30min | M304: Surface water | N304: Improved | O304: % Improved < = 30min | R304: Surface water | S304: Improved | T304: % Improved < = 30min | W304: Surface water | X304: Improved | Y304: % Improved < = 30min | AB304: Surface water
B305: WHS03 | C305: 2003 | D305: =IF(ISERROR(INDIRECT(CONCATENATE($B305,"!M16"))),"",INDIRECT(CONCATENATE($B305,"!M16"))) -> 82.20453744 | E305: =IF(ISERROR(INDIRECT(CONCATENATE($B305,"!M23"))),"",INDIRECT(CONCATENATE($B305,"!M23"))) -> 97.38594615 | H305: =IF(ISERROR(INDIRECT(CONCATENATE($B305,"!M21"))),"",INDIRECT(CONCATENATE($B305,"!M21"))) -> 0.6905704923 | I305: =IF(ISERROR(INDIRECT(CONCATENATE($B305,"!N16"))),"",INDIRECT(CONCATENATE($B305,"!N16"))) -> 89.4534818 | J305: =IF(ISERROR(INDIRECT(CONCATENATE($B305,"!N23"))),"",INDIRECT(CONCATENATE($B305,"!N23"))) -> 100 | M305: =IF(ISERROR(INDIRECT(CONCATENATE($B305,"!N21"))),"",INDIRECT(CONCATENATE($B305,"!N21"))) -> 0 | N305: =IF(ISERROR(INDIRECT(CONCATENATE($B305,"!O16"))),"",INDIRECT(CONCATENATE($B305,"!O16"))) -> 97.18766336 | O305: =IF(ISERROR(INDIRECT(CONCATENATE($B305,"!O23"))),"",INDIRECT(CONCATENATE($B305,"!O23"))) -> 100 | R305: =IF(ISERROR(INDIRECT(CONCATENATE($B305,"!O21"))),"",INDIRECT(CONCATENATE($B305,"!O21"))) -> 0 | S305: =IF(ISERROR(INDIRECT(CONCATENATE($B305,"!P16"))),"",INDIRECT(CONCATENATE($B305,"!P16"))) -> 83.8548943 | T305: =IF(ISERROR(INDIRECT(CONCATENATE($B305,"!P23"))),"",INDIRECT(CONCATENATE($B305,"!P23"))) -> 100 | W305: =IF(ISERROR(INDIRECT(CONCATENATE($B305,"!P21"))),"",INDIRECT(CONCATENATE($B305,"!P21"))) -> 0 | X305: =IF(ISERROR(INDIRECT(CONCATENATE($B305,"!Q16"))),"",INDIRECT(CONCATENATE($B305,"!Q16"))) -> 90.40044489 | Y305: =IF(ISERROR(INDIRECT(CONCATENATE($B305,"!Q23"))),"",INDIRECT(CONCATENATE($B305,"!Q23"))) -> 100 | AB305: =IF(ISERROR(INDIRECT(CONCATENATE($B305,"!Q221"))),"",INDIRECT(CONCATENATE($B305,"!Q21"))) -> 0
B306: MICS05 | C306: 2005 | D306: 97.73159232 | E306: 100 | H306: 0 | I306: 98.3616 | J306: 100 | M306: 0 | N306: 99.36672234 | O306: 99.95100901 | R306: 0 | S306: 99.91689375 | T306: 100 | W306: 0 | X306: 98.4044359 | Y306: 100 | AB306: 0
B307: DHS07 | C307: 2007 | D307: 95.52571685 | E307: N/A | H307: 0.06102914147 | I307: 97.52044518 | J307: N/A | M307: 0 | N307: 97.46551069 | O307: N/A | R307: 0 | S307: 97.06426547 | T307: N/A | W307: 0 | X307: 98.17477734 | Y307: N/A | AB307: 0
B308: MICS12 | C308: 2012 | D308: 96.98920221 | E308: 99.49543662 | H308: 0 | I308: 98.64381232 | J308: 99.1956896 | M308: 0.1789735122 | N308: 99.14102139 | O308: 99.64534659 | R308: 0 | S308: 99.44503491 | T308: 99.70330697 | W308: 0 | X308: 98.89611661 | Y308: 99.37150659 | AB308: 0
B318: =CONCATENATE("Rural use of drinking water sources, ",C299,"–",C300) -> Rural use of drinking water sources, 2000–2018 | S318: Data points used for regression

Sheet Sanitation
B4: Summary of trends in use of sanitation facilities by wealth quintile (%)
B5: =IF(ISERROR(INDIRECT(CONCATENATE($B105,"!A2"))),"",INDIRECT(CONCATENATE($B105,"!A2"))) -> Ukraine
B7: =B118 -> National use of sanitation facilities, 2000–2018 | J7: =B218 -> Urban use of sanitation facilities, 2000–2018 | R7: =B318 -> Rural use of sanitation facilities, 2000–2018
B31: =IF(ISERROR(INDIRECT(CONCATENATE($B105,"!A2"))),"",INDIRECT(CONCATENATE($B105,"!A2"))) -> Ukraine | F31: Poorest | J31: Poor | N31: Middle | R31: Rich | V31: Richest
F32: Basic | G32: Limited | H32: Unimproved | I32: Open defecation | J32: Basic | K32: Limited | L32: Unimproved | M32: Open defecation | N32: Basic | O32: Limited | P32: Unimproved | Q32: Open defecation | R32: Basic | S32: Limited | T32: Unimproved | U32: Open defecation | V32: Basic | W32: Limited | X32: Unimproved | Y32: Open defecation
B33: NATIONAL | D33: Estimate | E33: =C99 -> 2000 | F33: =E99 -> 86.95598307 | G33: =F99 -> 2.7524104 | H33: 9.779011556 | I33: 0.5125949746 | J33: =J99 -> 90.1900035 | K33: =K99 -> 1.832090891 | L33: 7.972877856 | M33: 0.005027748002 | N33: =O99 -> 94.61994215 | O33: =P99 -> 1.675107716 | P33: 3.467630871 | Q33: 0.2373192591 | R33: =T99 -> 95.2777591 | S33: =U99 -> 1.608610229 | T33: 3.113630671 | U33: 0 | V33: =Y99 -> 97.76648829 | W33: =Z99 -> 0.7563432658 | X33: 1.238194784 | Y33: 0.2389736599
E34: =C100 -> 2018 | F34: =E100 -> 95.64596187 | G34: 3.027473567 | H34: 1.326564566 | I34: 0 | J34: =J100 -> 98.00250523 | K34: 1.990791553 | L34: 0 | M34: 0.006703214642 | N34: =O100 -> 98.26044255 | O34: 1.739557453 | P34: 0 | Q34: 0 | R34: =T100 -> 98.33969397 | S34: 1.660306027 | T34: 0 | U34: 0 | V34: =Y100 -> 99.23231676 | W34: 0.7676832404 | X34: 0 | Y34: 0
B36: URBAN | D36: Estimate | E36: =C199 -> 2000 | F36: =E199 -> 88.20239738 | G36: =F199 -> 3.87889629 | H36: 7.918706333 | I36: 0 | J36: =J199 -> 95.56137203 | K36: =K199 -> 2.290218966 | L36: 1.816327148 | M36: 0.3320818536 | N36: =O199 -> 97.45246389 | O36: =P199 -> 1.803785599 | P36: 0.7437505068 | Q36: 0 | R36: =T199 -> 97.5127478 | S36: =U199 -> 1.217372925 | T36: 1.269879278 | U36: 0 | V36: =Y199 -> 98.71955455 | W36: =Z199 -> 0.6634498485 | X36: 0.2811924071 | Y36: 0.3358031907
E37: =C200 -> 2018 | F37: =E200 -> 95.67882512 | G37: 4.207688803 | H37: 0 | I37: 0.1134860728 | J37: =J200 -> 97.65949747 | K37: 2.340502533 | L37: 0 | M37: 0 | N37: =O200 -> 98.18269821 | O37: 1.817301791 | P37: 0 | Q37: 0 | R37: =T200 -> 98.76696907 | S37: 1.23303093 | T37: 0 | U37: 0 | V37: =Y200 -> 99.33243128 | W37: 0.6675687181 | X37: 0 | Y37: 0
B39: RURAL | D39: Estimate | E39: =C299 -> 2000 | F39: =E299 -> 86.06240486 | G39: =F299 -> 1.300935517 | H39: 10.84182771 | I39: 1.794831916 | J39: =J299 -> 90.94697518 | K39: =K299 -> 1.052005648 | L39: 7.982894697 | M39: 0.01812447927 | N39: =O299 -> 92.23440221 | O39: =P299 -> 1.312491974 | P39: 6.437253032 | Q39: 0.01585278448 | R39: =T299 -> 80.36668918 | S39: =U299 -> 1.345014881 | T39: 18.28829594 | U39: 0 | V39: =Y299 -> 85.56873388 | W39: =Z299 -> 1.117843426 | X39: 13.31342269 | Y39: 0
E40: =C300 -> 2018 | F40: =E300 -> 96.11738934 | G40: 1.452928556 | H40: 2.429682107 | I40: 0 | J40: =J300 -> 97.011913 | K40: 1.12216025 | L40: 1.841760775 | M40: 0.02416597237 | N40: =O300 -> 96.10176391 | O40: 1.367524381 | P40: 2.50957466 | Q40: 0.02113704597 | R40: =T300 -> 98.35395076 | S40: 1.646049237 | T40: 0 | U40: 0 | V40: =Y300 -> 98.71047692 | W40: 1.289523085 | X40: 0 | Y40: 0
A97: NATIONAL | D97: Poorest | I97: Poor | N97: Middle | S97: Rich | X97: Richest
D98: Improved | E98: Basic | F98: Limited | G98: Unimproved | H98: Open defecation | I98: Improved | J98: Basic | K98: Limited | L98: Unimproved | M98: Open defecation | N98: Improved | O98: Basic | P98: Limited | Q98: Unimproved | R98: Open defecation | S98: Improved | T98: Basic | U98: Limited | V98: Unimproved | W98: Open defecation | X98: Improved | Y98: Basic | Z98: Limited | AA98: Unimproved | AB98: Open defecation
A99: Forecast period: | C99: 2000 | D99: =IF((D101+H101)>100,D101*100/(D101+H101),D101) -> 89.70839347 | E99: =D99*AVERAGEIF(E105:E116,">0")/100 -> 86.95598307 | F99: =D99*(100-AVERAGEIF(E105:E116,">0"))/100 -> 2.7524104 | G99: =100-(E99+F99+H99) -> 9.779011556 | H99: =IF((D101+H101)>100,H101*100/(D101+H101),H101) -> 0.5125949746 | I99: =IF((I101+M101)>100,I101*100/(I101+M101),I101) -> 92.0220944 | J99: =I99*AVERAGEIF(J105:J116,">0")/100 -> 90.1900035 | K99: =I99*(100-AVERAGEIF(J105:J116,">0"))/100 -> 1.832090891 | L99: =100-(J99+K99+M99) -> 7.972877856 | M99: =IF((I101+M101)>100,M101*100/(I101+M101),M101) -> 0.005027748002 | N99: =IF((N101+R101)>100,N101*100/(N101+R101),N101) -> 96.29504987 | O99: =N99*AVERAGEIF(O105:O116,">0")/100 -> 94.61994215 | P99: =N99*(100-AVERAGEIF(O105:O116,">0"))/100 -> 1.675107716 | Q99: =100-(O99+P99+R99) -> 3.467630871 | R99: =IF((N101+R101)>100,R101*100/(N101+R101),R101) -> 0.2373192591 | S99: =IF((S101+W101)>100,S101*100/(S101+W101),S101) -> 96.88636933 | T99: =S99*AVERAGEIF(T105:T116,">0")/100 -> 95.2777591 | U99: =S99*(100-AVERAGEIF(T105:T116,">0"))/100 -> 1.608610229 | V99: =100-(T99+U99+W99) -> 3.113630671 | W99: =IF((S101+W101)>100,W101*100/(S101+W101),W101) -> 0 | X99: =IF((X101+AB101)>100,X101*100/(X101+AB101),X101) -> 98.52283156 | Y99: =X99*AVERAGEIF(Y105:Y116,">0")/100 -> 97.76648829 | Z99: =X99*(100-AVERAGEIF(Y105:Y116,">0"))/100 -> 0.7563432658 | AA99: =100-(Y99+Z99+AB99) -> 1.238194784 | AB99: =IF((X101+AB101)>100,AB101*100/(X101+AB101),AB101) -> 0.2389736599
C100: 2018 | D100: =IF((D102+H102)>100,D102*100/(D102+H102),D102) -> 98.67343543 | E100: =D100*AVERAGEIF(E105:E116,">0")/100 -> 95.64596187 | F100: =D100*(100-AVERAGEIF(E105:E116,">0"))/100 -> 3.027473567 | G100: =100-(E100+F100+H100) -> 1.326564566 | H100: =IF((D102+H102)>100,H102*100/(D102+H102),H102) -> 0 | I100: =IF((I102+M102)>100,I102*100/(I102+M102),I102) -> 99.99329679 | J100: =I100*AVERAGEIF(J105:J116,">0")/100 -> 98.00250523 | K100: =I100*(100-AVERAGEIF(J105:J116,">0"))/100 -> 1.990791553 | L100: =100-(J100+K100+M100) -> 0 | M100: =IF((I102+M102)>100,M102*100/(I102+M102),M102) -> 0.006703214642 | N100: =IF((N102+R102)>100,N102*100/(N102+R102),N102) -> 100 | O100: =N100*AVERAGEIF(O105:O116,">0")/100 -> 98.26044255 | P100: =N100*(100-AVERAGEIF(O105:O116,">0"))/100 -> 1.739557453 | Q100: =100-(O100+P100+R100) -> 0 | R100: =IF((N102+R102)>100,R102*100/(N102+R102),R102) -> 0 | S100: =IF((S102+W102)>100,S102*100/(S102+W102),S102) -> 100 | T100: =S100*AVERAGEIF(T105:T116,">0")/100 -> 98.33969397 | U100: =S100*(100-AVERAGEIF(T105:T116,">0"))/100 -> 1.660306027 | V100: =100-(T100+U100+W100) -> 0 | W100: =IF((S102+W102)>100,W102*100/(S102+W102),W102) -> 0 | X100: =IF((X102+AB102)>100,X102*100/(X102+AB102),X102) -> 100 | Y100: =X100*AVERAGEIF(Y105:Y116,">0")/100 -> 99.23231676 | Z100: =X100*(100-AVERAGEIF(Y105:Y116,">0"))/100 -> 0.7676832404 | AA100: =100-(Y100+Z100+AB100) -> 0 | AB100: =IF((X102+AB102)>100,AB102*100/(X102+AB102),AB102) -> 0
A101: Regression period: | C101: =MinRegYear(C99,C105:C116) -> 2001 | D101: =IF(MAX(C105:C116)-MIN(C105:C116)<5,AVERAGEIF(C105:C116,">0",D105:D116), IF(FORECAST($C101,D$105:D$116,$C$105:$C$116)<0,0, IF(FORECAST($C101,D$105:D$116,$C$105:$C$116)>100,100, FORECAST($C101,D$105:D$116,$C$105:$C$116)))) -> 89.70839347 | H101: =IF(MAX(C105:C116)-MIN(C105:C116)<5,AVERAGEIF(C105:C116,">0",H105:H116), IF(FORECAST($C101,H$105:H$116,$C$105:$C$116)<0,0, IF(FORECAST($C101,H$105:H$116,$C$105:$C$116)>100,100, FORECAST($C101,H$105:H$116,$C$105:$C$116)))) -> 0.5125949746 | I101: =IF(MAX(C105:C116)-MIN(C105:C116)<5,AVERAGEIF(C105:C116,">0",I105:I116), IF(FORECAST($C101,I$105:I$116,$C$105:$C$116)<0,0, IF(FORECAST($C101,I$105:I$116,$C$105:$C$116)>100,100, FORECAST($C101,I$105:I$116,$C$105:$C$116)))) -> 92.0220944 | M101: =IF(MAX(C105:C116)-MIN(C105:C116)<5,AVERAGEIF(C105:C116,">0",M105:M116), IF(FORECAST($C101,M$105:M$116,$C$105:$C$116)<0,0, IF(FORECAST($C101,M$105:M$116,$C$105:$C$116)>100,100, FORECAST($C101,M$105:M$116,$C$105:$C$116)))) -> 0.005027748002 | N101: =IF(MAX(C105:C116)-MIN(C105:C116)<5,AVERAGEIF(C105:C116,">0",N105:N116), IF(FORECAST($C101,N$105:N$116,$C$105:$C$116)<0,0, IF(FORECAST($C101,N$105:N$116,$C$105:$C$116)>100,100, FORECAST($C101,N$105:N$116,$C$105:$C$116)))) -> 96.29504987 | R101: =IF(MAX(C105:C116)-MIN(C105:C116)<5,AVERAGEIF(C105:C116,">0",R105:R116), IF(FORECAST($C101,R$105:R$116,$C$105:$C$116)<0,0, IF(FORECAST($C101,R$105:R$116,$C$105:$C$116)>100,100, FORECAST($C101,R$105:R$116,$C$105:$C$116)))) -> 0.2373192591 | S101: =IF(MAX(C105:C116)-MIN(C105:C116)<5,AVERAGEIF(C105:C116,">0",S105:S116), IF(FORECAST($C101,S$105:S$116,$C$105:$C$116)<0,0, IF(FORECAST($C101,S$105:S$116,$C$105:$C$116)>100,100, FORECAST($C101,S$105:S$116,$C$105:$C$116)))) -> 96.88636933 | W101: =IF(MAX(C105:C116)-MIN(C105:C116)<5,AVERAGEIF(C105:C116,">0",W105:W116), IF(FORECAST($C101,W$105:W$116,$C$105:$C$116)<0,0, IF(FORECAST($C101,W$105:W$116,$C$105:$C$116)>100,100, FORECAST($C101,W$105:W$116,$C$105:$C$116)))) -> 0 | X101: =IF(MAX(C105:C116)-MIN(C105:C116)<5,AVERAGEIF(C105:C116,">0",X105:X116), IF(FORECAST($C101,X$105:X$116,$C$105:$C$116)<0,0, IF(FORECAST($C101,X$105:X$116,$C$105:$C$116)>100,100, FORECAST($C101,X$105:X$116,$C$105:$C$116)))) -> 98.52283156 | AB101: =IF(MAX(C105:C116)-MIN(C105:C116)<5,AVERAGEIF(C105:C116,">0",AB105:AB116), IF(FORECAST($C101,AB$105:AB$116,$C$105:$C$116)<0,0, IF(FORECAST($C101,AB$105:AB$116,$C$105:$C$116)>100,100, FORECAST($C101,AB$105:AB$116,$C$105:$C$116)))) -> 0.2389736599
C102: =MaxRegYear(C100,C105:C116) -> 2014 | D102: =IF(MAX(C105:C116)-MIN(C105:C116)<5,AVERAGEIF(C105:C116,">0",D105:D116), IF(FORECAST($C102,D$105:D$116,$C$105:$C$116)<0,0, IF(FORECAST($C102,D$105:D$116,$C$105:$C$116)>100,100, FORECAST($C102,D$105:D$116,$C$105:$C$116)))) -> 98.67343543 | H102: =IF(MAX(C105:C116)-MIN(C105:C116)<5,AVERAGEIF(C105:C116,">0",H105:H116), IF(FORECAST($C102,H$105:H$116,$C$105:$C$116)<0,0, IF(FORECAST($C102,H$105:H$116,$C$105:$C$116)>100,100, FORECAST($C102,H$105:H$116,$C$105:$C$116)))) -> 0 | I102: =IF(MAX(C105:C116)-MIN(C105:C116)<5,AVERAGEIF(C105:C116,">0",I105:I116), IF(FORECAST($C102,I$105:I$116,$C$105:$C$116)<0,0, IF(FORECAST($C102,I$105:I$116,$C$105:$C$116)>100,100, FORECAST($C102,I$105:I$116,$C$105:$C$116)))) -> 100 | M102: =IF(MAX(C105:C116)-MIN(C105:C116)<5,AVERAGEIF(C105:C116,">0",M105:M116), IF(FORECAST($C102,M$105:M$116,$C$105:$C$116)<0,0, IF(FORECAST($C102,M$105:M$116,$C$105:$C$116)>100,100, FORECAST($C102,M$105:M$116,$C$105:$C$116)))) -> 0.006703664003 | N102: =IF(MAX(C105:C116)-MIN(C105:C116)<5,AVERAGEIF(C105:C116,">0",N105:N116), IF(FORECAST($C102,N$105:N$116,$C$105:$C$116)<0,0, IF(FORECAST($C102,N$105:N$116,$C$105:$C$116)>100,100, FORECAST($C102,N$105:N$116,$C$105:$C$116)))) -> 100 | R102: =IF(MAX(C105:C116)-MIN(C105:C116)<5,AVERAGEIF(C105:C116,">0",R105:R116), IF(FORECAST($C102,R$105:R$116,$C$105:$C$116)<0,0, IF(FORECAST($C102,R$105:R$116,$C$105:$C$116)>100,100, FORECAST($C102,R$105:R$116,$C$105:$C$116)))) -> 0 | S102: =IF(MAX(C105:C116)-MIN(C105:C116)<5,AVERAGEIF(C105:C116,">0",S105:S116), IF(FORECAST($C102,S$105:S$116,$C$105:$C$116)<0,0, IF(FORECAST($C102,S$105:S$116,$C$105:$C$116)>100,100, FORECAST($C102,S$105:S$116,$C$105:$C$116)))) -> 100 | W102: =IF(MAX(C105:C116)-MIN(C105:C116)<5,AVERAGEIF(C105:C116,">0",W105:W116), IF(FORECAST($C102,W$105:W$116,$C$105:$C$116)<0,0, IF(FORECAST($C102,W$105:W$116,$C$105:$C$116)>100,100, FORECAST($C102,W$105:W$116,$C$105:$C$116)))) -> 0 | X102: =IF(MAX(C105:C116)-MIN(C105:C116)<5,AVERAGEIF(C105:C116,">0",X105:X116), IF(FORECAST($C102,X$105:X$116,$C$105:$C$116)<0,0, IF(FORECAST($C102,X$105:X$116,$C$105:$C$116)>100,100, FORECAST($C102,X$105:X$116,$C$105:$C$116)))) -> 100 | AB102: =IF(MAX(C105:C116)-MIN(C105:C116)<5,AVERAGEIF(C105:C116,">0",AB105:AB116), IF(FORECAST($C102,AB$105:AB$116,$C$105:$C$116)<0,0, IF(FORECAST($C102,AB$105:AB$116,$C$105:$C$116)>100,100, FORECAST($C102,AB$105:AB$116,$C$105:$C$116)))) -> 0
B104: Survey | C104: Year | D104: Improved | E104: Not shared | H104: Open defecation | I104: Improved | J104: Not shared | M104: Open defecation | N104: Improved | O104: Not shared | R104: Open defecation | S104: Improved | T104: Not shared | W104: Open defecation | X104: Improved | Y104: Not shared | AB104: Open defecation
B105: WHS03 | C105: 2003 | D105: =IF(ISERROR(INDIRECT(CONCATENATE($B105,"!C122"))),"",INDIRECT(CONCATENATE($B105,"!C122"))) -> 92.55186258 | E105: =IF(ISERROR(INDIRECT(CONCATENATE($B105,"!C129"))),"",INDIRECT(CONCATENATE($B105,"!C129"))) -> 93.86858005 | H105: =IF(ISERROR(INDIRECT(CONCATENATE($B105,"!C127"))),"",INDIRECT(CONCATENATE($B105,"!C127"))) -> 0.7392056361 | I105: =IF(ISERROR(INDIRECT(CONCATENATE($B105,"!D122"))),"",INDIRECT(CONCATENATE($B105,"!D122"))) -> 94.31725352 | J105: =IF(ISERROR(INDIRECT(CONCATENATE($B105,"!D129"))),"",INDIRECT(CONCATENATE($B105,"!D129"))) -> 96.88156508 | M105: =IF(ISERROR(INDIRECT(CONCATENATE($B105,"!D127"))),"",INDIRECT(CONCATENATE($B105,"!D127"))) -> 0 | N105: =IF(ISERROR(INDIRECT(CONCATENATE($B105,"!E122"))),"",INDIRECT(CONCATENATE($B105,"!E122"))) -> 95.19941908 | O105: =IF(ISERROR(INDIRECT(CONCATENATE($B105,"!E129"))),"",INDIRECT(CONCATENATE($B105,"!E129"))) -> 99.62444962 | R105: =IF(ISERROR(INDIRECT(CONCATENATE($B105,"!E127"))),"",INDIRECT(CONCATENATE($B105,"!E127"))) -> 0.3242759342 | S105: =IF(ISERROR(INDIRECT(CONCATENATE($B105,"!F122"))),"",INDIRECT(CONCATENATE($B105,"!F122"))) -> 95.48334379 | T105: =IF(ISERROR(INDIRECT(CONCATENATE($B105,"!F129"))),"",INDIRECT(CONCATENATE($B105,"!F129"))) -> 98.72111511 | W105: =IF(ISERROR(INDIRECT(CONCATENATE($B105,"!F127"))),"",INDIRECT(CONCATENATE($B105,"!F127"))) -> 0 | X105: =IF(ISERROR(INDIRECT(CONCATENATE($B105,"!G122"))),"",INDIRECT(CONCATENATE($B105,"!G122"))) -> 97.87256303 | Y105: =IF(ISERROR(INDIRECT(CONCATENATE($B105,"!G129"))),"",INDIRECT(CONCATENATE($B105,"!G129"))) -> 99.32891539 | AB105: =IF(ISERROR(INDIRECT(CONCATENATE($B105,"!G2127"))),"",INDIRECT(CONCATENATE($B105,"!G127"))) -> 0.3265365277
B106: MICS05 | C106: 2005 | D106: 89.27497964 | E106: 98.10450464 | H106: 0 | I106: 91.87698454 | J106: 99.29367922 | M106: 0 | N106: 100 | O106: 98.79125116 | R106: 0 | S106: 100 | T106: 99.03253622 | W106: 0 | X106: 100 | Y106: 99.61055396 | AB106: 0
B107: DHS07 | C107: 2007 | D107: 95.67913135 | E107: 97.46859736 | H107: 0.139147388 | I107: 98.22952878 | J107: 97.34622431 | M107: 0.02307607416 | N107: 98.80574831 | O107: 96.73853254 | R107: 0 | S107: 99.7396643 | T107: 96.67497212 | W107: 0 | X107: 100 | Y107: 98.66279764 | AB107: 0
B108: MICS12 | C108: 2012 | D108: 97.1888284 | E108: 98.28561839 | H108: 0.1382656054 | I108: 99.00132398 | J108: 98.51483136 | M108: 0 | N108: 99.83860732 | O108: 97.88753688 | R108: 0 | S108: 99.4145373 | T108: 98.93015244 | W108: 0 | X108: 99.8120909 | Y108: 99.32700004 | AB108: 0
B118: =CONCATENATE("National use of sanitation facilities, ",C99,"–",C100) -> National use of sanitation facilities, 2000–2018 | S118: Data points used for regression
A197: URBAN | D197: Poorest | I197: Poor | N197: Middle | S197: Rich | X197: Richest
D198: Improved | E198: Basic | F198: Limited | G198: Unimproved | H198: Open defecation | I198: Improved | J198: Basic | K198: Limited | L198: Unimproved | M198: Open defecation | N198: Improved | O198: Basic | P198: Limited | Q198: Unimproved | R198: Open defecation | S198: Improved | T198: Basic | U198: Limited | V198: Unimproved | W198: Open defecation | X198: Improved | Y198: Basic | Z198: Limited | AA198: Unimproved | AB198: Open defecation
A199: Forecast period: | C199: 2000 | D199: =IF((D201+H201)>100,D201*100/(D201+H201),D201) -> 92.08129367 | E199: =D199*AVERAGEIF(E205:E216,">0")/100 -> 88.20239738 | F199: =D199*(100-AVERAGEIF(E205:E216,">0"))/100 -> 3.87889629 | G199: =100-(E199+F199+H199) -> 7.918706333 | H199: =IF((D201+H201)>100,H201*100/(D201+H201),H201) -> 0 | I199: =IF((I201+M201)>100,I201*100/(I201+M201),I201) -> 97.851591 | J199: =I199*AVERAGEIF(J205:J216,">0")/100 -> 95.56137203 | K199: =I199*(100-AVERAGEIF(J205:J216,">0"))/100 -> 2.290218966 | L199: =100-(J199+K199+M199) -> 1.816327148 | M199: =IF((I201+M201)>100,M201*100/(I201+M201),M201) -> 0.3320818536 | N199: =IF((N201+R201)>100,N201*100/(N201+R201),N201) -> 99.25624949 | O199: =N199*AVERAGEIF(O205:O216,">0")/100 -> 97.45246389 | P199: =N199*(100-AVERAGEIF(O205:O216,">0"))/100 -> 1.803785599 | Q199: =100-(O199+P199+R199) -> 0.7437505068 | R199: =IF((N201+R201)>100,R201*100/(N201+R201),R201) -> 0 | S199: =IF((S201+W201)>100,S201*100/(S201+W201),S201) -> 98.73012072 | T199: =S199*AVERAGEIF(T205:T216,">0")/100 -> 97.5127478 | U199: =S199*(100-AVERAGEIF(T205:T216,">0"))/100 -> 1.217372925 | V199: =100-(T199+U199+W199) -> 1.269879278 | W199: =IF((S201+W201)>100,W201*100/(S201+W201),W201) -> 0 | X199: =IF((X201+AB201)>100,X201*100/(X201+AB201),X201) -> 99.3830044 | Y199: =X199*AVERAGEIF(Y205:Y216,">0")/100 -> 98.71955455 | Z199: =X199*(100-AVERAGEIF(Y205:Y216,">0"))/100 -> 0.6634498485 | AA199: =100-(Y199+Z199+AB199) -> 0.2811924071 | AB199: =IF((X201+AB201)>100,AB201*100/(X201+AB201),AB201) -> 0.3358031907
C200: 2018 | D200: =IF((D202+H202)>100,D202*100/(D202+H202),D202) -> 99.88651393 | E200: =D200*AVERAGEIF(E205:E216,">0")/100 -> 95.67882512 | F200: =D200*(100-AVERAGEIF(E205:E216,">0"))/100 -> 4.207688803 | G200: =100-(E200+F200+H200) -> 0 | H200: =IF((D202+H202)>100,H202*100/(D202+H202),H202) -> 0.1134860728 | I200: =IF((I202+M202)>100,I202*100/(I202+M202),I202) -> 100 | J200: =I200*AVERAGEIF(J205:J216,">0")/100 -> 97.65949747 | K200: =I200*(100-AVERAGEIF(J205:J216,">0"))/100 -> 2.340502533 | L200: =100-(J200+K200+M200) -> 0 | M200: =IF((I202+M202)>100,M202*100/(I202+M202),M202) -> 0 | N200: =IF((N202+R202)>100,N202*100/(N202+R202),N202) -> 100 | O200: =N200*AVERAGEIF(O205:O216,">0")/100 -> 98.18269821 | P200: =N200*(100-AVERAGEIF(O205:O216,">0"))/100 -> 1.817301791 | Q200: =100-(O200+P200+R200) -> 0 | R200: =IF((N202+R202)>100,R202*100/(N202+R202),R202) -> 0 | S200: =IF((S202+W202)>100,S202*100/(S202+W202),S202) -> 100 | T200: =S200*AVERAGEIF(T205:T216,">0")/100 -> 98.76696907 | U200: =S200*(100-AVERAGEIF(T205:T216,">0"))/100 -> 1.23303093 | V200: =100-(T200+U200+W200) -> 0 | W200: =IF((S202+W202)>100,W202*100/(S202+W202),W202) -> 0 | X200: =IF((X202+AB202)>100,X202*100/(X202+AB202),X202) -> 100 | Y200: =X200*AVERAGEIF(Y205:Y216,">0")/100 -> 99.33243128 | Z200: =X200*(100-AVERAGEIF(Y205:Y216,">0"))/100 -> 0.6675687181 | AA200: =100-(Y200+Z200+AB200) -> 0 | AB200: =IF((X202+AB202)>100,AB202*100/(X202+AB202),AB202) -> 0
A201: Regression period: | C201: =MinRegYear(C199,C205:C216) -> 2001 | D201: =IF(MAX(C205:C216)-MIN(C205:C216)<5,AVERAGEIF(C205:C216,">0",D205:D216), IF(FORECAST($C201,D$205:D$216,$C$205:$C$216)<0,0, IF(FORECAST($C201,D$205:D$216,$C$205:$C$216)>100,100, FORECAST($C201,D$205:D$216,$C$205:$C$216)))) -> 92.08129367 | H201: =IF(MAX(C205:C216)-MIN(C205:C216)<5,AVERAGEIF(C205:C216,">0",H205:H216), IF(FORECAST($C201,H$205:H$216,$C$205:$C$216)<0,0, IF(FORECAST($C201,H$205:H$216,$C$205:$C$216)>100,100, FORECAST($C201,H$205:H$216,$C$205:$C$216)))) -> 0 | I201: =IF(MAX(C205:C216)-MIN(C205:C216)<5,AVERAGEIF(C205:C216,">0",I205:I216), IF(FORECAST($C201,I$205:I$216,$C$205:$C$216)<0,0, IF(FORECAST($C201,I$205:I$216,$C$205:$C$216)>100,100, FORECAST($C201,I$205:I$216,$C$205:$C$216)))) -> 97.851591 | M201: =IF(MAX(C205:C216)-MIN(C205:C216)<5,AVERAGEIF(C205:C216,">0",M205:M216), IF(FORECAST($C201,M$205:M$216,$C$205:$C$216)<0,0, IF(FORECAST($C201,M$205:M$216,$C$205:$C$216)>100,100, FORECAST($C201,M$205:M$216,$C$205:$C$216)))) -> 0.3320818536 | N201: =IF(MAX(C205:C216)-MIN(C205:C216)<5,AVERAGEIF(C205:C216,">0",N205:N216), IF(FORECAST($C201,N$205:N$216,$C$205:$C$216)<0,0, IF(FORECAST($C201,N$205:N$216,$C$205:$C$216)>100,100, FORECAST($C201,N$205:N$216,$C$205:$C$216)))) -> 99.25624949 | R201: =IF(MAX(C205:C216)-MIN(C205:C216)<5,AVERAGEIF(C205:C216,">0",R205:R216), IF(FORECAST($C201,R$205:R$216,$C$205:$C$216)<0,0, IF(FORECAST($C201,R$205:R$216,$C$205:$C$216)>100,100, FORECAST($C201,R$205:R$216,$C$205:$C$216)))) -> 0 | S201: =IF(MAX(C205:C216)-MIN(C205:C216)<5,AVERAGEIF(C205:C216,">0",S205:S216), IF(FORECAST($C201,S$205:S$216,$C$205:$C$216)<0,0, IF(FORECAST($C201,S$205:S$216,$C$205:$C$216)>100,100, FORECAST($C201,S$205:S$216,$C$205:$C$216)))) -> 98.73012072 | W201: =IF(MAX(C205:C216)-MIN(C205:C216)<5,AVERAGEIF(C205:C216,">0",W205:W216), IF(FORECAST($C201,W$205:W$216,$C$205:$C$216)<0,0, IF(FORECAST($C201,W$205:W$216,$C$205:$C$216)>100,100, FORECAST($C201,W$205:W$216,$C$205:$C$216)))) -> 0 | X201: =IF(MAX(C205:C216)-MIN(C205:C216)<5,AVERAGEIF(C205:C216,">0",X205:X216), IF(FORECAST($C201,X$205:X$216,$C$205:$C$216)<0,0, IF(FORECAST($C201,X$205:X$216,$C$205:$C$216)>100,100, FORECAST($C201,X$205:X$216,$C$205:$C$216)))) -> 99.3830044 | AB201: =IF(MAX(C205:C216)-MIN(C205:C216)<5,AVERAGEIF(C205:C216,">0",AB205:AB216), IF(FORECAST($C201,AB$205:AB$216,$C$205:$C$216)<0,0, IF(FORECAST($C201,AB$205:AB$216,$C$205:$C$216)>100,100, FORECAST($C201,AB$205:AB$216,$C$205:$C$216)))) -> 0.3358031907
C202: =MaxRegYear(C200,C205:C216) -> 2014 | D202: =IF(MAX(C205:C216)-MIN(C205:C216)<5,AVERAGEIF(C205:C216,">0",D205:D216), IF(FORECAST($C202,D$205:D$216,$C$205:$C$216)<0,0, IF(FORECAST($C202,D$205:D$216,$C$205:$C$216)>100,100, FORECAST($C202,D$205:D$216,$C$205:$C$216)))) -> 100 | H202: =IF(MAX(C205:C216)-MIN(C205:C216)<5,AVERAGEIF(C205:C216,">0",H205:H216), IF(FORECAST($C202,H$205:H$216,$C$205:$C$216)<0,0, IF(FORECAST($C202,H$205:H$216,$C$205:$C$216)>100,100, FORECAST($C202,H$205:H$216,$C$205:$C$216)))) -> 0.11361501 | I202: =IF(MAX(C205:C216)-MIN(C205:C216)<5,AVERAGEIF(C205:C216,">0",I205:I216), IF(FORECAST($C202,I$205:I$216,$C$205:$C$216)<0,0, IF(FORECAST($C202,I$205:I$216,$C$205:$C$216)>100,100, FORECAST($C202,I$205:I$216,$C$205:$C$216)))) -> 100 | M202: =IF(MAX(C205:C216)-MIN(C205:C216)<5,AVERAGEIF(C205:C216,">0",M205:M216), IF(FORECAST($C202,M$205:M$216,$C$205:$C$216)<0,0, IF(FORECAST($C202,M$205:M$216,$C$205:$C$216)>100,100, FORECAST($C202,M$205:M$216,$C$205:$C$216)))) -> 0 | N202: =IF(MAX(C205:C216)-MIN(C205:C216)<5,AVERAGEIF(C205:C216,">0",N205:N216), IF(FORECAST($C202,N$205:N$216,$C$205:$C$216)<0,0, IF(FORECAST($C202,N$205:N$216,$C$205:$C$216)>100,100, FORECAST($C202,N$205:N$216,$C$205:$C$216)))) -> 100 | R202: =IF(MAX(C205:C216)-MIN(C205:C216)<5,AVERAGEIF(C205:C216,">0",R205:R216), IF(FORECAST($C202,R$205:R$216,$C$205:$C$216)<0,0, IF(FORECAST($C202,R$205:R$216,$C$205:$C$216)>100,100, FORECAST($C202,R$205:R$216,$C$205:$C$216)))) -> 0 | S202: =IF(MAX(C205:C216)-MIN(C205:C216)<5,AVERAGEIF(C205:C216,">0",S205:S216), IF(FORECAST($C202,S$205:S$216,$C$205:$C$216)<0,0, IF(FORECAST($C202,S$205:S$216,$C$205:$C$216)>100,100, FORECAST($C202,S$205:S$216,$C$205:$C$216)))) -> 100 | W202: =IF(MAX(C205:C216)-MIN(C205:C216)<5,AVERAGEIF(C205:C216,">0",W205:W216), IF(FORECAST($C202,W$205:W$216,$C$205:$C$216)<0,0, IF(FORECAST($C202,W$205:W$216,$C$205:$C$216)>100,100, FORECAST($C202,W$205:W$216,$C$205:$C$216)))) -> 0 | X202: =IF(MAX(C205:C216)-MIN(C205:C216)<5,AVERAGEIF(C205:C216,">0",X205:X216), IF(FORECAST($C202,X$205:X$216,$C$205:$C$216)<0,0, IF(FORECAST($C202,X$205:X$216,$C$205:$C$216)>100,100, FORECAST($C202,X$205:X$216,$C$205:$C$216)))) -> 100 | AB202: =IF(MAX(C205:C216)-MIN(C205:C216)<5,AVERAGEIF(C205:C216,">0",AB205:AB216), IF(FORECAST($C202,AB$205:AB$216,$C$205:$C$216)<0,0, IF(FORECAST($C202,AB$205:AB$216,$C$205:$C$216)>100,100, FORECAST($C202,AB$205:AB$216,$C$205:$C$216)))) -> 0
B204: Survey | C204: Year | D204: Improved | E204: Not shared | H204: Open defecation | I204: Improved | J204: Not shared | M204: Open defecation | N204: Improved | O204: Not shared | R204: Open defecation | S204: Improved | T204: Not shared | W204: Open defecation | X204: Improved | Y204: Not shared | AB204: Open defecation
B205: WHS03 | C205: 2003 | D205: =IF(ISERROR(INDIRECT(CONCATENATE($B205,"!H122"))),"",INDIRECT(CONCATENATE($B205,"!H122"))) -> 93.4200641 | E205: =IF(ISERROR(INDIRECT(CONCATENATE($B205,"!H129"))),"",INDIRECT(CONCATENATE($B205,"!H129"))) -> 91.70457219 | H205: =IF(ISERROR(INDIRECT(CONCATENATE($B205,"!H127"))),"",INDIRECT(CONCATENATE($B205,"!H127"))) -> 0 | I205: =IF(ISERROR(INDIRECT(CONCATENATE($B205,"!I122"))),"",INDIRECT(CONCATENATE($B205,"!I122"))) -> 97.27423497 | J205: =IF(ISERROR(INDIRECT(CONCATENATE($B205,"!I129"))),"",INDIRECT(CONCATENATE($B205,"!I129"))) -> 98.42918151 | M205: =IF(ISERROR(INDIRECT(CONCATENATE($B205,"!I127"))),"",INDIRECT(CONCATENATE($B205,"!I127"))) -> 0.4537607008 | N205: =IF(ISERROR(INDIRECT(CONCATENATE($B205,"!J122"))),"",INDIRECT(CONCATENATE($B205,"!J122"))) -> 99.06591009 | O205: =IF(ISERROR(INDIRECT(CONCATENATE($B205,"!J129"))),"",INDIRECT(CONCATENATE($B205,"!J129"))) -> 99.12549213 | R205: =IF(ISERROR(INDIRECT(CONCATENATE($B205,"!J127"))),"",INDIRECT(CONCATENATE($B205,"!J127"))) -> 0 | S205: =IF(ISERROR(INDIRECT(CONCATENATE($B205,"!K122"))),"",INDIRECT(CONCATENATE($B205,"!K122"))) -> 98.12699683 | T205: =IF(ISERROR(INDIRECT(CONCATENATE($B205,"!K129"))),"",INDIRECT(CONCATENATE($B205,"!K129"))) -> 99.58507327 | W205: =IF(ISERROR(INDIRECT(CONCATENATE($B205,"!K127"))),"",INDIRECT(CONCATENATE($B205,"!K127"))) -> 0 | X205: =IF(ISERROR(INDIRECT(CONCATENATE($B205,"!L122"))),"",INDIRECT(CONCATENATE($B205,"!L122"))) -> 99.13147102 | Y205: =IF(ISERROR(INDIRECT(CONCATENATE($B205,"!L129"))),"",INDIRECT(CONCATENATE($B205,"!L129"))) -> 99.49059167 | AB205: =IF(ISERROR(INDIRECT(CONCATENATE($B205,"!L2127"))),"",INDIRECT(CONCATENATE($B205,"!L127"))) -> 0.4588455812
B206: MICS05 | C206: 2005 | D206: 94.05653454 | E206: 97.19337688 | H206: 0 | I206: 100 | J206: 98.70665344 | M206: 0 | N206: 100 | O206: 98.9774129 | R206: 0 | S206: 100 | T206: 99.03404573 | W206: 0 | X206: 100 | Y206: 99.82401321 | AB206: 0
B207: DHS07 | C207: 2007 | D207: 97.13596186 | E207: 96.12924328 | H207: 0.09590657452 | I207: 99.12955355 | J207: 95.63692307 | M207: 0 | N207: 99.72395993 | O207: 96.55075276 | R207: 0 | S207: 99.9812865 | T207: 97.07049796 | W207: 0 | X207: 100 | Y207: 98.87422963 | AB207: 0
B208: MICS12 | C208: 2012 | D208: 99.19190499 | E208: 98.12293019 | H208: 0.07791850215 | I208: 99.91503396 | J208: 97.86523185 | M208: 0 | N208: 100 | O208: 98.07713504 | R208: 0 | S208: 99.75283091 | T208: 99.37825932 | W208: 0 | X208: 99.95611731 | Y208: 99.14089062 | AB208: 0
B218: =CONCATENATE("Urban use of sanitation facilities, ",C199,"–",C200) -> Urban use of sanitation facilities, 2000–2018 | S218: Data points used for regression
A297: RURAL | D297: Poorest | I297: Poor | N297: Middle | S297: Rich | X297: Richest
D298: Improved | E298: Basic | F298: Limited | G298: Unimproved | H298: Open defecation | I298: Improved | J298: Basic | K298: Limited | L298: Unimproved | M298: Open defecation | N298: Improved | O298: Basic | P298: Limited | Q298: Unimproved | R298: Open defecation | S298: Improved | T298: Basic | U298: Limited | V298: Unimproved | W298: Open defecation | X298: Improved | Y298: Basic | Z298: Limited | AA298: Unimproved | AB298: Open defecation
A299: Forecast period: | C299: 2000 | D299: =IF((D301+H301)>100,D301*100/(D301+H301),D301) -> 87.36334037 | E299: =D299*AVERAGEIF(E305:E316,">0")/100 -> 86.06240486 | F299: =D299*(100-AVERAGEIF(E305:E316,">0"))/100 -> 1.300935517 | G299: =100-(E299+F299+H299) -> 10.84182771 | H299: =IF((D301+H301)>100,H301*100/(D301+H301),H301) -> 1.794831916 | I299: =IF((I301+M301)>100,I301*100/(I301+M301),I301) -> 91.99898082 | J299: =I299*AVERAGEIF(J305:J316,">0")/100 -> 90.94697518 | K299: =I299*(100-AVERAGEIF(J305:J316,">0"))/100 -> 1.052005648 | L299: =100-(J299+K299+M299) -> 7.982894697 | M299: =IF((I301+M301)>100,M301*100/(I301+M301),M301) -> 0.01812447927 | N299: =IF((N301+R301)>100,N301*100/(N301+R301),N301) -> 93.54689418 | O299: =N299*AVERAGEIF(O305:O316,">0")/100 -> 92.23440221 | P299: =N299*(100-AVERAGEIF(O305:O316,">0"))/100 -> 1.312491974 | Q299: =100-(O299+P299+R299) -> 6.437253032 | R299: =IF((N301+R301)>100,R301*100/(N301+R301),R301) -> 0.01585278448 | S299: =IF((S301+W301)>100,S301*100/(S301+W301),S301) -> 81.71170406 | T299: =S299*AVERAGEIF(T305:T316,">0")/100 -> 80.36668918 | U299: =S299*(100-AVERAGEIF(T305:T316,">0"))/100 -> 1.345014881 | V299: =100-(T299+U299+W299) -> 18.28829594 | W299: =IF((S301+W301)>100,W301*100/(S301+W301),W301) -> 0 | X299: =IF((X301+AB301)>100,X301*100/(X301+AB301),X301) -> 86.68657731 | Y299: =X299*AVERAGEIF(Y305:Y316,">0")/100 -> 85.56873388 | Z299: =X299*(100-AVERAGEIF(Y305:Y316,">0"))/100 -> 1.117843426 | AA299: =100-(Y299+Z299+AB299) -> 13.31342269 | AB299: =IF((X301+AB301)>100,AB301*100/(X301+AB301),AB301) -> 0
C300: 2018 | D300: =IF((D302+H302)>100,D302*100/(D302+H302),D302) -> 97.57031789 | E300: =D300*AVERAGEIF(E305:E316,">0")/100 -> 96.11738934 | F300: =D300*(100-AVERAGEIF(E305:E316,">0"))/100 -> 1.452928556 | G300: =100-(E300+F300+H300) -> 2.429682107 | H300: =IF((D302+H302)>100,H302*100/(D302+H302),H302) -> 0 | I300: =IF((I302+M302)>100,I302*100/(I302+M302),I302) -> 98.13407325 | J300: =I300*AVERAGEIF(J305:J316,">0")/100 -> 97.011913 | K300: =I300*(100-AVERAGEIF(J305:J316,">0"))/100 -> 1.12216025 | L300: =100-(J300+K300+M300) -> 1.841760775 | M300: =IF((I302+M302)>100,M302*100/(I302+M302),M302) -> 0.02416597237 | N300: =IF((N302+R302)>100,N302*100/(N302+R302),N302) -> 97.46928829 | O300: =N300*AVERAGEIF(O305:O316,">0")/100 -> 96.10176391 | P300: =N300*(100-AVERAGEIF(O305:O316,">0"))/100 -> 1.367524381 | Q300: =100-(O300+P300+R300) -> 2.50957466 | R300: =IF((N302+R302)>100,R302*100/(N302+R302),R302) -> 0.02113704597 | S300: =IF((S302+W302)>100,S302*100/(S302+W302),S302) -> 100 | T300: =S300*AVERAGEIF(T305:T316,">0")/100 -> 98.35395076 | U300: =S300*(100-AVERAGEIF(T305:T316,">0"))/100 -> 1.646049237 | V300: =100-(T300+U300+W300) -> 0 | W300: =IF((S302+W302)>100,W302*100/(S302+W302),W302) -> 0 | X300: =IF((X302+AB302)>100,X302*100/(X302+AB302),X302) -> 100 | Y300: =X300*AVERAGEIF(Y305:Y316,">0")/100 -> 98.71047692 | Z300: =X300*(100-AVERAGEIF(Y305:Y316,">0"))/100 -> 1.289523085 | AA300: =100-(Y300+Z300+AB300) -> 0 | AB300: =IF((X302+AB302)>100,AB302*100/(X302+AB302),AB302) -> 0
A301: Regression period: | C301: =MinRegYear(C299,C305:C316) -> 2001 | D301: =IF(MAX(C305:C316)-MIN(C305:C316)<5,AVERAGEIF(C305:C316,">0",D305:D316), IF(FORECAST($C301,D$305:D$316,$C$305:$C$316)<0,0, IF(FORECAST($C301,D$305:D$316,$C$305:$C$316)>100,100, FORECAST($C301,D$305:D$316,$C$305:$C$316)))) -> 87.36334037 | H301: =IF(MAX(C305:C316)-MIN(C305:C316)<5,AVERAGEIF(C305:C316,">0",H305:H316), IF(FORECAST($C301,H$305:H$316,$C$305:$C$316)<0,0, IF(FORECAST($C301,H$305:H$316,$C$305:$C$316)>100,100, FORECAST($C301,H$305:H$316,$C$305:$C$316)))) -> 1.794831916 | I301: =IF(MAX(C305:C316)-MIN(C305:C316)<5,AVERAGEIF(C305:C316,">0",I305:I316), IF(FORECAST($C301,I$305:I$316,$C$305:$C$316)<0,0, IF(FORECAST($C301,I$305:I$316,$C$305:$C$316)>100,100, FORECAST($C301,I$305:I$316,$C$305:$C$316)))) -> 91.99898082 | M301: =IF(MAX(C305:C316)-MIN(C305:C316)<5,AVERAGEIF(C305:C316,">0",M305:M316), IF(FORECAST($C301,M$305:M$316,$C$305:$C$316)<0,0, IF(FORECAST($C301,M$305:M$316,$C$305:$C$316)>100,100, FORECAST($C301,M$305:M$316,$C$305:$C$316)))) -> 0.01812447927 | N301: =IF(MAX(C305:C316)-MIN(C305:C316)<5,AVERAGEIF(C305:C316,">0",N305:N316), IF(FORECAST($C301,N$305:N$316,$C$305:$C$316)<0,0, IF(FORECAST($C301,N$305:N$316,$C$305:$C$316)>100,100, FORECAST($C301,N$305:N$316,$C$305:$C$316)))) -> 93.54689418 | R301: =IF(MAX(C305:C316)-MIN(C305:C316)<5,AVERAGEIF(C305:C316,">0",R305:R316), IF(FORECAST($C301,R$305:R$316,$C$305:$C$316)<0,0, IF(FORECAST($C301,R$305:R$316,$C$305:$C$316)>100,100, FORECAST($C301,R$305:R$316,$C$305:$C$316)))) -> 0.01585278448 | S301: =IF(MAX(C305:C316)-MIN(C305:C316)<5,AVERAGEIF(C305:C316,">0",S305:S316), IF(FORECAST($C301,S$305:S$316,$C$305:$C$316)<0,0, IF(FORECAST($C301,S$305:S$316,$C$305:$C$316)>100,100, FORECAST($C301,S$305:S$316,$C$305:$C$316)))) -> 81.71170406 | W301: =IF(MAX(C305:C316)-MIN(C305:C316)<5,AVERAGEIF(C305:C316,">0",W305:W316), IF(FORECAST($C301,W$305:W$316,$C$305:$C$316)<0,0, IF(FORECAST($C301,W$305:W$316,$C$305:$C$316)>100,100, FORECAST($C301,W$305:W$316,$C$305:$C$316)))) -> 0 | X301: =IF(MAX(C305:C316)-MIN(C305:C316)<5,AVERAGEIF(C305:C316,">0",X305:X316), IF(FORECAST($C301,X$305:X$316,$C$305:$C$316)<0,0, IF(FORECAST($C301,X$305:X$316,$C$305:$C$316)>100,100, FORECAST($C301,X$305:X$316,$C$305:$C$316)))) -> 86.68657731 | AB301: =IF(MAX(C305:C316)-MIN(C305:C316)<5,AVERAGEIF(C305:C316,">0",AB305:AB316), IF(FORECAST($C301,AB$305:AB$316,$C$305:$C$316)<0,0, IF(FORECAST($C301,AB$305:AB$316,$C$305:$C$316)>100,100, FORECAST($C301,AB$305:AB$316,$C$305:$C$316)))) -> 0
C302: =MaxRegYear(C300,C305:C316) -> 2014 | D302: =IF(MAX(C305:C316)-MIN(C305:C316)<5,AVERAGEIF(C305:C316,">0",D305:D316), IF(FORECAST($C302,D$305:D$316,$C$305:$C$316)<0,0, IF(FORECAST($C302,D$305:D$316,$C$305:$C$316)>100,100, FORECAST($C302,D$305:D$316,$C$305:$C$316)))) -> 97.57031789 | H302: =IF(MAX(C305:C316)-MIN(C305:C316)<5,AVERAGEIF(C305:C316,">0",H305:H316), IF(FORECAST($C302,H$305:H$316,$C$305:$C$316)<0,0, IF(FORECAST($C302,H$305:H$316,$C$305:$C$316)>100,100, FORECAST($C302,H$305:H$316,$C$305:$C$316)))) -> 0 | I302: =IF(MAX(C305:C316)-MIN(C305:C316)<5,AVERAGEIF(C305:C316,">0",I305:I316), IF(FORECAST($C302,I$305:I$316,$C$305:$C$316)<0,0, IF(FORECAST($C302,I$305:I$316,$C$305:$C$316)>100,100, FORECAST($C302,I$305:I$316,$C$305:$C$316)))) -> 98.13407325 | M302: =IF(MAX(C305:C316)-MIN(C305:C316)<5,AVERAGEIF(C305:C316,">0",M305:M316), IF(FORECAST($C302,M$305:M$316,$C$305:$C$316)<0,0, IF(FORECAST($C302,M$305:M$316,$C$305:$C$316)>100,100, FORECAST($C302,M$305:M$316,$C$305:$C$316)))) -> 0.02416597237 | N302: =IF(MAX(C305:C316)-MIN(C305:C316)<5,AVERAGEIF(C305:C316,">0",N305:N316), IF(FORECAST($C302,N$305:N$316,$C$305:$C$316)<0,0, IF(FORECAST($C302,N$305:N$316,$C$305:$C$316)>100,100, FORECAST($C302,N$305:N$316,$C$305:$C$316)))) -> 97.46928829 | R302: =IF(MAX(C305:C316)-MIN(C305:C316)<5,AVERAGEIF(C305:C316,">0",R305:R316), IF(FORECAST($C302,R$305:R$316,$C$305:$C$316)<0,0, IF(FORECAST($C302,R$305:R$316,$C$305:$C$316)>100,100, FORECAST($C302,R$305:R$316,$C$305:$C$316)))) -> 0.02113704597 | S302: =IF(MAX(C305:C316)-MIN(C305:C316)<5,AVERAGEIF(C305:C316,">0",S305:S316), IF(FORECAST($C302,S$305:S$316,$C$305:$C$316)<0,0, IF(FORECAST($C302,S$305:S$316,$C$305:$C$316)>100,100, FORECAST($C302,S$305:S$316,$C$305:$C$316)))) -> 100 | W302: =IF(MAX(C305:C316)-MIN(C305:C316)<5,AVERAGEIF(C305:C316,">0",W305:W316), IF(FORECAST($C302,W$305:W$316,$C$305:$C$316)<0,0, IF(FORECAST($C302,W$305:W$316,$C$305:$C$316)>100,100, FORECAST($C302,W$305:W$316,$C$305:$C$316)))) -> 0 | X302: =IF(MAX(C305:C316)-MIN(C305:C316)<5,AVERAGEIF(C305:C316,">0",X305:X316), IF(FORECAST($C302,X$305:X$316,$C$305:$C$316)<0,0, IF(FORECAST($C302,X$305:X$316,$C$305:$C$316)>100,100, FORECAST($C302,X$305:X$316,$C$305:$C$316)))) -> 100 | AB302: =IF(MAX(C305:C316)-MIN(C305:C316)<5,AVERAGEIF(C305:C316,">0",AB305:AB316), IF(FORECAST($C302,AB$305:AB$316,$C$305:$C$316)<0,0, IF(FORECAST($C302,AB$305:AB$316,$C$305:$C$316)>100,100, FORECAST($C302,AB$305:AB$316,$C$305:$C$316)))) -> 0
B304: Survey | C304: Year | D304: Improved | E304: Not shared | H304: Open defecation | I304: Improved | J304: Not shared | M304: Open defecation | N304: Improved | O304: Not shared | R304: Open defecation | S304: Improved | T304: Not shared | W304: Open defecation | X304: Improved | Y304: Not shared | AB304: Open defecation
B305: WHS03 | C305: 2003 | D305: =IF(ISERROR(INDIRECT(CONCATENATE($B305,"!M122"))),"",INDIRECT(CONCATENATE($B305,"!M122"))) -> 88.82300032 | E305: =IF(ISERROR(INDIRECT(CONCATENATE($B305,"!M129"))),"",INDIRECT(CONCATENATE($B305,"!M129"))) -> 98.63638167 | H305: =IF(ISERROR(INDIRECT(CONCATENATE($B305,"!M127"))),"",INDIRECT(CONCATENATE($B305,"!M127"))) -> 2.579270128 | I305: =IF(ISERROR(INDIRECT(CONCATENATE($B305,"!N122"))),"",INDIRECT(CONCATENATE($B305,"!N122"))) -> 95.82614509 | J305: =IF(ISERROR(INDIRECT(CONCATENATE($B305,"!N129"))),"",INDIRECT(CONCATENATE($B305,"!N129"))) -> 97.81539093 | M305: =IF(ISERROR(INDIRECT(CONCATENATE($B305,"!N127"))),"",INDIRECT(CONCATENATE($B305,"!N127"))) -> 0 | N305: =IF(ISERROR(INDIRECT(CONCATENATE($B305,"!O122"))),"",INDIRECT(CONCATENATE($B305,"!O122"))) -> 94.52573961 | O305: =IF(ISERROR(INDIRECT(CONCATENATE($B305,"!O129"))),"",INDIRECT(CONCATENATE($B305,"!O129"))) -> 96.53286983 | R305: =IF(ISERROR(INDIRECT(CONCATENATE($B305,"!O127"))),"",INDIRECT(CONCATENATE($B305,"!O127"))) -> 0 | S305: =IF(ISERROR(INDIRECT(CONCATENATE($B305,"!P122"))),"",INDIRECT(CONCATENATE($B305,"!P122"))) -> 80.54475151 | T305: =IF(ISERROR(INDIRECT(CONCATENATE($B305,"!P129"))),"",INDIRECT(CONCATENATE($B305,"!P129"))) -> 98.07369442 | W305: =IF(ISERROR(INDIRECT(CONCATENATE($B305,"!P127"))),"",INDIRECT(CONCATENATE($B305,"!P127"))) -> 0 | X305: =IF(ISERROR(INDIRECT(CONCATENATE($B305,"!Q122"))),"",INDIRECT(CONCATENATE($B305,"!Q122"))) -> 85.72029411 | Y305: =IF(ISERROR(INDIRECT(CONCATENATE($B305,"!Q129"))),"",INDIRECT(CONCATENATE($B305,"!Q129"))) -> 97.25808034 | AB305: =IF(ISERROR(INDIRECT(CONCATENATE($B305,"!Q2127"))),"",INDIRECT(CONCATENATE($B305,"!Q127"))) -> 0
B306: MICS05 | C306: 2005 | D306: 89.71058628 | E306: 99.49192208 | H306: 0 | I306: 88.85374693 | J306: 99.47777723 | M306: 0 | N306: 92.14492924 | O306: 99.86176025 | R306: 0 | S306: 91.33371182 | T306: 98.4357351 | W306: 0 | X306: 92.88417874 | Y306: 100 | AB306: 0
B307: DHS07 | C307: 2007 | D307: 93.38412038 | E307: 97.78620862 | H307: 0.1489121064 | I307: 96.68675144 | J307: 99.14682741 | M307: 0.08318671257 | N307: 98.33390722 | O307: 98.99024406 | R307: 0.07276021595 | S307: 98.28395218 | T307: 98.56899063 | W307: 0 | X307: 98.18817856 | Y307: 98.11364464 | AB307: 0
B308: MICS12 | C308: 2012 | D308: 95.59415321 | E308: 98.12905093 | H308: 0.2949611304 | I308: 97.48367413 | J308: 98.98601616 | M308: 0 | N308: 96.12262101 | O308: 99.00300166 | R308: 0 | S308: 98.96588237 | T308: 98.3373829 | W308: 0 | X308: 97.85467562 | Y308: 99.47018268 | AB308: 0
B318: =CONCATENATE("Rural use of sanitation facilities, ",C299,"–",C300) -> Rural use of sanitation facilities, 2000–2018 | S318: Data points used for regression

Sheet Hygiene
B4: Access to hygiene facilities by wealth quintile (%)
B5: =IF(ISERROR(INDIRECT(CONCATENATE($E$32,"!A2"))),"",INDIRECT(CONCATENATE($E$32,"!A2"))) -> Ukraine
B7: =CONCATENATE("National ",IF(ISERROR(INDIRECT(CONCATENATE($E$32,"!A2"))),"",INDIRECT(CONCATENATE($E$32,"!A210")))) -> National Access to hygiene facilities | K7: =CONCATENATE("Urban ",IF(ISERROR(INDIRECT(CONCATENATE($E$32,"!A2"))),"",INDIRECT(CONCATENATE($E$32,"!A210")))) -> Urban Access to hygiene facilities | S7: =CONCATENATE("Rural ",IF(ISERROR(INDIRECT(CONCATENATE($E$32,"!A2"))),"",INDIRECT(CONCATENATE($E$32,"!A210")))) -> Rural Access to hygiene facilities
E32: =INDEX(B88:B100,A88) -> MICS12 | G32: =IF(ISERROR(INDIRECT(CONCATENATE($E$32,"!A2"))),"",INDIRECT(CONCATENATE($E$32,"!A2"))) -> Ukraine | K32: Poorest | N32: Poor | Q32: Middle | T32: Rich | W32: Richest
K33: Basic | L33: Limited | M33: No facility | N33: Basic | O33: Limited | P33: No facility | Q33: Basic | R33: Limited | S33: No facility | T33: Basic | U33: Limited | V33: No facility | W33: Basic | X33: Limited | Y33: No facility
B34: >>> Select Survey : | G34: NATIONAL | J34: =IF(ISERROR(INDIRECT(CONCATENATE(#REF!,"!A2"))),"",INDIRECT(CONCATENATE(#REF!,"!A210"))) ->  | K34: =IF(ISERROR(INDIRECT(CONCATENATE($E$32,"!C222"))),"",INDIRECT(CONCATENATE($E$32,"!C222"))) -> N/A | L34: =IF(ISERROR(INDIRECT(CONCATENATE($E$32,"!C223"))),"",INDIRECT(CONCATENATE($E$32,"!C223"))) -> N/A | M34: =IF(ISERROR(INDIRECT(CONCATENATE($E$32,"!C224"))),"",INDIRECT(CONCATENATE($E$32,"!C224"))) -> N/A | N34: =IF(ISERROR(INDIRECT(CONCATENATE($E$32,"!D222"))),"",INDIRECT(CONCATENATE($E$32,"!D222"))) -> N/A | O34: =IF(ISERROR(INDIRECT(CONCATENATE($E$32,"!D223"))),"",INDIRECT(CONCATENATE($E$32,"!D223"))) -> N/A | P34: =IF(ISERROR(INDIRECT(CONCATENATE($E$32,"!D224"))),"",INDIRECT(CONCATENATE($E$32,"!D224"))) -> N/A | Q34: =IF(ISERROR(INDIRECT(CONCATENATE($E$32,"!E222"))),"",INDIRECT(CONCATENATE($E$32,"!E222"))) -> N/A | R34: =IF(ISERROR(INDIRECT(CONCATENATE($E$32,"!E223"))),"",INDIRECT(CONCATENATE($E$32,"!E223"))) -> N/A | S34: =IF(ISERROR(INDIRECT(CONCATENATE($E$32,"!E224"))),"",INDIRECT(CONCATENATE($E$32,"!E224"))) -> N/A | T34: =IF(ISERROR(INDIRECT(CONCATENATE($E$32,"!F222"))),"",INDIRECT(CONCATENATE($E$32,"!F222"))) -> N/A | U34: =IF(ISERROR(INDIRECT(CONCATENATE($E$32,"!F223"))),"",INDIRECT(CONCATENATE($E$32,"!F223"))) -> N/A | V34: =IF(ISERROR(INDIRECT(CONCATENATE($E$32,"!F224"))),"",INDIRECT(CONCATENATE($E$32,"!F224"))) -> N/A | W34: =IF(ISERROR(INDIRECT(CONCATENATE($E$32,"!G222"))),"",INDIRECT(CONCATENATE($E$32,"!G222"))) -> N/A | X34: =IF(ISERROR(INDIRECT(CONCATENATE($E$32,"!G223"))),"",INDIRECT(CONCATENATE($E$32,"!G223"))) -> N/A | Y34: =IF(ISERROR(INDIRECT(CONCATENATE($E$32,"!G224"))),"",INDIRECT(CONCATENATE($E$32,"!G224"))) -> N/A
G37: URBAN | J37: =IF(ISERROR(INDIRECT(CONCATENATE(#REF!,"!A2"))),"",INDIRECT(CONCATENATE(#REF!,"!A210"))) ->  | K37: =IF(ISERROR(INDIRECT(CONCATENATE($E$32,"!H222"))),"",INDIRECT(CONCATENATE($E$32,"!H222"))) -> N/A | L37: =IF(ISERROR(INDIRECT(CONCATENATE($E$32,"!H223"))),"",INDIRECT(CONCATENATE($E$32,"!H223"))) -> N/A | M37: =IF(ISERROR(INDIRECT(CONCATENATE($E$32,"!H224"))),"",INDIRECT(CONCATENATE($E$32,"!H224"))) -> N/A | N37: =IF(ISERROR(INDIRECT(CONCATENATE($E$32,"!I222"))),"",INDIRECT(CONCATENATE($E$32,"!I222"))) -> N/A | O37: =IF(ISERROR(INDIRECT(CONCATENATE($E$32,"!I223"))),"",INDIRECT(CONCATENATE($E$32,"!I223"))) -> N/A | P37: =IF(ISERROR(INDIRECT(CONCATENATE($E$32,"!I224"))),"",INDIRECT(CONCATENATE($E$32,"!I224"))) -> N/A | Q37: =IF(ISERROR(INDIRECT(CONCATENATE($E$32,"!J222"))),"",INDIRECT(CONCATENATE($E$32,"!J222"))) -> N/A | R37: =IF(ISERROR(INDIRECT(CONCATENATE($E$32,"!J223"))),"",INDIRECT(CONCATENATE($E$32,"!J223"))) -> N/A | S37: =IF(ISERROR(INDIRECT(CONCATENATE($E$32,"!J224"))),"",INDIRECT(CONCATENATE($E$32,"!J224"))) -> N/A | T37: =IF(ISERROR(INDIRECT(CONCATENATE($E$32,"!K222"))),"",INDIRECT(CONCATENATE($E$32,"!K222"))) -> N/A | U37: =IF(ISERROR(INDIRECT(CONCATENATE($E$32,"!K223"))),"",INDIRECT(CONCATENATE($E$32,"!K223"))) -> N/A | V37: =IF(ISERROR(INDIRECT(CONCATENATE($E$32,"!K224"))),"",INDIRECT(CONCATENATE($E$32,"!K224"))) -> N/A | W37: =IF(ISERROR(INDIRECT(CONCATENATE($E$32,"!L222"))),"",INDIRECT(CONCATENATE($E$32,"!L222"))) -> N/A | X37: =IF(ISERROR(INDIRECT(CONCATENATE($E$32,"!L223"))),"",INDIRECT(CONCATENATE($E$32,"!L223"))) -> N/A | Y37: =IF(ISERROR(INDIRECT(CONCATENATE($E$32,"!L224"))),"",INDIRECT(CONCATENATE($E$32,"!L224"))) -> N/A
G40: RURAL | J40: =IF(ISERROR(INDIRECT(CONCATENATE(#REF!,"!A2"))),"",INDIRECT(CONCATENATE(#REF!,"!A210"))) ->  | K40: =IF(ISERROR(INDIRECT(CONCATENATE($E$32,"!M222"))),"",INDIRECT(CONCATENATE($E$32,"!M222"))) -> N/A | L40: =IF(ISERROR(INDIRECT(CONCATENATE($E$32,"!M223"))),"",INDIRECT(CONCATENATE($E$32,"!M223"))) -> N/A | M40: =IF(ISERROR(INDIRECT(CONCATENATE($E$32,"!M224"))),"",INDIRECT(CONCATENATE($E$32,"!M224"))) -> N/A | N40: =IF(ISERROR(INDIRECT(CONCATENATE($E$32,"!N222"))),"",INDIRECT(CONCATENATE($E$32,"!N222"))) -> N/A | O40: =IF(ISERROR(INDIRECT(CONCATENATE($E$32,"!N223"))),"",INDIRECT(CONCATENATE($E$32,"!N223"))) -> N/A | P40: =IF(ISERROR(INDIRECT(CONCATENATE($E$32,"!N224"))),"",INDIRECT(CONCATENATE($E$32,"!N224"))) -> N/A | Q40: =IF(ISERROR(INDIRECT(CONCATENATE($E$32,"!O222"))),"",INDIRECT(CONCATENATE($E$32,"!O222"))) -> N/A | R40: =IF(ISERROR(INDIRECT(CONCATENATE($E$32,"!O223"))),"",INDIRECT(CONCATENATE($E$32,"!O223"))) -> N/A | S40: =IF(ISERROR(INDIRECT(CONCATENATE($E$32,"!O224"))),"",INDIRECT(CONCATENATE($E$32,"!O224"))) -> N/A | T40: =IF(ISERROR(INDIRECT(CONCATENATE($E$32,"!P222"))),"",INDIRECT(CONCATENATE($E$32,"!P222"))) -> N/A | U40: =IF(ISERROR(INDIRECT(CONCATENATE($E$32,"!P223"))),"",INDIRECT(CONCATENATE($E$32,"!P223"))) -> N/A | V40: =IF(ISERROR(INDIRECT(CONCATENATE($E$32,"!P224"))),"",INDIRECT(CONCATENATE($E$32,"!P224"))) -> N/A | W40: =IF(ISERROR(INDIRECT(CONCATENATE($E$32,"!Q222"))),"",INDIRECT(CONCATENATE($E$32,"!Q222"))) -> N/A | X40: =IF(ISERROR(INDIRECT(CONCATENATE($E$32,"!Q223"))),"",INDIRECT(CONCATENATE($E$32,"!Q223"))) -> N/A | Y40: =IF(ISERROR(INDIRECT(CONCATENATE($E$32,"!Q224"))),"",INDIRECT(CONCATENATE($E$32,"!Q224"))) -> N/A
A88: 4 | B88: WHS03
B89: MICS05
B90: DHS07
B91: MICS12
B92: Template

Sheet WHS03
A2: =A1026 -> Ukraine
A3: =A1034 -> 2003
A4: Use of drinking water sources
A5: by wealth quintile and sub-national region
A6: Notes:
A7: WHO/UNICEF JMP customised wealth index excludes water,
A8: sanitation and hygiene assets.
A9: Survey used for analysis: | B9: =A1025 -> WHS03
A10: =B1028 -> 
A11: =B1027 -> 
A14: Use of drinking water sources | C14: NATIONAL wealth index quintile | H14: URBAN wealth index quintile | M14: RURAL wealth index quintile | BA14: Raw numbers of respondents: | BB14: Use of drinking water sources | BC14: NATIONAL wealth index quintile | BH14: URBAN wealth index quintile | BM14: RURAL wealth index quintile
A15: Weighted percentage (used in graphs) | C15: Poorest | D15: Poor | E15: Middle | F15: Rich | G15: Richest | H15: Poorest | I15: Poor | J15: Middle | K15: Rich | L15: Richest | M15: Poorest | N15: Poor | O15: Middle | P15: Rich | Q15: Richest | BA15: Water data, raw numbers (weighted) | BC15: Poorest | BD15: Poor | BE15: Middle | BF15: Rich | BG15: Richest | BH15: Poorest | BI15: Poor | BJ15: Middle | BK15: Rich | BL15: Richest | BM15: Poorest | BN15: Poor | BO15: Middle | BP15: Rich | BQ15: Richest
A16: Water | B16: Improved | C16: =C58+C59+C60+C61+C64 -> 92.50338097 | D16: 95.67822578 | E16: 94.29278749 | F16: 94.88757891 | G16: 96.03590382 | H16: 93.12658166 | I16: 96.5856228 | J16: 98.40120348 | K16: 95.30955207 | L16: 96.90122383 | M16: 82.20453744 | N16: 89.4534818 | O16: 97.18766336 | P16: 83.8548943 | Q16: 90.40044489 | BA16: Water | BB16: Improved | BC16: N/A | BD16: N/A | BE16: N/A | BF16: N/A | BG16: N/A | BH16: N/A | BI16: N/A | BJ16: N/A | BK16: N/A | BL16: N/A | BM16: N/A | BN16: N/A | BO16: N/A | BP16: N/A | BQ16: N/A
B17: Not Improved | C17: =100-C16 -> 7.496619026 | D17: 4.32177422 | E17: 5.70721251 | F17: 5.112421091 | G17: 3.964096182 | H17: 6.873418341 | I17: 3.414377201 | J17: 1.598796522 | K17: 4.690447932 | L17: 3.098776175 | M17: 17.79546256 | N17: 10.5465182 | O17: 2.812336645 | P17: 16.1451057 | Q17: 9.599555107 | BB17: Not Improved | BC17: N/A | BD17: N/A | BE17: N/A | BF17: N/A | BG17: N/A | BH17: N/A | BI17: N/A | BJ17: N/A | BK17: N/A | BL17: N/A | BM17: N/A | BN17: N/A | BO17: N/A | BP17: N/A | BQ17: N/A
A18: Water ladder | B18: Basic | C18: =C16*C23/100 -> 91.62493207 | D18: =D16*D23/100 -> 95.02744767 | E18: =E16*E23/100 -> 94.29278749 | F18: 92.66848286 | G18: 96.03590382 | H18: 92.31767076 | I18: 96.5856228 | J18: 98.40120348 | K18: 91.27223997 | L18: 96.90122383 | M18: 80.05566656 | N18: 89.4534818 | O18: 97.18766336 | P18: 83.8548943 | Q18: 90.40044489 | BA18: Water ladder | BB18: Basic | BC18: N/A | BD18: N/A | BE18: N/A | BF18: N/A | BG18: N/A | BH18: N/A | BI18: N/A | BJ18: N/A | BK18: N/A | BL18: N/A | BM18: N/A | BN18: N/A | BO18: N/A | BP18: N/A | BQ18: N/A
B19: Limited | C19: =C16*C22/100 -> 0.878448903 | D19: =D16*D22/100 -> 0.6507781075 | E19: =E16*E22/100 -> 0 | F19: 2.219096053 | G19: 0 | H19: 0.8089109043 | I19: 0 | J19: 0 | K19: 4.037312098 | L19: 0 | M19: 2.148870877 | N19: 0 | O19: 0 | P19: 0 | Q19: 0 | BB19: Limited | BC19: N/A | BD19: N/A | BE19: N/A | BF19: N/A | BG19: N/A | BH19: N/A | BI19: N/A | BJ19: N/A | BK19: N/A | BL19: N/A | BM19: N/A | BN19: N/A | BO19: N/A | BP19: N/A | BQ19: N/A
B20: Unimproved | C20: =100-C18-C19-C21 -> 7.233666728 | D20: =100-D18-D19-D21 -> 4.32177422 | E20: =100-E18-E19-E21 -> 5.70721251 | F20: 5.112421091 | G20: 3.964096182 | H20: 6.873418341 | I20: 3.414377201 | J20: 1.598796522 | K20: 4.690447932 | L20: 3.098776175 | M20: 17.10489207 | N20: 10.5465182 | O20: 2.812336645 | P20: 16.1451057 | Q20: 9.599555107 | BB20: Unimproved | BC20: N/A | BD20: N/A | BE20: N/A | BF20: N/A | BG20: N/A | BH20: N/A | BI20: N/A | BJ20: N/A | BK20: N/A | BL20: N/A | BM20: N/A | BN20: N/A | BO20: N/A | BP20: N/A | BQ20: N/A
B21: Surface water | C21: 0.262952298 | D21: 0 | E21: 0 | F21: 0 | G21: 0 | H21: 0 | I21: 0 | J21: 0 | K21: 0 | L21: 0 | M21: 0.6905704923 | N21: 0 | O21: 0 | P21: 0 | Q21: 0 | BB21: Surface water | BC21: N/A | BD21: N/A | BE21: N/A | BF21: N/A | BG21: N/A | BH21: N/A | BI21: N/A | BJ21: N/A | BK21: N/A | BL21: N/A | BM21: N/A | BN21: N/A | BO21: N/A | BP21: N/A | BQ21: N/A
A22: Improved water point at more than 30 minutes | B22: Yes | C22: 0.9496397794 | D22: 0.6801736782 | E22: 0 | F22: 2.338658103 | G22: 0 | H22: 0.8686144062 | I22: 0 | J22: 0 | K22: 4.235999447 | L22: 0 | M22: 2.614053851 | N22: 0 | O22: 0 | P22: 0 | Q22: 0 | BA22: Improved water point at more than 30 minutes | BB22: Yes | BC22: N/A | BD22: N/A | BE22: N/A | BF22: N/A | BG22: N/A | BH22: N/A | BI22: N/A | BJ22: N/A | BK22: N/A | BL22: N/A | BM22: N/A | BN22: N/A | BO22: N/A | BP22: N/A | BQ22: N/A
B23: No | C23: 99.05036022 | D23: 99.31982632 | E23: 100 | F23: 97.6613419 | G23: 100 | H23: 99.13138559 | I23: 100 | J23: 100 | K23: 95.76400055 | L23: 100 | M23: 97.38594615 | N23: 100 | O23: 100 | P23: 100 | Q23: 100 | BB23: No | BC23: N/A | BD23: N/A | BE23: N/A | BF23: N/A | BG23: N/A | BH23: N/A | BI23: N/A | BJ23: N/A | BK23: N/A | BL23: N/A | BM23: N/A | BN23: N/A | BO23: N/A | BP23: N/A | BQ23: N/A
A24: Manually calculated ratios | B24: Improved wells
B25: Improved springs
B26: Other
C27: NATIONAL wealth index quintile | H27: URBAN wealth index quintile | M27: RURAL wealth index quintile | BA27: Raw numbers of respondents: | BB27: Use of drinking water sources | BC27: NATIONAL wealth index quintile | BH27: URBAN wealth index quintile | BM27: RURAL wealth index quintile
A28: Percentage based on weighted population | C28: Poorest | D28: Poor | E28: Middle | F28: Rich | G28: Richest | H28: Poorest | I28: Poor | J28: Middle | K28: Rich | L28: Richest | M28: Poorest | N28: Poor | O28: Middle | P28: Rich | Q28: Richest | BA28: Water data, raw numbers (weighted) | BC28: Poorest | BD28: Poor | BE28: Middle | BF28: Rich | BG28: Richest | BH28: Poorest | BI28: Poor | BJ28: Middle | BK28: Rich | BL28: Richest | BM28: Poorest | BN28: Poor | BO28: Middle | BP28: Rich | BQ28: Richest
A29: Piped water | B29: Yes | C29: 47.28848245 | D29: 75.53874465 | E29: 82.33741042 | F29: 84.81583397 | G29: 84.70921284 | H29: 72.80407164 | I29: 85.00676723 | J29: 91.44279078 | K29: 87.64226633 | L29: 89.39795353 | M29: 34.3860212 | N29: 26.77191317 | O29: 68.79709346 | P29: 51.41095107 | Q29: 57.685509 | BA29: Piped water | BB29: Yes | BC29: N/A | BD29: N/A | BE29: N/A | BF29: N/A | BG29: N/A | BH29: N/A | BI29: N/A | BJ29: N/A | BK29: N/A | BL29: N/A | BM29: N/A | BN29: N/A | BO29: N/A | BP29: N/A | BQ29: N/A
B30: No | C30: 52.71151755 | D30: 24.46125535 | E30: 17.66258958 | F30: 15.18416603 | G30: 15.29078716 | H30: 27.19592836 | I30: 14.99323277 | J30: 8.557209224 | K30: 12.35773367 | L30: 10.60204647 | M30: 65.6139788 | N30: 73.22808683 | O30: 31.20290654 | P30: 48.58904893 | Q30: 42.314491 | BB30: No | BC30: N/A | BD30: N/A | BE30: N/A | BF30: N/A | BG30: N/A | BH30: N/A | BI30: N/A | BJ30: N/A | BK30: N/A | BL30: N/A | BM30: N/A | BN30: N/A | BO30: N/A | BP30: N/A | BQ30: N/A
A31: Piped water on premises | B31: Yes | C31: 43.04534578 | D31: 73.53009178 | E31: 79.41404167 | F31: 82.48382862 | G31: 83.71741241 | H31: 69.29319471 | I31: 80.03794205 | J31: 89.74482747 | K31: 85.59238942 | L31: 88.70125207 | M31: 29.69014956 | N31: 24.5908522 | O31: 67.6640491 | P31: 50.71104465 | Q31: 55.15913822 | BA31: Piped water on premises | BB31: Yes | BC31: N/A | BD31: N/A | BE31: N/A | BF31: N/A | BG31: N/A | BH31: N/A | BI31: N/A | BJ31: N/A | BK31: N/A | BL31: N/A | BM31: N/A | BN31: N/A | BO31: N/A | BP31: N/A | BQ31: N/A
B32: No | C32: 56.95465422 | D32: 26.46990822 | E32: 20.58595833 | F32: 17.51617138 | G32: 16.28258759 | H32: 30.70680529 | I32: 19.96205795 | J32: 10.25517253 | K32: 14.40761058 | L32: 11.29874793 | M32: 70.30985044 | N32: 75.4091478 | O32: 32.3359509 | P32: 49.28895535 | Q32: 44.84086178 | BB32: No | BC32: N/A | BD32: N/A | BE32: N/A | BF32: N/A | BG32: N/A | BH32: N/A | BI32: N/A | BJ32: N/A | BK32: N/A | BL32: N/A | BM32: N/A | BN32: N/A | BO32: N/A | BP32: N/A | BQ32: N/A
A33: Piped water into dwelling | B33: Yes | C33: N/A | D33: N/A | E33: N/A | F33: N/A | G33: N/A | H33: N/A | I33: N/A | J33: N/A | K33: N/A | L33: N/A | M33: N/A | N33: N/A | O33: N/A | P33: N/A | Q33: N/A | BA33: Piped water into dwelling | BB33: Yes | BC33: N/A | BD33: N/A | BE33: N/A | BF33: N/A | BG33: N/A | BH33: N/A | BI33: N/A | BJ33: N/A | BK33: N/A | BL33: N/A | BM33: N/A | BN33: N/A | BO33: N/A | BP33: N/A | BQ33: N/A
B34: No | C34: N/A | D34: N/A | E34: N/A | F34: N/A | G34: N/A | H34: N/A | I34: N/A | J34: N/A | K34: N/A | L34: N/A | M34: N/A | N34: N/A | O34: N/A | P34: N/A | Q34: N/A | BB34: No | BC34: N/A | BD34: N/A | BE34: N/A | BF34: N/A | BG34: N/A | BH34: N/A | BI34: N/A | BJ34: N/A | BK34: N/A | BL34: N/A | BM34: N/A | BN34: N/A | BO34: N/A | BP34: N/A | BQ34: N/A
A35: Water source on premises | B35: Yes | C35: N/A | D35: N/A | E35: N/A | F35: N/A | G35: N/A | H35: N/A | I35: N/A | J35: N/A | K35: N/A | L35: N/A | M35: N/A | N35: N/A | O35: N/A | P35: N/A | Q35: N/A | BA35: Water source on premises | BB35: Yes | BC35: N/A | BD35: N/A | BE35: N/A | BF35: N/A | BG35: N/A | BH35: N/A | BI35: N/A | BJ35: N/A | BK35: N/A | BL35: N/A | BM35: N/A | BN35: N/A | BO35: N/A | BP35: N/A | BQ35: N/A
B36: No | C36: N/A | D36: N/A | E36: N/A | F36: N/A | G36: N/A | H36: N/A | I36: N/A | J36: N/A | K36: N/A | L36: N/A | M36: N/A | N36: N/A | O36: N/A | P36: N/A | Q36: N/A | BB36: No | BC36: N/A | BD36: N/A | BE36: N/A | BF36: N/A | BG36: N/A | BH36: N/A | BI36: N/A | BJ36: N/A | BK36: N/A | BL36: N/A | BM36: N/A | BN36: N/A | BO36: N/A | BP36: N/A | BQ36: N/A
A37: Improved Water source on premises | B37: Yes | C37: N/A | D37: N/A | E37: N/A | F37: N/A | G37: N/A | H37: N/A | I37: N/A | J37: N/A | K37: N/A | L37: N/A | M37: N/A | N37: N/A | O37: N/A | P37: N/A | Q37: N/A | BA37: Improved water source on premises | BB37: Yes | BC37: N/A | BD37: N/A | BE37: N/A | BF37: N/A | BG37: N/A | BH37: N/A | BI37: N/A | BJ37: N/A | BK37: N/A | BL37: N/A | BM37: N/A | BN37: N/A | BO37: N/A | BP37: N/A | BQ37: N/A
B38: No | C38: N/A | D38: N/A | E38: N/A | F38: N/A | G38: N/A | H38: N/A | I38: N/A | J38: N/A | K38: N/A | L38: N/A | M38: N/A | N38: N/A | O38: N/A | P38: N/A | Q38: N/A | BB38: No | BC38: N/A | BD38: N/A | BE38: N/A | BF38: N/A | BG38: N/A | BH38: N/A | BI38: N/A | BJ38: N/A | BK38: N/A | BL38: N/A | BM38: N/A | BN38: N/A | BO38: N/A | BP38: N/A | BQ38: N/A
A39: Piped water on premises available when needed | B39: Yes | C39: N/A | D39: N/A | E39: N/A | F39: N/A | G39: N/A | H39: N/A | I39: N/A | J39: N/A | K39: N/A | L39: N/A | M39: N/A | N39: N/A | O39: N/A | P39: N/A | Q39: N/A | BA39: Piped water on premises available when needed | BB39: Yes | BC39: N/A | BD39: N/A | BE39: N/A | BF39: N/A | BG39: N/A | BH39: N/A | BI39: N/A | BJ39: N/A | BK39: N/A | BL39: N/A | BM39: N/A | BN39: N/A | BO39: N/A | BP39: N/A | BQ39: N/A
B40: No | C40: N/A | D40: N/A | E40: N/A | F40: N/A | G40: N/A | H40: N/A | I40: N/A | J40: N/A | K40: N/A | L40: N/A | M40: N/A | N40: N/A | O40: N/A | P40: N/A | Q40: N/A | BB40: No | BC40: N/A | BD40: N/A | BE40: N/A | BF40: N/A | BG40: N/A | BH40: N/A | BI40: N/A | BJ40: N/A | BK40: N/A | BL40: N/A | BM40: N/A | BN40: N/A | BO40: N/A | BP40: N/A | BQ40: N/A
A41: Water point at more than 30 minutes | B41: Yes | C41: 0.8329943913 | D41: 1.18462435 | E41: 0 | F41: 2.030700039 | G41: 0 | H41: 0.7941357121 | I41: 1.045461055 | J41: 0 | K41: 3.902096909 | L41: 0 | M41: 2.13263061 | N41: 0 | O41: 0 | P41: 0 | Q41: 0 | BA41: Water point at more than 30 minutes | BB41: Yes | BC41: N/A | BD41: N/A | BE41: N/A | BF41: N/A | BG41: N/A | BH41: N/A | BI41: N/A | BJ41: N/A | BK41: N/A | BL41: N/A | BM41: N/A | BN41: N/A | BO41: N/A | BP41: N/A | BQ41: N/A
B42: No | C42: 99.16700561 | D42: 98.81537565 | E42: 100 | F42: 97.96929996 | G42: 100 | H42: 99.20586429 | I42: 98.95453894 | J42: 100 | K42: 96.09790309 | L42: 100 | M42: 97.86736939 | N42: 100 | O42: 100 | P42: 100 | Q42: 100 | BB42: No | BC42: N/A | BD42: N/A | BE42: N/A | BF42: N/A | BG42: N/A | BH42: N/A | BI42: N/A | BJ42: N/A | BK42: N/A | BL42: N/A | BM42: N/A | BN42: N/A | BO42: N/A | BP42: N/A | BQ42: N/A
A43: Water source available when needed | B43: Yes | C43: N/A | D43: N/A | E43: N/A | F43: N/A | G43: N/A | H43: N/A | I43: N/A | J43: N/A | K43: N/A | L43: N/A | M43: N/A | N43: N/A | O43: N/A | P43: N/A | Q43: N/A | BA43: Water source available when needed | BB43: Yes | BC43: N/A | BD43: N/A | BE43: N/A | BF43: N/A | BG43: N/A | BH43: N/A | BI43: N/A | BJ43: N/A | BK43: N/A | BL43: N/A | BM43: N/A | BN43: N/A | BO43: N/A | BP43: N/A | BQ43: N/A
B44: No | C44: N/A | D44: N/A | E44: N/A | F44: N/A | G44: N/A | H44: N/A | I44: N/A | J44: N/A | K44: N/A | L44: N/A | M44: N/A | N44: N/A | O44: N/A | P44: N/A | Q44: N/A | BB44: No | BC44: N/A | BD44: N/A | BE44: N/A | BF44: N/A | BG44: N/A | BH44: N/A | BI44: N/A | BJ44: N/A | BK44: N/A | BL44: N/A | BM44: N/A | BN44: N/A | BO44: N/A | BP44: N/A | BQ44: N/A
A45: Improved water source available when needed | B45: Yes | C45: N/A | D45: N/A | E45: N/A | F45: N/A | G45: N/A | H45: N/A | I45: N/A | J45: N/A | K45: N/A | L45: N/A | M45: N/A | N45: N/A | O45: N/A | P45: N/A | Q45: N/A | BA45: Improved water source available when needed | BB45: Yes | BC45: N/A | BD45: N/A | BE45: N/A | BF45: N/A | BG45: N/A | BH45: N/A | BI45: N/A | BJ45: N/A | BK45: N/A | BL45: N/A | BM45: N/A | BN45: N/A | BO45: N/A | BP45: N/A | BQ45: N/A
B46: No | C46: N/A | D46: N/A | E46: N/A | F46: N/A | G46: N/A | H46: N/A | I46: N/A | J46: N/A | K46: N/A | L46: N/A | M46: N/A | N46: N/A | O46: N/A | P46: N/A | Q46: N/A | BB46: No | BC46: N/A | BD46: N/A | BE46: N/A | BF46: N/A | BG46: N/A | BH46: N/A | BI46: N/A | BJ46: N/A | BK46: N/A | BL46: N/A | BM46: N/A | BN46: N/A | BO46: N/A | BP46: N/A | BQ46: N/A
A47: Microbiological quality at point of collection | B47: Not contaminated (No E. coli in 100 mL) | C47: N/A | D47: N/A | E47: N/A | F47: N/A | G47: N/A | H47: N/A | I47: N/A | J47: N/A | K47: N/A | L47: N/A | M47: N/A | N47: N/A | O47: N/A | P47: N/A | Q47: N/A | BA47: Microbiological quality at point of collection | BB47: Not contaminated (No E. coli in 100 mL) | BC47: N/A | BD47: N/A | BE47: N/A | BF47: N/A | BG47: N/A | BH47: N/A | BI47: N/A | BJ47: N/A | BK47: N/A | BL47: N/A | BM47: N/A | BN47: N/A | BO47: N/A | BP47: N/A | BQ47: N/A
B48: Contaminated (E. coli detected in 100 mL) | C48: N/A | D48: N/A | E48: N/A | F48: N/A | G48: N/A | H48: N/A | I48: N/A | J48: N/A | K48: N/A | L48: N/A | M48: N/A | N48: N/A | O48: N/A | P48: N/A | Q48: N/A | BB48: Contaminated (E. coli detected in 100 mL) | BC48: N/A | BD48: N/A | BE48: N/A | BF48: N/A | BG48: N/A | BH48: N/A | BI48: N/A | BJ48: N/A | BK48: N/A | BL48: N/A | BM48: N/A | BN48: N/A | BO48: N/A | BP48: N/A | BQ48: N/A
B49: Highly contaminated (>100 CFU/100 mL) | C49: N/A | D49: N/A | E49: N/A | F49: N/A | G49: N/A | H49: N/A | I49: N/A | J49: N/A | K49: N/A | L49: N/A | M49: N/A | N49: N/A | O49: N/A | P49: N/A | Q49: N/A | BB49: Highly contaminated (>100 CFU/100 mL) | BC49: N/A | BD49: N/A | BE49: N/A | BF49: N/A | BG49: N/A | BH49: N/A | BI49: N/A | BJ49: N/A | BK49: N/A | BL49: N/A | BM49: N/A | BN49: N/A | BO49: N/A | BP49: N/A | BQ49: N/A
A50: Microbiological quality of improved water sources at point of collection | B50: Not contaminated (No E. coli in 100 mL) | C50: N/A | D50: N/A | E50: N/A | F50: N/A | G50: N/A | H50: N/A | I50: N/A | J50: N/A | K50: N/A | L50: N/A | M50: N/A | N50: N/A | O50: N/A | P50: N/A | Q50: N/A | BA50: Microbiological quality of improved water sources at point of collection | BB50: Not contaminated (No E. coli in 100 mL) | BC50: N/A | BD50: N/A | BE50: N/A | BF50: N/A | BG50: N/A | BH50: N/A | BI50: N/A | BJ50: N/A | BK50: N/A | BL50: N/A | BM50: N/A | BN50: N/A | BO50: N/A | BP50: N/A | BQ50: N/A
B51: Contaminated (E. coli detected in 100 mL) | C51: N/A | D51: N/A | E51: N/A | F51: N/A | G51: N/A | H51: N/A | I51: N/A | J51: N/A | K51: N/A | L51: N/A | M51: N/A | N51: N/A | O51: N/A | P51: N/A | Q51: N/A | BB51: Contaminated (E. coli detected in 100 mL) | BC51: N/A | BD51: N/A | BE51: N/A | BF51: N/A | BG51: N/A | BH51: N/A | BI51: N/A | BJ51: N/A | BK51: N/A | BL51: N/A | BM51: N/A | BN51: N/A | BO51: N/A | BP51: N/A | BQ51: N/A
B52: Highly contaminated (>100 CFU/100 mL) | C52: N/A | D52: N/A | E52: N/A | F52: N/A | G52: N/A | H52: N/A | I52: N/A | J52: N/A | K52: N/A | L52: N/A | M52: N/A | N52: N/A | O52: N/A | P52: N/A | Q52: N/A | BB52: Highly contaminated (>100 CFU/100 mL) | BC52: N/A | BD52: N/A | BE52: N/A | BF52: N/A | BG52: N/A | BH52: N/A | BI52: N/A | BJ52: N/A | BK52: N/A | BL52: N/A | BM52: N/A | BN52: N/A | BO52: N/A | BP52: N/A | BQ52: N/A
A53: Microbiological quality of piped on premises at point of collection | B53: Not contaminated (No E. coli in 100 mL) | C53: N/A | D53: N/A | E53: N/A | F53: N/A | G53: N/A | H53: N/A | I53: N/A | J53: N/A | K53: N/A | L53: N/A | M53: N/A | N53: N/A | O53: N/A | P53: N/A | Q53: N/A | BA53: Microbiological quality of piped on premises at point of collection | BB53: Not contaminated (No E. coli in 100 mL) | BC53: N/A | BD53: N/A | BE53: N/A | BF53: N/A | BG53: N/A | BH53: N/A | BI53: N/A | BJ53: N/A | BK53: N/A | BL53: N/A | BM53: N/A | BN53: N/A | BO53: N/A | BP53: N/A | BQ53: N/A
B54: Contaminated (E. coli detected in 100 mL) | C54: N/A | D54: N/A | E54: N/A | F54: N/A | G54: N/A | H54: N/A | I54: N/A | J54: N/A | K54: N/A | L54: N/A | M54: N/A | N54: N/A | O54: N/A | P54: N/A | Q54: N/A | BB54: Contaminated (E. coli detected in 100 mL) | BC54: N/A | BD54: N/A | BE54: N/A | BF54: N/A | BG54: N/A | BH54: N/A | BI54: N/A | BJ54: N/A | BK54: N/A | BL54: N/A | BM54: N/A | BN54: N/A | BO54: N/A | BP54: N/A | BQ54: N/A
B55: Highly contaminated (>100 CFU/100 mL) | C55: N/A | D55: N/A | E55: N/A | F55: N/A | G55: N/A | H55: N/A | I55: N/A | J55: N/A | K55: N/A | L55: N/A | M55: N/A | N55: N/A | O55: N/A | P55: N/A | Q55: N/A | BB55: Highly contaminated (>100 CFU/100 mL) | BC55: N/A | BD55: N/A | BE55: N/A | BF55: N/A | BG55: N/A | BH55: N/A | BI55: N/A | BJ55: N/A | BK55: N/A | BL55: N/A | BM55: N/A | BN55: N/A | BO55: N/A | BP55: N/A | BQ55: N/A
C56: NATIONAL wealth index quintile | H56: URBAN wealth index quintile | M56: RURAL wealth index quintile | BA56: Raw numbers of respondents: | BB56: Use of drinking water sources | BC56: NATIONAL wealth index quintile | BH56: URBAN wealth index quintile | BM56: RURAL wealth index quintile
A57: Percentage based on weighted population | C57: Poorest | D57: Poor | E57: Middle | F57: Rich | G57: Richest | H57: Poorest | I57: Poor | J57: Middle | K57: Rich | L57: Richest | M57: Poorest | N57: Poor | O57: Middle | P57: Rich | Q57: Richest | BA57: Water data, raw numbers (weighted) | BC57: Poorest | BD57: Poor | BE57: Middle | BF57: Rich | BG57: Richest | BH57: Poorest | BI57: Poor | BJ57: Middle | BK57: Rich | BL57: Richest | BM57: Poorest | BN57: Poor | BO57: Middle | BP57: Rich | BQ57: Richest
A58: main source of drinking water | B58: Piped water through house connection or yard | C58: 44.61525771 | D58: 75.75491427 | E58: 81.39417697 | F58: 85.55775831 | G58: 86.07760158 | H58: 72.63013944 | I58: 82.50981449 | J58: 91.2029775 | K58: 89.38822893 | L58: 91.31151021 | M58: 30.43206569 | N58: 26.2569327 | O58: 67.93082102 | P58: 51.77059352 | Q58: 56.08291959
B59: Public standpipe | C59: 4.397888616 | D59: 2.069429296 | E59: 2.996260973 | F59: 2.41891233 | G59: 1.019761596 | H59: 3.679949847 | I59: 5.122281182 | J59: 1.725551363 | K59: 2.140784563 | L59: 0.7172036648 | M59: 4.813215029 | N59: 2.32883231 | O59: 1.137511492 | P59: 0.714530161 | Q59: 2.568681342
B60: Protected tube well or bore hole | C60: 12.26223311 | D60: 6.860822118 | E60: 4.988443947 | F60: 5.196538297 | G60: 4.605034301 | H60: 7.748759965 | I60: 5.294424032 | J60: 2.80397879 | K60: 3.489499059 | L60: 2.03293445 | M60: 13.54662223 | N60: 14.26502677 | O60: 9.758719338 | P60: 10.021359 | Q60: 17.95845718
B61: Protected dug well or protected spring | C61: 29.91941813 | D61: 12.91262461 | E61: 6.896169653 | F61: 5.083205552 | G61: 6.466586 | H61: 13.55241892 | I61: 6.121400689 | J61: 4.034232642 | K61: 4.517814412 | L61: 5.256080431 | M61: 32.34198261 | N61: 51.8348566 | O61: 16.7232035 | P61: 20.9618003 | Q61: 14.45440378
B62: Unprotected dug well or spring | C62: 7.323407183 | D62: 1.426808853 | E62: 3.356085762 | F62: 1.576240114 | G62: 1.256619995 | H62: 2.388731827 | I62: 0.4314501908 | J62: 0 | K62: 0.4636730371 | L62: 0.2472131762 | M62: 15.13377794 | N62: 4.485861979 | O62: 2.429165082 | P62: 14.39305426 | Q62: 8.085567588
B63: Water taken directly from pond-water or stream | C63: 0.173211843 | D63: 0 | E63: 0 | F63: 0 | G63: 0 | H63: 0 | I63: 0 | J63: 0 | K63: 0 | L63: 0 | M63: 0.6075059347 | N63: 0 | O63: 0 | P63: 0 | Q63: 0
B64: Tanker-truck, vendor | C64: 1.308583405 | D64: 0.9754008481 | E64: 0.3688626944 | F64: 0.1673453967 | G64: 0.5743965228 | H64: 0 | I64: 0.5206294191 | J64: 0.2332597049 | K64: 0 | L64: 0.4350580718 | M64: 3.12483057 | N64: 0.8284896477 | O64: 2.020579571 | P64: 2.138662757 | Q64: 0.8499705203
A108: =A1026 -> Ukraine
A109: =A1034 -> 2003
A110: Use of sanitation facilities
A111: by wealth quintile and sub-national region
A112: Notes:
A113: WHO/UNICEF JMP customised wealth index excludes water,
A114: sanitation and hygiene assets.
A115: Survey used for analysis: | B115: =A1025 -> WHS03
A116: =B1030 -> 
A117: =B1029 -> 
A120: Use of sanitation facilities | C120: NATIONAL wealth index quintile | H120: URBAN wealth index quintile | M120: RURAL wealth index quintile | BA120: Raw numbers of respondents: | BB120: Use of sanitation facilities | BC120: NATIONAL wealth index quintile | BH120: URBAN wealth index quintile | BM120: RURAL wealth index quintile
A121: Weighted percentage (used in graphs) | C121: Poorest | D121: Poor | E121: Middle | F121: Rich | G121: Richest | H121: Poorest | I121: Poor | J121: Middle | K121: Rich | L121: Richest | M121: Poorest | N121: Poor | O121: Middle | P121: Rich | Q121: Richest | BA121: Sanitation data, raw numbers (weighted) | BC121: Poorest | BD121: Poor | BE121: Middle | BF121: Rich | BG121: Richest | BH121: Poorest | BI121: Poor | BJ121: Middle | BK121: Rich | BL121: Richest | BM121: Poorest | BN121: Poor | BO121: Middle | BP121: Rich | BQ121: Richest
A122: Sanitation | B122: Improved | C122: 92.55186258 | D122: 94.31725352 | E122: 95.19941908 | F122: 95.48334379 | G122: 97.87256303 | H122: 93.4200641 | I122: 97.27423497 | J122: 99.06591009 | K122: 98.12699683 | L122: 99.13147102 | M122: 88.82300032 | N122: 95.82614509 | O122: 94.52573961 | P122: 80.54475151 | Q122: 85.72029411 | BA122: Sanitation | BB122: Improved | BC122: 2679750.326 | BD122: 2734798.633 | BE122: 2743215.066 | BF122: 2768284.688 | BG122: 2832506.8 | BH122: 1945383.681 | BI122: 2041665.929 | BJ122: 2018786.619 | BK122: 2062807.06 | BL122: 2063981.1 | BM122: 725142.7485 | BN122: 720417.2656 | BO122: 821903.8813 | BP122: 598082.4268 | BQ122: 755557.2144
B123: Not Improved | C123: 7.448137423 | D123: 5.682746482 | E123: 4.800580923 | F123: 4.516656208 | G123: 2.127436969 | H123: 6.579935902 | I123: 2.725765028 | J123: 0.9340899087 | K123: 1.873003167 | L123: 0.8685289811 | M123: 11.17699968 | N123: 4.173854912 | O123: 5.474260392 | P123: 19.45524849 | Q123: 14.27970589 | BB123: Not Improved | BC123: 215653.6685 | BD123: 164775.4438 | BE123: 138330.9482 | BF123: 130948.3909 | BG123: 61569.65234 | BH123: 137020.8857 | BI123: 57210.43799 | BJ123: 19035.08691 | BK123: 39373.91626 | BL123: 18083.33301 | BM123: 91247.99023 | BN123: 31378.88037 | BO123: 47598.84326 | BP123: 144464.3135 | BQ123: 125864.4165
A124: Sanitation ladder | B124: Basic | C124: 87.84214122 | D124: 90.81295653 | E124: 94.5004789 | F124: 94.49496092 | G124: 97.03356819 | H124: 86.34013054 | I124: 95.4796067 | J124: 98.12199036 | K124: 97.57215301 | L124: 98.54480404 | M124: 88.12200676 | N124: 94.37148336 | O124: 91.00018626 | P124: 78.35083439 | Q124: 84.55450974 | BA124: Sanitation ladder | BB124: Basic | BC124: 2488386.667 | BD124: 2454813.802 | BE124: 2549924.627 | BF124: 2578752.908 | BG124: 2600149.293 | BH124: 1674513.459 | BI124: 1841161.117 | BJ124: 1861242.969 | BK124: 1907598.329 | BL124: 1879209.631 | BM124: 715431.0288 | BN124: 700196.2388 | BO124: 780134.4419 | BP124: 573500.6792 | BQ124: 734211.8169
B125: Limited | C125: 4.545102995 | D125: 3.091369245 | E125: 0.3729613875 | F125: 0.7066099436 | G125: 0.6687471823 | H125: 6.594891215 | I125: 1.553553476 | J125: 0.8745078717 | K125: 0.4139021653 | L125: 0.5069151098 | M125: 0.6386763984 | N125: 1.399314418 | O125: 3.447560992 | P125: 1.912659777 | Q125: 0.9504851576 | BB125: Limited | BC125: 128753.3926 | BD125: 83564.4624 | BE125: 10063.68896 | BF125: 19283.27637 | BG125: 17920.01001 | BH125: 127903.8384 | BI125: 29957.625 | BJ125: 16588.24512 | BK125: 8092.053467 | BL125: 9666.666504 | BM125: 5185.185059 | BN125: 10382.31738 | BO125: 29555.55566 | BP125: 14000 | BQ125: 8253.34375
B126: Unimproved | C126: 6.87355015 | D126: 6.095674224 | E126: 4.802283776 | F126: 4.798429132 | G126: 1.9711481 | H126: 7.064978246 | I126: 2.51307912 | J126: 1.00350177 | K126: 2.013944824 | L126: 0.4894352696 | M126: 8.660046715 | N126: 4.229202219 | O126: 5.552252753 | P126: 19.73650583 | Q126: 14.4950051 | BB126: Unimproved | BC126: 194713.4976 | BD126: 164775.4438 | BE126: 129580.9482 | BF126: 130948.3909 | BG126: 52819.65234 | BH126: 137020.8857 | BI126: 48460.43799 | BJ126: 19035.08691 | BK126: 39373.91626 | BL126: 9333.333008 | BM126: 70307.81934 | BN126: 31378.88037 | BO126: 47598.84326 | BP126: 144464.3135 | BQ126: 125864.4165
B127: Open defecation | C127: 0.7392056361 | D127: 0 | E127: 0.3242759342 | F127: 0 | G127: 0.3265365277 | H127: 0 | I127: 0.4537607008 | J127: 0 | K127: 0 | L127: 0.4588455812 | M127: 2.579270128 | N127: 0 | O127: 0 | P127: 0 | Q127: 0 | BB127: Open defecation | BC127: 20940.1709 | BD127: 0 | BE127: 8750 | BF127: 0 | BG127: 8750 | BH127: 0 | BI127: 8750 | BJ127: 0 | BK127: 0 | BL127: 8750 | BM127: 20940.1709 | BN127: 0 | BO127: 0 | BP127: 0 | BQ127: 0
A128: Shared among Improved Sanitation | B128: Yes | C128: 6.131419952 | D128: 3.118434915 | E128: 0.3755503815 | F128: 1.278884887 | G128: 0.6710846077 | H128: 8.295427812 | I128: 1.570818487 | J128: 0.8745078717 | K128: 0.4149267324 | L128: 0.5094083338 | M128: 1.363618326 | N128: 2.184609067 | O128: 3.467130169 | P128: 1.926305582 | Q128: 2.741919663 | BA128: Shared among improved sanitation facilities | BB128: Yes | BC128: N/A | BD128: N/A | BE128: N/A | BF128: N/A | BG128: N/A | BH128: N/A | BI128: N/A | BJ128: N/A | BK128: N/A | BL128: N/A | BM128: N/A | BN128: N/A | BO128: N/A | BP128: N/A | BQ128: N/A
B129: No | C129: 93.86858005 | D129: 96.88156508 | E129: 99.62444962 | F129: 98.72111511 | G129: 99.32891539 | H129: 91.70457219 | I129: 98.42918151 | J129: 99.12549213 | K129: 99.58507327 | L129: 99.49059167 | M129: 98.63638167 | N129: 97.81539093 | O129: 96.53286983 | P129: 98.07369442 | Q129: 97.25808034 | BB129: No | BC129: N/A | BD129: N/A | BE129: N/A | BF129: N/A | BG129: N/A | BH129: N/A | BI129: N/A | BJ129: N/A | BK129: N/A | BL129: N/A | BM129: N/A | BN129: N/A | BO129: N/A | BP129: N/A | BQ129: N/A
A130: Manually calculated ratios | B130: Improved latrines
B131: Other
B132: Other
C133: NATIONAL wealth index quintile | H133: URBAN wealth index quintile | M133: RURAL wealth index quintile | BA133: Raw numbers of respondents: | BB133: Use of sanitation facilities | BC133: NATIONAL wealth index quintile | BH133: URBAN wealth index quintile | BM133: RURAL wealth index quintile
A134: Percentage based on weighted population | C134: Poorest | D134: Poor | E134: Middle | F134: Rich | G134: Richest | H134: Poorest | I134: Poor | J134: Middle | K134: Rich | L134: Richest | M134: Poorest | N134: Poor | O134: Middle | P134: Rich | Q134: Richest | BA134: Sanitation data, raw numbers (weighted) | BC134: Poorest | BD134: Poor | BE134: Middle | BF134: Rich | BG134: Richest | BH134: Poorest | BI134: Poor | BJ134: Middle | BK134: Rich | BL134: Richest | BM134: Poorest | BN134: Poor | BO134: Middle | BP134: Rich | BQ134: Richest
A135: Sanitation type | B135: Sewer connection | C135: 8.812781057 | D135: 63.61553099 | E135: 70.21173503 | F135: 76.9440083 | G135: 76.0617275 | H135: 45.38874551 | I135: 76.30502718 | J135: 84.73107888 | K135: 80.95108673 | L135: 82.84258795 | M135: 2.967970684 | N135: 6.029621936 | O135: 33.64157269 | P135: 25.26823951 | Q135: 34.09262995 | BA135: Sanitation type | BB135: Sewer connection | BC135: N/A | BD135: N/A | BE135: N/A | BF135: N/A | BG135: N/A | BH135: N/A | BI135: N/A | BJ135: N/A | BK135: N/A | BL135: N/A | BM135: N/A | BN135: N/A | BO135: N/A | BP135: N/A | BQ135: N/A
B136: Septic tank connection | C136: 5.654074429 | D136: 3.231367161 | E136: 2.989391357 | F136: 3.576364229 | G136: 6.843981008 | H136: 8.679006153 | I136: 1.918749855 | J136: 3.455504895 | K136: 5.384239409 | L136: 5.06897077 | M136: 1.714865237 | N136: 2.798459341 | O136: 1.844584154 | P136: 1.280104734 | Q136: 8.460459468 | BB136: Septic tank connection | BC136: N/A | BD136: N/A | BE136: N/A | BF136: N/A | BG136: N/A | BH136: N/A | BI136: N/A | BJ136: N/A | BK136: N/A | BL136: N/A | BM136: N/A | BN136: N/A | BO136: N/A | BP136: N/A | BQ136: N/A
B137: Improved latrines | C137: 78.08500709 | D137: 27.47035537 | E137: 21.99829269 | F137: 14.96297127 | G137: 14.96685453 | H137: 39.35231243 | I137: 19.05045793 | J137: 10.87932632 | K137: 11.79167069 | L137: 11.2199123 | M137: 84.1401644 | N137: 86.99806381 | O137: 59.03958277 | P137: 53.99640727 | Q137: 43.16720469 | BB137: Improved latrines | BC137: N/A | BD137: N/A | BE137: N/A | BF137: N/A | BG137: N/A | BH137: N/A | BI137: N/A | BJ137: N/A | BK137: N/A | BL137: N/A | BM137: N/A | BN137: N/A | BO137: N/A | BP137: N/A | BQ137: N/A
B138: Unimproved facilities | C138: 6.724916383 | D138: 5.682746482 | E138: 4.496924485 | F138: 4.516656208 | G138: 1.825095267 | H138: 6.579935902 | I138: 2.308875299 | J138: 0.9340899087 | K138: 1.873003167 | L138: 0.4482730149 | M138: 8.612030489 | N138: 4.173854912 | O138: 5.474260392 | P138: 19.45524849 | Q138: 14.27970589 | BB138: Unimproved facilities | BC138: N/A | BD138: N/A | BE138: N/A | BF138: N/A | BG138: N/A | BH138: N/A | BI138: N/A | BJ138: N/A | BK138: N/A | BL138: N/A | BM138: N/A | BN138: N/A | BO138: N/A | BP138: N/A | BQ138: N/A
B139: Open defecation | C139: 0.7232210406 | D139: 0 | E139: 0.3036564385 | F139: 0 | G139: 0.3023417019 | H139: 0 | I139: 0.4168897291 | J139: 0 | K139: 0 | L139: 0.4202559661 | M139: 2.564969187 | N139: 0 | O139: 0 | P139: 0 | Q139: 0 | BB139: Open defecation | BC139: N/A | BD139: N/A | BE139: N/A | BF139: N/A | BG139: N/A | BH139: N/A | BI139: N/A | BJ139: N/A | BK139: N/A | BL139: N/A | BM139: N/A | BN139: N/A | BO139: N/A | BP139: N/A | BQ139: N/A
A140: Septic tank emptying practices | B140: Not emptied/treated and disposed in situ | C140: N/A | D140: N/A | E140: N/A | F140: N/A | G140: N/A | H140: N/A | I140: N/A | J140: N/A | K140: N/A | L140: N/A | M140: N/A | N140: N/A | O140: N/A | P140: N/A | Q140: N/A | BA140: Septic tank emptying practices | BB140: Not emptied/treated and disposed in situ | BC140: N/A | BD140: N/A | BE140: N/A | BF140: N/A | BG140: N/A | BH140: N/A | BI140: N/A | BJ140: N/A | BK140: N/A | BL140: N/A | BM140: N/A | BN140: N/A | BO140: N/A | BP140: N/A | BQ140: N/A
B141: Emptied and buried on site | C141: N/A | D141: N/A | E141: N/A | F141: N/A | G141: N/A | H141: N/A | I141: N/A | J141: N/A | K141: N/A | L141: N/A | M141: N/A | N141: N/A | O141: N/A | P141: N/A | Q141: N/A | BB141: Emptied and buried on site | BC141: N/A | BD141: N/A | BE141: N/A | BF141: N/A | BG141: N/A | BH141: N/A | BI141: N/A | BJ141: N/A | BK141: N/A | BL141: N/A | BM141: N/A | BN141: N/A | BO141: N/A | BP141: N/A | BQ141: N/A
B142: Emptied and discharged locally | C142: N/A | D142: N/A | E142: N/A | F142: N/A | G142: N/A | H142: N/A | I142: N/A | J142: N/A | K142: N/A | L142: N/A | M142: N/A | N142: N/A | O142: N/A | P142: N/A | Q142: N/A | BB142: Emptied and discharged locally | BC142: N/A | BD142: N/A | BE142: N/A | BF142: N/A | BG142: N/A | BH142: N/A | BI142: N/A | BJ142: N/A | BK142: N/A | BL142: N/A | BM142: N/A | BN142: N/A | BO142: N/A | BP142: N/A | BQ142: N/A
B143: Emptied and removed offsite | C143: N/A | D143: N/A | E143: N/A | F143: N/A | G143: N/A | H143: N/A | I143: N/A | J143: N/A | K143: N/A | L143: N/A | M143: N/A | N143: N/A | O143: N/A | P143: N/A | Q143: N/A | BB143: Emptied and removed offsite | BC143: N/A | BD143: N/A | BE143: N/A | BF143: N/A | BG143: N/A | BH143: N/A | BI143: N/A | BJ143: N/A | BK143: N/A | BL143: N/A | BM143: N/A | BN143: N/A | BO143: N/A | BP143: N/A | BQ143: N/A
A144: Latrine emptying practices | B144: Not emptied/treated and disposed in situ | C144: N/A | D144: N/A | E144: N/A | F144: N/A | G144: N/A | H144: N/A | I144: N/A | J144: N/A | K144: N/A | L144: N/A | M144: N/A | N144: N/A | O144: N/A | P144: N/A | Q144: N/A | BA144: Latrine emptying practices | BB144: Not emptied/treated and disposed in situ | BC144: N/A | BD144: N/A | BE144: N/A | BF144: N/A | BG144: N/A | BH144: N/A | BI144: N/A | BJ144: N/A | BK144: N/A | BL144: N/A | BM144: N/A | BN144: N/A | BO144: N/A | BP144: N/A | BQ144: N/A
B145: Emptied and buried on site | C145: N/A | D145: N/A | E145: N/A | F145: N/A | G145: N/A | H145: N/A | I145: N/A | J145: N/A | K145: N/A | L145: N/A | M145: N/A | N145: N/A | O145: N/A | P145: N/A | Q145: N/A | BB145: Emptied and buried on site | BC145: N/A | BD145: N/A | BE145: N/A | BF145: N/A | BG145: N/A | BH145: N/A | BI145: N/A | BJ145: N/A | BK145: N/A | BL145: N/A | BM145: N/A | BN145: N/A | BO145: N/A | BP145: N/A | BQ145: N/A
B146: Emptied and discharged locally | C146: N/A | D146: N/A | E146: N/A | F146: N/A | G146: N/A | H146: N/A | I146: N/A | J146: N/A | K146: N/A | L146: N/A | M146: N/A | N146: N/A | O146: N/A | P146: N/A | Q146: N/A | BB146: Emptied and discharged locally | BC146: N/A | BD146: N/A | BE146: N/A | BF146: N/A | BG146: N/A | BH146: N/A | BI146: N/A | BJ146: N/A | BK146: N/A | BL146: N/A | BM146: N/A | BN146: N/A | BO146: N/A | BP146: N/A | BQ146: N/A
B147: Emptied and removed offsite | C147: N/A | D147: N/A | E147: N/A | F147: N/A | G147: N/A | H147: N/A | I147: N/A | J147: N/A | K147: N/A | L147: N/A | M147: N/A | N147: N/A | O147: N/A | P147: N/A | Q147: N/A | BB147: Emptied and removed offsite | BC147: N/A | BD147: N/A | BE147: N/A | BF147: N/A | BG147: N/A | BH147: N/A | BI147: N/A | BJ147: N/A | BK147: N/A | BL147: N/A | BM147: N/A | BN147: N/A | BO147: N/A | BP147: N/A | BQ147: N/A
A148: Shared among improved sanitation facilities | B148: Yes | C148: 5.906702863 | D148: 2.88195646 | E148: 0.3492461656 | F148: 1.20165682 | G148: 0.6191961514 | H148: 7.634124461 | I148: 1.427317277 | J148: 0.8140184722 | K148: 0.3849361002 | L148: 0.4642827738 | M148: 1.32108126 | N148: 2.125884453 | O148: 3.399133186 | P148: 1.8854032 | Q148: 2.701193002 | BA148: Shared among improved sanitation facilities | BB148: Yes | BC148: N/A | BD148: N/A | BE148: N/A | BF148: N/A | BG148: N/A | BH148: N/A | BI148: N/A | BJ148: N/A | BK148: N/A | BL148: N/A | BM148: N/A | BN148: N/A | BO148: N/A | BP148: N/A | BQ148: N/A
B149: No | C149: 90.42828821 | D149: 89.53480188 | E149: 92.6465762 | F149: 92.75963964 | G149: 91.64877488 | H149: 84.39397384 | I149: 89.43724081 | J149: 92.26901698 | K149: 92.38712944 | L149: 90.67729128 | M149: 95.55949267 | N149: 95.18600924 | O149: 94.63967759 | P149: 95.99123786 | Q149: 95.81347316 | BB149: No | BC149: N/A | BD149: N/A | BE149: N/A | BF149: N/A | BG149: N/A | BH149: N/A | BI149: N/A | BJ149: N/A | BK149: N/A | BL149: N/A | BM149: N/A | BN149: N/A | BO149: N/A | BP149: N/A | BQ149: N/A
B150: DK/missing | C150: 3.66500893 | D150: 7.583241656 | E150: 7.004177639 | F150: 6.038703539 | G150: 7.732028967 | H150: 7.971901701 | I150: 9.135441914 | J150: 6.916964551 | K150: 7.227934461 | L150: 8.858425946 | M150: 3.119426073 | N150: 2.688106303 | O150: 1.961189225 | P150: 2.123358943 | Q150: 1.485333835 | BB150: DK/missing | BC150: N/A | BD150: N/A | BE150: N/A | BF150: N/A | BG150: N/A | BH150: N/A | BI150: N/A | BJ150: N/A | BK150: N/A | BL150: N/A | BM150: N/A | BN150: N/A | BO150: N/A | BP150: N/A | BQ150: N/A
A151: Shared among all sanitation facilities | B151: Yes | C151: 93.40745325 | D151: 97.39910439 | E151: 99.62105737 | F151: 98.7186706 | G151: 99.32765647 | H151: 91.25070897 | I151: 98.40053156 | J151: 99.1208459 | K151: 99.58507327 | L151: 99.4892459 | M151: 98.53447033 | N151: 97.6378033 | O151: 98.29661852 | P151: 98.06035028 | Q151: 97.25808034 | BA151: Shared among all sanitation facilities | BB151: Yes | BC151: N/A | BD151: N/A | BE151: N/A | BF151: N/A | BG151: N/A | BH151: N/A | BI151: N/A | BJ151: N/A | BK151: N/A | BL151: N/A | BM151: N/A | BN151: N/A | BO151: N/A | BP151: N/A | BQ151: N/A
B152: No | C152: 6.592546752 | D152: 2.600895609 | E152: 0.37894263 | F152: 1.281329401 | G152: 0.6723435339 | H152: 8.74929103 | I152: 1.599468436 | J152: 0.8791540995 | K152: 0.4149267324 | L152: 0.5107541049 | M152: 1.46552967 | N152: 2.362196704 | O152: 1.703381483 | P152: 1.939649718 | Q152: 2.741919663 | BB152: No | BC152: N/A | BD152: N/A | BE152: N/A | BF152: N/A | BG152: N/A | BH152: N/A | BI152: N/A | BJ152: N/A | BK152: N/A | BL152: N/A | BM152: N/A | BN152: N/A | BO152: N/A | BP152: N/A | BQ152: N/A
A153: What type of toilet facilities | B153: Flush to piped sewage system | C153: 8.900334163 | D153: 64.49845153 | E153: 70.45260873 | F153: 77.85269671 | G153: 76.30781854 | H153: 46.15154967 | I153: 76.58884142 | J153: 85.53000603 | K153: 81.52522207 | L153: 83.21562112 | M153: 2.987676306 | N153: 6.113958647 | O153: 33.82983288 | P153: 25.79758538 | Q153: 34.09262995 | BA153: What type of toilet facilities | BB153: Flush to piped sewage system | BC153: 255165.6147 | BD153: 1844579.445 | BE153: 2023183.452 | BF153: 2230786.141 | BG153: 2201284.544 | BH153: 945177.3096 | BI153: 1601548.182 | BJ153: 1726668.317 | BK153: 1701738.345 | BL153: 1724836.059 | BM153: 24230.23779 | BN153: 45330.46533 | BO153: 292514.3911 | BP153: 187628.4888 | BQ153: 300499.8149
B154: Flush to septic tank | C154: 5.710246457 | D154: 3.276215336 | E154: 2.99964699 | F154: 3.618600146 | G154: 6.866124107 | H154: 8.824865703 | I154: 1.925886587 | J154: 3.488086762 | K154: 5.422426445 | L154: 5.091795918 | M154: 1.726250958 | N154: 2.837601572 | O154: 1.854906553 | P154: 1.306921726 | Q154: 8.460459468 | BB154: Flush to septic tank | BC154: 163708.2969 | BD154: 93695.88452 | BE154: 86140.6875 | BF154: 103687.1348 | BG154: 198070.0427 | BH154: 180732.0205 | BI154: 40272.18726 | BJ154: 70417.02881 | BK154: 113186.4565 | BL154: 105539.2375 | BM154: 14000.00098 | BN154: 21038.70947 | BO154: 16038.70947 | BP154: 9505.375977 | BQ154: 74572.31982
B155: Pour flush latrine | C155: 0.5947592162 | D155: 0.3465580315 | E155: 1.060690651 | F155: 0.8000289225 | G155: 0.5101996135 | H155: 1.095510208 | I155: 0.4966105036 | J155: 0.2667253281 | K155: 0.3529991503 | L155: 0.4849293638 | M155: 0 | N155: 0 | O155: 0.5235021455 | P155: 2.019847866 | Q155: 2.294273417 | BB155: Pour flush latrine | BC155: 17051.28125 | BD155: 9911.149902 | BE155: 30459.7915 | BF155: 22923.97705 | BG155: 14717.94824 | BH155: 22435.89648 | BI155: 10384.61523 | BJ155: 5384.615234 | BK155: 7368.421387 | BL155: 10051.28174 | BM155: 0 | BN155: 0 | BO155: 4526.534668 | BP155: 14690.56104 | BQ155: 20222.22217
B156: Covered dry latrine (with privacy) | C156: 78.26600581 | D156: 27.50505865 | E156: 21.01307104 | F156: 14.33965108 | G156: 14.50507886 | H156: 38.91815797 | I156: 18.62470503 | J156: 10.71518188 | K156: 11.52230248 | L156: 10.78550525 | M156: 84.69880681 | N156: 88.21491134 | O156: 58.84646955 | P156: 53.1077334 | Q156: 40.87293127 | BB156: Covered dry latrine (with privacy) | BC156: 2243825.133 | BD156: 786612.1531 | BE156: 603431.1345 | BF156: 410887.4355 | BG156: 418434.2642 | BH156: 797038.4548 | BI156: 389460.9441 | BJ156: 216316.658 | BK156: 240513.8367 | BL156: 223554.5217 | BM156: 686912.5098 | BN156: 654048.0908 | BO156: 508824.2461 | BP156: 386258.001 | BQ156: 360262.8574
B157: Uncovered dry latrine (without privacy) | C157: 2.674372482 | D157: 0 | E157: 0 | F157: 0 | G157: 0 | H157: 1.677797283 | I157: 0 | J157: 0 | K157: 0 | L157: 0 | M157: 3.567585084 | N157: 0.7553014991 | O157: 0.8995144588 | P157: 0 | Q157: 0 | BB157: Uncovered dry latrine (without privacy) | BC157: 76672.16602 | BD157: 0 | BE157: 0 | BF157: 0 | BG157: 0 | BH157: 34361.05469 | BI157: 0 | BJ157: 0 | BK157: 0 | BL157: 0 | BM157: 28933.3335 | BN157: 5600 | BO157: 7777.777832 | BP157: 0 | BQ157: 0
B158: Bucket latrine (where fresh excreta are manually removed) | C158: 3.123875779 | D158: 4.373716451 | E158: 4.169284398 | F158: 3.389023141 | G158: 1.507458985 | H158: 3.332119165 | I158: 1.945516121 | J158: 0 | K158: 1.177049859 | L158: 0 | M158: 4.437681734 | N158: 2.078226945 | O158: 4.045774414 | P158: 17.76791163 | Q158: 14.27970589 | BB158: Bucket latrine (where fresh excreta are manually removed) | BC158: 89559.07373 | BD158: 125083.1187 | BE158: 119729.0967 | BF158: 97108.8501 | BG158: 43486.31934 | BH158: 68241.33643 | BI158: 40682.66016 | BJ158: 0 | BK158: 24569.4624 | BL158: 0 | BM158: 35989.87061 | BN158: 15408.51025 | BO158: 34982.35547 | BP158: 129227.8467 | BQ158: 125864.4165
B159: No facilities (open defecation) | C159: 0.7304060879 | D159: 0 | E159: 0.3046981853 | F159: 0 | G159: 0.303319902 | H159: 0 | I159: 0.4184403378 | J159: 0 | K159: 0 | L159: 0.4221483432 | M159: 2.581999111 | N159: 0 | O159: 0 | P159: 0 | Q159: 0 | BB159: No facilities (open defecation) | BC159: 20940.1709 | BD159: 0 | BE159: 8750 | BF159: 0 | BG159: 8750 | BH159: 0 | BI159: 8750 | BJ159: 0 | BK159: 0 | BL159: 8750 | BM159: 20940.1709 | BN159: 0 | BO159: 0 | BP159: 0 | BQ159: 0
BB160: Total | BC160: 2866921.737 | BD160: 2859881.751 | BE160: 2871694.162 | BF160: 2865393.539 | BG160: 2884743.119 | BH160: 2047986.073 | BI160: 2091098.589 | BJ160: 2018786.619 | BK160: 2087376.522 | BL160: 2072731.1 | BM160: 811006.1235 | BN160: 741425.7759 | BO160: 864664.0146 | BP160: 727310.2734 | BQ160: 881421.6309
A208: =A1026 -> Ukraine
A209: =A1034 -> 2003
A210: Access to hygiene facilities
A211: by wealth quintile and sub-national region
A212: Notes:
A213: WHO/UNICEF JMP customised wealth index excludes water,
A214: sanitation and hygiene assets.
A215: Survey used for analysis: | B215: =A1025 -> WHS03
A220: Access to handwashing | C220: NATIONAL wealth index quintile | H220: URBAN wealth index quintile | M220: RURAL wealth index quintile | BA220: Raw numbers of respondents: | BB220: Access to handwashing | BC220: NATIONAL wealth index quintile | BH220: URBAN wealth index quintile | BM220: RURAL wealth index quintile
A221: Weighted percentage (used in graphs) | C221: Poorest | D221: Poor | E221: Middle | F221: Rich | G221: Richest | H221: Poorest | I221: Poor | J221: Middle | K221: Rich | L221: Richest | M221: Poorest | N221: Poor | O221: Middle | P221: Rich | Q221: Richest | BA221: Hygiene data, raw numbers (weighted) | BC221: Poorest | BD221: Poor | BE221: Middle | BF221: Rich | BG221: Richest | BH221: Poorest | BI221: Poor | BJ221: Middle | BK221: Rich | BL221: Richest | BM221: Poorest | BN221: Poor | BO221: Middle | BP221: Rich | BQ221: Richest
A222: Hygiene ladder | B222: Basic | C222: N/A | D222: N/A | E222: N/A | F222: N/A | G222: N/A | H222: N/A | I222: N/A | J222: N/A | K222: N/A | L222: N/A | M222: N/A | N222: N/A | O222: N/A | P222: N/A | Q222: N/A | BA222: Hygiene ladder | BB222: Basic | BC222: N/A | BD222: N/A | BE222: N/A | BF222: N/A | BG222: N/A | BH222: N/A | BI222: N/A | BJ222: N/A | BK222: N/A | BL222: N/A | BM222: N/A | BN222: N/A | BO222: N/A | BP222: N/A | BQ222: N/A
B223: Limited | C223: N/A | D223: N/A | E223: N/A | F223: N/A | G223: N/A | H223: N/A | I223: N/A | J223: N/A | K223: N/A | L223: N/A | M223: N/A | N223: N/A | O223: N/A | P223: N/A | Q223: N/A | BB223: Limited | BC223: N/A | BD223: N/A | BE223: N/A | BF223: N/A | BG223: N/A | BH223: N/A | BI223: N/A | BJ223: N/A | BK223: N/A | BL223: N/A | BM223: N/A | BN223: N/A | BO223: N/A | BP223: N/A | BQ223: N/A
B224: No facility | C224: N/A | D224: N/A | E224: N/A | F224: N/A | G224: N/A | H224: N/A | I224: N/A | J224: N/A | K224: N/A | L224: N/A | M224: N/A | N224: N/A | O224: N/A | P224: N/A | Q224: N/A | BB224: No facility | BC224: N/A | BD224: N/A | BE224: N/A | BF224: N/A | BG224: N/A | BH224: N/A | BI224: N/A | BJ224: N/A | BK224: N/A | BL224: N/A | BM224: N/A | BN224: N/A | BO224: N/A | BP224: N/A | BQ224: N/A
BA225: Observed handwashing place | BB225: Fixed | BC225: N/A | BD225: N/A | BE225: N/A | BF225: N/A | BG225: N/A | BH225: N/A | BI225: N/A | BJ225: N/A | BK225: N/A | BL225: N/A | BM225: N/A | BN225: N/A | BO225: N/A | BP225: N/A | BQ225: N/A
BB226: Mobile | BC226: N/A | BD226: N/A | BE226: N/A | BF226: N/A | BG226: N/A | BH226: N/A | BI226: N/A | BJ226: N/A | BK226: N/A | BL226: N/A | BM226: N/A | BN226: N/A | BO226: N/A | BP226: N/A | BQ226: N/A
BA227: Water / Soap | BB227: Water and soap | BC227: N/A | BD227: N/A | BE227: N/A | BF227: N/A | BG227: N/A | BH227: N/A | BI227: N/A | BJ227: N/A | BK227: N/A | BL227: N/A | BM227: N/A | BN227: N/A | BO227: N/A | BP227: N/A | BQ227: N/A
BB228: Water only | BC228: N/A | BD228: N/A | BE228: N/A | BF228: N/A | BG228: N/A | BH228: N/A | BI228: N/A | BJ228: N/A | BK228: N/A | BL228: N/A | BM228: N/A | BN228: N/A | BO228: N/A | BP228: N/A | BQ228: N/A
BB229: Soap only | BC229: N/A | BD229: N/A | BE229: N/A | BF229: N/A | BG229: N/A | BH229: N/A | BI229: N/A | BJ229: N/A | BK229: N/A | BL229: N/A | BM229: N/A | BN229: N/A | BO229: N/A | BP229: N/A | BQ229: N/A
BB230: Neither | BC230: N/A | BD230: N/A | BE230: N/A | BF230: N/A | BG230: N/A | BH230: N/A | BI230: N/A | BJ230: N/A | BK230: N/A | BL230: N/A | BM230: N/A | BN230: N/A | BO230: N/A | BP230: N/A | BQ230: N/A
BA259: Raw numbers of respondents: | BB259: Menstrual health and hygiene | BC259: NATIONAL wealth index quintile | BH259: URBAN wealth index quintile | BM259: RURAL wealth index quintile
BA260: MHH data, raw numbers (weighted) | BC260: Poorest | BD260: Poor | BE260: Middle | BF260: Rich | BG260: Richest | BH260: Poorest | BI260: Poor | BJ260: Middle | BK260: Rich | BL260: Richest | BM260: Poorest | BN260: Poor | BO260: Middle | BP260: Rich | BQ260: Richest
BA261: Private place to wash and change | BB261: Yes | BC261: N/A | BD261: N/A | BE261: N/A | BF261: N/A | BG261: N/A | BH261: N/A | BI261: N/A | BJ261: N/A | BK261: N/A | BL261: N/A | BM261: N/A | BN261: N/A | BO261: N/A | BP261: N/A | BQ261: N/A
BB262: No | BC262: N/A | BD262: N/A | BE262: N/A | BF262: N/A | BG262: N/A | BH262: N/A | BI262: N/A | BJ262: N/A | BK262: N/A | BL262: N/A | BM262: N/A | BN262: N/A | BO262: N/A | BP262: N/A | BQ262: N/A
BB263: DK/not sure/missing | BC263: N/A | BD263: N/A | BE263: N/A | BF263: N/A | BG263: N/A | BH263: N/A | BI263: N/A | BJ263: N/A | BK263: N/A | BL263: N/A | BM263: N/A | BN263: N/A | BO263: N/A | BP263: N/A | BQ263: N/A
BA264: Use of menstrual materials | BB264: Materials reusable | BC264: N/A | BD264: N/A | BE264: N/A | BF264: N/A | BG264: N/A | BH264: N/A | BI264: N/A | BJ264: N/A | BK264: N/A | BL264: N/A | BM264: N/A | BN264: N/A | BO264: N/A | BP264: N/A | BQ264: N/A
BB265: Materials not reusable | BC265: N/A | BD265: N/A | BE265: N/A | BF265: N/A | BG265: N/A | BH265: N/A | BI265: N/A | BJ265: N/A | BK265: N/A | BL265: N/A | BM265: N/A | BN265: N/A | BO265: N/A | BP265: N/A | BQ265: N/A
BB266: No materials used | BC266: N/A | BD266: N/A | BE266: N/A | BF266: N/A | BG266: N/A | BH266: N/A | BI266: N/A | BJ266: N/A | BK266: N/A | BL266: N/A | BM266: N/A | BN266: N/A | BO266: N/A | BP266: N/A | BQ266: N/A
BB267: DK/not sure/missing | BC267: N/A | BD267: N/A | BE267: N/A | BF267: N/A | BG267: N/A | BH267: N/A | BI267: N/A | BJ267: N/A | BK267: N/A | BL267: N/A | BM267: N/A | BN267: N/A | BO267: N/A | BP267: N/A | BQ267: N/A
BA268: Use of menstrual materials with private place to wash and change | BB268: Materials reusable | BC268: N/A | BD268: N/A | BE268: N/A | BF268: N/A | BG268: N/A | BH268: N/A | BI268: N/A | BJ268: N/A | BK268: N/A | BL268: N/A | BM268: N/A | BN268: N/A | BO268: N/A | BP268: N/A | BQ268: N/A
BB269: Materials not reusable | BC269: N/A | BD269: N/A | BE269: N/A | BF269: N/A | BG269: N/A | BH269: N/A | BI269: N/A | BJ269: N/A | BK269: N/A | BL269: N/A | BM269: N/A | BN269: N/A | BO269: N/A | BP269: N/A | BQ269: N/A
BB270: No materials used | BC270: N/A | BD270: N/A | BE270: N/A | BF270: N/A | BG270: N/A | BH270: N/A | BI270: N/A | BJ270: N/A | BK270: N/A | BL270: N/A | BM270: N/A | BN270: N/A | BO270: N/A | BP270: N/A | BQ270: N/A
BA271: Awareness of menstruation before menarche | BB271: Yes | BC271: N/A | BD271: N/A | BE271: N/A | BF271: N/A | BG271: N/A | BH271: N/A | BI271: N/A | BJ271: N/A | BK271: N/A | BL271: N/A | BM271: N/A | BN271: N/A | BO271: N/A | BP271: N/A | BQ271: N/A
BB272: No | BC272: N/A | BD272: N/A | BE272: N/A | BF272: N/A | BG272: N/A | BH272: N/A | BI272: N/A | BJ272: N/A | BK272: N/A | BL272: N/A | BM272: N/A | BN272: N/A | BO272: N/A | BP272: N/A | BQ272: N/A
BB273: DK/not sure/missing | BC273: N/A | BD273: N/A | BE273: N/A | BF273: N/A | BG273: N/A | BH273: N/A | BI273: N/A | BJ273: N/A | BK273: N/A | BL273: N/A | BM273: N/A | BN273: N/A | BO273: N/A | BP273: N/A | BQ273: N/A
BA274: Participation in (all) activities during menstruation | BB274: Yes | BC274: N/A | BD274: N/A | BE274: N/A | BF274: N/A | BG274: N/A | BH274: N/A | BI274: N/A | BJ274: N/A | BK274: N/A | BL274: N/A | BM274: N/A | BN274: N/A | BO274: N/A | BP274: N/A | BQ274: N/A
BB275: No | BC275: N/A | BD275: N/A | BE275: N/A | BF275: N/A | BG275: N/A | BH275: N/A | BI275: N/A | BJ275: N/A | BK275: N/A | BL275: N/A | BM275: N/A | BN275: N/A | BO275: N/A | BP275: N/A | BQ275: N/A
BB276: DK/not sure/missing/no such activity | BC276: N/A | BD276: N/A | BE276: N/A | BF276: N/A | BG276: N/A | BH276: N/A | BI276: N/A | BJ276: N/A | BK276: N/A | BL276: N/A | BM276: N/A | BN276: N/A | BO276: N/A | BP276: N/A | BQ276: N/A
BA277: Participation in specific activities during menstruation | BB277: Did not go to school (amongst those usually attending school) | BC277: N/A | BD277: N/A | BE277: N/A | BF277: N/A | BG277: N/A | BH277: N/A | BI277: N/A | BJ277: N/A | BK277: N/A | BL277: N/A | BM277: N/A | BN277: N/A | BO277: N/A | BP277: N/A | BQ277: N/A
BB278: Did not go to work (amongst those who usually work) | BC278: N/A | BD278: N/A | BE278: N/A | BF278: N/A | BG278: N/A | BH278: N/A | BI278: N/A | BJ278: N/A | BK278: N/A | BL278: N/A | BM278: N/A | BN278: N/A | BO278: N/A | BP278: N/A | BQ278: N/A
BB279: Did not participate in social activities | BC279: N/A | BD279: N/A | BE279: N/A | BF279: N/A | BG279: N/A | BH279: N/A | BI279: N/A | BJ279: N/A | BK279: N/A | BL279: N/A | BM279: N/A | BN279: N/A | BO279: N/A | BP279: N/A | BQ279: N/A
BB280: Did not cook food | BC280: N/A | BD280: N/A | BE280: N/A | BF280: N/A | BG280: N/A | BH280: N/A | BI280: N/A | BJ280: N/A | BK280: N/A | BL280: N/A | BM280: N/A | BN280: N/A | BO280: N/A | BP280: N/A | BQ280: N/A
BB281: Did not eat with others | BC281: N/A | BD281: N/A | BE281: N/A | BF281: N/A | BG281: N/A | BH281: N/A | BI281: N/A | BJ281: N/A | BK281: N/A | BL281: N/A | BM281: N/A | BN281: N/A | BO281: N/A | BP281: N/A | BQ281: N/A
BB282: Did not bathe in regular place | BC282: N/A | BD282: N/A | BE282: N/A | BF282: N/A | BG282: N/A | BH282: N/A | BI282: N/A | BJ282: N/A | BK282: N/A | BL282: N/A | BM282: N/A | BN282: N/A | BO282: N/A | BP282: N/A | BQ282: N/A
BB283: Did not participate in other activities | BC283: N/A | BD283: N/A | BE283: N/A | BF283: N/A | BG283: N/A | BH283: N/A | BI283: N/A | BJ283: N/A | BK283: N/A | BL283: N/A | BM283: N/A | BN283: N/A | BO283: N/A | BP283: N/A | BQ283: N/A
BB284: DK/not sure/missing/no such activity | BC284: N/A | BD284: N/A | BE284: N/A | BF284: N/A | BG284: N/A | BH284: N/A | BI284: N/A | BJ284: N/A | BK284: N/A | BL284: N/A | BM284: N/A | BN284: N/A | BO284: N/A | BP284: N/A | BQ284: N/A
BA339: Raw numbers of respondents: | BB339: Basic water, sanitation and hygiene | BC339: NATIONAL wealth index quintile | BH339: URBAN wealth index quintile | BM339: RURAL wealth index quintile
BA340: WatSan data, raw numbers (weighted) | BC340: Poorest | BD340: Poor | BE340: Middle | BF340: Rich | BG340: Richest | BH340: Poorest | BI340: Poor | BJ340: Middle | BK340: Rich | BL340: Richest | BM340: Poorest | BN340: Poor | BO340: Middle | BP340: Rich | BQ340: Richest
BA341: Use of Basic Water Sanitation and Hygiene | BB341: Yes | BC341: N/A | BD341: N/A | BE341: N/A | BF341: N/A | BG341: N/A | BH341: N/A | BI341: N/A | BJ341: N/A | BK341: N/A | BL341: N/A | BM341: N/A | BN341: N/A | BO341: N/A | BP341: N/A | BQ341: N/A
BB342: No | BC342: N/A | BD342: N/A | BE342: N/A | BF342: N/A | BG342: N/A | BH342: N/A | BI342: N/A | BJ342: N/A | BK342: N/A | BL342: N/A | BM342: N/A | BN342: N/A | BO342: N/A | BP342: N/A | BQ342: N/A
BA343: Use of Basic Water and Sanitation | BB343: Yes | BC343: N/A | BD343: N/A | BE343: N/A | BF343: N/A | BG343: N/A | BH343: N/A | BI343: N/A | BJ343: N/A | BK343: N/A | BL343: N/A | BM343: N/A | BN343: N/A | BO343: N/A | BP343: N/A | BQ343: N/A
BB344: No | BC344: N/A | BD344: N/A | BE344: N/A | BF344: N/A | BG344: N/A | BH344: N/A | BI344: N/A | BJ344: N/A | BK344: N/A | BL344: N/A | BM344: N/A | BN344: N/A | BO344: N/A | BP344: N/A | BQ344: N/A
BA345: Use of Basic Water and Hygiene | BB345: Yes | BC345: N/A | BD345: N/A | BE345: N/A | BF345: N/A | BG345: N/A | BH345: N/A | BI345: N/A | BJ345: N/A | BK345: N/A | BL345: N/A | BM345: N/A | BN345: N/A | BO345: N/A | BP345: N/A | BQ345: N/A
BB346: No | BC346: N/A | BD346: N/A | BE346: N/A | BF346: N/A | BG346: N/A | BH346: N/A | BI346: N/A | BJ346: N/A | BK346: N/A | BL346: N/A | BM346: N/A | BN346: N/A | BO346: N/A | BP346: N/A | BQ346: N/A
BA347: Use of Basic Sanitation and Hygiene | BB347: Yes | BC347: N/A | BD347: N/A | BE347: N/A | BF347: N/A | BG347: N/A | BH347: N/A | BI347: N/A | BJ347: N/A | BK347: N/A | BL347: N/A | BM347: N/A | BN347: N/A | BO347: N/A | BP347: N/A | BQ347: N/A
BB348: No | BC348: N/A | BD348: N/A | BE348: N/A | BF348: N/A | BG348: N/A | BH348: N/A | BI348: N/A | BJ348: N/A | BK348: N/A | BL348: N/A | BM348: N/A | BN348: N/A | BO348: N/A | BP348: N/A | BQ348: N/A
BA349: Use of Basic Water | BB349: Yes | BC349: N/A | BD349: N/A | BE349: N/A | BF349: N/A | BG349: N/A | BH349: N/A | BI349: N/A | BJ349: N/A | BK349: N/A | BL349: N/A | BM349: N/A | BN349: N/A | BO349: N/A | BP349: N/A | BQ349: N/A
BB350: No | BC350: N/A | BD350: N/A | BE350: N/A | BF350: N/A | BG350: N/A | BH350: N/A | BI350: N/A | BJ350: N/A | BK350: N/A | BL350: N/A | BM350: N/A | BN350: N/A | BO350: N/A | BP350: N/A | BQ350: N/A
BA351: Use of Basic Sanitation | BB351: Yes | BC351: N/A | BD351: N/A | BE351: N/A | BF351: N/A | BG351: N/A | BH351: N/A | BI351: N/A | BJ351: N/A | BK351: N/A | BL351: N/A | BM351: N/A | BN351: N/A | BO351: N/A | BP351: N/A | BQ351: N/A
BB352: No | BC352: N/A | BD352: N/A | BE352: N/A | BF352: N/A | BG352: N/A | BH352: N/A | BI352: N/A | BJ352: N/A | BK352: N/A | BL352: N/A | BM352: N/A | BN352: N/A | BO352: N/A | BP352: N/A | BQ352: N/A
BA353: Access to Basic Hygiene | BB353: Yes | BC353: N/A | BD353: N/A | BE353: N/A | BF353: N/A | BG353: N/A | BH353: N/A | BI353: N/A | BJ353: N/A | BK353: N/A | BL353: N/A | BM353: N/A | BN353: N/A | BO353: N/A | BP353: N/A | BQ353: N/A
BB354: No | BC354: N/A | BD354: N/A | BE354: N/A | BF354: N/A | BG354: N/A | BH354: N/A | BI354: N/A | BJ354: N/A | BK354: N/A | BL354: N/A | BM354: N/A | BN354: N/A | BO354: N/A | BP354: N/A | BQ354: N/A
C399: INITIAL (national) Wealth Index | H399: URBAN Wealth Index | M399: RURAL Wealth Index
C400: Component Matrix | H400: Component Matrix | M400: Component Matrix
E401: Component | J401: Component | O401: Component
B402: Note: The INITIAL (national) Wealth Index is based on the first component of the Principal Component Analysis (PCA) which has been obtained at national level. The final national-level (NATIONAL) Wealth Index is based on the URBAN and RURAL specific wealth indexes. Regression procedures are used to establish the relationships between the two sets of scores (urban and rural) and the initial (national) wealth factors. This allows best use of the available information for each area and a better precision of the FINAL (NATIONAL) Wealth Index. For dependency reasons, all WASH variables (contained in the generic MICS and DHS scripts) have been excluded from the sets of asset variables used in the PCAs. The PCA can extracts as many components as there are asset variables in the input. Only the first of the components is used to represent the Wealth Index. The scores represent the weights of the asset variables on the Wealth Index (correlations between the variables and the component). The communalities are the proportion of each variable's variance that can be explained by the component. Proportion of explained variance is the part of the model's total variance that is explained by the component. For more information on the procedure used: The DHS Wealth Index, DHS Comparative Reports No. 6, Shea Oscar Rutstein, Kiersten Johnson, ORC Macro International Inc., 2004. The DHS Wealth Index: Approaches for Rural and Urban Areas, Shea O. Rutstein, ORC Macro International Inc., 2008. MICS Methodological Paper No. 4, Review of options for reporting water, sanitation and hygiene coverage by wealth quintile, UNICEF, 2016. | E402: 1 | J402: 1 | O402: 1
C403: Uses closed stove with chimney | E403: 0.7715011364 | H403: Uses closed stove with chimney | J403: 0.8449249911 | M403: Uses gaz fuel | O403: -0.7405331433
C404: Uses closed stove with chimney | E404: 0.7277353551 | H404: Uses closed stove with chimney | J404: 0.8186366863 | M404: Uses wood fuel | O404: 0.6996755493
C405: Uses gaz fuel | E405: -0.677072031 | H405: Uses gaz fuel | J405: -0.7042259639 | M405: Uses closed stove with chimney | O405: 0.6864450056
C406: Uses wood fuel | E406: 0.6462202126 | H406: Uses wood heating | J406: 0.6578287386 | M406: Uses closed stove with chimney | O406: 0.6701002564
C407: Uses wood heating | E407: 0.6318819534 | H407: Uses wood fuel | J407: 0.6540246439 | M407: Uses wood heating | O407: 0.6346295147
C408: Uses separate room as kitchen | E408: 0.4853647772 | H408: Uses coal fuel | J408: 0.5305989238 | M408: Uses gaz heating | O408: -0.6310607096
C409: Uses coal heating | E409: 0.4224277101 | H409: Uses separate room as kitchen | J409: 0.5180232538 | M409: Uses separate room as kitchen | O409: 0.4990079707
C410: Uses coal fuel | E410: 0.4046095787 | H410: Uses coal heating | J410: 0.4903241651 | M410: Has Vacuum cleaner | O410: 0.4410601894
C411: Uses separate building as kitchen | E411: 0.3969446 | H411: Uses separate building as kitchen | J411: 0.4570519729 | M411: Has cement, brick, stone or wood wall | O411: -0.4243494309
C412: Has Refrigerator | E412: 0.3941332258 | H412: Has Refrigerator | J412: 0.3056163694 | M412: Has mud brick wall | O412: 0.4110426343
C413: Uses gaz heating | E413: -0.3766766111 | H413: Uses gaz heating | J413: -0.2960544906 | M413: Has Clothes washing machine | O413: 0.3458837649
C414: Has Vacuum cleaner | E414: 0.3334115382 | H414: Has Clothes washing machine | J414: 0.2554487502 | M414: Has Cellular phone | O414: 0.3375550703
C415: Has Clothes washing machine | E415: 0.3192100875 | H415: Has Internet | J415: 0.2436308366 | M415: Has Refrigerator | O415: 0.3211754708
C416: Has Internet | E416: 0.3034298104 | H416: Has Computer | J416: 0.2171422737 | M416: Uses separate building as kitchen | O416: 0.3198758816
C417: Has mud brick wall | E417: 0.2957443763 | H417: Has Vacuum cleaner | J417: 0.2150140453 | M417: Uses electricity fuel | O417: 0.2739223055
C418: Has Magazine | E418: 0.2602964619 | H418: Has Telephone | J418: 0.2051909864 | M418: Uses open fire with chimney | O418: 0.2676258926
C419: Has cement, brick, stone or wood wall | E419: -0.2537186367 | H419: Uses open fire with chimney | J419: 0.2034272471 | M419: Has Stereo | O419: 0.2253399915
C420: Has Computer | E420: 0.2526221808 | H420: Has Magazine | J420: 0.1980732726 | M420: Uses coal heating | O420: 0.2245083555
C421: Has Telephone | E421: 0.248289876 | H421: Uses living or sleeping room as kitchen | J421: 0.1881860239 | M421: Has Bicycle | O421: 0.2226303464
C422: Uses open fire with chimney | E422: 0.2272088234 | H422: Uses electricity fuel | J422: 0.1834230753 | M422: Uses coal fuel | O422: 0.2131987309
C423: Uses electricity fuel | E423: 0.2132827394 | H423: Heats house | J423: 0.1672387294 | M423: Has Internet | O423: 0.2115394895
C424: Has Cellular phone | E424: 0.2122940078 | H424: Has Security system | J424: 0.1535621185 | M424: Has Magazine | O424: 0.2101849508
C425: Uses living or sleeping room as kitchen | E425: 0.2017315637 | H425: Has Cellular phone | J425: 0.1305514368 | M425: Has hearth floor | O425: 0.1981877889
... 186 more rows

Sheet MICS05
A2: =A1026 -> Ukraine
A3: =A1034 -> 2005
A4: Use of drinking water sources
A5: by wealth quintile and sub-national region
A6: Notes:
A7: WHO/UNICEF JMP customised wealth index excludes water,
A8: sanitation and hygiene assets.
A9: Survey used for analysis: | B9: =A1025 -> MICS05
A10: =B1028 -> 
A11: =B1027 -> 
A14: Use of drinking water sources | C14: NATIONAL wealth index quintile | H14: URBAN wealth index quintile | M14: RURAL wealth index quintile | R14: SUB-REGIONS: | BA14: Raw numbers of respondents: | BB14: Use of drinking water sources | BC14: NATIONAL wealth index quintile | BH14: URBAN wealth index quintile | BM14: RURAL wealth index quintile | BR14: SUB-REGIONS:
A15: Weighted percentage (used in graphs) | C15: Poorest | D15: Poor | E15: Middle | F15: Rich | G15: Richest | H15: Poorest | I15: Poor | J15: Middle | K15: Rich | L15: Richest | M15: Poorest | N15: Poor | O15: Middle | P15: Rich | Q15: Richest | R15: AR Krym | S15: Cherkaska | T15: Chernigivska | U15: Chernivecka | V15: Dnipropetrovska | W15: Donecka | X15: Gytomyrska | Y15: Iv-Frankivska | Z15: Kharkivska | AA15: Khersonska | AB15: Khmelnicka | AC15: Kirovogradska | AD15: Kyiv | AE15: Kyivska | AF15: Luganska | AG15: Lvivska | AH15: Mykolaivska | AI15: Odeska | AJ15: Poltavska | AK15: Rivnenska | AL15: Sumska | AM15: Ternopilska | AN15: Vinnycka | AO15: Volynska | AP15: Zakarpatska | AQ15: Zaporizka | BA15: Water data, raw numbers (weighted) | BC15: Poorest | BD15: Poor | BE15: Middle | BF15: Rich | BG15: Richest | BH15: Poorest | BI15: Poor | BJ15: Middle | BK15: Rich | BL15: Richest | BM15: Poorest | BN15: Poor | BO15: Middle | BP15: Rich | BQ15: Richest | BR15: AR Krym | BS15: Cherkaska | BT15: Chernigivska | BU15: Chernivecka | BV15: Dnipropetrovska | BW15: Donecka | BX15: Gytomyrska | BY15: Iv-Frankivska | BZ15: Kharkivska | CA15: Khersonska | CB15: Khmelnicka | CC15: Kirovogradska | CD15: Kyiv | CE15: Kyivska | CF15: Luganska | CG15: Lvivska | CH15: Mykolaivska | CI15: Odeska | CJ15: Poltavska | CK15: Rivnenska | CL15: Sumska | CM15: Ternopilska | CN15: Vinnycka | CO15: Volynska | CP15: Zakarpatska | CQ15: Zaporizka
A16: Water | B16: Improved | C16: 97.94135574 | D16: 99.44805648 | E16: 99.74868697 | F16: 99.36026916 | G16: 99.56774904 | H16: 98.79158866 | I16: 100 | J16: 99.07719998 | K16: 99.92770612 | L16: 99.39733656 | M16: 97.73159232 | N16: 98.3616 | O16: 99.36672234 | P16: 99.91689375 | Q16: 98.4044359 | R16: 100 | S16: 97.6316395 | T16: 99.81377501 | U16: 98.40603496 | V16: 100 | W16: 100 | X16: 100 | Y16: 100 | Z16: 98.73729724 | AA16: 100 | AB16: 98.61044096 | AC16: 98.02963099 | AD16: 99.18023369 | AE16: 97.71693612 | AF16: 97.94312691 | AG16: 100 | AH16: 100 | AI16: 100 | AJ16: 100 | AK16: 95.4644211 | AL16: 100 | AM16: 98.13186125 | AN16: 98.5692082 | AO16: 100 | AP16: 98.67406228 | AQ16: 99.52421346 | BA16: Water | BB16: Improved | BC16: N/A | BD16: N/A | BE16: N/A | BF16: N/A | BG16: N/A | BH16: N/A | BI16: N/A | BJ16: N/A | BK16: N/A | BL16: N/A | BM16: N/A | BN16: N/A | BO16: N/A | BP16: N/A | BQ16: N/A | BR16: N/A | BS16: N/A | BT16: N/A | BU16: N/A | BV16: N/A | BW16: N/A | BX16: N/A | BY16: N/A | BZ16: N/A | CA16: N/A | CB16: N/A | CC16: N/A | CD16: N/A | CE16: N/A | CF16: N/A | CG16: N/A | CH16: N/A | CI16: N/A | CJ16: N/A | CK16: N/A | CL16: N/A | CM16: N/A | CN16: N/A | CO16: N/A | CP16: N/A | CQ16: N/A
B17: Not Improved | C17: 2.058644255 | D17: 0.5519435177 | E17: 0.2513130254 | F17: 0.6397308381 | G17: 0.4322509624 | H17: 1.208411338 | I17: 0 | J17: 0.9228000193 | K17: 0.07229388215 | L17: 0.6026634413 | M17: 2.268407679 | N17: 1.638400001 | O17: 0.6332776623 | P17: 0.08310625092 | Q17: 1.5955641 | R17: 0 | S17: 2.368360505 | T17: 0.1862249933 | U17: 1.593965037 | V17: 0 | W17: 0 | X17: 0 | Y17: 0 | Z17: 1.262702762 | AA17: 0 | AB17: 1.389559035 | AC17: 1.970369006 | AD17: 0.8197663134 | AE17: 2.283063884 | AF17: 2.056873088 | AG17: 0 | AH17: 0 | AI17: 0 | AJ17: 0 | AK17: 4.5355789 | AL17: 0 | AM17: 1.868138752 | AN17: 1.430791805 | AO17: 0 | AP17: 1.325937719 | AQ17: 0.4757865363 | BB17: Not Improved | BC17: N/A | BD17: N/A | BE17: N/A | BF17: N/A | BG17: N/A | BH17: N/A | BI17: N/A | BJ17: N/A | BK17: N/A | BL17: N/A | BM17: N/A | BN17: N/A | BO17: N/A | BP17: N/A | BQ17: N/A | BR17: N/A | BS17: N/A | BT17: N/A | BU17: N/A | BV17: N/A | BW17: N/A | BX17: N/A | BY17: N/A | BZ17: N/A | CA17: N/A | CB17: N/A | CC17: N/A | CD17: N/A | CE17: N/A | CF17: N/A | CG17: N/A | CH17: N/A | CI17: N/A | CJ17: N/A | CK17: N/A | CL17: N/A | CM17: N/A | CN17: N/A | CO17: N/A | CP17: N/A | CQ17: N/A
A18: Water ladder | B18: Basic | C18: 97.92532926 | D18: 99.44805648 | E18: 99.61136167 | F18: 99.11391714 | G18: 97.77316352 | H18: 98.5879268 | I18: 100 | J18: 99.07719998 | K18: 99.44883331 | L18: 96.85369923 | M18: 97.73159232 | N18: 98.3616 | O18: 99.3180416 | P18: 99.91689375 | Q18: 98.4044359 | R18: 100 | S18: 91.42166152 | T18: 99.81377501 | U18: 98.40603496 | V18: 100 | W18: 99.97122954 | X18: 100 | Y18: 100 | Z18: 96.30683632 | AA18: 100 | AB18: 98.61044096 | AC18: 98.02963099 | AD18: 99.09538494 | AE18: 97.71693612 | AF18: 97.3084046 | AG18: 100 | AH18: 100 | AI18: 100 | AJ18: 100 | AK18: 93.9192693 | AL18: 100 | AM18: 98.13186125 | AN18: 98.5692082 | AO18: 100 | AP18: 98.67406228 | AQ18: 99.52421346 | BA18: Water ladder | BB18: Basic | BC18: N/A | BD18: N/A | BE18: N/A | BF18: N/A | BG18: N/A | BH18: N/A | BI18: N/A | BJ18: N/A | BK18: N/A | BL18: N/A | BM18: N/A | BN18: N/A | BO18: N/A | BP18: N/A | BQ18: N/A | BR18: N/A | BS18: N/A | BT18: N/A | BU18: N/A | BV18: N/A | BW18: N/A | BX18: N/A | BY18: N/A | BZ18: N/A | CA18: N/A | CB18: N/A | CC18: N/A | CD18: N/A | CE18: N/A | CF18: N/A | CG18: N/A | CH18: N/A | CI18: N/A | CJ18: N/A | CK18: N/A | CL18: N/A | CM18: N/A | CN18: N/A | CO18: N/A | CP18: N/A | CQ18: N/A
B19: Limited | C19: 0.01602648729 | D19: 0 | E19: 0.1373253059 | F19: 0.2463520249 | G19: 1.794585518 | H19: 0.2036618577 | I19: 0 | J19: 0 | K19: 0.4788728081 | L19: 2.543637328 | M19: 0 | N19: 0 | O19: 0.04868073932 | P19: 0 | Q19: 0 | R19: 0 | S19: 6.209977973 | T19: 0 | U19: 0 | V19: 0 | W19: 0.02877045684 | X19: 0 | Y19: 0 | Z19: 2.430460919 | AA19: 0 | AB19: 0 | AC19: 0 | AD19: 0.08484875115 | AE19: 0 | AF19: 0.6347223116 | AG19: 0 | AH19: 0 | AI19: 0 | AJ19: 0 | AK19: 1.545151799 | AL19: 0 | AM19: 0 | AN19: 0 | AO19: 0 | AP19: 0 | AQ19: 0 | BB19: Limited | BC19: N/A | BD19: N/A | BE19: N/A | BF19: N/A | BG19: N/A | BH19: N/A | BI19: N/A | BJ19: N/A | BK19: N/A | BL19: N/A | BM19: N/A | BN19: N/A | BO19: N/A | BP19: N/A | BQ19: N/A | BR19: N/A | BS19: N/A | BT19: N/A | BU19: N/A | BV19: N/A | BW19: N/A | BX19: N/A | BY19: N/A | BZ19: N/A | CA19: N/A | CB19: N/A | CC19: N/A | CD19: N/A | CE19: N/A | CF19: N/A | CG19: N/A | CH19: N/A | CI19: N/A | CJ19: N/A | CK19: N/A | CL19: N/A | CM19: N/A | CN19: N/A | CO19: N/A | CP19: N/A | CQ19: N/A
B20: Unimproved | C20: 2.058644255 | D20: 0.5519435177 | E20: 0.2513130254 | F20: 0.6397308381 | G20: 0.4322509624 | H20: 1.208411338 | I20: 0 | J20: 0.9228000193 | K20: 0.07229388215 | L20: 0.6026634413 | M20: 2.268407679 | N20: 1.638400001 | O20: 0.6332776623 | P20: 0.08310625092 | Q20: 1.5955641 | R20: 0 | S20: 2.368360505 | T20: 0.1862249933 | U20: 1.593965037 | V20: 0 | W20: 0 | X20: 0 | Y20: 0 | Z20: 1.262702762 | AA20: 0 | AB20: 1.389559035 | AC20: 1.970369006 | AD20: 0.8197663134 | AE20: 2.283063884 | AF20: 2.056873088 | AG20: 0 | AH20: 0 | AI20: 0 | AJ20: 0 | AK20: 4.5355789 | AL20: 0 | AM20: 1.868138752 | AN20: 1.430791805 | AO20: 0 | AP20: 1.325937719 | AQ20: 0.4757865363 | BB20: Unimproved | BC20: N/A | BD20: N/A | BE20: N/A | BF20: N/A | BG20: N/A | BH20: N/A | BI20: N/A | BJ20: N/A | BK20: N/A | BL20: N/A | BM20: N/A | BN20: N/A | BO20: N/A | BP20: N/A | BQ20: N/A | BR20: N/A | BS20: N/A | BT20: N/A | BU20: N/A | BV20: N/A | BW20: N/A | BX20: N/A | BY20: N/A | BZ20: N/A | CA20: N/A | CB20: N/A | CC20: N/A | CD20: N/A | CE20: N/A | CF20: N/A | CG20: N/A | CH20: N/A | CI20: N/A | CJ20: N/A | CK20: N/A | CL20: N/A | CM20: N/A | CN20: N/A | CO20: N/A | CP20: N/A | CQ20: N/A
B21: Surface water | C21: 0 | D21: 0 | E21: 0 | F21: 0 | G21: 0 | H21: 0 | I21: 0 | J21: 0 | K21: 0 | L21: 0 | M21: 0 | N21: 0 | O21: 0 | P21: 0 | Q21: 0 | R21: 0 | S21: 0 | T21: 0 | U21: 0 | V21: 0 | W21: 0 | X21: 0 | Y21: 0 | Z21: 0 | AA21: 0 | AB21: 0 | AC21: 0 | AD21: 0 | AE21: 0 | AF21: 0 | AG21: 0 | AH21: 0 | AI21: 0 | AJ21: 0 | AK21: 0 | AL21: 0 | AM21: 0 | AN21: 0 | AO21: 0 | AP21: 0 | AQ21: 0 | BB21: Surface water | BC21: N/A | BD21: N/A | BE21: N/A | BF21: N/A | BG21: N/A | BH21: N/A | BI21: N/A | BJ21: N/A | BK21: N/A | BL21: N/A | BM21: N/A | BN21: N/A | BO21: N/A | BP21: N/A | BQ21: N/A | BR21: N/A | BS21: N/A | BT21: N/A | BU21: N/A | BV21: N/A | BW21: N/A | BX21: N/A | BY21: N/A | BZ21: N/A | CA21: N/A | CB21: N/A | CC21: N/A | CD21: N/A | CE21: N/A | CF21: N/A | CG21: N/A | CH21: N/A | CI21: N/A | CJ21: N/A | CK21: N/A | CL21: N/A | CM21: N/A | CN21: N/A | CO21: N/A | CP21: N/A | CQ21: N/A
A22: Improved water point at more than 30 minutes | B22: Yes | C22: 0.01636335046 | D22: 0 | E22: 0.1376712918 | F22: 0.2479381618 | G22: 1.802376307 | H22: 0.2061530344 | I22: 0 | J22: 0 | K22: 0.4792192543 | L22: 2.559059846 | M22: 0 | N22: 0 | O22: 0.0489909883 | P22: 0 | Q22: 0 | R22: 0 | S22: 6.360620394 | T22: 0 | U22: 0 | V22: 0 | W22: 0.02877045684 | X22: 0 | Y22: 0 | Z22: 2.461542889 | AA22: 0 | AB22: 0 | AC22: 0 | AD22: 0.08555006173 | AE22: 0 | AF22: 0.6480519171 | AG22: 0 | AH22: 0 | AI22: 0 | AJ22: 0 | AK22: 1.618563001 | AL22: 0 | AM22: 0 | AN22: 0 | AO22: 0 | AP22: 0 | AQ22: 0 | BA22: Improved water point at more than 30 minutes | BB22: Yes | BC22: N/A | BD22: N/A | BE22: N/A | BF22: N/A | BG22: N/A | BH22: N/A | BI22: N/A | BJ22: N/A | BK22: N/A | BL22: N/A | BM22: N/A | BN22: N/A | BO22: N/A | BP22: N/A | BQ22: N/A | BR22: N/A | BS22: N/A | BT22: N/A | BU22: N/A | BV22: N/A | BW22: N/A | BX22: N/A | BY22: N/A | BZ22: N/A | CA22: N/A | CB22: N/A | CC22: N/A | CD22: N/A | CE22: N/A | CF22: N/A | CG22: N/A | CH22: N/A | CI22: N/A | CJ22: N/A | CK22: N/A | CL22: N/A | CM22: N/A | CN22: N/A | CO22: N/A | CP22: N/A | CQ22: N/A
B23: No | C23: 99.98363665 | D23: 100 | E23: 99.86232871 | F23: 99.75206184 | G23: 98.19762369 | H23: 99.79384697 | I23: 100 | J23: 100 | K23: 99.52078075 | L23: 97.44094015 | M23: 100 | N23: 100 | O23: 99.95100901 | P23: 100 | Q23: 100 | R23: 100 | S23: 93.63937961 | T23: 100 | U23: 100 | V23: 100 | W23: 99.97122954 | X23: 100 | Y23: 100 | Z23: 97.53845711 | AA23: 100 | AB23: 100 | AC23: 100 | AD23: 99.91444994 | AE23: 100 | AF23: 99.35194808 | AG23: 100 | AH23: 100 | AI23: 100 | AJ23: 100 | AK23: 98.381437 | AL23: 100 | AM23: 100 | AN23: 100 | AO23: 100 | AP23: 100 | AQ23: 100 | BB23: No | BC23: N/A | BD23: N/A | BE23: N/A | BF23: N/A | BG23: N/A | BH23: N/A | BI23: N/A | BJ23: N/A | BK23: N/A | BL23: N/A | BM23: N/A | BN23: N/A | BO23: N/A | BP23: N/A | BQ23: N/A | BR23: N/A | BS23: N/A | BT23: N/A | BU23: N/A | BV23: N/A | BW23: N/A | BX23: N/A | BY23: N/A | BZ23: N/A | CA23: N/A | CB23: N/A | CC23: N/A | CD23: N/A | CE23: N/A | CF23: N/A | CG23: N/A | CH23: N/A | CI23: N/A | CJ23: N/A | CK23: N/A | CL23: N/A | CM23: N/A | CN23: N/A | CO23: N/A | CP23: N/A | CQ23: N/A
A24: Manually calculated ratios | B24: Improved wells
B25: Improved springs
B26: Other
C27: NATIONAL wealth index quintile | H27: URBAN wealth index quintile | M27: RURAL wealth index quintile | R27: SUB-REGIONS: | BA27: Raw numbers of respondents: | BB27: Use of drinking water sources | BC27: NATIONAL wealth index quintile | BH27: URBAN wealth index quintile | BM27: RURAL wealth index quintile | BR27: SUB-REGIONS:
A28: Percentage based on weighted population | C28: Poorest | D28: Poor | E28: Middle | F28: Rich | G28: Richest | H28: Poorest | I28: Poor | J28: Middle | K28: Rich | L28: Richest | M28: Poorest | N28: Poor | O28: Middle | P28: Rich | Q28: Richest | R28: AR Krym | S28: Cherkaska | T28: Chernigivska | U28: Chernivecka | V28: Dnipropetrovska | W28: Donecka | X28: Gytomyrska | Y28: Iv-Frankivska | Z28: Kharkivska | AA28: Khersonska | AB28: Khmelnicka | AC28: Kirovogradska | AD28: Kyiv | AE28: Kyivska | AF28: Luganska | AG28: Lvivska | AH28: Mykolaivska | AI28: Odeska | AJ28: Poltavska | AK28: Rivnenska | AL28: Sumska | AM28: Ternopilska | AN28: Vinnycka | AO28: Volynska | AP28: Zakarpatska | AQ28: Zaporizka | BA28: Water data, raw numbers (weighted) | BC28: Poorest | BD28: Poor | BE28: Middle | BF28: Rich | BG28: Richest | BH28: Poorest | BI28: Poor | BJ28: Middle | BK28: Rich | BL28: Richest | BM28: Poorest | BN28: Poor | BO28: Middle | BP28: Rich | BQ28: Richest | BR28: AR Krym | BS28: Cherkaska | BT28: Chernigivska | BU28: Chernivecka | BV28: Dnipropetrovska | BW28: Donecka | BX28: Gytomyrska | BY28: Iv-Frankivska | BZ28: Kharkivska | CA28: Khersonska | CB28: Khmelnicka | CC28: Kirovogradska | CD28: Kyiv | CE28: Kyivska | CF28: Luganska | CG28: Lvivska | CH28: Mykolaivska | CI28: Odeska | CJ28: Poltavska | CK28: Rivnenska | CL28: Sumska | CM28: Ternopilska | CN28: Vinnycka | CO28: Volynska | CP28: Zakarpatska | CQ28: Zaporizka
A29: Piped water | B29: Yes | C29: 29.02292289 | D29: 47.18694455 | E29: 97.81712532 | F29: 97.26212291 | G29: 92.28515763 | H29: 90.01462243 | I29: 97.37246329 | J29: 96.46295644 | K29: 97.92493504 | L29: 90.09901106 | M29: 11.05846134 | N29: 31.92057759 | O29: 37.48033306 | P29: 33.56451605 | Q29: 29.09834936 | R29: 95.57702333 | S29: 37.29731794 | T29: 59.49265746 | U29: 38.55611161 | V29: 99.05541175 | W29: 92.37188004 | X29: 55.19546519 | Y29: 40.14968075 | Z29: 67.39190481 | AA29: 80.42573254 | AB29: 57.94457961 | AC29: 76.66472162 | AD29: 89.79696985 | AE29: 58.61584538 | AF29: 79.13698951 | AG29: 68.43912789 | AH29: 80.34333785 | AI29: 83.67708889 | AJ29: 63.60721799 | AK29: 40.89469622 | AL29: 86.56302299 | AM29: 47.62240052 | AN29: 51.27333131 | AO29: 50.46174017 | AP29: 80.62630891 | AQ29: 91.74021287 | BA29: Piped water | BB29: Yes | BC29: N/A | BD29: N/A | BE29: N/A | BF29: N/A | BG29: N/A | BH29: N/A | BI29: N/A | BJ29: N/A | BK29: N/A | BL29: N/A | BM29: N/A | BN29: N/A | BO29: N/A | BP29: N/A | BQ29: N/A | BR29: N/A | BS29: N/A | BT29: N/A | BU29: N/A | BV29: N/A | BW29: N/A | BX29: N/A | BY29: N/A | BZ29: N/A | CA29: N/A | CB29: N/A | CC29: N/A | CD29: N/A | CE29: N/A | CF29: N/A | CG29: N/A | CH29: N/A | CI29: N/A | CJ29: N/A | CK29: N/A | CL29: N/A | CM29: N/A | CN29: N/A | CO29: N/A | CP29: N/A | CQ29: N/A
B30: No | C30: 70.97707711 | D30: 52.81305545 | E30: 2.182874676 | F30: 2.737877087 | G30: 7.714842366 | H30: 9.985377575 | I30: 2.627536706 | J30: 3.537043555 | K30: 2.07506496 | L30: 9.900988944 | M30: 88.94153866 | N30: 68.07942241 | O30: 62.51966694 | P30: 66.43548395 | Q30: 70.90165064 | R30: 4.422976671 | S30: 62.70268206 | T30: 40.50734254 | U30: 61.44388839 | V30: 0.9445882497 | W30: 7.628119965 | X30: 44.80453481 | Y30: 59.85031925 | Z30: 32.60809519 | AA30: 19.57426746 | AB30: 42.05542039 | AC30: 23.33527838 | AD30: 10.20303015 | AE30: 41.38415462 | AF30: 20.86301049 | AG30: 31.56087211 | AH30: 19.65666215 | AI30: 16.32291111 | AJ30: 36.39278201 | AK30: 59.10530378 | AL30: 13.43697701 | AM30: 52.37759948 | AN30: 48.72666869 | AO30: 49.53825983 | AP30: 19.37369109 | AQ30: 8.259787125 | BB30: No | BC30: N/A | BD30: N/A | BE30: N/A | BF30: N/A | BG30: N/A | BH30: N/A | BI30: N/A | BJ30: N/A | BK30: N/A | BL30: N/A | BM30: N/A | BN30: N/A | BO30: N/A | BP30: N/A | BQ30: N/A | BR30: N/A | BS30: N/A | BT30: N/A | BU30: N/A | BV30: N/A | BW30: N/A | BX30: N/A | BY30: N/A | BZ30: N/A | CA30: N/A | CB30: N/A | CC30: N/A | CD30: N/A | CE30: N/A | CF30: N/A | CG30: N/A | CH30: N/A | CI30: N/A | CJ30: N/A | CK30: N/A | CL30: N/A | CM30: N/A | CN30: N/A | CO30: N/A | CP30: N/A | CQ30: N/A
A31: Piped water on premises | B31: Yes | C31: 23.86977151 | D31: 44.60740522 | E31: 97.45486215 | F31: 96.93676306 | G31: 91.36431838 | H31: 87.31957543 | I31: 96.82938958 | J31: 96.124093 | K31: 97.37261159 | L31: 89.13885544 | M31: 8.805896267 | N31: 26.59301896 | O31: 33.45722114 | P31: 31.38257654 | Q31: 24.91166848 | R31: 93.65439256 | S31: 37.29731794 | T31: 59.49265746 | U31: 38.55611161 | V31: 97.38306513 | W31: 92.37188004 | X31: 55.19546519 | Y31: 40.14968075 | Z31: 67.39190481 | AA31: 63.8805562 | AB31: 57.94457961 | AC31: 76.66472162 | AD31: 88.73428555 | AE31: 58.61584538 | AF31: 72.97214441 | AG31: 68.43912789 | AH31: 80.34333785 | AI31: 77.85083795 | AJ31: 58.21582884 | AK31: 40.89469622 | AL31: 86.4685386 | AM31: 43.82199919 | AN31: 51.27333131 | AO31: 44.71581692 | AP31: 74.03211127 | AQ31: 90.0367965 | BA31: Piped water on premises | BB31: Yes | BC31: N/A | BD31: N/A | BE31: N/A | BF31: N/A | BG31: N/A | BH31: N/A | BI31: N/A | BJ31: N/A | BK31: N/A | BL31: N/A | BM31: N/A | BN31: N/A | BO31: N/A | BP31: N/A | BQ31: N/A | BR31: N/A | BS31: N/A | BT31: N/A | BU31: N/A | BV31: N/A | BW31: N/A | BX31: N/A | BY31: N/A | BZ31: N/A | CA31: N/A | CB31: N/A | CC31: N/A | CD31: N/A | CE31: N/A | CF31: N/A | CG31: N/A | CH31: N/A | CI31: N/A | CJ31: N/A | CK31: N/A | CL31: N/A | CM31: N/A | CN31: N/A | CO31: N/A | CP31: N/A | CQ31: N/A
B32: No | C32: 76.13022849 | D32: 55.39259478 | E32: 2.545137845 | F32: 3.06323694 | G32: 8.635681616 | H32: 12.68042457 | I32: 3.170610421 | J32: 3.875906997 | K32: 2.627388411 | L32: 10.86114456 | M32: 91.19410373 | N32: 73.40698104 | O32: 66.54277886 | P32: 68.61742346 | Q32: 75.08833152 | R32: 6.345607439 | S32: 62.70268206 | T32: 40.50734254 | U32: 61.44388839 | V32: 2.616934874 | W32: 7.628119965 | X32: 44.80453481 | Y32: 59.85031925 | Z32: 32.60809519 | AA32: 36.1194438 | AB32: 42.05542039 | AC32: 23.33527838 | AD32: 11.26571445 | AE32: 41.38415462 | AF32: 27.02785559 | AG32: 31.56087211 | AH32: 19.65666215 | AI32: 22.14916205 | AJ32: 41.78417116 | AK32: 59.10530378 | AL32: 13.5314614 | AM32: 56.17800081 | AN32: 48.72666869 | AO32: 55.28418308 | AP32: 25.96788873 | AQ32: 9.963203502 | BB32: No | BC32: N/A | BD32: N/A | BE32: N/A | BF32: N/A | BG32: N/A | BH32: N/A | BI32: N/A | BJ32: N/A | BK32: N/A | BL32: N/A | BM32: N/A | BN32: N/A | BO32: N/A | BP32: N/A | BQ32: N/A | BR32: N/A | BS32: N/A | BT32: N/A | BU32: N/A | BV32: N/A | BW32: N/A | BX32: N/A | BY32: N/A | BZ32: N/A | CA32: N/A | CB32: N/A | CC32: N/A | CD32: N/A | CE32: N/A | CF32: N/A | CG32: N/A | CH32: N/A | CI32: N/A | CJ32: N/A | CK32: N/A | CL32: N/A | CM32: N/A | CN32: N/A | CO32: N/A | CP32: N/A | CQ32: N/A
A33: Piped water into dwelling | B33: Yes | C33: N/A | D33: N/A | E33: N/A | F33: N/A | G33: N/A | H33: N/A | I33: N/A | J33: N/A | K33: N/A | L33: N/A | M33: N/A | N33: N/A | O33: N/A | P33: N/A | Q33: N/A | R33: N/A | S33: N/A | T33: N/A | U33: N/A | V33: N/A | W33: N/A | X33: N/A | Y33: N/A | Z33: N/A | AA33: N/A | AB33: N/A | AC33: N/A | AD33: N/A | AE33: N/A | AF33: N/A | AG33: N/A | AH33: N/A | AI33: N/A | AJ33: N/A | AK33: N/A | AL33: N/A | AM33: N/A | AN33: N/A | AO33: N/A | AP33: N/A | AQ33: N/A | BA33: Piped water into dwelling | BB33: Yes | BC33: N/A | BD33: N/A | BE33: N/A | BF33: N/A | BG33: N/A | BH33: N/A | BI33: N/A | BJ33: N/A | BK33: N/A | BL33: N/A | BM33: N/A | BN33: N/A | BO33: N/A | BP33: N/A | BQ33: N/A | BR33: N/A | BS33: N/A | BT33: N/A | BU33: N/A | BV33: N/A | BW33: N/A | BX33: N/A | BY33: N/A | BZ33: N/A | CA33: N/A | CB33: N/A | CC33: N/A | CD33: N/A | CE33: N/A | CF33: N/A | CG33: N/A | CH33: N/A | CI33: N/A | CJ33: N/A | CK33: N/A | CL33: N/A | CM33: N/A | CN33: N/A | CO33: N/A | CP33: N/A | CQ33: N/A
B34: No | C34: N/A | D34: N/A | E34: N/A | F34: N/A | G34: N/A | H34: N/A | I34: N/A | J34: N/A | K34: N/A | L34: N/A | M34: N/A | N34: N/A | O34: N/A | P34: N/A | Q34: N/A | R34: N/A | S34: N/A | T34: N/A | U34: N/A | V34: N/A | W34: N/A | X34: N/A | Y34: N/A | Z34: N/A | AA34: N/A | AB34: N/A | AC34: N/A | AD34: N/A | AE34: N/A | AF34: N/A | AG34: N/A | AH34: N/A | AI34: N/A | AJ34: N/A | AK34: N/A | AL34: N/A | AM34: N/A | AN34: N/A | AO34: N/A | AP34: N/A | AQ34: N/A | BB34: No | BC34: N/A | BD34: N/A | BE34: N/A | BF34: N/A | BG34: N/A | BH34: N/A | BI34: N/A | BJ34: N/A | BK34: N/A | BL34: N/A | BM34: N/A | BN34: N/A | BO34: N/A | BP34: N/A | BQ34: N/A | BR34: N/A | BS34: N/A | BT34: N/A | BU34: N/A | BV34: N/A | BW34: N/A | BX34: N/A | BY34: N/A | BZ34: N/A | CA34: N/A | CB34: N/A | CC34: N/A | CD34: N/A | CE34: N/A | CF34: N/A | CG34: N/A | CH34: N/A | CI34: N/A | CJ34: N/A | CK34: N/A | CL34: N/A | CM34: N/A | CN34: N/A | CO34: N/A | CP34: N/A | CQ34: N/A
A35: Water source on premises | B35: Yes | C35: 24.43905663 | D35: 47.17597026 | E35: 97.47015402 | F35: 96.93676306 | G35: 91.39747077 | H35: 87.31957543 | I35: 96.85231383 | J35: 96.124093 | K35: 97.37261159 | L35: 89.18783116 | M35: 9.735065701 | N35: 26.7375829 | O35: 34.11201331 | P35: 34.01299644 | Q35: 30.08673628 | R35: 93.65439256 | S35: 44.17616555 | T35: 59.49265746 | U35: 38.55611161 | V35: 97.38306513 | W35: 92.92547628 | X35: 55.19546519 | Y35: 40.14968075 | Z35: 67.39190481 | AA35: 63.8805562 | AB35: 59.79732499 | AC35: 76.66472162 | AD35: 88.7800529 | AE35: 61.14619534 | AF35: 75.05065632 | AG35: 68.43912789 | AH35: 80.34333785 | AI35: 77.95461412 | AJ35: 58.21582884 | AK35: 40.89469622 | AL35: 86.4685386 | AM35: 43.82199919 | AN35: 51.27333131 | AO35: 49.09222366 | AP35: 74.03211127 | AQ35: 90.15037627 | BA35: Water source on premises | BB35: Yes | BC35: N/A | BD35: N/A | BE35: N/A | BF35: N/A | BG35: N/A | BH35: N/A | BI35: N/A | BJ35: N/A | BK35: N/A | BL35: N/A | BM35: N/A | BN35: N/A | BO35: N/A | BP35: N/A | BQ35: N/A | BR35: N/A | BS35: N/A | BT35: N/A | BU35: N/A | BV35: N/A | BW35: N/A | BX35: N/A | BY35: N/A | BZ35: N/A | CA35: N/A | CB35: N/A | CC35: N/A | CD35: N/A | CE35: N/A | CF35: N/A | CG35: N/A | CH35: N/A | CI35: N/A | CJ35: N/A | CK35: N/A | CL35: N/A | CM35: N/A | CN35: N/A | CO35: N/A | CP35: N/A | CQ35: N/A
B36: No | C36: 75.56094337 | D36: 52.82402974 | E36: 2.529845979 | F36: 3.06323694 | G36: 8.602529229 | H36: 12.68042457 | I36: 3.147686174 | J36: 3.875906997 | K36: 2.627388411 | L36: 10.81216884 | M36: 90.2649343 | N36: 73.2624171 | O36: 65.88798669 | P36: 65.98700356 | Q36: 69.91326372 | R36: 6.345607439 | S36: 55.82383445 | T36: 40.50734254 | U36: 61.44388839 | V36: 2.616934874 | W36: 7.074523722 | X36: 44.80453481 | Y36: 59.85031925 | Z36: 32.60809519 | AA36: 36.1194438 | AB36: 40.20267501 | AC36: 23.33527838 | AD36: 11.2199471 | AE36: 38.85380466 | AF36: 24.94934368 | AG36: 31.56087211 | AH36: 19.65666215 | AI36: 22.04538588 | AJ36: 41.78417116 | AK36: 59.10530378 | AL36: 13.5314614 | AM36: 56.17800081 | AN36: 48.72666869 | AO36: 50.90777634 | AP36: 25.96788873 | AQ36: 9.849623726 | BB36: No | BC36: N/A | BD36: N/A | BE36: N/A | BF36: N/A | BG36: N/A | BH36: N/A | BI36: N/A | BJ36: N/A | BK36: N/A | BL36: N/A | BM36: N/A | BN36: N/A | BO36: N/A | BP36: N/A | BQ36: N/A | BR36: N/A | BS36: N/A | BT36: N/A | BU36: N/A | BV36: N/A | BW36: N/A | BX36: N/A | BY36: N/A | BZ36: N/A | CA36: N/A | CB36: N/A | CC36: N/A | CD36: N/A | CE36: N/A | CF36: N/A | CG36: N/A | CH36: N/A | CI36: N/A | CJ36: N/A | CK36: N/A | CL36: N/A | CM36: N/A | CN36: N/A | CO36: N/A | CP36: N/A | CQ36: N/A
A37: Improved Water source on premises | B37: Yes | C37: 24.95274488 | D37: 47.31438608 | E37: 97.71572637 | F37: 97.56089016 | G37: 91.79425231 | H37: 88.38766196 | I37: 96.85231383 | J37: 97.01938793 | K37: 97.44305696 | L37: 89.72859259 | M37: 9.961022296 | N37: 27.18294833 | O37: 34.32941382 | P37: 34.04128688 | Q37: 30.19518899 | R37: 93.65439256 | S37: 45.24779649 | T37: 59.60365436 | U37: 39.18063727 | V37: 97.38306513 | W37: 92.92547628 | X37: 55.19546519 | Y37: 40.14968075 | Z37: 68.25374676 | AA37: 63.8805562 | AB37: 60.63995293 | AC37: 78.20566174 | AD37: 89.51385735 | AE37: 62.57481842 | AF37: 76.04800029 | AG37: 68.43912789 | AH37: 80.34333785 | AI37: 77.95461412 | AJ37: 58.21582884 | AK37: 42.83763076 | AL37: 86.4685386 | AM37: 44.65623971 | AN37: 52.01759479 | AO37: 49.09222366 | AP37: 75.02692152 | AQ37: 90.58135014 | BA37: Improved water source on premises | BB37: Yes | BC37: N/A | BD37: N/A | BE37: N/A | BF37: N/A | BG37: N/A | BH37: N/A | BI37: N/A | BJ37: N/A | BK37: N/A | BL37: N/A | BM37: N/A | BN37: N/A | BO37: N/A | BP37: N/A | BQ37: N/A | BR37: N/A | BS37: N/A | BT37: N/A | BU37: N/A | BV37: N/A | BW37: N/A | BX37: N/A | BY37: N/A | BZ37: N/A | CA37: N/A | CB37: N/A | CC37: N/A | CD37: N/A | CE37: N/A | CF37: N/A | CG37: N/A | CH37: N/A | CI37: N/A | CJ37: N/A | CK37: N/A | CL37: N/A | CM37: N/A | CN37: N/A | CO37: N/A | CP37: N/A | CQ37: N/A
B38: No | C38: 75.04725512 | D38: 52.68561392 | E38: 2.284273631 | F38: 2.43910984 | G38: 8.20574769 | H38: 11.61233804 | I38: 3.147686174 | J38: 2.980612066 | K38: 2.556943042 | L38: 10.27140741 | M38: 90.0389777 | N38: 72.81705167 | O38: 65.67058618 | P38: 65.95871312 | Q38: 69.80481101 | R38: 6.345607439 | S38: 54.75220351 | T38: 40.39634564 | U38: 60.81936273 | V38: 2.616934874 | W38: 7.074523722 | X38: 44.80453481 | Y38: 59.85031925 | Z38: 31.74625324 | AA38: 36.1194438 | AB38: 39.36004707 | AC38: 21.79433826 | AD38: 10.48614265 | AE38: 37.42518158 | AF38: 23.95199971 | AG38: 31.56087211 | AH38: 19.65666215 | AI38: 22.04538588 | AJ38: 41.78417116 | AK38: 57.16236924 | AL38: 13.5314614 | AM38: 55.34376029 | AN38: 47.98240521 | AO38: 50.90777634 | AP38: 24.97307848 | AQ38: 9.418649858 | BB38: No | BC38: N/A | BD38: N/A | BE38: N/A | BF38: N/A | BG38: N/A | BH38: N/A | BI38: N/A | BJ38: N/A | BK38: N/A | BL38: N/A | BM38: N/A | BN38: N/A | BO38: N/A | BP38: N/A | BQ38: N/A | BR38: N/A | BS38: N/A | BT38: N/A | BU38: N/A | BV38: N/A | BW38: N/A | BX38: N/A | BY38: N/A | BZ38: N/A | CA38: N/A | CB38: N/A | CC38: N/A | CD38: N/A | CE38: N/A | CF38: N/A | CG38: N/A | CH38: N/A | CI38: N/A | CJ38: N/A | CK38: N/A | CL38: N/A | CM38: N/A | CN38: N/A | CO38: N/A | CP38: N/A | CQ38: N/A
A39: Piped water on premises available when needed | B39: Yes | C39: N/A | D39: N/A | E39: N/A | F39: N/A | G39: N/A | H39: N/A | I39: N/A | J39: N/A | K39: N/A | L39: N/A | M39: N/A | N39: N/A | O39: N/A | P39: N/A | Q39: N/A | R39: N/A | S39: N/A | T39: N/A | U39: N/A | V39: N/A | W39: N/A | X39: N/A | Y39: N/A | Z39: N/A | AA39: N/A | AB39: N/A | AC39: N/A | AD39: N/A | AE39: N/A | AF39: N/A | AG39: N/A | AH39: N/A | AI39: N/A | AJ39: N/A | AK39: N/A | AL39: N/A | AM39: N/A | AN39: N/A | AO39: N/A | AP39: N/A | AQ39: N/A | BA39: Piped water on premises available when needed | BB39: Yes | BC39: N/A | BD39: N/A | BE39: N/A | BF39: N/A | BG39: N/A | BH39: N/A | BI39: N/A | BJ39: N/A | BK39: N/A | BL39: N/A | BM39: N/A | BN39: N/A | BO39: N/A | BP39: N/A | BQ39: N/A | BR39: N/A | BS39: N/A | BT39: N/A | BU39: N/A | BV39: N/A | BW39: N/A | BX39: N/A | BY39: N/A | BZ39: N/A | CA39: N/A | CB39: N/A | CC39: N/A | CD39: N/A | CE39: N/A | CF39: N/A | CG39: N/A | CH39: N/A | CI39: N/A | CJ39: N/A | CK39: N/A | CL39: N/A | CM39: N/A | CN39: N/A | CO39: N/A | CP39: N/A | CQ39: N/A
B40: No | C40: N/A | D40: N/A | E40: N/A | F40: N/A | G40: N/A | H40: N/A | I40: N/A | J40: N/A | K40: N/A | L40: N/A | M40: N/A | N40: N/A | O40: N/A | P40: N/A | Q40: N/A | R40: N/A | S40: N/A | T40: N/A | U40: N/A | V40: N/A | W40: N/A | X40: N/A | Y40: N/A | Z40: N/A | AA40: N/A | AB40: N/A | AC40: N/A | AD40: N/A | AE40: N/A | AF40: N/A | AG40: N/A | AH40: N/A | AI40: N/A | AJ40: N/A | AK40: N/A | AL40: N/A | AM40: N/A | AN40: N/A | AO40: N/A | AP40: N/A | AQ40: N/A | BB40: No | BC40: N/A | BD40: N/A | BE40: N/A | BF40: N/A | BG40: N/A | BH40: N/A | BI40: N/A | BJ40: N/A | BK40: N/A | BL40: N/A | BM40: N/A | BN40: N/A | BO40: N/A | BP40: N/A | BQ40: N/A | BR40: N/A | BS40: N/A | BT40: N/A | BU40: N/A | BV40: N/A | BW40: N/A | BX40: N/A | BY40: N/A | BZ40: N/A | CA40: N/A | CB40: N/A | CC40: N/A | CD40: N/A | CE40: N/A | CF40: N/A | CG40: N/A | CH40: N/A | CI40: N/A | CJ40: N/A | CK40: N/A | CL40: N/A | CM40: N/A | CN40: N/A | CO40: N/A | CP40: N/A | CQ40: N/A
A41: Water point at more than 30 minutes | B41: Yes | C41: 0.01602648729 | D41: 0 | E41: 0.3886383314 | F41: 0.5892594636 | G41: 1.794585518 | H41: 0.5763745 | I41: 0 | J41: 0.5139393198 | K41: 0.4788728081 | L41: 2.543637328 | M41: 0 | N41: 0 | O41: 0.04868073932 | P41: 0 | Q41: 0 | R41: 0 | S41: 8.276585436 | T41: 0 | U41: 0 | V41: 0 | W41: 0.02877045684 | X41: 0 | Y41: 0 | Z41: 2.430460919 | AA41: 0 | AB41: 0 | AC41: 1.970369006 | AD41: 0.08484875115 | AE41: 0 | AF41: 0.6347223116 | AG41: 0 | AH41: 0 | AI41: 0 | AJ41: 0 | AK41: 1.545151799 | AL41: 0 | AM41: 0 | AN41: 0 | AO41: 0 | AP41: 0 | AQ41: 0 | BA41: Water point at more than 30 minutes | BB41: Yes | BC41: N/A | BD41: N/A | BE41: N/A | BF41: N/A | BG41: N/A | BH41: N/A | BI41: N/A | BJ41: N/A | BK41: N/A | BL41: N/A | BM41: N/A | BN41: N/A | BO41: N/A | BP41: N/A | BQ41: N/A | BR41: N/A | BS41: N/A | BT41: N/A | BU41: N/A | BV41: N/A | BW41: N/A | BX41: N/A | BY41: N/A | BZ41: N/A | CA41: N/A | CB41: N/A | CC41: N/A | CD41: N/A | CE41: N/A | CF41: N/A | CG41: N/A | CH41: N/A | CI41: N/A | CJ41: N/A | CK41: N/A | CL41: N/A | CM41: N/A | CN41: N/A | CO41: N/A | CP41: N/A | CQ41: N/A
B42: No | C42: 99.98397351 | D42: 100 | E42: 99.61136167 | F42: 99.41074054 | G42: 98.20541448 | H42: 99.4236255 | I42: 100 | J42: 99.48606068 | K42: 99.52112719 | L42: 97.45636267 | M42: 100 | N42: 100 | O42: 99.95131926 | P42: 100 | Q42: 100 | R42: 100 | S42: 91.72341456 | T42: 100 | U42: 100 | V42: 100 | W42: 99.97122954 | X42: 100 | Y42: 100 | Z42: 97.56953908 | AA42: 100 | AB42: 100 | AC42: 98.02963099 | AD42: 99.91515125 | AE42: 100 | AF42: 99.36527769 | AG42: 100 | AH42: 100 | AI42: 100 | AJ42: 100 | AK42: 98.4548482 | AL42: 100 | AM42: 100 | AN42: 100 | AO42: 100 | AP42: 100 | AQ42: 100 | BB42: No | BC42: N/A | BD42: N/A | BE42: N/A | BF42: N/A | BG42: N/A | BH42: N/A | BI42: N/A | BJ42: N/A | BK42: N/A | BL42: N/A | BM42: N/A | BN42: N/A | BO42: N/A | BP42: N/A | BQ42: N/A | BR42: N/A | BS42: N/A | BT42: N/A | BU42: N/A | BV42: N/A | BW42: N/A | BX42: N/A | BY42: N/A | BZ42: N/A | CA42: N/A | CB42: N/A | CC42: N/A | CD42: N/A | CE42: N/A | CF42: N/A | CG42: N/A | CH42: N/A | CI42: N/A | CJ42: N/A | CK42: N/A | CL42: N/A | CM42: N/A | CN42: N/A | CO42: N/A | CP42: N/A | CQ42: N/A
A43: Water source available when needed | B43: Yes | C43: N/A | D43: N/A | E43: N/A | F43: N/A | G43: N/A | H43: N/A | I43: N/A | J43: N/A | K43: N/A | L43: N/A | M43: N/A | N43: N/A | O43: N/A | P43: N/A | Q43: N/A | R43: N/A | S43: N/A | T43: N/A | U43: N/A | V43: N/A | W43: N/A | X43: N/A | Y43: N/A | Z43: N/A | AA43: N/A | AB43: N/A | AC43: N/A | AD43: N/A | AE43: N/A | AF43: N/A | AG43: N/A | AH43: N/A | AI43: N/A | AJ43: N/A | AK43: N/A | AL43: N/A | AM43: N/A | AN43: N/A | AO43: N/A | AP43: N/A | AQ43: N/A | BA43: Water source available when needed | BB43: Yes | BC43: N/A | BD43: N/A | BE43: N/A | BF43: N/A | BG43: N/A | BH43: N/A | BI43: N/A | BJ43: N/A | BK43: N/A | BL43: N/A | BM43: N/A | BN43: N/A | BO43: N/A | BP43: N/A | BQ43: N/A | BR43: N/A | BS43: N/A | BT43: N/A | BU43: N/A | BV43: N/A | BW43: N/A | BX43: N/A | BY43: N/A | BZ43: N/A | CA43: N/A | CB43: N/A | CC43: N/A | CD43: N/A | CE43: N/A | CF43: N/A | CG43: N/A | CH43: N/A | CI43: N/A | CJ43: N/A | CK43: N/A | CL43: N/A | CM43: N/A | CN43: N/A | CO43: N/A | CP43: N/A | CQ43: N/A
B44: No | C44: N/A | D44: N/A | E44: N/A | F44: N/A | G44: N/A | H44: N/A | I44: N/A | J44: N/A | K44: N/A | L44: N/A | M44: N/A | N44: N/A | O44: N/A | P44: N/A | Q44: N/A | R44: N/A | S44: N/A | T44: N/A | U44: N/A | V44: N/A | W44: N/A | X44: N/A | Y44: N/A | Z44: N/A | AA44: N/A | AB44: N/A | AC44: N/A | AD44: N/A | AE44: N/A | AF44: N/A | AG44: N/A | AH44: N/A | AI44: N/A | AJ44: N/A | AK44: N/A | AL44: N/A | AM44: N/A | AN44: N/A | AO44: N/A | AP44: N/A | AQ44: N/A | BB44: No | BC44: N/A | BD44: N/A | BE44: N/A | BF44: N/A | BG44: N/A | BH44: N/A | BI44: N/A | BJ44: N/A | BK44: N/A | BL44: N/A | BM44: N/A | BN44: N/A | BO44: N/A | BP44: N/A | BQ44: N/A | BR44: N/A | BS44: N/A | BT44: N/A | BU44: N/A | BV44: N/A | BW44: N/A | BX44: N/A | BY44: N/A | BZ44: N/A | CA44: N/A | CB44: N/A | CC44: N/A | CD44: N/A | CE44: N/A | CF44: N/A | CG44: N/A | CH44: N/A | CI44: N/A | CJ44: N/A | CK44: N/A | CL44: N/A | CM44: N/A | CN44: N/A | CO44: N/A | CP44: N/A | CQ44: N/A
A45: Improved water source available when needed | B45: Yes | C45: N/A | D45: N/A | E45: N/A | F45: N/A | G45: N/A | H45: N/A | I45: N/A | J45: N/A | K45: N/A | L45: N/A | M45: N/A | N45: N/A | O45: N/A | P45: N/A | Q45: N/A | R45: N/A | S45: N/A | T45: N/A | U45: N/A | V45: N/A | W45: N/A | X45: N/A | Y45: N/A | Z45: N/A | AA45: N/A | AB45: N/A | AC45: N/A | AD45: N/A | AE45: N/A | AF45: N/A | AG45: N/A | AH45: N/A | AI45: N/A | AJ45: N/A | AK45: N/A | AL45: N/A | AM45: N/A | AN45: N/A | AO45: N/A | AP45: N/A | AQ45: N/A | BA45: Improved water source available when needed | BB45: Yes | BC45: N/A | BD45: N/A | BE45: N/A | BF45: N/A | BG45: N/A | BH45: N/A | BI45: N/A | BJ45: N/A | BK45: N/A | BL45: N/A | BM45: N/A | BN45: N/A | BO45: N/A | BP45: N/A | BQ45: N/A | BR45: N/A | BS45: N/A | BT45: N/A | BU45: N/A | BV45: N/A | BW45: N/A | BX45: N/A | BY45: N/A | BZ45: N/A | CA45: N/A | CB45: N/A | CC45: N/A | CD45: N/A | CE45: N/A | CF45: N/A | CG45: N/A | CH45: N/A | CI45: N/A | CJ45: N/A | CK45: N/A | CL45: N/A | CM45: N/A | CN45: N/A | CO45: N/A | CP45: N/A | CQ45: N/A
B46: No | C46: N/A | D46: N/A | E46: N/A | F46: N/A | G46: N/A | H46: N/A | I46: N/A | J46: N/A | K46: N/A | L46: N/A | M46: N/A | N46: N/A | O46: N/A | P46: N/A | Q46: N/A | R46: N/A | S46: N/A | T46: N/A | U46: N/A | V46: N/A | W46: N/A | X46: N/A | Y46: N/A | Z46: N/A | AA46: N/A | AB46: N/A | AC46: N/A | AD46: N/A | AE46: N/A | AF46: N/A | AG46: N/A | AH46: N/A | AI46: N/A | AJ46: N/A | AK46: N/A | AL46: N/A | AM46: N/A | AN46: N/A | AO46: N/A | AP46: N/A | AQ46: N/A | BB46: No | BC46: N/A | BD46: N/A | BE46: N/A | BF46: N/A | BG46: N/A | BH46: N/A | BI46: N/A | BJ46: N/A | BK46: N/A | BL46: N/A | BM46: N/A | BN46: N/A | BO46: N/A | BP46: N/A | BQ46: N/A | BR46: N/A | BS46: N/A | BT46: N/A | BU46: N/A | BV46: N/A | BW46: N/A | BX46: N/A | BY46: N/A | BZ46: N/A | CA46: N/A | CB46: N/A | CC46: N/A | CD46: N/A | CE46: N/A | CF46: N/A | CG46: N/A | CH46: N/A | CI46: N/A | CJ46: N/A | CK46: N/A | CL46: N/A | CM46: N/A | CN46: N/A | CO46: N/A | CP46: N/A | CQ46: N/A
A47: Microbiological quality at point of collection | B47: Not contaminated (No E. coli in 100 mL) | C47: N/A | D47: N/A | E47: N/A | F47: N/A | G47: N/A | H47: N/A | I47: N/A | J47: N/A | K47: N/A | L47: N/A | M47: N/A | N47: N/A | O47: N/A | P47: N/A | Q47: N/A | R47: N/A | S47: N/A | T47: N/A | U47: N/A | V47: N/A | W47: N/A | X47: N/A | Y47: N/A | Z47: N/A | AA47: N/A | AB47: N/A | AC47: N/A | AD47: N/A | AE47: N/A | AF47: N/A | AG47: N/A | AH47: N/A | AI47: N/A | AJ47: N/A | AK47: N/A | AL47: N/A | AM47: N/A | AN47: N/A | AO47: N/A | AP47: N/A | AQ47: N/A | BA47: Microbiological quality at point of collection | BB47: Not contaminated (No E. coli in 100 mL) | BC47: N/A | BD47: N/A | BE47: N/A | BF47: N/A | BG47: N/A | BH47: N/A | BI47: N/A | BJ47: N/A | BK47: N/A | BL47: N/A | BM47: N/A | BN47: N/A | BO47: N/A | BP47: N/A | BQ47: N/A | BR47: N/A | BS47: N/A | BT47: N/A | BU47: N/A | BV47: N/A | BW47: N/A | BX47: N/A | BY47: N/A | BZ47: N/A | CA47: N/A | CB47: N/A | CC47: N/A | CD47: N/A | CE47: N/A | CF47: N/A | CG47: N/A | CH47: N/A | CI47: N/A | CJ47: N/A | CK47: N/A | CL47: N/A | CM47: N/A | CN47: N/A | CO47: N/A | CP47: N/A | CQ47: N/A
B48: Contaminated (E. coli detected in 100 mL) | C48: N/A | D48: N/A | E48: N/A | F48: N/A | G48: N/A | H48: N/A | I48: N/A | J48: N/A | K48: N/A | L48: N/A | M48: N/A | N48: N/A | O48: N/A | P48: N/A | Q48: N/A | R48: N/A | S48: N/A | T48: N/A | U48: N/A | V48: N/A | W48: N/A | X48: N/A | Y48: N/A | Z48: N/A | AA48: N/A | AB48: N/A | AC48: N/A | AD48: N/A | AE48: N/A | AF48: N/A | AG48: N/A | AH48: N/A | AI48: N/A | AJ48: N/A | AK48: N/A | AL48: N/A | AM48: N/A | AN48: N/A | AO48: N/A | AP48: N/A | AQ48: N/A | BB48: Contaminated (E. coli detected in 100 mL) | BC48: N/A | BD48: N/A | BE48: N/A | BF48: N/A | BG48: N/A | BH48: N/A | BI48: N/A | BJ48: N/A | BK48: N/A | BL48: N/A | BM48: N/A | BN48: N/A | BO48: N/A | BP48: N/A | BQ48: N/A | BR48: N/A | BS48: N/A | BT48: N/A | BU48: N/A | BV48: N/A | BW48: N/A | BX48: N/A | BY48: N/A | BZ48: N/A | CA48: N/A | CB48: N/A | CC48: N/A | CD48: N/A | CE48: N/A | CF48: N/A | CG48: N/A | CH48: N/A | CI48: N/A | CJ48: N/A | CK48: N/A | CL48: N/A | CM48: N/A | CN48: N/A | CO48: N/A | CP48: N/A | CQ48: N/A
B49: Highly contaminated (>100 CFU/100 mL) | C49: N/A | D49: N/A | E49: N/A | F49: N/A | G49: N/A | H49: N/A | I49: N/A | J49: N/A | K49: N/A | L49: N/A | M49: N/A | N49: N/A | O49: N/A | P49: N/A | Q49: N/A | R49: N/A | S49: N/A | T49: N/A | U49: N/A | V49: N/A | W49: N/A | X49: N/A | Y49: N/A | Z49: N/A | AA49: N/A | AB49: N/A | AC49: N/A | AD49: N/A | AE49: N/A | AF49: N/A | AG49: N/A | AH49: N/A | AI49: N/A | AJ49: N/A | AK49: N/A | AL49: N/A | AM49: N/A | AN49: N/A | AO49: N/A | AP49: N/A | AQ49: N/A | BB49: Highly contaminated (>100 CFU/100 mL) | BC49: N/A | BD49: N/A | BE49: N/A | BF49: N/A | BG49: N/A | BH49: N/A | BI49: N/A | BJ49: N/A | BK49: N/A | BL49: N/A | BM49: N/A | BN49: N/A | BO49: N/A | BP49: N/A | BQ49: N/A | BR49: N/A | BS49: N/A | BT49: N/A | BU49: N/A | BV49: N/A | BW49: N/A | BX49: N/A | BY49: N/A | BZ49: N/A | CA49: N/A | CB49: N/A | CC49: N/A | CD49: N/A | CE49: N/A | CF49: N/A | CG49: N/A | CH49: N/A | CI49: N/A | CJ49: N/A | CK49: N/A | CL49: N/A | CM49: N/A | CN49: N/A | CO49: N/A | CP49: N/A | CQ49: N/A
A50: Microbiological quality of improved water sources at point of collection | B50: Not contaminated (No E. coli in 100 mL) | C50: N/A | D50: N/A | E50: N/A | F50: N/A | G50: N/A | H50: N/A | I50: N/A | J50: N/A | K50: N/A | L50: N/A | M50: N/A | N50: N/A | O50: N/A | P50: N/A | Q50: N/A | R50: N/A | S50: N/A | T50: N/A | U50: N/A | V50: N/A | W50: N/A | X50: N/A | Y50: N/A | Z50: N/A | AA50: N/A | AB50: N/A | AC50: N/A | AD50: N/A | AE50: N/A | AF50: N/A | AG50: N/A | AH50: N/A | AI50: N/A | AJ50: N/A | AK50: N/A | AL50: N/A | AM50: N/A | AN50: N/A | AO50: N/A | AP50: N/A | AQ50: N/A | BA50: Microbiological quality of improved water sources at point of collection | BB50: Not contaminated (No E. coli in 100 mL) | BC50: N/A | BD50: N/A | BE50: N/A | BF50: N/A | BG50: N/A | BH50: N/A | BI50: N/A | BJ50: N/A | BK50: N/A | BL50: N/A | BM50: N/A | BN50: N/A | BO50: N/A | BP50: N/A | BQ50: N/A | BR50: N/A | BS50: N/A | BT50: N/A | BU50: N/A | BV50: N/A | BW50: N/A | BX50: N/A | BY50: N/A | BZ50: N/A | CA50: N/A | CB50: N/A | CC50: N/A | CD50: N/A | CE50: N/A | CF50: N/A | CG50: N/A | CH50: N/A | CI50: N/A | CJ50: N/A | CK50: N/A | CL50: N/A | CM50: N/A | CN50: N/A | CO50: N/A | CP50: N/A | CQ50: N/A
B51: Contaminated (E. coli detected in 100 mL) | C51: N/A | D51: N/A | E51: N/A | F51: N/A | G51: N/A | H51: N/A | I51: N/A | J51: N/A | K51: N/A | L51: N/A | M51: N/A | N51: N/A | O51: N/A | P51: N/A | Q51: N/A | R51: N/A | S51: N/A | T51: N/A | U51: N/A | V51: N/A | W51: N/A | X51: N/A | Y51: N/A | Z51: N/A | AA51: N/A | AB51: N/A | AC51: N/A | AD51: N/A | AE51: N/A | AF51: N/A | AG51: N/A | AH51: N/A | AI51: N/A | AJ51: N/A | AK51: N/A | AL51: N/A | AM51: N/A | AN51: N/A | AO51: N/A | AP51: N/A | AQ51: N/A | BB51: Contaminated (E. coli detected in 100 mL) | BC51: N/A | BD51: N/A | BE51: N/A | BF51: N/A | BG51: N/A | BH51: N/A | BI51: N/A | BJ51: N/A | BK51: N/A | BL51: N/A | BM51: N/A | BN51: N/A | BO51: N/A | BP51: N/A | BQ51: N/A | BR51: N/A | BS51: N/A | BT51: N/A | BU51: N/A | BV51: N/A | BW51: N/A | BX51: N/A | BY51: N/A | BZ51: N/A | CA51: N/A | CB51: N/A | CC51: N/A | CD51: N/A | CE51: N/A | CF51: N/A | CG51: N/A | CH51: N/A | CI51: N/A | CJ51: N/A | CK51: N/A | CL51: N/A | CM51: N/A | CN51: N/A | CO51: N/A | CP51: N/A | CQ51: N/A
B52: Highly contaminated (>100 CFU/100 mL) | C52: N/A | D52: N/A | E52: N/A | F52: N/A | G52: N/A | H52: N/A | I52: N/A | J52: N/A | K52: N/A | L52: N/A | M52: N/A | N52: N/A | O52: N/A | P52: N/A | Q52: N/A | R52: N/A | S52: N/A | T52: N/A | U52: N/A | V52: N/A | W52: N/A | X52: N/A | Y52: N/A | Z52: N/A | AA52: N/A | AB52: N/A | AC52: N/A | AD52: N/A | AE52: N/A | AF52: N/A | AG52: N/A | AH52: N/A | AI52: N/A | AJ52: N/A | AK52: N/A | AL52: N/A | AM52: N/A | AN52: N/A | AO52: N/A | AP52: N/A | AQ52: N/A | BB52: Highly contaminated (>100 CFU/100 mL) | BC52: N/A | BD52: N/A | BE52: N/A | BF52: N/A | BG52: N/A | BH52: N/A | BI52: N/A | BJ52: N/A | BK52: N/A | BL52: N/A | BM52: N/A | BN52: N/A | BO52: N/A | BP52: N/A | BQ52: N/A | BR52: N/A | BS52: N/A | BT52: N/A | BU52: N/A | BV52: N/A | BW52: N/A | BX52: N/A | BY52: N/A | BZ52: N/A | CA52: N/A | CB52: N/A | CC52: N/A | CD52: N/A | CE52: N/A | CF52: N/A | CG52: N/A | CH52: N/A | CI52: N/A | CJ52: N/A | CK52: N/A | CL52: N/A | CM52: N/A | CN52: N/A | CO52: N/A | CP52: N/A | CQ52: N/A
A53: Microbiological quality of piped on premises at point of collection | B53: Not contaminated (No E. coli in 100 mL) | C53: N/A | D53: N/A | E53: N/A | F53: N/A | G53: N/A | H53: N/A | I53: N/A | J53: N/A | K53: N/A | L53: N/A | M53: N/A | N53: N/A | O53: N/A | P53: N/A | Q53: N/A | R53: N/A | S53: N/A | T53: N/A | U53: N/A | V53: N/A | W53: N/A | X53: N/A | Y53: N/A | Z53: N/A | AA53: N/A | AB53: N/A | AC53: N/A | AD53: N/A | AE53: N/A | AF53: N/A | AG53: N/A | AH53: N/A | AI53: N/A | AJ53: N/A | AK53: N/A | AL53: N/A | AM53: N/A | AN53: N/A | AO53: N/A | AP53: N/A | AQ53: N/A | BA53: Microbiological quality of piped on premises at point of collection | BB53: Not contaminated (No E. coli in 100 mL) | BC53: N/A | BD53: N/A | BE53: N/A | BF53: N/A | BG53: N/A | BH53: N/A | BI53: N/A | BJ53: N/A | BK53: N/A | BL53: N/A | BM53: N/A | BN53: N/A | BO53: N/A | BP53: N/A | BQ53: N/A | BR53: N/A | BS53: N/A | BT53: N/A | BU53: N/A | BV53: N/A | BW53: N/A | BX53: N/A | BY53: N/A | BZ53: N/A | CA53: N/A | CB53: N/A | CC53: N/A | CD53: N/A | CE53: N/A | CF53: N/A | CG53: N/A | CH53: N/A | CI53: N/A | CJ53: N/A | CK53: N/A | CL53: N/A | CM53: N/A | CN53: N/A | CO53: N/A | CP53: N/A | CQ53: N/A
B54: Contaminated (E. coli detected in 100 mL) | C54: N/A | D54: N/A | E54: N/A | F54: N/A | G54: N/A | H54: N/A | I54: N/A | J54: N/A | K54: N/A | L54: N/A | M54: N/A | N54: N/A | O54: N/A | P54: N/A | Q54: N/A | R54: N/A | S54: N/A | T54: N/A | U54: N/A | V54: N/A | W54: N/A | X54: N/A | Y54: N/A | Z54: N/A | AA54: N/A | AB54: N/A | AC54: N/A | AD54: N/A | AE54: N/A | AF54: N/A | AG54: N/A | AH54: N/A | AI54: N/A | AJ54: N/A | AK54: N/A | AL54: N/A | AM54: N/A | AN54: N/A | AO54: N/A | AP54: N/A | AQ54: N/A | BB54: Contaminated (E. coli detected in 100 mL) | BC54: N/A | BD54: N/A | BE54: N/A | BF54: N/A | BG54: N/A | BH54: N/A | BI54: N/A | BJ54: N/A | BK54: N/A | BL54: N/A | BM54: N/A | BN54: N/A | BO54: N/A | BP54: N/A | BQ54: N/A | BR54: N/A | BS54: N/A | BT54: N/A | BU54: N/A | BV54: N/A | BW54: N/A | BX54: N/A | BY54: N/A | BZ54: N/A | CA54: N/A | CB54: N/A | CC54: N/A | CD54: N/A | CE54: N/A | CF54: N/A | CG54: N/A | CH54: N/A | CI54: N/A | CJ54: N/A | CK54: N/A | CL54: N/A | CM54: N/A | CN54: N/A | CO54: N/A | CP54: N/A | CQ54: N/A
B55: Highly contaminated (>100 CFU/100 mL) | C55: N/A | D55: N/A | E55: N/A | F55: N/A | G55: N/A | H55: N/A | I55: N/A | J55: N/A | K55: N/A | L55: N/A | M55: N/A | N55: N/A | O55: N/A | P55: N/A | Q55: N/A | R55: N/A | S55: N/A | T55: N/A | U55: N/A | V55: N/A | W55: N/A | X55: N/A | Y55: N/A | Z55: N/A | AA55: N/A | AB55: N/A | AC55: N/A | AD55: N/A | AE55: N/A | AF55: N/A | AG55: N/A | AH55: N/A | AI55: N/A | AJ55: N/A | AK55: N/A | AL55: N/A | AM55: N/A | AN55: N/A | AO55: N/A | AP55: N/A | AQ55: N/A | BB55: Highly contaminated (>100 CFU/100 mL) | BC55: N/A | BD55: N/A | BE55: N/A | BF55: N/A | BG55: N/A | BH55: N/A | BI55: N/A | BJ55: N/A | BK55: N/A | BL55: N/A | BM55: N/A | BN55: N/A | BO55: N/A | BP55: N/A | BQ55: N/A | BR55: N/A | BS55: N/A | BT55: N/A | BU55: N/A | BV55: N/A | BW55: N/A | BX55: N/A | BY55: N/A | BZ55: N/A | CA55: N/A | CB55: N/A | CC55: N/A | CD55: N/A | CE55: N/A | CF55: N/A | CG55: N/A | CH55: N/A | CI55: N/A | CJ55: N/A | CK55: N/A | CL55: N/A | CM55: N/A | CN55: N/A | CO55: N/A | CP55: N/A | CQ55: N/A
C56: NATIONAL wealth index quintile | H56: URBAN wealth index quintile | M56: RURAL wealth index quintile | R56: SUB-REGIONS: | BA56: Raw numbers of respondents: | BB56: Use of drinking water sources | BC56: NATIONAL wealth index quintile | BH56: URBAN wealth index quintile | BM56: RURAL wealth index quintile | BR56: SUB-REGIONS:
A57: Percentage based on weighted population | C57: Poorest | D57: Poor | E57: Middle | F57: Rich | G57: Richest | H57: Poorest | I57: Poor | J57: Middle | K57: Rich | L57: Richest | M57: Poorest | N57: Poor | O57: Middle | P57: Rich | Q57: Richest | R57: AR Krym | S57: Cherkaska | T57: Chernigivska | U57: Chernivecka | V57: Dnipropetrovska | W57: Donecka | X57: Gytomyrska | Y57: Iv-Frankivska | Z57: Kharkivska | AA57: Khersonska | AB57: Khmelnicka | AC57: Kirovogradska | AD57: Kyiv | AE57: Kyivska | AF57: Luganska | AG57: Lvivska | AH57: Mykolaivska | AI57: Odeska | AJ57: Poltavska | AK57: Rivnenska | AL57: Sumska | AM57: Ternopilska | AN57: Vinnycka | AO57: Volynska | AP57: Zakarpatska | AQ57: Zaporizka | BA57: Water data, raw numbers (weighted) | BC57: Poorest | BD57: Poor | BE57: Middle | BF57: Rich | BG57: Richest | BH57: Poorest | BI57: Poor | BJ57: Middle | BK57: Rich | BL57: Richest | BM57: Poorest | BN57: Poor | BO57: Middle | BP57: Rich | BQ57: Richest | BR57: AR Krym | BS57: Cherkaska | BT57: Chernigivska | BU57: Chernivecka | BV57: Dnipropetrovska | BW57: Donecka | BX57: Gytomyrska | BY57: Iv-Frankivska | BZ57: Kharkivska | CA57: Khersonska | CB57: Khmelnicka | CC57: Kirovogradska | CD57: Kyiv | CE57: Kyivska | CF57: Luganska | CG57: Lvivska | CH57: Mykolaivska | CI57: Odeska | CJ57: Poltavska | CK57: Rivnenska | CL57: Sumska | CM57: Ternopilska | CN57: Vinnycka | CO57: Volynska | CP57: Zakarpatska | CQ57: Zaporizka
A58: Main source of drinking water | B58: Piped into dwelling | C58: 9.266815658 | D58: 36.97049048 | E58: 95.23573878 | F58: 93.24149073 | G58: 87.58369021 | H58: 82.51501992 | I58: 93.94850852 | J58: 93.50936636 | K58: 92.90822036 | L58: 85.07276675 | M58: 0.4376161969 | N58: 7.111497391 | O58: 19.62361678 | P58: 22.67662683 | Q58: 16.67051133 | R58: 80.00441722 | S58: 33.85799651 | T58: 59.49265746 | U58: 37.54743688 | V58: 87.64572428 | W58: 92.37188004 | X58: 55.19546519 | Y58: 40.14968075 | Z58: 67.39190481 | AA58: 62.30523302 | AB58: 56.55502057 | AC58: 57.25060105 | AD58: 84.98678734 | AE58: 58.61584538 | AF58: 49.56641372 | AG58: 68.00407123 | AH58: 67.30570452 | AI58: 63.49327195 | AJ58: 58.21582884 | AK58: 35.37216459 | AL58: 64.68845133 | AM58: 43.82199919 | AN58: 35.24357298 | AO58: 44.71581692 | AP58: 70.49026933 | AQ58: 64.86102069
B59: Piped into yard or plot | C59: 13.97512735 | D59: 7.371435957 | E59: 0.009628371319 | F59: 0 | G59: 0 | H59: 3.039910113 | I59: 0.0144340243 | J59: 0 | K59: 0 | L59: 0 | M59: 8.36828007 | N59: 19.48152157 | O59: 13.83360436 | P59: 8.705949711 | Q59: 8.241157149 | R59: 13.64997535 | S59: 0 | T59: 0 | U59: 0 | V59: 5.138488941 | W59: 0 | X59: 0 | Y59: 0 | Z59: 0 | AA59: 1.575323177 | AB59: 1.389559035 | AC59: 15.34564205 | AD59: 0 | AE59: 0 | AF59: 11.64952373 | AG59: 0 | AH59: 9.894702822 | AI59: 8.755208123 | AJ59: 0 | AK59: 0 | AL59: 21.78008726 | AM59: 0 | AN59: 16.02975833 | AO59: 0 | AP59: 3.54184194 | AQ59: 14.66846591
B60: Public tap/standpipe | C60: 4.949166029 | D60: 2.57953933 | E60: 0.3622631687 | F60: 0.3253598525 | G60: 0.9208392504 | H60: 2.392837364 | I60: 0.5430737149 | J60: 0.3388634415 | K60: 0.5523234507 | L60: 0.9601556125 | M60: 2.252565077 | N60: 5.327558632 | O60: 4.023111916 | P60: 2.181939507 | Q60: 4.186680882 | R60: 1.922630768 | S60: 0 | T60: 0 | U60: 0 | V60: 1.672346625 | W60: 0 | X60: 0 | Y60: 0 | Z60: 0 | AA60: 16.54517634 | AB60: 0 | AC60: 0 | AD60: 1.062684301 | AE60: 0 | AF60: 5.222993764 | AG60: 0 | AH60: 0 | AI60: 5.826250937 | AJ60: 5.391389156 | AK60: 0 | AL60: 0.09448439433 | AM60: 3.800401331 | AN60: 0 | AO60: 5.745923257 | AP60: 6.594197643 | AQ60: 1.703416377
B61: Tubewell/borehole | C61: 7.147538573 | D61: 4.888048427 | E61: 0 | F61: 0.09749703767 | G61: 0.8460323625 | H61: 0.4809022596 | I61: 0 | J61: 0.05758601412 | K61: 0.131358511 | L61: 1.207649324 | M61: 5.930847971 | N61: 6.828476051 | O61: 8.553030096 | P61: 3.404323069 | Q61: 10.87096134 | R61: 0 | S61: 3.397592811 | T61: 0 | U61: 0 | V61: 0.1451772655 | W61: 1.380417804 | X61: 0 | Y61: 0 | Z61: 0 | AA61: 19.57426746 | AB61: 0 | AC61: 3.993276269 | AD61: 2.478397512 | AE61: 13.22251577 | AF61: 0.7420646878 | AG61: 3.013229794 | AH61: 19.65666215 | AI61: 0.07783212295 | AJ61: 2.581917522 | AK61: 0 | AL61: 0 | AM61: 0 | AN61: 0 | AO61: 2.72787918 | AP61: 0.4262681455 | AQ61: 7.784000589
B62: Protected well | C62: 61.53809085 | D62: 46.13755506 | E62: 0.03291216632 | F62: 0 | G62: 0 | H62: 7.106956448 | I62: 0.04933908266 | J62: 0 | K62: 0 | L62: 0 | M62: 80.74228301 | N62: 58.9571171 | O62: 53.28062482 | P62: 61.09152862 | Q62: 58.4351252 | R62: 4.2484429 | S62: 42.7692644 | T62: 40.32111755 | U62: 59.84992336 | V62: 0.7994109841 | W62: 6.218931703 | X62: 44.80453481 | Y62: 58.84345063 | Z62: 20.2598467 | AA62: 0 | AB62: 37.88674329 | AC62: 14.74447443 | AD62: 0 | AE62: 25.87857497 | AF62: 6.674345309 | AG62: 28.39634543 | AH62: 0 | AI62: 16.24507899 | AJ62: 33.81086449 | AK62: 52.76423549 | AL62: 13.37611919 | AM62: 50.50946072 | AN62: 47.29587688 | AO62: 46.81038065 | AP62: 17.62148522 | AQ62: 0
B63: Unprotected well | C63: 2.033918758 | D63: 0.5245431552 | E63: 0 | F63: 0 | G63: 0 | H63: 0.7990672259 | I63: 0 | J63: 0 | K63: 0 | L63: 0 | M63: 2.268407679 | N63: 1.638400001 | O63: 0.6332776623 | P63: 0 | Q63: 1.5955641 | R63: 0 | S63: 0.3017530412 | T63: 0.1862249933 | U63: 1.593965037 | V63: 0 | W63: 0 | X63: 0 | Y63: 0 | Z63: 0 | AA63: 0 | AB63: 1.389559035 | AC63: 0 | AD63: 0 | AE63: 2.283063884 | AF63: 1.942709289 | AG63: 0 | AH63: 0 | AI63: 0 | AJ63: 0 | AK63: 4.5355789 | AL63: 0 | AM63: 1.868138752 | AN63: 1.430791805 | AO63: 0 | AP63: 1.103683061 | AQ63: 0
B64: Protected spring | C64: 0.2328034302 | D64: 0.6121018026 | E64: 0.8005526806 | F64: 1.394679402 | G64: 1.410285856 | H64: 0.2036618577 | I64: 0.9942533088 | J64: 1.659609134 | K64: 0.8922153551 | L64: 1.626708317 | M64: 0 | N64: 0.6554292585 | O64: 0.05273435906 | P64: 1.856526018 | Q64: 0 | R64: 0.1745337711 | S64: 6.209977973 | T64: 0 | U64: 0 | V64: 0 | W64: 0.02877045684 | X64: 0 | Y64: 1.006868614 | Z64: 0.7955775601 | AA64: 0 | AB64: 2.77911807 | AC64: 0 | AD64: 6.222950306 | AE64: 0 | AF64: 0.6347223116 | AG64: 0.1512968862 | AH64: 0 | AI64: 0 | AJ64: 0 | AK64: 1.805489388 | AL64: 0.06085781934 | AM64: 0 | AN64: 0 | AO64: 0 | AP64: 0 | AQ64: 0
B65: Unprotected spring | C65: 0.0247254974 | D65: 0 | E65: 0.2513130254 | F65: 0.2727975265 | G65: 0.3836525713 | H65: 0.4093441122 | I65: 0 | J65: 0.4088606995 | K65: 0 | L65: 0.5667664603 | M65: 0 | N65: 0 | O65: 0 | P65: 0 | Q65: 0 | R65: 0 | S65: 0 | T65: 0 | U65: 0 | V65: 0 | W65: 0 | X65: 0 | Y65: 0 | Z65: 1.262702762 | AA65: 0 | AB65: 0 | AC65: 1.970369006 | AD65: 0.8197663134 | AE65: 0 | AF65: 0.1141637983 | AG65: 0 | AH65: 0 | AI65: 0 | AJ65: 0 | AK65: 0 | AL65: 0 | AM65: 0 | AN65: 0 | AO65: 0 | AP65: 0 | AQ65: 0
B66: Tanker-truck | C66: 0 | D66: 0.3994674848 | E66: 1.074376979 | F66: 0.6059698096 | G66: 4.796767222 | H66: 0.6183914595 | I66: 1.583944315 | J66: 0.8970483885 | K66: 0.9791972122 | L66: 6.124920786 | M66: 0 | N66: 0 | O66: 0 | P66: 0 | Q66: 0 | R66: 0 | S66: 7.957486363 | T66: 0 | U66: 0 | V66: 0 | W66: 0 | X66: 0 | Y66: 0 | Z66: 10.28996817 | AA66: 0 | AB66: 0 | AC66: 2.627158674 | AD66: 0 | AE66: 0 | AF66: 9.611062381 | AG66: 0 | AH66: 0 | AI66: 0 | AJ66: 0 | AK66: 0 | AL66: 0 | AM66: 0 | AN66: 0 | AO66: 0 | AP66: 0 | AQ66: 0
B67: Cart with small tank/drum | C67: 0 | D67: 0.01780269482 | E67: 0.02371982563 | F67: 0 | G67: 0 | H67: 0.06156142533 | I67: 0 | J67: 0 | K67: 0 | L67: 0 | M67: 0 | N67: 0 | O67: 0 | P67: 0 | Q67: 0 | R67: 0 | S67: 0 | T67: 0 | U67: 0 | V67: 0 | W67: 0 | X67: 0 | Y67: 0 | Z67: 0 | AA67: 0 | AB67: 0 | AC67: 0 | AD67: 0 | AE67: 0 | AF67: 0.1918592447 | AG67: 0 | AH67: 0 | AI67: 0 | AJ67: 0 | AK67: 0 | AL67: 0 | AM67: 0 | AN67: 0 | AO67: 0 | AP67: 0 | AQ67: 0
B68: Bottled water | C68: 0.8318138507 | D68: 0.4716152476 | E68: 2.209495 | F68: 3.69527233 | G68: 4.010134141 | H68: 2.372347812 | I68: 2.866447032 | J68: 2.614726644 | K68: 4.464391229 | L68: 4.405135771 | M68: 0 | N68: 0 | O68: 0 | P68: 0 | Q68: 0 | R68: 0 | S68: 3.439321431 | T68: 0 | U68: 1.008674722 | V68: 4.5988519 | W68: 0 | X68: 0 | Y68: 0 | Z68: 0 | AA68: 0 | AB68: 0 | AC68: 4.068478518 | AD68: 4.429414232 | AE68: 0 | AF68: 13.65014176 | AG68: 0.4350566585 | AH68: 3.142930516 | AI68: 5.602357877 | AJ68: 0 | AK68: 5.522531628 | AL68: 0 | AM68: 0 | AN68: 0 | AO68: 0 | AP68: 0 | AQ68: 10.50730989
B69: Other | C69: 0 | D69: 0.02740036256 | E69: 0 | F69: 0.3669333115 | G69: 0.04859839111 | H69: 0 | I69: 0 | J69: 0.5139393198 | K69: 0.07229388215 | L69: 0.03589698098 | M69: 0 | N69: 0 | O69: 0 | P69: 0.08310625092 | Q69: 0 | R69: 0 | S69: 2.066607464 | T69: 0 | U69: 0 | V69: 0 | W69: 0 | X69: 0 | Y69: 0 | Z69: 0 | AA69: 0 | AB69: 0 | AC69: 0 | AD69: 0 | AE69: 0 | AF69: 0 | AG69: 0 | AH69: 0 | AI69: 0 | AJ69: 0 | AK69: 0 | AL69: 0 | AM69: 0 | AN69: 0 | AO69: 0 | AP69: 0.2222546578 | AQ69: 0.4757865363
A108: =A1026 -> Ukraine
A109: =A1034 -> 2005
A110: Use of sanitation facilities
A111: by wealth quintile and sub-national region
A112: Notes:
A113: WHO/UNICEF JMP customised wealth index excludes water,
A114: sanitation and hygiene assets.
A115: Survey used for analysis: | B115: =A1025 -> MICS05
A116: =B1030 -> 
A117: =B1029 -> 
A120: Use of sanitation facilities | C120: NATIONAL wealth index quintile | H120: URBAN wealth index quintile | M120: RURAL wealth index quintile | R120: SUB-REGIONS: | BA120: Raw numbers of respondents: | BB120: Use of sanitation facilities | BC120: NATIONAL wealth index quintile | BH120: URBAN wealth index quintile | BM120: RURAL wealth index quintile | BR120: SUB-REGIONS:
A121: Weighted percentage (used in graphs) | C121: Poorest | D121: Poor | E121: Middle | F121: Rich | G121: Richest | H121: Poorest | I121: Poor | J121: Middle | K121: Rich | L121: Richest | M121: Poorest | N121: Poor | O121: Middle | P121: Rich | Q121: Richest | R121: AR Krym | S121: Cherkaska | T121: Chernigivska | U121: Chernivecka | V121: Dnipropetrovska | W121: Donecka | X121: Gytomyrska | Y121: Iv-Frankivska | Z121: Kharkivska | AA121: Khersonska | AB121: Khmelnicka | AC121: Kirovogradska | AD121: Kyiv | AE121: Kyivska | AF121: Luganska | AG121: Lvivska | AH121: Mykolaivska | AI121: Odeska | AJ121: Poltavska | AK121: Rivnenska | AL121: Sumska | AM121: Ternopilska | AN121: Vinnycka | AO121: Volynska | AP121: Zakarpatska | AQ121: Zaporizka | BA121: Sanitation data, raw numbers (weighted) | BC121: Poorest | BD121: Poor | BE121: Middle | BF121: Rich | BG121: Richest | BH121: Poorest | BI121: Poor | BJ121: Middle | BK121: Rich | BL121: Richest | BM121: Poorest | BN121: Poor | BO121: Middle | BP121: Rich | BQ121: Richest | BR121: AR Krym | BS121: Cherkaska | BT121: Chernigivska | BU121: Chernivecka | BV121: Dnipropetrovska | BW121: Donecka | BX121: Gytomyrska | BY121: Iv-Frankivska | BZ121: Kharkivska | CA121: Khersonska | CB121: Khmelnicka | CC121: Kirovogradska | CD121: Kyiv | CE121: Kyivska | CF121: Luganska | CG121: Lvivska | CH121: Mykolaivska | CI121: Odeska | CJ121: Poltavska | CK121: Rivnenska | CL121: Sumska | CM121: Ternopilska | CN121: Vinnycka | CO121: Volynska | CP121: Zakarpatska | CQ121: Zaporizka
A122: Sanitation | B122: Improved | C122: 89.27497964 | D122: 91.87698454 | E122: 100 | F122: 100 | G122: 100 | H122: 94.05653454 | I122: 100 | J122: 100 | K122: 100 | L122: 100 | M122: 89.71058628 | N122: 88.85374693 | O122: 92.14492924 | P122: 91.33371182 | Q122: 92.88417874 | R122: 100 | S122: 100 | T122: 100 | U122: 70.27157364 | V122: 100 | W122: 100 | X122: 100 | Y122: 100 | Z122: 100 | AA122: 99.87518154 | AB122: 99.73059611 | AC122: 96.41112909 | AD122: 100 | AE122: 100 | AF122: 100 | AG122: 99.82118347 | AH122: 100 | AI122: 100 | AJ122: 67.39291626 | AK122: 90.5183236 | AL122: 100 | AM122: 100 | AN122: 63.04841104 | AO122: 99.09070694 | AP122: 100 | AQ122: 99.72754866 | BA122: Sanitation | BB122: Improved | BC122: 2894.539044 | BD122: 2979.841817 | BE122: 3245.633437 | BF122: 3258.771066 | BG122: 3222.115692 | BH122: 2058.397836 | BI122: 2165.03473 | BJ122: 2174.29723 | BK122: 2166.015076 | BL122: 2181.097607 | BM122: 958.5195896 | BN122: 946.9581897 | BO122: 983.5632001 | BP122: 976.6528098 | BQ122: 990.3647887 | BR122: 679.0130343 | BS122: 540.7204122 | BT122: 438.0272795 | BU122: 203.3871978 | BV122: 1048.230228 | BW122: 1806.097692 | BX122: 487.3250656 | BY122: 497.616578 | BZ122: 978.9896774 | CA122: 442.1578961 | CB122: 498.1398911 | CC122: 399.1113413 | CD122: 1084.436713 | CE122: 576.0327252 | CF122: 702.2088189 | CG122: 835.6025278 | CH122: 365.7354026 | CI122: 698.4928413 | CJ122: 436.6463185 | CK122: 442.8201197 | CL122: 443.9166732 | CM122: 326.05969 | CN122: 417.3281289 | CO122: 360.6284698 | CP122: 399.8452266 | CQ122: 492.3311069
B123: Not Improved | C123: 10.72502036 | D123: 8.123015455 | E123: 0 | F123: 0 | G123: 0 | H123: 5.943465456 | I123: 0 | J123: 0 | K123: 0 | L123: 0 | M123: 10.28941372 | N123: 11.14625307 | O123: 7.855070757 | P123: 8.666288184 | Q123: 7.115821261 | R123: 0 | S123: 0 | T123: 0 | U123: 29.72842636 | V123: 0 | W123: 0 | X123: 0 | Y123: 0 | Z123: 0 | AA123: 0.12481846 | AB123: 0.2694038854 | AC123: 3.588870907 | AD123: 0 | AE123: 0 | AF123: 0 | AG123: 0.1788165277 | AH123: 0 | AI123: 0 | AJ123: 32.60708374 | AK123: 9.481676402 | AL123: 0 | AM123: 0 | AN123: 36.95158896 | AO123: 0.9092930599 | AP123: 0 | AQ123: 0.2724513352 | BB123: Not Improved | BC123: 347.7344974 | BD123: 263.4533692 | BE123: 0 | BF123: 0 | BG123: 0 | BH123: 130.0708823 | BI123: 0 | BJ123: 0 | BK123: 0 | BL123: 0 | BM123: 109.9380243 | BN123: 118.7911146 | BO123: 83.84572645 | BP123: 92.6706529 | BQ123: 75.87146611 | BR123: 0 | BS123: 0 | BT123: 0 | BU123: 86.04306153 | BV123: 0 | BW123: 0 | BX123: 0 | BY123: 0 | BZ123: 0 | CA123: 0.552584404 | CB123: 1.34563341 | CC123: 14.85678152 | CD123: 0 | CE123: 0 | CF123: 0 | CG123: 1.49687208 | CH123: 0 | CI123: 0 | CJ123: 211.2649795 | CK123: 46.3848303 | CL123: 0 | CM123: 0 | CN123: 244.5888362 | CO123: 3.309260524 | CP123: 0 | CQ123: 1.345027219
A124: Sanitation ladder | B124: Basic | C124: 87.58277655 | D124: 91.22803831 | E124: 98.79125116 | F124: 99.03253622 | G124: 99.61055396 | H124: 91.4167221 | I124: 98.70665344 | J124: 98.9774129 | K124: 99.03404573 | L124: 99.82401321 | M124: 89.25478659 | N124: 88.38973243 | O124: 92.01754832 | P124: 89.90501062 | Q124: 92.88417874 | R124: 97.0296474 | S124: 100 | T124: 98.84011828 | U124: 61.99450753 | V124: 100 | W124: 100 | X124: 100 | Y124: 100 | Z124: 98.94149695 | AA124: 98.79697205 | AB124: 99.73059611 | AC124: 96.41112909 | AD124: 98.56812273 | AE124: 100 | AF124: 93.778073 | AG124: 99.82118347 | AH124: 100 | AI124: 99.60301978 | AJ124: 66.2423336 | AK124: 89.42604181 | AL124: 96.99184478 | AM124: 99.7805383 | AN124: 62.13902864 | AO124: 99.09070694 | AP124: 100 | AQ124: 99.72754866 | BA124: Sanitation ladder | BB124: Basic | BC124: 2839.673191 | BD124: 2958.794575 | BE124: 3206.401881 | BF124: 3227.243636 | BG124: 3209.56729 | BH124: 2000.626366 | BI124: 2137.033328 | BJ124: 2152.063147 | BK124: 2145.09236 | BL124: 2177.259163 | BM124: 953.6495632 | BN124: 942.0129584 | BO124: 982.2035248 | BP124: 961.3753727 | BQ124: 990.3647887 | BR124: 658.843953 | BS124: 540.7204122 | BT124: 432.9466812 | BU124: 179.4308639 | BV124: 1048.230228 | BW124: 1806.097692 | BX124: 487.3250656 | BY124: 497.616578 | BZ124: 968.6270418 | CA124: 437.3845497 | CB124: 498.1398911 | CC124: 399.1113413 | CD124: 1068.90891 | CE124: 576.0327252 | CF124: 658.5178989 | CG124: 835.6025278 | CH124: 365.7354026 | CI124: 695.7199628 | CJ124: 429.1915634 | CK124: 437.4766231 | CL124: 430.5629706 | CM124: 325.3441139 | CN124: 411.3087725 | CO124: 360.6284698 | CP124: 399.8452266 | CQ124: 492.3311069
B125: Limited | C125: 1.692203094 | D125: 0.6489462372 | E125: 1.208748844 | F125: 0.9674637829 | G125: 0.3894460398 | H125: 2.639812448 | I125: 1.293346562 | J125: 1.022587097 | K125: 0.9659542711 | L125: 0.1759867869 | M125: 0.4557996836 | N125: 0.4640145002 | O125: 0.1273809234 | P125: 1.428701192 | Q125: 0 | R125: 2.970352604 | S125: 0 | T125: 1.159881723 | U125: 8.277066107 | V125: 0 | W125: 0 | X125: 0 | Y125: 0 | Z125: 1.058503054 | AA125: 1.078209489 | AB125: 0 | AC125: 0 | AD125: 1.431877272 | AE125: 0 | AF125: 6.221926998 | AG125: 0 | AH125: 0 | AI125: 0.3969802234 | AJ125: 1.150582663 | AK125: 1.092281787 | AL125: 3.008155219 | AM125: 0.2194616976 | AN125: 0.9093823941 | AO125: 0 | AP125: 0 | AQ125: 0 | BB125: Limited | BC125: 54.86585316 | BD125: 21.04724207 | BE125: 39.23155666 | BF125: 31.52742983 | BG125: 12.54840196 | BH125: 57.77146966 | BI125: 28.00140223 | BJ125: 22.23408292 | BK125: 20.92271513 | BL125: 3.838443598 | BM125: 4.870026424 | BN125: 4.945231308 | BO125: 1.359675347 | BP125: 15.27743706 | BQ125: 0 | BR125: 20.16908135 | BS125: 0 | BT125: 5.080598355 | BU125: 23.9563339 | BV125: 0 | BW125: 0 | BX125: 0 | BY125: 0 | BZ125: 10.36263564 | CA125: 4.77334641 | CB125: 0 | CC125: 0 | CD125: 15.52780282 | CE125: 0 | CF125: 43.69092009 | CG125: 0 | CH125: 0 | CI125: 2.772878442 | CJ125: 7.454755065 | CK125: 5.343496572 | CL125: 13.35370257 | CM125: 0.715576131 | CN125: 6.019356344 | CO125: 0 | CP125: 0 | CQ125: 0
B126: Unimproved | C126: 10.72502036 | D126: 8.123015455 | E126: 0 | F126: 0 | G126: 0 | H126: 5.943465456 | I126: 0 | J126: 0 | K126: 0 | L126: 0 | M126: 10.28941372 | N126: 11.14625307 | O126: 7.855070757 | P126: 8.666288184 | Q126: 7.115821261 | R126: 0 | S126: 0 | T126: 0 | U126: 29.72842636 | V126: 0 | W126: 0 | X126: 0 | Y126: 0 | Z126: 0 | AA126: 0.12481846 | AB126: 0.2694038854 | AC126: 3.588870907 | AD126: 0 | AE126: 0 | AF126: 0 | AG126: 0.1788165277 | AH126: 0 | AI126: 0 | AJ126: 32.60708374 | AK126: 9.481676402 | AL126: 0 | AM126: 0 | AN126: 36.95158896 | AO126: 0.9092930599 | AP126: 0 | AQ126: 0.2724513352 | BB126: Unimproved | BC126: 347.7344974 | BD126: 263.4533692 | BE126: 0 | BF126: 0 | BG126: 0 | BH126: 130.0708823 | BI126: 0 | BJ126: 0 | BK126: 0 | BL126: 0 | BM126: 109.9380243 | BN126: 118.7911146 | BO126: 83.84572645 | BP126: 92.6706529 | BQ126: 75.87146611 | BR126: 0 | BS126: 0 | BT126: 0 | BU126: 86.04306153 | BV126: 0 | BW126: 0 | BX126: 0 | BY126: 0 | BZ126: 0 | CA126: 0.552584404 | CB126: 1.34563341 | CC126: 14.85678152 | CD126: 0 | CE126: 0 | CF126: 0 | CG126: 1.49687208 | CH126: 0 | CI126: 0 | CJ126: 211.2649795 | CK126: 46.3848303 | CL126: 0 | CM126: 0 | CN126: 244.5888362 | CO126: 3.309260524 | CP126: 0 | CQ126: 1.345027219
B127: Open defecation | C127: 0 | D127: 0 | E127: 0 | F127: 0 | G127: 0 | H127: 0 | I127: 0 | J127: 0 | K127: 0 | L127: 0 | M127: 0 | N127: 0 | O127: 0 | P127: 0 | Q127: 0 | R127: 0 | S127: 0 | T127: 0 | U127: 0 | V127: 0 | W127: 0 | X127: 0 | Y127: 0 | Z127: 0 | AA127: 0 | AB127: 0 | AC127: 0 | AD127: 0 | AE127: 0 | AF127: 0 | AG127: 0 | AH127: 0 | AI127: 0 | AJ127: 0 | AK127: 0 | AL127: 0 | AM127: 0 | AN127: 0 | AO127: 0 | AP127: 0 | AQ127: 0 | BB127: Open defecation | BC127: 226.6287395 | BD127: 957.6741248 | BE127: 3227.12728 | BF127: 3255.314944 | BG127: 3206.398049 | BH127: 1778.834672 | BI127: 2159.497562 | BJ127: 2174.075942 | BK127: 2162.780241 | BL127: 2165.379963 | BM127: 0 | BN127: 44.57001651 | BO127: 152.9104393 | BP127: 120.0227916 | BQ127: 115.0715075 | BR127: 477.8223512 | BS127: 308.2619688 | BT127: 259.626336 | BU127: 100.8332037 | BV127: 936.6126829 | BW127: 1800.208637 | BX127: 268.9813369 | BY127: 194.7602705 | BZ127: 789.92402 | CA127: 275.8317965 | CB127: 266.9880886 | CC127: 268.5833674 | CD127: 1084.436713 | CE127: 301.9443898 | CF127: 459.1311445 | CG127: 485.0351254 | CH127: 246.3953913 | CI127: 462.0510368 | CJ127: 377.9953879 | CK127: 208.8914217 | CL127: 287.1628211 | CM127: 128.9453508 | CN127: 197.746276 | CO127: 146.1952584 | CP127: 161.1476271 | CQ127: 377.6311333
A128: Shared among Improved Sanitation | B128: Yes | C128: 1.895495356 | D128: 0.7063207836 | E128: 1.208748844 | F128: 0.9674637829 | G128: 0.3894460398 | H128: 2.806623124 | I128: 1.293346562 | J128: 1.022587097 | K128: 0.9659542711 | L128: 0.1759867869 | M128: 0.5080779232 | N128: 0.522222772 | O128: 0.1382397539 | P128: 1.564264896 | Q128: 0 | R128: 2.970352604 | S128: 0 | T128: 1.159881723 | U128: 11.7786833 | V128: 0 | W128: 0 | X128: 0 | Y128: 0 | Z128: 1.058503054 | AA128: 1.079556976 | AB128: 0 | AC128: 0 | AD128: 1.431877272 | AE128: 0 | AF128: 6.221926998 | AG128: 0 | AH128: 0 | AI128: 0.3969802234 | AJ128: 1.707275374 | AK128: 1.206696881 | AL128: 3.008155219 | AM128: 0.2194616976 | AN128: 1.442355769 | AO128: 0 | AP128: 0 | AQ128: 0 | BA128: Shared among improved sanitation facilities | BB128: Yes | BC128: N/A | BD128: N/A | BE128: N/A | BF128: N/A | BG128: N/A | BH128: N/A | BI128: N/A | BJ128: N/A | BK128: N/A | BL128: N/A | BM128: N/A | BN128: N/A | BO128: N/A | BP128: N/A | BQ128: N/A | BR128: N/A | BS128: N/A | BT128: N/A | BU128: N/A | BV128: N/A | BW128: N/A | BX128: N/A | BY128: N/A | BZ128: N/A | CA128: N/A | CB128: N/A | CC128: N/A | CD128: N/A | CE128: N/A | CF128: N/A | CG128: N/A | CH128: N/A | CI128: N/A | CJ128: N/A | CK128: N/A | CL128: N/A | CM128: N/A | CN128: N/A | CO128: N/A | CP128: N/A | CQ128: N/A
B129: No | C129: 98.10450464 | D129: 99.29367922 | E129: 98.79125116 | F129: 99.03253622 | G129: 99.61055396 | H129: 97.19337688 | I129: 98.70665344 | J129: 98.9774129 | K129: 99.03404573 | L129: 99.82401321 | M129: 99.49192208 | N129: 99.47777723 | O129: 99.86176025 | P129: 98.4357351 | Q129: 100 | R129: 97.0296474 | S129: 100 | T129: 98.84011828 | U129: 88.2213167 | V129: 100 | W129: 100 | X129: 100 | Y129: 100 | Z129: 98.94149695 | AA129: 98.92044302 | AB129: 100 | AC129: 100 | AD129: 98.56812273 | AE129: 100 | AF129: 93.778073 | AG129: 100 | AH129: 100 | AI129: 99.60301978 | AJ129: 98.29272463 | AK129: 98.79330312 | AL129: 96.99184478 | AM129: 99.7805383 | AN129: 98.55764423 | AO129: 100 | AP129: 100 | AQ129: 100 | BB129: No | BC129: N/A | BD129: N/A | BE129: N/A | BF129: N/A | BG129: N/A | BH129: N/A | BI129: N/A | BJ129: N/A | BK129: N/A | BL129: N/A | BM129: N/A | BN129: N/A | BO129: N/A | BP129: N/A | BQ129: N/A | BR129: N/A | BS129: N/A | BT129: N/A | BU129: N/A | BV129: N/A | BW129: N/A | BX129: N/A | BY129: N/A | BZ129: N/A | CA129: N/A | CB129: N/A | CC129: N/A | CD129: N/A | CE129: N/A | CF129: N/A | CG129: N/A | CH129: N/A | CI129: N/A | CJ129: N/A | CK129: N/A | CL129: N/A | CM129: N/A | CN129: N/A | CO129: N/A | CP129: N/A | CQ129: N/A
A130: Manually calculated ratios | B130: Improved latrines
B131: Other
B132: Other
C133: NATIONAL wealth index quintile | H133: URBAN wealth index quintile | M133: RURAL wealth index quintile | R133: SUB-REGIONS: | BA133: Raw numbers of respondents: | BB133: Use of sanitation facilities | BC133: NATIONAL wealth index quintile | BH133: URBAN wealth index quintile | BM133: RURAL wealth index quintile | BR133: SUB-REGIONS:
A134: Percentage based on weighted population | C134: Poorest | D134: Poor | E134: Middle | F134: Rich | G134: Richest | H134: Poorest | I134: Poor | J134: Middle | K134: Rich | L134: Richest | M134: Poorest | N134: Poor | O134: Middle | P134: Rich | Q134: Richest | R134: AR Krym | S134: Cherkaska | T134: Chernigivska | U134: Chernivecka | V134: Dnipropetrovska | W134: Donecka | X134: Gytomyrska | Y134: Iv-Frankivska | Z134: Kharkivska | AA134: Khersonska | AB134: Khmelnicka | AC134: Kirovogradska | AD134: Kyiv | AE134: Kyivska | AF134: Luganska | AG134: Lvivska | AH134: Mykolaivska | AI134: Odeska | AJ134: Poltavska | AK134: Rivnenska | AL134: Sumska | AM134: Ternopilska | AN134: Vinnycka | AO134: Volynska | AP134: Zakarpatska | AQ134: Zaporizka | BA134: Sanitation data, raw numbers (weighted) | BC134: Poorest | BD134: Poor | BE134: Middle | BF134: Rich | BG134: Richest | BH134: Poorest | BI134: Poor | BJ134: Middle | BK134: Rich | BL134: Richest | BM134: Poorest | BN134: Poor | BO134: Middle | BP134: Rich | BQ134: Richest | BR134: AR Krym | BS134: Cherkaska | BT134: Chernigivska | BU134: Chernivecka | BV134: Dnipropetrovska | BW134: Donecka | BX134: Gytomyrska | BY134: Iv-Frankivska | BZ134: Kharkivska | CA134: Khersonska | CB134: Khmelnicka | CC134: Kirovogradska | CD134: Kyiv | CE134: Kyivska | CF134: Luganska | CG134: Lvivska | CH134: Mykolaivska | CI134: Odeska | CJ134: Poltavska | CK134: Rivnenska | CL134: Sumska | CM134: Ternopilska | CN134: Vinnycka | CO134: Volynska | CP134: Zakarpatska | CQ134: Zaporizka
A135: Sanitation type | B135: Sewer connection | C135: 6.989809362 | D135: 29.5278126 | E135: 99.42981368 | F135: 99.89394399 | G135: 99.51219495 | H135: 81.28216124 | I135: 99.74424579 | J135: 99.98982253 | K135: 99.85065504 | L135: 99.27937002 | M135: 0 | N135: 4.182035712 | O135: 14.3253851 | P135: 11.22418013 | Q135: 10.79230864 | R135: 70.37012944 | S135: 57.0094936 | T135: 59.27172761 | U135: 34.83851479 | V135: 89.35181008 | W135: 99.67393482 | X135: 55.19546519 | Y135: 39.13862181 | Z135: 80.6876761 | AA135: 62.30523302 | AB135: 53.45261784 | AC135: 64.88020517 | AD135: 100 | AE135: 52.41792291 | AF135: 65.38384767 | AG135: 57.94235733 | AH135: 67.36984977 | AI135: 66.14971686 | AJ135: 58.34060759 | AK135: 42.70018561 | AL135: 64.68845133 | AM135: 39.5465477 | AN135: 29.87478587 | AO135: 40.1704045 | AP135: 40.30250117 | AQ135: 76.49369845 | BA135: Sanitation type | BB135: Sewer connection | BC135: N/A | BD135: N/A | BE135: N/A | BF135: N/A | BG135: N/A | BH135: N/A | BI135: N/A | BJ135: N/A | BK135: N/A | BL135: N/A | BM135: N/A | BN135: N/A | BO135: N/A | BP135: N/A | BQ135: N/A | BR135: N/A | BS135: N/A | BT135: N/A | BU135: N/A | BV135: N/A | BW135: N/A | BX135: N/A | BY135: N/A | BZ135: N/A | CA135: N/A | CB135: N/A | CC135: N/A | CD135: N/A | CE135: N/A | CF135: N/A | CG135: N/A | CH135: N/A | CI135: N/A | CJ135: N/A | CK135: N/A | CL135: N/A | CM135: N/A | CN135: N/A | CO135: N/A | CP135: N/A | CQ135: N/A
B136: Septic tank connection | C136: 1.276428326 | D136: 3.810402879 | E136: 0.2373204287 | F136: 0 | G136: 0.1844980928 | H136: 2.116515986 | I136: 0.04292537709 | J136: 0 | K136: 0 | L136: 0.2725573574 | M136: 0 | N136: 0.8205562498 | O136: 3.057893234 | P136: 2.801506857 | Q136: 5.071986097 | R136: 0 | S136: 0 | T136: 0 | U136: 3.166503002 | V136: 4.275226212 | W136: 0 | X136: 0 | Y136: 0 | Z136: 0 | AA136: 0 | AB136: 1.712843698 | AC136: 3.345864992 | AD136: 0 | AE136: 0 | AF136: 0 | AG136: 11.32670718 | AH136: 0 | AI136: 0 | AJ136: 0 | AK136: 0 | AL136: 0 | AM136: 0 | AN136: 0 | AO136: 0 | AP136: 1.854256025 | AQ136: 0 | BB136: Septic tank connection | BC136: N/A | BD136: N/A | BE136: N/A | BF136: N/A | BG136: N/A | BH136: N/A | BI136: N/A | BJ136: N/A | BK136: N/A | BL136: N/A | BM136: N/A | BN136: N/A | BO136: N/A | BP136: N/A | BQ136: N/A | BR136: N/A | BS136: N/A | BT136: N/A | BU136: N/A | BV136: N/A | BW136: N/A | BX136: N/A | BY136: N/A | BZ136: N/A | CA136: N/A | CB136: N/A | CC136: N/A | CD136: N/A | CE136: N/A | CF136: N/A | CG136: N/A | CH136: N/A | CI136: N/A | CJ136: N/A | CK136: N/A | CL136: N/A | CM136: N/A | CN136: N/A | CO136: N/A | CP136: N/A | CQ136: N/A
B137: Improved latrines | C137: 81.00874195 | D137: 58.53876906 | E137: 0.3328658891 | F137: 0.1060560149 | G137: 0.3033069606 | H137: 10.65785732 | I137: 0.2128288352 | J137: 0.01017746851 | K137: 0.1493449582 | L137: 0.4480726192 | M137: 89.71058628 | N137: 83.85115497 | O137: 74.76165091 | P137: 77.30802483 | Q137: 77.019884 | R137: 29.62987056 | S137: 42.9905064 | T137: 40.72827239 | U137: 32.26655585 | V137: 6.37296371 | W137: 0.3260651775 | X137: 44.80453481 | Y137: 60.86137819 | Z137: 19.3123239 | AA137: 37.56994852 | AB137: 44.56513458 | AC137: 28.18505893 | AD137: 0 | AE137: 47.58207709 | AF137: 34.61615233 | AG137: 30.55211896 | AH137: 32.63015023 | AI137: 33.85028314 | AJ137: 9.052308672 | AK137: 47.81813799 | AL137: 35.31154867 | AM137: 60.4534523 | AN137: 33.17362516 | AO137: 58.92030244 | AP137: 57.84324281 | AQ137: 23.23385021 | BB137: Improved latrines | BC137: N/A | BD137: N/A | BE137: N/A | BF137: N/A | BG137: N/A | BH137: N/A | BI137: N/A | BJ137: N/A | BK137: N/A | BL137: N/A | BM137: N/A | BN137: N/A | BO137: N/A | BP137: N/A | BQ137: N/A | BR137: N/A | BS137: N/A | BT137: N/A | BU137: N/A | BV137: N/A | BW137: N/A | BX137: N/A | BY137: N/A | BZ137: N/A | CA137: N/A | CB137: N/A | CC137: N/A | CD137: N/A | CE137: N/A | CF137: N/A | CG137: N/A | CH137: N/A | CI137: N/A | CJ137: N/A | CK137: N/A | CL137: N/A | CM137: N/A | CN137: N/A | CO137: N/A | CP137: N/A | CQ137: N/A
B138: Unimproved facilities | C138: 10.72502036 | D138: 8.123015455 | E138: 0 | F138: 0 | G138: 0 | H138: 5.943465456 | I138: 0 | J138: 0 | K138: 0 | L138: 0 | M138: 10.28941372 | N138: 11.14625307 | O138: 7.855070757 | P138: 8.666288184 | Q138: 7.115821261 | R138: 0 | S138: 0 | T138: 0 | U138: 29.72842636 | V138: 0 | W138: 0 | X138: 0 | Y138: 0 | Z138: 0 | AA138: 0.12481846 | AB138: 0.2694038854 | AC138: 3.588870907 | AD138: 0 | AE138: 0 | AF138: 0 | AG138: 0.1788165277 | AH138: 0 | AI138: 0 | AJ138: 32.60708374 | AK138: 9.481676402 | AL138: 0 | AM138: 0 | AN138: 36.95158896 | AO138: 0.9092930599 | AP138: 0 | AQ138: 0.2724513352 | BB138: Unimproved facilities | BC138: N/A | BD138: N/A | BE138: N/A | BF138: N/A | BG138: N/A | BH138: N/A | BI138: N/A | BJ138: N/A | BK138: N/A | BL138: N/A | BM138: N/A | BN138: N/A | BO138: N/A | BP138: N/A | BQ138: N/A | BR138: N/A | BS138: N/A | BT138: N/A | BU138: N/A | BV138: N/A | BW138: N/A | BX138: N/A | BY138: N/A | BZ138: N/A | CA138: N/A | CB138: N/A | CC138: N/A | CD138: N/A | CE138: N/A | CF138: N/A | CG138: N/A | CH138: N/A | CI138: N/A | CJ138: N/A | CK138: N/A | CL138: N/A | CM138: N/A | CN138: N/A | CO138: N/A | CP138: N/A | CQ138: N/A
B139: Open defecation | C139: 0 | D139: 0 | E139: 0 | F139: 0 | G139: 0 | H139: 0 | I139: 0 | J139: 0 | K139: 0 | L139: 0 | M139: 0 | N139: 0 | O139: 0 | P139: 0 | Q139: 0 | R139: 0 | S139: 0 | T139: 0 | U139: 0 | V139: 0 | W139: 0 | X139: 0 | Y139: 0 | Z139: 0 | AA139: 0 | AB139: 0 | AC139: 0 | AD139: 0 | AE139: 0 | AF139: 0 | AG139: 0 | AH139: 0 | AI139: 0 | AJ139: 0 | AK139: 0 | AL139: 0 | AM139: 0 | AN139: 0 | AO139: 0 | AP139: 0 | AQ139: 0 | BB139: Open defecation | BC139: N/A | BD139: N/A | BE139: N/A | BF139: N/A | BG139: N/A | BH139: N/A | BI139: N/A | BJ139: N/A | BK139: N/A | BL139: N/A | BM139: N/A | BN139: N/A | BO139: N/A | BP139: N/A | BQ139: N/A | BR139: N/A | BS139: N/A | BT139: N/A | BU139: N/A | BV139: N/A | BW139: N/A | BX139: N/A | BY139: N/A | BZ139: N/A | CA139: N/A | CB139: N/A | CC139: N/A | CD139: N/A | CE139: N/A | CF139: N/A | CG139: N/A | CH139: N/A | CI139: N/A | CJ139: N/A | CK139: N/A | CL139: N/A | CM139: N/A | CN139: N/A | CO139: N/A | CP139: N/A | CQ139: N/A
A140: Septic tank emptying practices | B140: Not emptied/treated and disposed in situ | C140: N/A | D140: N/A | E140: N/A | F140: N/A | G140: N/A | H140: N/A | I140: N/A | J140: N/A | K140: N/A | L140: N/A | M140: N/A | N140: N/A | O140: N/A | P140: N/A | Q140: N/A | R140: N/A | S140: N/A | T140: N/A | U140: N/A | V140: N/A | W140: N/A | X140: N/A | Y140: N/A | Z140: N/A | AA140: N/A | AB140: N/A | AC140: N/A | AD140: N/A | AE140: N/A | AF140: N/A | AG140: N/A | AH140: N/A | AI140: N/A | AJ140: N/A | AK140: N/A | AL140: N/A | AM140: N/A | AN140: N/A | AO140: N/A | AP140: N/A | AQ140: N/A | BA140: Septic tank emptying practices | BB140: Not emptied/treated and disposed in situ | BC140: N/A | BD140: N/A | BE140: N/A | BF140: N/A | BG140: N/A | BH140: N/A | BI140: N/A | BJ140: N/A | BK140: N/A | BL140: N/A | BM140: N/A | BN140: N/A | BO140: N/A | BP140: N/A | BQ140: N/A | BR140: N/A | BS140: N/A | BT140: N/A | BU140: N/A | BV140: N/A | BW140: N/A | BX140: N/A | BY140: N/A | BZ140: N/A | CA140: N/A | CB140: N/A | CC140: N/A | CD140: N/A | CE140: N/A | CF140: N/A | CG140: N/A | CH140: N/A | CI140: N/A | CJ140: N/A | CK140: N/A | CL140: N/A | CM140: N/A | CN140: N/A | CO140: N/A | CP140: N/A | CQ140: N/A
B141: Emptied and buried on site | C141: N/A | D141: N/A | E141: N/A | F141: N/A | G141: N/A | H141: N/A | I141: N/A | J141: N/A | K141: N/A | L141: N/A | M141: N/A | N141: N/A | O141: N/A | P141: N/A | Q141: N/A | R141: N/A | S141: N/A | T141: N/A | U141: N/A | V141: N/A | W141: N/A | X141: N/A | Y141: N/A | Z141: N/A | AA141: N/A | AB141: N/A | AC141: N/A | AD141: N/A | AE141: N/A | AF141: N/A | AG141: N/A | AH141: N/A | AI141: N/A | AJ141: N/A | AK141: N/A | AL141: N/A | AM141: N/A | AN141: N/A | AO141: N/A | AP141: N/A | AQ141: N/A | BB141: Emptied and buried on site | BC141: N/A | BD141: N/A | BE141: N/A | BF141: N/A | BG141: N/A | BH141: N/A | BI141: N/A | BJ141: N/A | BK141: N/A | BL141: N/A | BM141: N/A | BN141: N/A | BO141: N/A | BP141: N/A | BQ141: N/A | BR141: N/A | BS141: N/A | BT141: N/A | BU141: N/A | BV141: N/A | BW141: N/A | BX141: N/A | BY141: N/A | BZ141: N/A | CA141: N/A | CB141: N/A | CC141: N/A | CD141: N/A | CE141: N/A | CF141: N/A | CG141: N/A | CH141: N/A | CI141: N/A | CJ141: N/A | CK141: N/A | CL141: N/A | CM141: N/A | CN141: N/A | CO141: N/A | CP141: N/A | CQ141: N/A
B142: Emptied and discharged locally | C142: N/A | D142: N/A | E142: N/A | F142: N/A | G142: N/A | H142: N/A | I142: N/A | J142: N/A | K142: N/A | L142: N/A | M142: N/A | N142: N/A | O142: N/A | P142: N/A | Q142: N/A | R142: N/A | S142: N/A | T142: N/A | U142: N/A | V142: N/A | W142: N/A | X142: N/A | Y142: N/A | Z142: N/A | AA142: N/A | AB142: N/A | AC142: N/A | AD142: N/A | AE142: N/A | AF142: N/A | AG142: N/A | AH142: N/A | AI142: N/A | AJ142: N/A | AK142: N/A | AL142: N/A | AM142: N/A | AN142: N/A | AO142: N/A | AP142: N/A | AQ142: N/A | BB142: Emptied and discharged locally | BC142: N/A | BD142: N/A | BE142: N/A | BF142: N/A | BG142: N/A | BH142: N/A | BI142: N/A | BJ142: N/A | BK142: N/A | BL142: N/A | BM142: N/A | BN142: N/A | BO142: N/A | BP142: N/A | BQ142: N/A | BR142: N/A | BS142: N/A | BT142: N/A | BU142: N/A | BV142: N/A | BW142: N/A | BX142: N/A | BY142: N/A | BZ142: N/A | CA142: N/A | CB142: N/A | CC142: N/A | CD142: N/A | CE142: N/A | CF142: N/A | CG142: N/A | CH142: N/A | CI142: N/A | CJ142: N/A | CK142: N/A | CL142: N/A | CM142: N/A | CN142: N/A | CO142: N/A | CP142: N/A | CQ142: N/A
B143: Emptied and removed offsite | C143: N/A | D143: N/A | E143: N/A | F143: N/A | G143: N/A | H143: N/A | I143: N/A | J143: N/A | K143: N/A | L143: N/A | M143: N/A | N143: N/A | O143: N/A | P143: N/A | Q143: N/A | R143: N/A | S143: N/A | T143: N/A | U143: N/A | V143: N/A | W143: N/A | X143: N/A | Y143: N/A | Z143: N/A | AA143: N/A | AB143: N/A | AC143: N/A | AD143: N/A | AE143: N/A | AF143: N/A | AG143: N/A | AH143: N/A | AI143: N/A | AJ143: N/A | AK143: N/A | AL143: N/A | AM143: N/A | AN143: N/A | AO143: N/A | AP143: N/A | AQ143: N/A | BB143: Emptied and removed offsite | BC143: N/A | BD143: N/A | BE143: N/A | BF143: N/A | BG143: N/A | BH143: N/A | BI143: N/A | BJ143: N/A | BK143: N/A | BL143: N/A | BM143: N/A | BN143: N/A | BO143: N/A | BP143: N/A | BQ143: N/A | BR143: N/A | BS143: N/A | BT143: N/A | BU143: N/A | BV143: N/A | BW143: N/A | BX143: N/A | BY143: N/A | BZ143: N/A | CA143: N/A | CB143: N/A | CC143: N/A | CD143: N/A | CE143: N/A | CF143: N/A | CG143: N/A | CH143: N/A | CI143: N/A | CJ143: N/A | CK143: N/A | CL143: N/A | CM143: N/A | CN143: N/A | CO143: N/A | CP143: N/A | CQ143: N/A
A144: Latrine emptying practices | B144: Not emptied/treated and disposed in situ | C144: N/A | D144: N/A | E144: N/A | F144: N/A | G144: N/A | H144: N/A | I144: N/A | J144: N/A | K144: N/A | L144: N/A | M144: N/A | N144: N/A | O144: N/A | P144: N/A | Q144: N/A | R144: N/A | S144: N/A | T144: N/A | U144: N/A | V144: N/A | W144: N/A | X144: N/A | Y144: N/A | Z144: N/A | AA144: N/A | AB144: N/A | AC144: N/A | AD144: N/A | AE144: N/A | AF144: N/A | AG144: N/A | AH144: N/A | AI144: N/A | AJ144: N/A | AK144: N/A | AL144: N/A | AM144: N/A | AN144: N/A | AO144: N/A | AP144: N/A | AQ144: N/A | BA144: Latrine emptying practices | BB144: Not emptied/treated and disposed in situ | BC144: N/A | BD144: N/A | BE144: N/A | BF144: N/A | BG144: N/A | BH144: N/A | BI144: N/A | BJ144: N/A | BK144: N/A | BL144: N/A | BM144: N/A | BN144: N/A | BO144: N/A | BP144: N/A | BQ144: N/A | BR144: N/A | BS144: N/A | BT144: N/A | BU144: N/A | BV144: N/A | BW144: N/A | BX144: N/A | BY144: N/A | BZ144: N/A | CA144: N/A | CB144: N/A | CC144: N/A | CD144: N/A | CE144: N/A | CF144: N/A | CG144: N/A | CH144: N/A | CI144: N/A | CJ144: N/A | CK144: N/A | CL144: N/A | CM144: N/A | CN144: N/A | CO144: N/A | CP144: N/A | CQ144: N/A
B145: Emptied and buried on site | C145: N/A | D145: N/A | E145: N/A | F145: N/A | G145: N/A | H145: N/A | I145: N/A | J145: N/A | K145: N/A | L145: N/A | M145: N/A | N145: N/A | O145: N/A | P145: N/A | Q145: N/A | R145: N/A | S145: N/A | T145: N/A | U145: N/A | V145: N/A | W145: N/A | X145: N/A | Y145: N/A | Z145: N/A | AA145: N/A | AB145: N/A | AC145: N/A | AD145: N/A | AE145: N/A | AF145: N/A | AG145: N/A | AH145: N/A | AI145: N/A | AJ145: N/A | AK145: N/A | AL145: N/A | AM145: N/A | AN145: N/A | AO145: N/A | AP145: N/A | AQ145: N/A | BB145: Emptied and buried on site | BC145: N/A | BD145: N/A | BE145: N/A | BF145: N/A | BG145: N/A | BH145: N/A | BI145: N/A | BJ145: N/A | BK145: N/A | BL145: N/A | BM145: N/A | BN145: N/A | BO145: N/A | BP145: N/A | BQ145: N/A | BR145: N/A | BS145: N/A | BT145: N/A | BU145: N/A | BV145: N/A | BW145: N/A | BX145: N/A | BY145: N/A | BZ145: N/A | CA145: N/A | CB145: N/A | CC145: N/A | CD145: N/A | CE145: N/A | CF145: N/A | CG145: N/A | CH145: N/A | CI145: N/A | CJ145: N/A | CK145: N/A | CL145: N/A | CM145: N/A | CN145: N/A | CO145: N/A | CP145: N/A | CQ145: N/A
B146: Emptied and discharged locally | C146: N/A | D146: N/A | E146: N/A | F146: N/A | G146: N/A | H146: N/A | I146: N/A | J146: N/A | K146: N/A | L146: N/A | M146: N/A | N146: N/A | O146: N/A | P146: N/A | Q146: N/A | R146: N/A | S146: N/A | T146: N/A | U146: N/A | V146: N/A | W146: N/A | X146: N/A | Y146: N/A | Z146: N/A | AA146: N/A | AB146: N/A | AC146: N/A | AD146: N/A | AE146: N/A | AF146: N/A | AG146: N/A | AH146: N/A | AI146: N/A | AJ146: N/A | AK146: N/A | AL146: N/A | AM146: N/A | AN146: N/A | AO146: N/A | AP146: N/A | AQ146: N/A | BB146: Emptied and discharged locally | BC146: N/A | BD146: N/A | BE146: N/A | BF146: N/A | BG146: N/A | BH146: N/A | BI146: N/A | BJ146: N/A | BK146: N/A | BL146: N/A | BM146: N/A | BN146: N/A | BO146: N/A | BP146: N/A | BQ146: N/A | BR146: N/A | BS146: N/A | BT146: N/A | BU146: N/A | BV146: N/A | BW146: N/A | BX146: N/A | BY146: N/A | BZ146: N/A | CA146: N/A | CB146: N/A | CC146: N/A | CD146: N/A | CE146: N/A | CF146: N/A | CG146: N/A | CH146: N/A | CI146: N/A | CJ146: N/A | CK146: N/A | CL146: N/A | CM146: N/A | CN146: N/A | CO146: N/A | CP146: N/A | CQ146: N/A
B147: Emptied and removed offsite | C147: N/A | D147: N/A | E147: N/A | F147: N/A | G147: N/A | H147: N/A | I147: N/A | J147: N/A | K147: N/A | L147: N/A | M147: N/A | N147: N/A | O147: N/A | P147: N/A | Q147: N/A | R147: N/A | S147: N/A | T147: N/A | U147: N/A | V147: N/A | W147: N/A | X147: N/A | Y147: N/A | Z147: N/A | AA147: N/A | AB147: N/A | AC147: N/A | AD147: N/A | AE147: N/A | AF147: N/A | AG147: N/A | AH147: N/A | AI147: N/A | AJ147: N/A | AK147: N/A | AL147: N/A | AM147: N/A | AN147: N/A | AO147: N/A | AP147: N/A | AQ147: N/A | BB147: Emptied and removed offsite | BC147: N/A | BD147: N/A | BE147: N/A | BF147: N/A | BG147: N/A | BH147: N/A | BI147: N/A | BJ147: N/A | BK147: N/A | BL147: N/A | BM147: N/A | BN147: N/A | BO147: N/A | BP147: N/A | BQ147: N/A | BR147: N/A | BS147: N/A | BT147: N/A | BU147: N/A | BV147: N/A | BW147: N/A | BX147: N/A | BY147: N/A | BZ147: N/A | CA147: N/A | CB147: N/A | CC147: N/A | CD147: N/A | CE147: N/A | CF147: N/A | CG147: N/A | CH147: N/A | CI147: N/A | CJ147: N/A | CK147: N/A | CL147: N/A | CM147: N/A | CN147: N/A | CO147: N/A | CP147: N/A | CQ147: N/A
A148: Shared among improved sanitation facilities | B148: Yes | C148: 1.692203094 | D148: 0.6489462372 | E148: 1.208748844 | F148: 0.9674637829 | G148: 0.3894460398 | H148: 2.639812448 | I148: 1.293346562 | J148: 1.022587097 | K148: 0.9659542711 | L148: 0.1759867869 | M148: 0.4557996836 | N148: 0.4640145002 | O148: 0.1273809234 | P148: 1.428701192 | Q148: 0 | R148: 2.970352604 | S148: 0 | T148: 1.159881723 | U148: 8.277066107 | V148: 0 | W148: 0 | X148: 0 | Y148: 0 | Z148: 1.058503054 | AA148: 1.078209489 | AB148: 0 | AC148: 0 | AD148: 1.431877272 | AE148: 0 | AF148: 6.221926998 | AG148: 0 | AH148: 0 | AI148: 0.3969802234 | AJ148: 1.150582663 | AK148: 1.092281787 | AL148: 3.008155219 | AM148: 0.2194616976 | AN148: 0.9093823941 | AO148: 0 | AP148: 0 | AQ148: 0 | BA148: Shared among improved sanitation facilities | BB148: Yes | BC148: N/A | BD148: N/A | BE148: N/A | BF148: N/A | BG148: N/A | BH148: N/A | BI148: N/A | BJ148: N/A | BK148: N/A | BL148: N/A | BM148: N/A | BN148: N/A | BO148: N/A | BP148: N/A | BQ148: N/A | BR148: N/A | BS148: N/A | BT148: N/A | BU148: N/A | BV148: N/A | BW148: N/A | BX148: N/A | BY148: N/A | BZ148: N/A | CA148: N/A | CB148: N/A | CC148: N/A | CD148: N/A | CE148: N/A | CF148: N/A | CG148: N/A | CH148: N/A | CI148: N/A | CJ148: N/A | CK148: N/A | CL148: N/A | CM148: N/A | CN148: N/A | CO148: N/A | CP148: N/A | CQ148: N/A
B149: No | C149: 87.58277655 | D149: 91.22803831 | E149: 98.79125116 | F149: 99.03253622 | G149: 99.61055396 | H149: 91.4167221 | I149: 98.70665344 | J149: 98.9774129 | K149: 99.03404573 | L149: 99.82401321 | M149: 89.25478659 | N149: 88.38973243 | O149: 92.01754832 | P149: 89.90501062 | Q149: 92.88417874 | R149: 97.0296474 | S149: 100 | T149: 98.84011828 | U149: 61.99450753 | V149: 100 | W149: 100 | X149: 100 | Y149: 100 | Z149: 98.94149695 | AA149: 98.79697205 | AB149: 99.73059611 | AC149: 96.41112909 | AD149: 98.56812273 | AE149: 100 | AF149: 93.778073 | AG149: 99.82118347 | AH149: 100 | AI149: 99.60301978 | AJ149: 66.2423336 | AK149: 89.42604181 | AL149: 96.99184478 | AM149: 99.7805383 | AN149: 62.13902864 | AO149: 99.09070694 | AP149: 100 | AQ149: 99.72754866 | BB149: No | BC149: N/A | BD149: N/A | BE149: N/A | BF149: N/A | BG149: N/A | BH149: N/A | BI149: N/A | BJ149: N/A | BK149: N/A | BL149: N/A | BM149: N/A | BN149: N/A | BO149: N/A | BP149: N/A | BQ149: N/A | BR149: N/A | BS149: N/A | BT149: N/A | BU149: N/A | BV149: N/A | BW149: N/A | BX149: N/A | BY149: N/A | BZ149: N/A | CA149: N/A | CB149: N/A | CC149: N/A | CD149: N/A | CE149: N/A | CF149: N/A | CG149: N/A | CH149: N/A | CI149: N/A | CJ149: N/A | CK149: N/A | CL149: N/A | CM149: N/A | CN149: N/A | CO149: N/A | CP149: N/A | CQ149: N/A
B150: DK/missing | C150: 10.72502036 | D150: 8.123015455 | E150: 0 | F150: 0 | G150: 0 | H150: 5.943465456 | I150: 0 | J150: 0 | K150: 0 | L150: 0 | M150: 10.28941372 | N150: 11.14625307 | O150: 7.855070757 | P150: 8.666288184 | Q150: 7.115821261 | R150: 0 | S150: 0 | T150: 0 | U150: 29.72842636 | V150: 0 | W150: 0 | X150: 0 | Y150: 0 | Z150: 0 | AA150: 0.12481846 | AB150: 0.2694038854 | AC150: 3.588870907 | AD150: 0 | AE150: 0 | AF150: 0 | AG150: 0.1788165277 | AH150: 0 | AI150: 0 | AJ150: 32.60708374 | AK150: 9.481676402 | AL150: 0 | AM150: 0 | AN150: 36.95158896 | AO150: 0.9092930599 | AP150: 0 | AQ150: 0.2724513352 | BB150: DK/missing | BC150: N/A | BD150: N/A | BE150: N/A | BF150: N/A | BG150: N/A | BH150: N/A | BI150: N/A | BJ150: N/A | BK150: N/A | BL150: N/A | BM150: N/A | BN150: N/A | BO150: N/A | BP150: N/A | BQ150: N/A | BR150: N/A | BS150: N/A | BT150: N/A | BU150: N/A | BV150: N/A | BW150: N/A | BX150: N/A | BY150: N/A | BZ150: N/A | CA150: N/A | CB150: N/A | CC150: N/A | CD150: N/A | CE150: N/A | CF150: N/A | CG150: N/A | CH150: N/A | CI150: N/A | CJ150: N/A | CK150: N/A | CL150: N/A | CM150: N/A | CN150: N/A | CO150: N/A | CP150: N/A | CQ150: N/A
A151: Shared among all sanitation facilities | B151: Yes | C151: 1.692203094 | D151: 0.6489462372 | E151: 1.208748844 | F151: 0.9674637829 | G151: 0.3894460398 | H151: 2.639812448 | I151: 1.293346562 | J151: 1.022587097 | K151: 0.9659542711 | L151: 0.1759867869 | M151: 0.4557996836 | N151: 0.4640145002 | O151: 0.1273809234 | P151: 1.428701192 | Q151: 0 | R151: 2.970352604 | S151: 0 | T151: 1.159881723 | U151: 8.277066107 | V151: 0 | W151: 0 | X151: 0 | Y151: 0 | Z151: 1.058503054 | AA151: 1.078209489 | AB151: 0 | AC151: 0 | AD151: 1.431877272 | AE151: 0 | AF151: 6.221926998 | AG151: 0 | AH151: 0 | AI151: 0.3969802234 | AJ151: 1.150582663 | AK151: 1.092281787 | AL151: 3.008155219 | AM151: 0.2194616976 | AN151: 0.9093823941 | AO151: 0 | AP151: 0 | AQ151: 0 | BA151: Shared among all sanitation facilities | BB151: Yes | BC151: N/A | BD151: N/A | BE151: N/A | BF151: N/A | BG151: N/A | BH151: N/A | BI151: N/A | BJ151: N/A | BK151: N/A | BL151: N/A | BM151: N/A | BN151: N/A | BO151: N/A | BP151: N/A | BQ151: N/A | BR151: N/A | BS151: N/A | BT151: N/A | BU151: N/A | BV151: N/A | BW151: N/A | BX151: N/A | BY151: N/A | BZ151: N/A | CA151: N/A | CB151: N/A | CC151: N/A | CD151: N/A | CE151: N/A | CF151: N/A | CG151: N/A | CH151: N/A | CI151: N/A | CJ151: N/A | CK151: N/A | CL151: N/A | CM151: N/A | CN151: N/A | CO151: N/A | CP151: N/A | CQ151: N/A
B152: No | C152: 98.30779691 | D152: 99.35105376 | E152: 98.79125116 | F152: 99.03253622 | G152: 99.61055396 | H152: 97.36018755 | I152: 98.70665344 | J152: 98.9774129 | K152: 99.03404573 | L152: 99.82401321 | M152: 99.54420032 | N152: 99.5359855 | O152: 99.87261908 | P152: 98.57129881 | Q152: 100 | R152: 97.0296474 | S152: 100 | T152: 98.84011828 | U152: 91.72293389 | V152: 100 | W152: 100 | X152: 100 | Y152: 100 | Z152: 98.94149695 | AA152: 98.92179051 | AB152: 100 | AC152: 100 | AD152: 98.56812273 | AE152: 100 | AF152: 93.778073 | AG152: 100 | AH152: 100 | AI152: 99.60301978 | AJ152: 98.84941734 | AK152: 98.90771821 | AL152: 96.99184478 | AM152: 99.7805383 | AN152: 99.09061761 | AO152: 100 | AP152: 100 | AQ152: 100 | BB152: No | BC152: N/A | BD152: N/A | BE152: N/A | BF152: N/A | BG152: N/A | BH152: N/A | BI152: N/A | BJ152: N/A | BK152: N/A | BL152: N/A | BM152: N/A | BN152: N/A | BO152: N/A | BP152: N/A | BQ152: N/A | BR152: N/A | BS152: N/A | BT152: N/A | BU152: N/A | BV152: N/A | BW152: N/A | BX152: N/A | BY152: N/A | BZ152: N/A | CA152: N/A | CB152: N/A | CC152: N/A | CD152: N/A | CE152: N/A | CF152: N/A | CG152: N/A | CH152: N/A | CI152: N/A | CJ152: N/A | CK152: N/A | CL152: N/A | CM152: N/A | CN152: N/A | CO152: N/A | CP152: N/A | CQ152: N/A
A153: Kind of toilet facility | B153: Flush to piped sewer system | C153: 6.989809362 | D153: 29.5278126 | E153: 99.42981368 | F153: 99.89394399 | G153: 99.51219495 | H153: 81.28216124 | I153: 99.74424579 | J153: 99.98982253 | K153: 99.85065504 | L153: 99.27937002 | M153: 0 | N153: 4.182035712 | O153: 14.3253851 | P153: 11.22418013 | Q153: 10.79230864 | R153: 70.37012944 | S153: 57.0094936 | T153: 59.27172761 | U153: 34.83851479 | V153: 89.35181008 | W153: 99.67393482 | X153: 55.19546519 | Y153: 39.13862181 | Z153: 80.6876761 | AA153: 62.30523302 | AB153: 53.45261784 | AC153: 64.88020517 | AD153: 100 | AE153: 52.41792291 | AF153: 65.38384767 | AG153: 57.94235733 | AH153: 67.36984977 | AI153: 66.14971686 | AJ153: 58.34060759 | AK153: 42.70018561 | AL153: 64.68845133 | AM153: 39.5465477 | AN153: 29.87478587 | AO153: 40.1704045 | AP153: 40.30250117 | AQ153: 76.49369845 | BA153: Kind of toilet facility | BB153: Flush to piped sewer system | BC153: 226.6287395 | BD153: 957.6741248 | BE153: 3227.12728 | BF153: 3255.314944 | BG153: 3206.398049 | BH153: 1778.834672 | BI153: 2159.497562 | BJ153: 2174.075942 | BK153: 2162.780241 | BL153: 2165.379963 | BM153: 0 | BN153: 44.57001651 | BO153: 152.9104393 | BP153: 120.0227916 | BQ153: 115.0715075 | BR153: 477.8223512 | BS153: 308.2619688 | BT153: 259.626336 | BU153: 100.8332037 | BV153: 936.6126829 | BW153: 1800.208637 | BX153: 268.9813369 | BY153: 194.7602705 | BZ153: 789.92402 | CA153: 275.8317965 | CB153: 266.9880886 | CC153: 268.5833674 | CD153: 1084.436713 | CE153: 301.9443898 | CF153: 459.1311445 | CG153: 485.0351254 | CH153: 246.3953913 | CI153: 462.0510368 | CJ153: 377.9953879 | CK153: 208.8914217 | CL153: 287.1628211 | CM153: 128.9453508 | CN153: 197.746276 | CO153: 146.1952584 | CP153: 161.1476271 | CQ153: 377.6311333
B154: Flush to septic tank | C154: 1.276428326 | D154: 3.810402879 | E154: 0.2373204287 | F154: 0 | G154: 0.1844980928 | H154: 2.116515986 | I154: 0.04292537709 | J154: 0 | K154: 0 | L154: 0.2725573574 | M154: 0 | N154: 0.8205562498 | O154: 3.057893234 | P154: 2.801506857 | Q154: 5.071986097 | R154: 0 | S154: 0 | T154: 0 | U154: 3.166503002 | V154: 4.275226212 | W154: 0 | X154: 0 | Y154: 0 | Z154: 0 | AA154: 0 | AB154: 1.712843698 | AC154: 3.345864992 | AD154: 0 | AE154: 0 | AF154: 0 | AG154: 11.32670718 | AH154: 0 | AI154: 0 | AJ154: 0 | AK154: 0 | AL154: 0 | AM154: 0 | AN154: 0 | AO154: 0 | AP154: 1.854256025 | AQ154: 0 | BB154: Flush to septic tank | BC154: 41.38529787 | BD154: 123.5826132 | BE154: 7.702551188 | BF154: 0 | BG154: 5.944741998 | BH154: 46.31929028 | BI154: 0.929349322 | BJ154: 0 | BK154: 0 | BL154: 5.944741998 | BM154: 0 | BN154: 8.745072523 | BO154: 32.64022535 | BP154: 29.95717013 | BQ154: 54.07935461 | BR154: 0 | BS154: 0 | BT154: 0 | BU154: 9.164817853 | BV154: 44.81421348 | BW154: 0 | BX154: 0 | BY154: 0 | BZ154: 0 | CA154: 0 | CB154: 8.555406327 | CC154: 13.8508145 | CD154: 0 | CE154: 0 | CF154: 0 | CG154: 94.81579784 | CH154: 0 | CI154: 0 | CJ154: 0 | CK154: 0 | CL154: 0 | CM154: 0 | CN154: 0 | CO154: 0 | CP154: 7.414154204 | CQ154: 0
B155: Flush to pit (latrine) | C155: 5.432102751 | D155: 2.381041475 | E155: 0.2038190852 | F155: 0 | G155: 0 | H155: 1.007464088 | I155: 0.01937299085 | J155: 0 | K155: 0 | L155: 0 | M155: 4.307902767 | N155: 7.034591129 | O155: 5.070578462 | P155: 3.24586021 | Q155: 2.594529361 | R155: 4.226324041 | S155: 0 | T155: 1.06575543 | U155: 0.5510938136 | V155: 0.7258863276 | W155: 0 | X155: 0 | Y155: 0 | Z155: 0.1999796859 | AA155: 0 | AB155: 2.315931725 | AC155: 0 | AD155: 0 | AE155: 0 | AF155: 0.2283275967 | AG155: 0 | AH155: 32.63015023 | AI155: 5.999590121 | AJ155: 1.150582663 | AK155: 0 | AL155: 3.382902514 | AM155: 1.900200666 | AN155: 0.04595691031 | AO155: 0.9092930599 | AP155: 1.350963103 | AQ155: 0.6755160446 | BB155: Flush to pit (latrine) | BC155: 176.1236302 | BD155: 77.22420353 | BE155: 6.61522038 | BF155: 0 | BG155: 0 | BH155: 22.04803642 | BI155: 0.41943198 | BJ155: 0 | BK155: 0 | BL155: 0 | BM155: 46.02811512 | BN155: 74.97110602 | BO155: 54.12380713 | BP155: 34.70874479 | BQ155: 27.66381269 | BR155: 28.69729111 | BS155: 0 | BT155: 4.668299516 | BU155: 1.595032254 | BV155: 7.60895991 | BW155: 0 | BX155: 0 | BY155: 0 | BZ155: 1.957780482 | CA155: 0 | CB155: 11.56774372 | CC155: 0 | CD155: 0 | CE155: 0 | CF155: 1.60333652 | CG155: 0 | CH155: 119.3400113 | CI155: 41.9067075 | CJ155: 7.454755065 | CK155: 0 | CL155: 15.0172683 | CM155: 6.1957884 | CN155: 0.304196586 | CO155: 3.309260524 | CP155: 5.401761478 | CQ155: 3.334861494
B156: Ventilated Improved Pit latrine (VIP) | C156: 3.923443806 | D156: 5.75502264 | E156: 0 | F156: 0 | G156: 0 | H156: 0.7726021676 | I156: 0 | J156: 0 | K156: 0 | L156: 0 | M156: 0.2700626638 | N156: 6.529659236 | O156: 6.01707775 | P156: 8.777643815 | Q156: 6.226524642 | R156: 1.889362312 | S156: 0 | T156: 0 | U156: 0 | V156: 2.71418773 | W156: 0 | X156: 0 | Y156: 0 | Z156: 0 | AA156: 0 | AB156: 11.04179254 | AC156: 0 | AD156: 0 | AE156: 7.123801142 | AF156: 1.255801779 | AG156: 8.024044212 | AH156: 0 | AI156: 0.4733232063 | AJ156: 0.1559734424 | AK156: 0.3250102631 | AL156: 0 | AM156: 0 | AN156: 0 | AO156: 0 | AP156: 0 | AQ156: 19.1419781 | BB156: Ventilated Improved Pit latrine (VIP) | BC156: 127.2087804 | BD156: 186.6523723 | BE156: 0 | BF156: 0 | BG156: 0 | BH156: 16.90815676 | BI156: 0 | BJ156: 0 | BK156: 0 | BL156: 0 | BM156: 2.885505094 | BN156: 69.58979788 | BO156: 64.22682502 | BP156: 93.86140479 | BQ156: 66.38946314 | BR156: 12.82901636 | BS156: 0 | BT156: 0 | BU156: 0 | BV156: 28.45093624 | BW156: 0 | BX156: 0 | BY156: 0 | BZ156: 0 | CA156: 0 | CB156: 55.15215541 | CC156: 0 | CD156: 0 | CE156: 41.03542585 | CF156: 8.81835084 | CG156: 67.16922594 | CH156: 0 | CI156: 3.306128712 | CJ156: 1.010569555 | CK156: 1.589966295 | CL156: 0 | CM156: 0 | CN156: 0 | CO156: 0 | CP156: 0 | CQ156: 94.49937747
B157: Pit latrine with slab | C157: 71.52609133 | D157: 48.31266566 | E157: 0.1290468039 | F157: 0.1060560149 | G157: 0.3033069606 | H157: 8.87779106 | I157: 0.1934558443 | J157: 0.01017746851 | K157: 0.1493449582 | L157: 0.4480726192 | M157: 85.13262085 | N157: 69.94042319 | O157: 63.63385656 | P157: 64.18923345 | Q157: 62.93977237 | R157: 23.51418421 | S157: 42.9905064 | T157: 39.66251696 | U157: 31.71546203 | V157: 2.932889652 | W157: 0.3260651775 | X157: 44.80453481 | Y157: 60.86137819 | Z157: 19.11234422 | AA157: 37.56994852 | AB157: 31.20741031 | AC157: 28.18505893 | AD157: 0 | AE157: 40.45827594 | AF157: 33.13202295 | AG157: 22.52807475 | AH157: 0 | AI157: 27.37736982 | AJ157: 7.745752566 | AK157: 47.49312773 | AL157: 31.92864615 | AM157: 36.69829451 | AN157: 33.02992192 | AO157: 58.01100938 | AP157: 56.49227971 | AQ157: 3.416356069 | BB157: Pit latrine with slab | BC157: 2319.071534 | BD157: 1566.92236 | BE157: 4.188386217 | BF157: 3.456122726 | BG157: 9.772901173 | BH157: 194.2876802 | BI157: 4.188386217 | BJ157: 0.221288416 | BK157: 3.23483431 | BL157: 9.772901173 | BM157: 909.6059694 | BN157: 745.3895735 | BO157: 679.2334653 | BP157: 686.3905338 | BQ157: 671.0866717 | BR157: 159.6643757 | BS157: 232.4584434 | BT157: 173.732644 | BU157: 91.79414402 | BV157: 30.7434359 | BW157: 5.889055646 | BX157: 218.3437287 | BY157: 302.8563075 | BZ157: 187.107877 | CA157: 166.3260996 | CB157: 155.8764971 | CC157: 116.6771594 | CD157: 0 | CE157: 233.0529095 | CF157: 232.6559871 | CG157: 188.5823785 | CH157: 0 | CI157: 191.2289683 | CJ157: 50.18560599 | CK157: 232.3387318 | CL157: 141.7365838 | CM157: 119.6583453 | CN157: 218.6306568 | CO157: 211.1239509 | CP157: 225.8816838 | CQ157: 16.86573457
B158: Pit latrine without slab/open pit | C158: 5.500854051 | D158: 3.69416994 | E158: 0 | F158: 0 | G158: 0 | H158: 0.8661137989 | I158: 0 | J158: 0 | K158: 0 | L158: 0 | M158: 9.555550441 | N158: 3.266334004 | O158: 3.102128288 | P158: 5.429892909 | Q158: 4.795137117 | R158: 0 | S158: 0 | T158: 0 | U158: 0 | V158: 0 | W158: 0 | X158: 0 | Y158: 0 | Z158: 0 | AA158: 0.12481846 | AB158: 0.2694038854 | AC158: 3.588870907 | AD158: 0 | AE158: 0 | AF158: 0 | AG158: 0.1788165277 | AH158: 0 | AI158: 0 | AJ158: 32.60708374 | AK158: 9.481676402 | AL158: 0 | AM158: 0 | AN158: 2.66039447 | AO158: 0.9092930599 | AP158: 0 | AQ158: 0.2724513352 | BB158: Pit latrine without slab/open pit | BC158: 178.3527354 | BD158: 119.8128358 | BE158: 0 | BF158: 0 | BG158: 0 | BH158: 18.95462955 | BI158: 0 | BJ158: 0 | BK158: 0 | BL158: 0 | BM158: 102.0970062 | BN158: 34.81093192 | BO158: 33.11239426 | BP158: 58.06311887 | BQ158: 51.12749041 | BR158: 0 | BS158: 0 | BT158: 0 | BU158: 0 | BV158: 0 | BW158: 0 | BX158: 0 | BY158: 0 | BZ158: 0 | CA158: 0.552584404 | CB158: 1.34563341 | CC158: 14.85678152 | CD158: 0 | CE158: 0 | CF158: 0 | CG158: 1.49687208 | CH158: 0 | CI158: 0 | CJ158: 211.2649795 | CK158: 46.3848303 | CL158: 0 | CM158: 0 | CN158: 17.60960234 | CO158: 3.309260524 | CP158: 0 | CQ158: 1.345027219
B159: Composting toilet | C159: 0.1271040603 | D159: 2.09003929 | E159: 0 | F159: 0 | G159: 0 | H159: 0 | I159: 0 | J159: 0 | K159: 0 | L159: 0 | M159: 0 | N159: 0.3464814122 | O159: 0.04013813875 | P159: 1.095287353 | Q159: 5.259057622 | R159: 0 | S159: 0 | T159: 0 | U159: 0 | V159: 0 | W159: 0 | X159: 0 | Y159: 0 | Z159: 0 | AA159: 0 | AB159: 0 | AC159: 0 | AD159: 0 | AE159: 0 | AF159: 0 | AG159: 0 | AH159: 0 | AI159: 0 | AJ159: 0 | AK159: 0 | AL159: 0 | AM159: 21.85495713 | AN159: 0.09774632803 | AO159: 0 | AP159: 0 | AQ159: 0 | BB159: Composting toilet | BC159: 4.121061316 | BD159: 67.78614367 | BE159: 0 | BF159: 0 | BG159: 0 | BH159: 0 | BI159: 0 | BJ159: 0 | BK159: 0 | BL159: 0 | BM159: 0 | BN159: 3.69262324 | BO159: 0.428438076 | BP159: 11.71216465 | BQ159: 56.07397902 | BR159: 0 | BS159: 0 | BT159: 0 | BU159: 0 | BV159: 0 | BW159: 0 | BX159: 0 | BY159: 0 | BZ159: 0 | CA159: 0 | CB159: 0 | CC159: 0 | CD159: 0 | CE159: 0 | CF159: 0 | CG159: 0 | CH159: 0 | CI159: 0 | CJ159: 0 | CK159: 0 | CL159: 0 | CM159: 71.26020546 | CN159: 0.646999528 | CO159: 0 | CP159: 0 | CQ159: 0
B160: Bucket | C160: 5.22416631 | D160: 4.428845516 | E160: 0 | F160: 0 | G160: 0 | H160: 5.077351657 | I160: 0 | J160: 0 | K160: 0 | L160: 0 | M160: 0.7338632812 | N160: 7.879919068 | O160: 4.752942469 | P160: 3.236395275 | Q160: 2.320684144 | R160: 0 | S160: 0 | T160: 0 | U160: 29.72842636 | V160: 0 | W160: 0 | X160: 0 | Y160: 0 | Z160: 0 | AA160: 0 | AB160: 0 | AC160: 0 | AD160: 0 | AE160: 0 | AF160: 0 | AG160: 0 | AH160: 0 | AI160: 0 | AJ160: 0 | AK160: 0 | AL160: 0 | AM160: 0 | AN160: 34.29119449 | AO160: 0 | AP160: 0 | AQ160: 0 | BB160: Bucket | BC160: 169.381762 | BD160: 143.6405334 | BE160: 0 | BF160: 0 | BG160: 0 | BH160: 111.1162527 | BI160: 0 | BJ160: 0 | BK160: 0 | BL160: 0 | BM160: 7.841018104 | BN160: 83.98018265 | BO160: 50.73333219 | BP160: 34.60753402 | BQ160: 24.74397571 | BR160: 0 | BS160: 0 | BT160: 0 | BU160: 86.04306153 | BV160: 0 | BW160: 0 | BX160: 0 | BY160: 0 | BZ160: 0 | CA160: 0 | CB160: 0 | CC160: 0 | CD160: 0 | CE160: 0 | CF160: 0 | CG160: 0 | CH160: 0 | CI160: 0 | CJ160: 0 | CK160: 0 | CL160: 0 | CM160: 0 | CN160: 226.9792339 | CO160: 0 | CP160: 0 | CQ160: 0
BB161: Total | BC161: 3242.273541 | BD161: 3243.295186 | BE161: 3245.633437 | BF161: 3258.771066 | BG161: 3222.115692 | BH161: 2188.468718 | BI161: 2165.03473 | BJ161: 2174.29723 | BK161: 2166.015076 | BL161: 2181.097607 | BM161: 1068.457614 | BN161: 1065.749304 | BO161: 1067.408927 | BP161: 1069.323463 | BQ161: 1066.236255 | BR161: 679.0130343 | BS161: 540.7204122 | BT161: 438.0272795 | BU161: 289.4302594 | BV161: 1048.230228 | BW161: 1806.097692 | BX161: 487.3250656 | BY161: 497.616578 | BZ161: 978.9896774 | CA161: 442.7104805 | CB161: 499.4855245 | CC161: 413.9681228 | CD161: 1084.436713 | CE161: 576.0327252 | CF161: 702.2088189 | CG161: 837.0993998 | CH161: 365.7354026 | CI161: 698.4928413 | CJ161: 647.9112979 | CK161: 489.20495 | CL161: 443.9166732 | CM161: 326.05969 | CN161: 661.9169651 | CO161: 363.9377303 | CP161: 399.8452266 | CQ161: 493.6761341
A208: =A1026 -> Ukraine
A209: =A1034 -> 2005
A210: Access to hygiene facilities
A211: by wealth quintile and sub-national region
A212: Notes:
A213: WHO/UNICEF JMP customised wealth index excludes water,
A214: sanitation and hygiene assets.
A215: Survey used for analysis: | B215: =A1025 -> MICS05
A220: Access to handwashing | C220: NATIONAL wealth index quintile | H220: URBAN wealth index quintile | M220: RURAL wealth index quintile | R220: SUB-REGIONS: | BA220: Raw numbers of respondents: | BB220: Access to handwashing | BC220: NATIONAL wealth index quintile | BH220: URBAN wealth index quintile | BM220: RURAL wealth index quintile | BR220: SUB-REGIONS:
A221: Weighted percentage (used in graphs) | C221: Poorest | D221: Poor | E221: Middle | F221: Rich | G221: Richest | H221: Poorest | I221: Poor | J221: Middle | K221: Rich | L221: Richest | M221: Poorest | N221: Poor | O221: Middle | P221: Rich | Q221: Richest | R221: AR Krym | S221: Cherkaska | T221: Chernigivska | U221: Chernivecka | V221: Dnipropetrovska | W221: Donecka | X221: Gytomyrska | Y221: Iv-Frankivska | Z221: Kharkivska | AA221: Khersonska | AB221: Khmelnicka | AC221: Kirovogradska | AD221: Kyiv | AE221: Kyivska | AF221: Luganska | AG221: Lvivska | AH221: Mykolaivska | AI221: Odeska | AJ221: Poltavska | AK221: Rivnenska | AL221: Sumska | AM221: Ternopilska | AN221: Vinnycka | AO221: Volynska | AP221: Zakarpatska | AQ221: Zaporizka | BA221: Hygiene data, raw numbers (weighted) | BC221: Poorest | BD221: Poor | BE221: Middle | BF221: Rich | BG221: Richest | BH221: Poorest | BI221: Poor | BJ221: Middle | BK221: Rich | BL221: Richest | BM221: Poorest | BN221: Poor | BO221: Middle | BP221: Rich | BQ221: Richest | BR221: AR Krym | BS221: Cherkaska | BT221: Chernigivska | BU221: Chernivecka | BV221: Dnipropetrovska | BW221: Donecka | BX221: Gytomyrska | BY221: Iv-Frankivska | BZ221: Kharkivska | CA221: Khersonska | CB221: Khmelnicka | CC221: Kirovogradska | CD221: Kyiv | CE221: Kyivska | CF221: Luganska | CG221: Lvivska | CH221: Mykolaivska | CI221: Odeska | CJ221: Poltavska | CK221: Rivnenska | CL221: Sumska | CM221: Ternopilska | CN221: Vinnycka | CO221: Volynska | CP221: Zakarpatska | CQ221: Zaporizka
A222: Hygiene ladder | B222: Basic | C222: N/A | D222: N/A | E222: N/A | F222: N/A | G222: N/A | H222: N/A | I222: N/A | J222: N/A | K222: N/A | L222: N/A | M222: N/A | N222: N/A | O222: N/A | P222: N/A | Q222: N/A | R222: N/A | S222: N/A | T222: N/A | U222: N/A | V222: N/A | W222: N/A | X222: N/A | Y222: N/A | Z222: N/A | AA222: N/A | AB222: N/A | AC222: N/A | AD222: N/A | AE222: N/A | AF222: N/A | AG222: N/A | AH222: N/A | AI222: N/A | AJ222: N/A | AK222: N/A | AL222: N/A | AM222: N/A | AN222: N/A | AO222: N/A | AP222: N/A | AQ222: N/A | BA222: Hygiene ladder | BB222: Basic | BC222: N/A | BD222: N/A | BE222: N/A | BF222: N/A | BG222: N/A | BH222: N/A | BI222: N/A | BJ222: N/A | BK222: N/A | BL222: N/A | BM222: N/A | BN222: N/A | BO222: N/A | BP222: N/A | BQ222: N/A | BR222: N/A | BS222: N/A | BT222: N/A | BU222: N/A | BV222: N/A | BW222: N/A | BX222: N/A | BY222: N/A | BZ222: N/A | CA222: N/A | CB222: N/A | CC222: N/A | CD222: N/A | CE222: N/A | CF222: N/A | CG222: N/A | CH222: N/A | CI222: N/A | CJ222: N/A | CK222: N/A | CL222: N/A | CM222: N/A | CN222: N/A | CO222: N/A | CP222: N/A | CQ222: N/A
B223: Limited | C223: N/A | D223: N/A | E223: N/A | F223: N/A | G223: N/A | H223: N/A | I223: N/A | J223: N/A | K223: N/A | L223: N/A | M223: N/A | N223: N/A | O223: N/A | P223: N/A | Q223: N/A | R223: N/A | S223: N/A | T223: N/A | U223: N/A | V223: N/A | W223: N/A | X223: N/A | Y223: N/A | Z223: N/A | AA223: N/A | AB223: N/A | AC223: N/A | AD223: N/A | AE223: N/A | AF223: N/A | AG223: N/A | AH223: N/A | AI223: N/A | AJ223: N/A | AK223: N/A | AL223: N/A | AM223: N/A | AN223: N/A | AO223: N/A | AP223: N/A | AQ223: N/A | BB223: Limited | BC223: N/A | BD223: N/A | BE223: N/A | BF223: N/A | BG223: N/A | BH223: N/A | BI223: N/A | BJ223: N/A | BK223: N/A | BL223: N/A | BM223: N/A | BN223: N/A | BO223: N/A | BP223: N/A | BQ223: N/A | BR223: N/A | BS223: N/A | BT223: N/A | BU223: N/A | BV223: N/A | BW223: N/A | BX223: N/A | BY223: N/A | BZ223: N/A | CA223: N/A | CB223: N/A | CC223: N/A | CD223: N/A | CE223: N/A | CF223: N/A | CG223: N/A | CH223: N/A | CI223: N/A | CJ223: N/A | CK223: N/A | CL223: N/A | CM223: N/A | CN223: N/A | CO223: N/A | CP223: N/A | CQ223: N/A
B224: No facility | C224: N/A | D224: N/A | E224: N/A | F224: N/A | G224: N/A | H224: N/A | I224: N/A | J224: N/A | K224: N/A | L224: N/A | M224: N/A | N224: N/A | O224: N/A | P224: N/A | Q224: N/A | R224: N/A | S224: N/A | T224: N/A | U224: N/A | V224: N/A | W224: N/A | X224: N/A | Y224: N/A | Z224: N/A | AA224: N/A | AB224: N/A | AC224: N/A | AD224: N/A | AE224: N/A | AF224: N/A | AG224: N/A | AH224: N/A | AI224: N/A | AJ224: N/A | AK224: N/A | AL224: N/A | AM224: N/A | AN224: N/A | AO224: N/A | AP224: N/A | AQ224: N/A | BB224: No facility | BC224: N/A | BD224: N/A | BE224: N/A | BF224: N/A | BG224: N/A | BH224: N/A | BI224: N/A | BJ224: N/A | BK224: N/A | BL224: N/A | BM224: N/A | BN224: N/A | BO224: N/A | BP224: N/A | BQ224: N/A | BR224: N/A | BS224: N/A | BT224: N/A | BU224: N/A | BV224: N/A | BW224: N/A | BX224: N/A | BY224: N/A | BZ224: N/A | CA224: N/A | CB224: N/A | CC224: N/A | CD224: N/A | CE224: N/A | CF224: N/A | CG224: N/A | CH224: N/A | CI224: N/A | CJ224: N/A | CK224: N/A | CL224: N/A | CM224: N/A | CN224: N/A | CO224: N/A | CP224: N/A | CQ224: N/A
BA225: Observed handwashing place | BB225: Fixed | BC225: N/A | BD225: N/A | BE225: N/A | BF225: N/A | BG225: N/A | BH225: N/A | BI225: N/A | BJ225: N/A | BK225: N/A | BL225: N/A | BM225: N/A | BN225: N/A | BO225: N/A | BP225: N/A | BQ225: N/A | BR225: N/A | BS225: N/A | BT225: N/A | BU225: N/A | BV225: N/A | BW225: N/A | BX225: N/A | BY225: N/A | BZ225: N/A | CA225: N/A | CB225: N/A | CC225: N/A | CD225: N/A | CE225: N/A | CF225: N/A | CG225: N/A | CH225: N/A | CI225: N/A | CJ225: N/A | CK225: N/A | CL225: N/A | CM225: N/A | CN225: N/A | CO225: N/A | CP225: N/A | CQ225: N/A
BB226: Mobile | BC226: N/A | BD226: N/A | BE226: N/A | BF226: N/A | BG226: N/A | BH226: N/A | BI226: N/A | BJ226: N/A | BK226: N/A | BL226: N/A | BM226: N/A | BN226: N/A | BO226: N/A | BP226: N/A | BQ226: N/A | BR226: N/A | BS226: N/A | BT226: N/A | BU226: N/A | BV226: N/A | BW226: N/A | BX226: N/A | BY226: N/A | BZ226: N/A | CA226: N/A | CB226: N/A | CC226: N/A | CD226: N/A | CE226: N/A | CF226: N/A | CG226: N/A | CH226: N/A | CI226: N/A | CJ226: N/A | CK226: N/A | CL226: N/A | CM226: N/A | CN226: N/A | CO226: N/A | CP226: N/A | CQ226: N/A
BA227: Water / Soap | BB227: Water and soap | BC227: N/A | BD227: N/A | BE227: N/A | BF227: N/A | BG227: N/A | BH227: N/A | BI227: N/A | BJ227: N/A | BK227: N/A | BL227: N/A | BM227: N/A | BN227: N/A | BO227: N/A | BP227: N/A | BQ227: N/A | BR227: N/A | BS227: N/A | BT227: N/A | BU227: N/A | BV227: N/A | BW227: N/A | BX227: N/A | BY227: N/A | BZ227: N/A | CA227: N/A | CB227: N/A | CC227: N/A | CD227: N/A | CE227: N/A | CF227: N/A | CG227: N/A | CH227: N/A | CI227: N/A | CJ227: N/A | CK227: N/A | CL227: N/A | CM227: N/A | CN227: N/A | CO227: N/A | CP227: N/A | CQ227: N/A
BB228: Water only | BC228: N/A | BD228: N/A | BE228: N/A | BF228: N/A | BG228: N/A | BH228: N/A | BI228: N/A | BJ228: N/A | BK228: N/A | BL228: N/A | BM228: N/A | BN228: N/A | BO228: N/A | BP228: N/A | BQ228: N/A | BR228: N/A | BS228: N/A | BT228: N/A | BU228: N/A | BV228: N/A | BW228: N/A | BX228: N/A | BY228: N/A | BZ228: N/A | CA228: N/A | CB228: N/A | CC228: N/A | CD228: N/A | CE228: N/A | CF228: N/A | CG228: N/A | CH228: N/A | CI228: N/A | CJ228: N/A | CK228: N/A | CL228: N/A | CM228: N/A | CN228: N/A | CO228: N/A | CP228: N/A | CQ228: N/A
BB229: Soap only | BC229: N/A | BD229: N/A | BE229: N/A | BF229: N/A | BG229: N/A | BH229: N/A | BI229: N/A | BJ229: N/A | BK229: N/A | BL229: N/A | BM229: N/A | BN229: N/A | BO229: N/A | BP229: N/A | BQ229: N/A | BR229: N/A | BS229: N/A | BT229: N/A | BU229: N/A | BV229: N/A | BW229: N/A | BX229: N/A | BY229: N/A | BZ229: N/A | CA229: N/A | CB229: N/A | CC229: N/A | CD229: N/A | CE229: N/A | CF229: N/A | CG229: N/A | CH229: N/A | CI229: N/A | CJ229: N/A | CK229: N/A | CL229: N/A | CM229: N/A | CN229: N/A | CO229: N/A | CP229: N/A | CQ229: N/A
BB230: Neither | BC230: N/A | BD230: N/A | BE230: N/A | BF230: N/A | BG230: N/A | BH230: N/A | BI230: N/A | BJ230: N/A | BK230: N/A | BL230: N/A | BM230: N/A | BN230: N/A | BO230: N/A | BP230: N/A | BQ230: N/A | BR230: N/A | BS230: N/A | BT230: N/A | BU230: N/A | BV230: N/A | BW230: N/A | BX230: N/A | BY230: N/A | BZ230: N/A | CA230: N/A | CB230: N/A | CC230: N/A | CD230: N/A | CE230: N/A | CF230: N/A | CG230: N/A | CH230: N/A | CI230: N/A | CJ230: N/A | CK230: N/A | CL230: N/A | CM230: N/A | CN230: N/A | CO230: N/A | CP230: N/A | CQ230: N/A
BA259: Raw numbers of respondents: | BB259: Menstrual health and hygiene | BC259: NATIONAL wealth index quintile | BH259: URBAN wealth index quintile | BM259: RURAL wealth index quintile | BR259: SUB-REGIONS:
BA260: MHH data, raw numbers (weighted) | BC260: Poorest | BD260: Poor | BE260: Middle | BF260: Rich | BG260: Richest | BH260: Poorest | BI260: Poor | BJ260: Middle | BK260: Rich | BL260: Richest | BM260: Poorest | BN260: Poor | BO260: Middle | BP260: Rich | BQ260: Richest | BR260: AR Krym | BS260: Cherkaska | BT260: Chernigivska | BU260: Chernivecka | BV260: Dnipropetrovska | BW260: Donecka | BX260: Gytomyrska | BY260: Iv-Frankivska | BZ260: Kharkivska | CA260: Khersonska | CB260: Khmelnicka | CC260: Kirovogradska | CD260: Kyiv | CE260: Kyivska | CF260: Luganska | CG260: Lvivska | CH260: Mykolaivska | CI260: Odeska | CJ260: Poltavska | CK260: Rivnenska | CL260: Sumska | CM260: Ternopilska | CN260: Vinnycka | CO260: Volynska | CP260: Zakarpatska | CQ260: Zaporizka
BA261: Private place to wash and change | BB261: Yes | BC261: N/A | BD261: N/A | BE261: N/A | BF261: N/A | BG261: N/A | BH261: N/A | BI261: N/A | BJ261: N/A | BK261: N/A | BL261: N/A | BM261: N/A | BN261: N/A | BO261: N/A | BP261: N/A | BQ261: N/A | BR261: N/A | BS261: N/A | BT261: N/A | BU261: N/A | BV261: N/A | BW261: N/A | BX261: N/A | BY261: N/A | BZ261: N/A | CA261: N/A | CB261: N/A | CC261: N/A | CD261: N/A | CE261: N/A | CF261: N/A | CG261: N/A | CH261: N/A | CI261: N/A | CJ261: N/A | CK261: N/A | CL261: N/A | CM261: N/A | CN261: N/A | CO261: N/A | CP261: N/A | CQ261: N/A
BB262: No | BC262: N/A | BD262: N/A | BE262: N/A | BF262: N/A | BG262: N/A | BH262: N/A | BI262: N/A | BJ262: N/A | BK262: N/A | BL262: N/A | BM262: N/A | BN262: N/A | BO262: N/A | BP262: N/A | BQ262: N/A | BR262: N/A | BS262: N/A | BT262: N/A | BU262: N/A | BV262: N/A | BW262: N/A | BX262: N/A | BY262: N/A | BZ262: N/A | CA262: N/A | CB262: N/A | CC262: N/A | CD262: N/A | CE262: N/A | CF262: N/A | CG262: N/A | CH262: N/A | CI262: N/A | CJ262: N/A | CK262: N/A | CL262: N/A | CM262: N/A | CN262: N/A | CO262: N/A | CP262: N/A | CQ262: N/A
BB263: DK/not sure/missing | BC263: N/A | BD263: N/A | BE263: N/A | BF263: N/A | BG263: N/A | BH263: N/A | BI263: N/A | BJ263: N/A | BK263: N/A | BL263: N/A | BM263: N/A | BN263: N/A | BO263: N/A | BP263: N/A | BQ263: N/A | BR263: N/A | BS263: N/A | BT263: N/A | BU263: N/A | BV263: N/A | BW263: N/A | BX263: N/A | BY263: N/A | BZ263: N/A | CA263: N/A | CB263: N/A | CC263: N/A | CD263: N/A | CE263: N/A | CF263: N/A | CG263: N/A | CH263: N/A | CI263: N/A | CJ263: N/A | CK263: N/A | CL263: N/A | CM263: N/A | CN263: N/A | CO263: N/A | CP263: N/A | CQ263: N/A
BA264: Use of menstrual materials | BB264: Materials reusable | BC264: N/A | BD264: N/A | BE264: N/A | BF264: N/A | BG264: N/A | BH264: N/A | BI264: N/A | BJ264: N/A | BK264: N/A | BL264: N/A | BM264: N/A | BN264: N/A | BO264: N/A | BP264: N/A | BQ264: N/A | BR264: N/A | BS264: N/A | BT264: N/A | BU264: N/A | BV264: N/A | BW264: N/A | BX264: N/A | BY264: N/A | BZ264: N/A | CA264: N/A | CB264: N/A | CC264: N/A | CD264: N/A | CE264: N/A | CF264: N/A | CG264: N/A | CH264: N/A | CI264: N/A | CJ264: N/A | CK264: N/A | CL264: N/A | CM264: N/A | CN264: N/A | CO264: N/A | CP264: N/A | CQ264: N/A
BB265: Materials not reusable | BC265: N/A | BD265: N/A | BE265: N/A | BF265: N/A | BG265: N/A | BH265: N/A | BI265: N/A | BJ265: N/A | BK265: N/A | BL265: N/A | BM265: N/A | BN265: N/A | BO265: N/A | BP265: N/A | BQ265: N/A | BR265: N/A | BS265: N/A | BT265: N/A | BU265: N/A | BV265: N/A | BW265: N/A | BX265: N/A | BY265: N/A | BZ265: N/A | CA265: N/A | CB265: N/A | CC265: N/A | CD265: N/A | CE265: N/A | CF265: N/A | CG265: N/A | CH265: N/A | CI265: N/A | CJ265: N/A | CK265: N/A | CL265: N/A | CM265: N/A | CN265: N/A | CO265: N/A | CP265: N/A | CQ265: N/A
BB266: No materials used | BC266: N/A | BD266: N/A | BE266: N/A | BF266: N/A | BG266: N/A | BH266: N/A | BI266: N/A | BJ266: N/A | BK266: N/A | BL266: N/A | BM266: N/A | BN266: N/A | BO266: N/A | BP266: N/A | BQ266: N/A | BR266: N/A | BS266: N/A | BT266: N/A | BU266: N/A | BV266: N/A | BW266: N/A | BX266: N/A | BY266: N/A | BZ266: N/A | CA266: N/A | CB266: N/A | CC266: N/A | CD266: N/A | CE266: N/A | CF266: N/A | CG266: N/A | CH266: N/A | CI266: N/A | CJ266: N/A | CK266: N/A | CL266: N/A | CM266: N/A | CN266: N/A | CO266: N/A | CP266: N/A | CQ266: N/A
BB267: DK/not sure/missing | BC267: N/A | BD267: N/A | BE267: N/A | BF267: N/A | BG267: N/A | BH267: N/A | BI267: N/A | BJ267: N/A | BK267: N/A | BL267: N/A | BM267: N/A | BN267: N/A | BO267: N/A | BP267: N/A | BQ267: N/A | BR267: N/A | BS267: N/A | BT267: N/A | BU267: N/A | BV267: N/A | BW267: N/A | BX267: N/A | BY267: N/A | BZ267: N/A | CA267: N/A | CB267: N/A | CC267: N/A | CD267: N/A | CE267: N/A | CF267: N/A | CG267: N/A | CH267: N/A | CI267: N/A | CJ267: N/A | CK267: N/A | CL267: N/A | CM267: N/A | CN267: N/A | CO267: N/A | CP267: N/A | CQ267: N/A
BA268: Use of menstrual materials with private place to wash and change | BB268: Materials reusable | BC268: N/A | BD268: N/A | BE268: N/A | BF268: N/A | BG268: N/A | BH268: N/A | BI268: N/A | BJ268: N/A | BK268: N/A | BL268: N/A | BM268: N/A | BN268: N/A | BO268: N/A | BP268: N/A | BQ268: N/A | BR268: N/A | BS268: N/A | BT268: N/A | BU268: N/A | BV268: N/A | BW268: N/A | BX268: N/A | BY268: N/A | BZ268: N/A | CA268: N/A | CB268: N/A | CC268: N/A | CD268: N/A | CE268: N/A | CF268: N/A | CG268: N/A | CH268: N/A | CI268: N/A | CJ268: N/A | CK268: N/A | CL268: N/A | CM268: N/A | CN268: N/A | CO268: N/A | CP268: N/A | CQ268: N/A
BB269: Materials not reusable | BC269: N/A | BD269: N/A | BE269: N/A | BF269: N/A | BG269: N/A | BH269: N/A | BI269: N/A | BJ269: N/A | BK269: N/A | BL269: N/A | BM269: N/A | BN269: N/A | BO269: N/A | BP269: N/A | BQ269: N/A | BR269: N/A | BS269: N/A | BT269: N/A | BU269: N/A | BV269: N/A | BW269: N/A | BX269: N/A | BY269: N/A | BZ269: N/A | CA269: N/A | CB269: N/A | CC269: N/A | CD269: N/A | CE269: N/A | CF269: N/A | CG269: N/A | CH269: N/A | CI269: N/A | CJ269: N/A | CK269: N/A | CL269: N/A | CM269: N/A | CN269: N/A | CO269: N/A | CP269: N/A | CQ269: N/A
BB270: No materials used | BC270: N/A | BD270: N/A | BE270: N/A | BF270: N/A | BG270: N/A | BH270: N/A | BI270: N/A | BJ270: N/A | BK270: N/A | BL270: N/A | BM270: N/A | BN270: N/A | BO270: N/A | BP270: N/A | BQ270: N/A | BR270: N/A | BS270: N/A | BT270: N/A | BU270: N/A | BV270: N/A | BW270: N/A | BX270: N/A | BY270: N/A | BZ270: N/A | CA270: N/A | CB270: N/A | CC270: N/A | CD270: N/A | CE270: N/A | CF270: N/A | CG270: N/A | CH270: N/A | CI270: N/A | CJ270: N/A | CK270: N/A | CL270: N/A | CM270: N/A | CN270: N/A | CO270: N/A | CP270: N/A | CQ270: N/A
BA271: Awareness of menstruation before menarche | BB271: Yes | BC271: N/A | BD271: N/A | BE271: N/A | BF271: N/A | BG271: N/A | BH271: N/A | BI271: N/A | BJ271: N/A | BK271: N/A | BL271: N/A | BM271: N/A | BN271: N/A | BO271: N/A | BP271: N/A | BQ271: N/A | BR271: N/A | BS271: N/A | BT271: N/A | BU271: N/A | BV271: N/A | BW271: N/A | BX271: N/A | BY271: N/A | BZ271: N/A | CA271: N/A | CB271: N/A | CC271: N/A | CD271: N/A | CE271: N/A | CF271: N/A | CG271: N/A | CH271: N/A | CI271: N/A | CJ271: N/A | CK271: N/A | CL271: N/A | CM271: N/A | CN271: N/A | CO271: N/A | CP271: N/A | CQ271: N/A
BB272: No | BC272: N/A | BD272: N/A | BE272: N/A | BF272: N/A | BG272: N/A | BH272: N/A | BI272: N/A | BJ272: N/A | BK272: N/A | BL272: N/A | BM272: N/A | BN272: N/A | BO272: N/A | BP272: N/A | BQ272: N/A | BR272: N/A | BS272: N/A | BT272: N/A | BU272: N/A | BV272: N/A | BW272: N/A | BX272: N/A | BY272: N/A | BZ272: N/A | CA272: N/A | CB272: N/A | CC272: N/A | CD272: N/A | CE272: N/A | CF272: N/A | CG272: N/A | CH272: N/A | CI272: N/A | CJ272: N/A | CK272: N/A | CL272: N/A | CM272: N/A | CN272: N/A | CO272: N/A | CP272: N/A | CQ272: N/A
BB273: DK/not sure/missing | BC273: N/A | BD273: N/A | BE273: N/A | BF273: N/A | BG273: N/A | BH273: N/A | BI273: N/A | BJ273: N/A | BK273: N/A | BL273: N/A | BM273: N/A | BN273: N/A | BO273: N/A | BP273: N/A | BQ273: N/A | BR273: N/A | BS273: N/A | BT273: N/A | BU273: N/A | BV273: N/A | BW273: N/A | BX273: N/A | BY273: N/A | BZ273: N/A | CA273: N/A | CB273: N/A | CC273: N/A | CD273: N/A | CE273: N/A | CF273: N/A | CG273: N/A | CH273: N/A | CI273: N/A | CJ273: N/A | CK273: N/A | CL273: N/A | CM273: N/A | CN273: N/A | CO273: N/A | CP273: N/A | CQ273: N/A
BA274: Participation in (all) activities during menstruation | BB274: Yes | BC274: N/A | BD274: N/A | BE274: N/A | BF274: N/A | BG274: N/A | BH274: N/A | BI274: N/A | BJ274: N/A | BK274: N/A | BL274: N/A | BM274: N/A | BN274: N/A | BO274: N/A | BP274: N/A | BQ274: N/A | BR274: N/A | BS274: N/A | BT274: N/A | BU274: N/A | BV274: N/A | BW274: N/A | BX274: N/A | BY274: N/A | BZ274: N/A | CA274: N/A | CB274: N/A | CC274: N/A | CD274: N/A | CE274: N/A | CF274: N/A | CG274: N/A | CH274: N/A | CI274: N/A | CJ274: N/A | CK274: N/A | CL274: N/A | CM274: N/A | CN274: N/A | CO274: N/A | CP274: N/A | CQ274: N/A
BB275: No | BC275: N/A | BD275: N/A | BE275: N/A | BF275: N/A | BG275: N/A | BH275: N/A | BI275: N/A | BJ275: N/A | BK275: N/A | BL275: N/A | BM275: N/A | BN275: N/A | BO275: N/A | BP275: N/A | BQ275: N/A | BR275: N/A | BS275: N/A | BT275: N/A | BU275: N/A | BV275: N/A | BW275: N/A | BX275: N/A | BY275: N/A | BZ275: N/A | CA275: N/A | CB275: N/A | CC275: N/A | CD275: N/A | CE275: N/A | CF275: N/A | CG275: N/A | CH275: N/A | CI275: N/A | CJ275: N/A | CK275: N/A | CL275: N/A | CM275: N/A | CN275: N/A | CO275: N/A | CP275: N/A | CQ275: N/A
BB276: DK/not sure/missing/no such activity | BC276: N/A | BD276: N/A | BE276: N/A | BF276: N/A | BG276: N/A | BH276: N/A | BI276: N/A | BJ276: N/A | BK276: N/A | BL276: N/A | BM276: N/A | BN276: N/A | BO276: N/A | BP276: N/A | BQ276: N/A | BR276: N/A | BS276: N/A | BT276: N/A | BU276: N/A | BV276: N/A | BW276: N/A | BX276: N/A | BY276: N/A | BZ276: N/A | CA276: N/A | CB276: N/A | CC276: N/A | CD276: N/A | CE276: N/A | CF276: N/A | CG276: N/A | CH276: N/A | CI276: N/A | CJ276: N/A | CK276: N/A | CL276: N/A | CM276: N/A | CN276: N/A | CO276: N/A | CP276: N/A | CQ276: N/A
BA277: Participation in specific activities during menstruation | BB277: Did not go to school (amongst those usually attending school) | BC277: N/A | BD277: N/A | BE277: N/A | BF277: N/A | BG277: N/A | BH277: N/A | BI277: N/A | BJ277: N/A | BK277: N/A | BL277: N/A | BM277: N/A | BN277: N/A | BO277: N/A | BP277: N/A | BQ277: N/A | BR277: N/A | BS277: N/A | BT277: N/A | BU277: N/A | BV277: N/A | BW277: N/A | BX277: N/A | BY277: N/A | BZ277: N/A | CA277: N/A | CB277: N/A | CC277: N/A | CD277: N/A | CE277: N/A | CF277: N/A | CG277: N/A | CH277: N/A | CI277: N/A | CJ277: N/A | CK277: N/A | CL277: N/A | CM277: N/A | CN277: N/A | CO277: N/A | CP277: N/A | CQ277: N/A
BB278: Did not go to work (amongst those who usually work) | BC278: N/A | BD278: N/A | BE278: N/A | BF278: N/A | BG278: N/A | BH278: N/A | BI278: N/A | BJ278: N/A | BK278: N/A | BL278: N/A | BM278: N/A | BN278: N/A | BO278: N/A | BP278: N/A | BQ278: N/A | BR278: N/A | BS278: N/A | BT278: N/A | BU278: N/A | BV278: N/A | BW278: N/A | BX278: N/A | BY278: N/A | BZ278: N/A | CA278: N/A | CB278: N/A | CC278: N/A | CD278: N/A | CE278: N/A | CF278: N/A | CG278: N/A | CH278: N/A | CI278: N/A | CJ278: N/A | CK278: N/A | CL278: N/A | CM278: N/A | CN278: N/A | CO278: N/A | CP278: N/A | CQ278: N/A
BB279: Did not participate in social activities | BC279: N/A | BD279: N/A | BE279: N/A | BF279: N/A | BG279: N/A | BH279: N/A | BI279: N/A | BJ279: N/A | BK279: N/A | BL279: N/A | BM279: N/A | BN279: N/A | BO279: N/A | BP279: N/A | BQ279: N/A | BR279: N/A | BS279: N/A | BT279: N/A | BU279: N/A | BV279: N/A | BW279: N/A | BX279: N/A | BY279: N/A | BZ279: N/A | CA279: N/A | CB279: N/A | CC279: N/A | CD279: N/A | CE279: N/A | CF279: N/A | CG279: N/A | CH279: N/A | CI279: N/A | CJ279: N/A | CK279: N/A | CL279: N/A | CM279: N/A | CN279: N/A | CO279: N/A | CP279: N/A | CQ279: N/A
BB280: Did not cook food | BC280: N/A | BD280: N/A | BE280: N/A | BF280: N/A | BG280: N/A | BH280: N/A | BI280: N/A | BJ280: N/A | BK280: N/A | BL280: N/A | BM280: N/A | BN280: N/A | BO280: N/A | BP280: N/A | BQ280: N/A | BR280: N/A | BS280: N/A | BT280: N/A | BU280: N/A | BV280: N/A | BW280: N/A | BX280: N/A | BY280: N/A | BZ280: N/A | CA280: N/A | CB280: N/A | CC280: N/A | CD280: N/A | CE280: N/A | CF280: N/A | CG280: N/A | CH280: N/A | CI280: N/A | CJ280: N/A | CK280: N/A | CL280: N/A | CM280: N/A | CN280: N/A | CO280: N/A | CP280: N/A | CQ280: N/A
BB281: Did not eat with others | BC281: N/A | BD281: N/A | BE281: N/A | BF281: N/A | BG281: N/A | BH281: N/A | BI281: N/A | BJ281: N/A | BK281: N/A | BL281: N/A | BM281: N/A | BN281: N/A | BO281: N/A | BP281: N/A | BQ281: N/A | BR281: N/A | BS281: N/A | BT281: N/A | BU281: N/A | BV281: N/A | BW281: N/A | BX281: N/A | BY281: N/A | BZ281: N/A | CA281: N/A | CB281: N/A | CC281: N/A | CD281: N/A | CE281: N/A | CF281: N/A | CG281: N/A | CH281: N/A | CI281: N/A | CJ281: N/A | CK281: N/A | CL281: N/A | CM281: N/A | CN281: N/A | CO281: N/A | CP281: N/A | CQ281: N/A
BB282: Did not bathe in regular place | BC282: N/A | BD282: N/A | BE282: N/A | BF282: N/A | BG282: N/A | BH282: N/A | BI282: N/A | BJ282: N/A | BK282: N/A | BL282: N/A | BM282: N/A | BN282: N/A | BO282: N/A | BP282: N/A | BQ282: N/A | BR282: N/A | BS282: N/A | BT282: N/A | BU282: N/A | BV282: N/A | BW282: N/A | BX282: N/A | BY282: N/A | BZ282: N/A | CA282: N/A | CB282: N/A | CC282: N/A | CD282: N/A | CE282: N/A | CF282: N/A | CG282: N/A | CH282: N/A | CI282: N/A | CJ282: N/A | CK282: N/A | CL282: N/A | CM282: N/A | CN282: N/A | CO282: N/A | CP282: N/A | CQ282: N/A
BB283: Did not participate in other activities | BC283: N/A | BD283: N/A | BE283: N/A | BF283: N/A | BG283: N/A | BH283: N/A | BI283: N/A | BJ283: N/A | BK283: N/A | BL283: N/A | BM283: N/A | BN283: N/A | BO283: N/A | BP283: N/A | BQ283: N/A | BR283: N/A | BS283: N/A | BT283: N/A | BU283: N/A | BV283: N/A | BW283: N/A | BX283: N/A | BY283: N/A | BZ283: N/A | CA283: N/A | CB283: N/A | CC283: N/A | CD283: N/A | CE283: N/A | CF283: N/A | CG283: N/A | CH283: N/A | CI283: N/A | CJ283: N/A | CK283: N/A | CL283: N/A | CM283: N/A | CN283: N/A | CO283: N/A | CP283: N/A | CQ283: N/A
BB284: DK/not sure/missing/no such activity | BC284: N/A | BD284: N/A | BE284: N/A | BF284: N/A | BG284: N/A | BH284: N/A | BI284: N/A | BJ284: N/A | BK284: N/A | BL284: N/A | BM284: N/A | BN284: N/A | BO284: N/A | BP284: N/A | BQ284: N/A | BR284: N/A | BS284: N/A | BT284: N/A | BU284: N/A | BV284: N/A | BW284: N/A | BX284: N/A | BY284: N/A | BZ284: N/A | CA284: N/A | CB284: N/A | CC284: N/A | CD284: N/A | CE284: N/A | CF284: N/A | CG284: N/A | CH284: N/A | CI284: N/A | CJ284: N/A | CK284: N/A | CL284: N/A | CM284: N/A | CN284: N/A | CO284: N/A | CP284: N/A | CQ284: N/A
BA339: Raw numbers of respondents: | BB339: Basic water, sanitation and hygiene | BC339: NATIONAL wealth index quintile | BH339: URBAN wealth index quintile | BM339: RURAL wealth index quintile | BR339: SUB-REGIONS:
BA340: WatSan data, raw numbers (weighted) | BC340: Poorest | BD340: Poor | BE340: Middle | BF340: Rich | BG340: Richest | BH340: Poorest | BI340: Poor | BJ340: Middle | BK340: Rich | BL340: Richest | BM340: Poorest | BN340: Poor | BO340: Middle | BP340: Rich | BQ340: Richest | BR340: AR Krym | BS340: Cherkaska | BT340: Chernigivska | BU340: Chernivecka | BV340: Dnipropetrovska | BW340: Donecka | BX340: Gytomyrska | BY340: Iv-Frankivska | BZ340: Kharkivska | CA340: Khersonska | CB340: Khmelnicka | CC340: Kirovogradska | CD340: Kyiv | CE340: Kyivska | CF340: Luganska | CG340: Lvivska | CH340: Mykolaivska | CI340: Odeska | CJ340: Poltavska | CK340: Rivnenska | CL340: Sumska | CM340: Ternopilska | CN340: Vinnycka | CO340: Volynska | CP340: Zakarpatska | CQ340: Zaporizka
BA341: Use of Basic Water Sanitation and Hygiene | BB341: Yes | BC341: N/A | BD341: N/A | BE341: N/A | BF341: N/A | BG341: N/A | BH341: N/A | BI341: N/A | BJ341: N/A | BK341: N/A | BL341: N/A | BM341: N/A | BN341: N/A | BO341: N/A | BP341: N/A | BQ341: N/A | BR341: N/A | BS341: N/A | BT341: N/A | BU341: N/A | BV341: N/A | BW341: N/A | BX341: N/A | BY341: N/A | BZ341: N/A | CA341: N/A | CB341: N/A | CC341: N/A | CD341: N/A | CE341: N/A | CF341: N/A | CG341: N/A | CH341: N/A | CI341: N/A | CJ341: N/A | CK341: N/A | CL341: N/A | CM341: N/A | CN341: N/A | CO341: N/A | CP341: N/A | CQ341: N/A
BB342: No | BC342: N/A | BD342: N/A | BE342: N/A | BF342: N/A | BG342: N/A | BH342: N/A | BI342: N/A | BJ342: N/A | BK342: N/A | BL342: N/A | BM342: N/A | BN342: N/A | BO342: N/A | BP342: N/A | BQ342: N/A | BR342: N/A | BS342: N/A | BT342: N/A | BU342: N/A | BV342: N/A | BW342: N/A | BX342: N/A | BY342: N/A | BZ342: N/A | CA342: N/A | CB342: N/A | CC342: N/A | CD342: N/A | CE342: N/A | CF342: N/A | CG342: N/A | CH342: N/A | CI342: N/A | CJ342: N/A | CK342: N/A | CL342: N/A | CM342: N/A | CN342: N/A | CO342: N/A | CP342: N/A | CQ342: N/A
BA343: Use of Basic Water and Sanitation | BB343: Yes | BC343: N/A | BD343: N/A | BE343: N/A | BF343: N/A | BG343: N/A | BH343: N/A | BI343: N/A | BJ343: N/A | BK343: N/A | BL343: N/A | BM343: N/A | BN343: N/A | BO343: N/A | BP343: N/A | BQ343: N/A | BR343: N/A | BS343: N/A | BT343: N/A | BU343: N/A | BV343: N/A | BW343: N/A | BX343: N/A | BY343: N/A | BZ343: N/A | CA343: N/A | CB343: N/A | CC343: N/A | CD343: N/A | CE343: N/A | CF343: N/A | CG343: N/A | CH343: N/A | CI343: N/A | CJ343: N/A | CK343: N/A | CL343: N/A | CM343: N/A | CN343: N/A | CO343: N/A | CP343: N/A | CQ343: N/A
BB344: No | BC344: N/A | BD344: N/A | BE344: N/A | BF344: N/A | BG344: N/A | BH344: N/A | BI344: N/A | BJ344: N/A | BK344: N/A | BL344: N/A | BM344: N/A | BN344: N/A | BO344: N/A | BP344: N/A | BQ344: N/A | BR344: N/A | BS344: N/A | BT344: N/A | BU344: N/A | BV344: N/A | BW344: N/A | BX344: N/A | BY344: N/A | BZ344: N/A | CA344: N/A | CB344: N/A | CC344: N/A | CD344: N/A | CE344: N/A | CF344: N/A | CG344: N/A | CH344: N/A | CI344: N/A | CJ344: N/A | CK344: N/A | CL344: N/A | CM344: N/A | CN344: N/A | CO344: N/A | CP344: N/A | CQ344: N/A
BA345: Use of Basic Water and Hygiene | BB345: Yes | BC345: N/A | BD345: N/A | BE345: N/A | BF345: N/A | BG345: N/A | BH345: N/A | BI345: N/A | BJ345: N/A | BK345: N/A | BL345: N/A | BM345: N/A | BN345: N/A | BO345: N/A | BP345: N/A | BQ345: N/A | BR345: N/A | BS345: N/A | BT345: N/A | BU345: N/A | BV345: N/A | BW345: N/A | BX345: N/A | BY345: N/A | BZ345: N/A | CA345: N/A | CB345: N/A | CC345: N/A | CD345: N/A | CE345: N/A | CF345: N/A | CG345: N/A | CH345: N/A | CI345: N/A | CJ345: N/A | CK345: N/A | CL345: N/A | CM345: N/A | CN345: N/A | CO345: N/A | CP345: N/A | CQ345: N/A
BB346: No | BC346: N/A | BD346: N/A | BE346: N/A | BF346: N/A | BG346: N/A | BH346: N/A | BI346: N/A | BJ346: N/A | BK346: N/A | BL346: N/A | BM346: N/A | BN346: N/A | BO346: N/A | BP346: N/A | BQ346: N/A | BR346: N/A | BS346: N/A | BT346: N/A | BU346: N/A | BV346: N/A | BW346: N/A | BX346: N/A | BY346: N/A | BZ346: N/A | CA346: N/A | CB346: N/A | CC346: N/A | CD346: N/A | CE346: N/A | CF346: N/A | CG346: N/A | CH346: N/A | CI346: N/A | CJ346: N/A | CK346: N/A | CL346: N/A | CM346: N/A | CN346: N/A | CO346: N/A | CP346: N/A | CQ346: N/A
BA347: Use of Basic Sanitation and Hygiene | BB347: Yes | BC347: N/A | BD347: N/A | BE347: N/A | BF347: N/A | BG347: N/A | BH347: N/A | BI347: N/A | BJ347: N/A | BK347: N/A | BL347: N/A | BM347: N/A | BN347: N/A | BO347: N/A | BP347: N/A | BQ347: N/A | BR347: N/A | BS347: N/A | BT347: N/A | BU347: N/A | BV347: N/A | BW347: N/A | BX347: N/A | BY347: N/A | BZ347: N/A | CA347: N/A | CB347: N/A | CC347: N/A | CD347: N/A | CE347: N/A | CF347: N/A | CG347: N/A | CH347: N/A | CI347: N/A | CJ347: N/A | CK347: N/A | CL347: N/A | CM347: N/A | CN347: N/A | CO347: N/A | CP347: N/A | CQ347: N/A
BB348: No | BC348: N/A | BD348: N/A | BE348: N/A | BF348: N/A | BG348: N/A | BH348: N/A | BI348: N/A | BJ348: N/A | BK348: N/A | BL348: N/A | BM348: N/A | BN348: N/A | BO348: N/A | BP348: N/A | BQ348: N/A | BR348: N/A | BS348: N/A | BT348: N/A | BU348: N/A | BV348: N/A | BW348: N/A | BX348: N/A | BY348: N/A | BZ348: N/A | CA348: N/A | CB348: N/A | CC348: N/A | CD348: N/A | CE348: N/A | CF348: N/A | CG348: N/A | CH348: N/A | CI348: N/A | CJ348: N/A | CK348: N/A | CL348: N/A | CM348: N/A | CN348: N/A | CO348: N/A | CP348: N/A | CQ348: N/A
BA349: Use of Basic Water | BB349: Yes | BC349: N/A | BD349: N/A | BE349: N/A | BF349: N/A | BG349: N/A | BH349: N/A | BI349: N/A | BJ349: N/A | BK349: N/A | BL349: N/A | BM349: N/A | BN349: N/A | BO349: N/A | BP349: N/A | BQ349: N/A | BR349: N/A | BS349: N/A | BT349: N/A | BU349: N/A | BV349: N/A | BW349: N/A | BX349: N/A | BY349: N/A | BZ349: N/A | CA349: N/A | CB349: N/A | CC349: N/A | CD349: N/A | CE349: N/A | CF349: N/A | CG349: N/A | CH349: N/A | CI349: N/A | CJ349: N/A | CK349: N/A | CL349: N/A | CM349: N/A | CN349: N/A | CO349: N/A | CP349: N/A | CQ349: N/A
BB350: No | BC350: N/A | BD350: N/A | BE350: N/A | BF350: N/A | BG350: N/A | BH350: N/A | BI350: N/A | BJ350: N/A | BK350: N/A | BL350: N/A | BM350: N/A | BN350: N/A | BO350: N/A | BP350: N/A | BQ350: N/A | BR350: N/A | BS350: N/A | BT350: N/A | BU350: N/A | BV350: N/A | BW350: N/A | BX350: N/A | BY350: N/A | BZ350: N/A | CA350: N/A | CB350: N/A | CC350: N/A | CD350: N/A | CE350: N/A | CF350: N/A | CG350: N/A | CH350: N/A | CI350: N/A | CJ350: N/A | CK350: N/A | CL350: N/A | CM350: N/A | CN350: N/A | CO350: N/A | CP350: N/A | CQ350: N/A
BA351: Use of Basic Sanitation | BB351: Yes | BC351: N/A | BD351: N/A | BE351: N/A | BF351: N/A | BG351: N/A | BH351: N/A | BI351: N/A | BJ351: N/A | BK351: N/A | BL351: N/A | BM351: N/A | BN351: N/A | BO351: N/A | BP351: N/A | BQ351: N/A | BR351: N/A | BS351: N/A | BT351: N/A | BU351: N/A | BV351: N/A | BW351: N/A | BX351: N/A | BY351: N/A | BZ351: N/A | CA351: N/A | CB351: N/A | CC351: N/A | CD351: N/A | CE351: N/A | CF351: N/A | CG351: N/A | CH351: N/A | CI351: N/A | CJ351: N/A | CK351: N/A | CL351: N/A | CM351: N/A | CN351: N/A | CO351: N/A | CP351: N/A | CQ351: N/A
BB352: No | BC352: N/A | BD352: N/A | BE352: N/A | BF352: N/A | BG352: N/A | BH352: N/A | BI352: N/A | BJ352: N/A | BK352: N/A | BL352: N/A | BM352: N/A | BN352: N/A | BO352: N/A | BP352: N/A | BQ352: N/A | BR352: N/A | BS352: N/A | BT352: N/A | BU352: N/A | BV352: N/A | BW352: N/A | BX352: N/A | BY352: N/A | BZ352: N/A | CA352: N/A | CB352: N/A | CC352: N/A | CD352: N/A | CE352: N/A | CF352: N/A | CG352: N/A | CH352: N/A | CI352: N/A | CJ352: N/A | CK352: N/A | CL352: N/A | CM352: N/A | CN352: N/A | CO352: N/A | CP352: N/A | CQ352: N/A
BA353: Access to Basic Hygiene | BB353: Yes | BC353: N/A | BD353: N/A | BE353: N/A | BF353: N/A | BG353: N/A | BH353: N/A | BI353: N/A | BJ353: N/A | BK353: N/A | BL353: N/A | BM353: N/A | BN353: N/A | BO353: N/A | BP353: N/A | BQ353: N/A | BR353: N/A | BS353: N/A | BT353: N/A | BU353: N/A | BV353: N/A | BW353: N/A | BX353: N/A | BY353: N/A | BZ353: N/A | CA353: N/A | CB353: N/A | CC353: N/A | CD353: N/A | CE353: N/A | CF353: N/A | CG353: N/A | CH353: N/A | CI353: N/A | CJ353: N/A | CK353: N/A | CL353: N/A | CM353: N/A | CN353: N/A | CO353: N/A | CP353: N/A | CQ353: N/A
BB354: No | BC354: N/A | BD354: N/A | BE354: N/A | BF354: N/A | BG354: N/A | BH354: N/A | BI354: N/A | BJ354: N/A | BK354: N/A | BL354: N/A | BM354: N/A | BN354: N/A | BO354: N/A | BP354: N/A | BQ354: N/A | BR354: N/A | BS354: N/A | BT354: N/A | BU354: N/A | BV354: N/A | BW354: N/A | BX354: N/A | BY354: N/A | BZ354: N/A | CA354: N/A | CB354: N/A | CC354: N/A | CD354: N/A | CE354: N/A | CF354: N/A | CG354: N/A | CH354: N/A | CI354: N/A | CJ354: N/A | CK354: N/A | CL354: N/A | CM354: N/A | CN354: N/A | CO354: N/A | CP354: N/A | CQ354: N/A
C399: INITIAL (national) Wealth Index | H399: URBAN Wealth Index | M399: RURAL Wealth Index
C400: Component Matrix | H400: Component Matrix | M400: Component Matrix
E401: Component | J401: Component | O401: Component
B402: Note: The INITIAL (national) Wealth Index is based on the first component of the Principal Component Analysis (PCA) which has been obtained at national level. The final national-level (NATIONAL) Wealth Index is based on the URBAN and RURAL specific wealth indexes. Regression procedures are used to establish the relationships between the two sets of scores (urban and rural) and the initial (national) wealth factors. This allows best use of the available information for each area and a better precision of the FINAL (NATIONAL) Wealth Index. For dependency reasons, all WASH variables (contained in the generic MICS and DHS scripts) have been excluded from the sets of asset variables used in the PCAs. The PCA can extracts as many components as there are asset variables in the input. Only the first of the components is used to represent the Wealth Index. The scores represent the weights of the asset variables on the Wealth Index (correlations between the variables and the component). The communalities are the proportion of each variable's variance that can be explained by the component. Proportion of explained variance is the part of the model's total variance that is explained by the component. For more information on the procedure used: The DHS Wealth Index, DHS Comparative Reports No. 6, Shea Oscar Rutstein, Kiersten Johnson, ORC Macro International Inc., 2004. The DHS Wealth Index: Approaches for Rural and Urban Areas, Shea O. Rutstein, ORC Macro International Inc., 2008. MICS Methodological Paper No. 4, Review of options for reporting water, sanitation and hygiene coverage by wealth quintile, UNICEF, 2016. | E402: 1 | J402: 1 | O402: 1
C403: Has cement/concrete roof | E403: -0.8042389858 | H403: Household fuel type: coal/lignite | J403: 0.6669868608 | M403: Household fuel type: wood | O403: 0.8021058057
C404: Has wood floor | E404: 0.7681707997 | H404: Household cooks on closed owen | J404: 0.6614474114 | M404: Household cooks on closed owen | O404: 0.7622875111
C405: Has calamine roof | E405: 0.6834108568 | H405: Has cement/concrete roof | J405: -0.661049165 | M405: Household fuel type: natural gas | O405: -0.7209907862
C406: Household fuel type: natural gas | E406: -0.6054269047 | H406: Has calamine roof | J406: 0.6408917566 | M406: Has bricks wall | O406: -0.5112201611
C407: Household cooks on closed owen | E407: 0.5826832793 | H407: Household cooks in other house | J407: 0.5777030075 | M407: Has wood planks wall | O407: 0.4049101426
C408: Household fuel type: wood | E408: 0.5664057172 | H408: Household cooks in owm house | J408: -0.5731253048 | M408: Has reused wood wall | O408: 0.3749624224
C409: Has carpet floor | E409: -0.5328094514 | H409: Has wood floor | J409: 0.5310464066 | M409: Household member owns: freezer | O409: 0.3436899405
C410: Has cement blocks wall | E410: -0.4983338282 | H410: Household fuel type: natural gas | J410: -0.4411807955 | M410: Household cooks in owm house | O410: 0.3412060773
C411: Household cooks in owm house | E411: -0.4841195721 | H411: Has stone with lime wall | J411: 0.4135219934 | M411: Household cooks in other house | O411: -0.3395501854
C412: Household cooks in other house | E412: 0.4840977344 | H412: Has cement blocks wall | J412: -0.4078892093 | M412: Household has: scooter | O412: -0.3381307033
C413: Household has: bicycle | E413: -0.4648907526 | H413: Has carpet floor | J413: -0.3051224324 | M413: Household has: mobile refrigerator | O413: -0.298402175
C414: Household member owns: freezer | E414: 0.408317694 | H414: Household fuel type: LPG | J414: 0.2745691329 | M414: Household cooks on open owen | O414: 0.2549813153
C415: Household has: mobile refrigerator | E415: -0.3556646168 | H415: Has bricks wall | J415: 0.2696793543 | M415: Household member owns: iron | O415: -0.2489173521
C416: Household member owns: dish washer | E416: 0.3509779041 | H416: Household cooks on open owen | J416: 0.2598191344 | M416: Household has: television | O416: -0.2461373342
C417: Has reused wood wall | E417: 0.3445275587 | H417: Household fuel type: wood | J417: 0.2527357279 | M417: Household has: bicycle | O417: -0.2184746749
C418: Has parquet/polished wood floor | E418: -0.3350951788 | H418: Household has: bicycle | J418: -0.2224164968 | M418: Has parquet/polished wood floor | O418: -0.2167185742
